Workbook

Sheet District
D2: 2025-2026 | E2: 2024-2025 | F2: 2022-23 | G2: 2021-22 | H2: 2021-22 | I2: 2020-21 | J2: 2020-21 | K2: 2019-20 | L2: 2019-20 | M2: 2018-19 | N2: 2017-18 | O2: 2016-17 | P2: 2015-16 | Q2: 2014-15
D3: Final | E3: Final | F3: Preliminary | G3: Final | H3: Preliminary | I3: Final | J3: Preliminary | K3: Final | L3: Preliminary | M3: Final | N3: 2nd Revised | O3: Revised
C4: Select District Name | D4: ABERDEEN
C5: District Code (CCDDD) | D5: =VLOOKUP(D4,CCDDD!D:F,3,FALSE) -> 14005
C7: Eisenhower 2001-02 Allocations | D7: =VLOOKUP($D$5,'Allocation 2025-26 Final'!$A$7:$S$322,4,FALSE) -> 0 | E7: =VLOOKUP($D$5,'Allocation 2024-25 Final'!$A$7:$S$322,4,FALSE) -> 0 | F7: =VLOOKUP($D$5,'[1]Allocation 2022-23 P'!$A$7:$M$321,3,FALSE) -> 0 | G7: =VLOOKUP($D$5,'[2]Allocation 2021-22 Final'!$A$7:$U$321,3,FALSE) -> 0 | H7: =VLOOKUP($D$5,'[1]Allocation 2021-22 Preliminary'!$A$7:$M$321,3,FALSE) -> 0 | I7: =IFERROR(VLOOKUP($D$5,'[1]Allocation 2020-21 Final'!$A$7:$M$317,3,FALSE),0) -> 0 | J7: =IFERROR(VLOOKUP($D$5,'[1]Allocation 2020-21 Preliminary'!$A$7:$M$318,3,FALSE),0) -> 0 | K7: =IFERROR(VLOOKUP($D$5,'[1]Allocation 2019-20 Final'!$A$7:$M$314,3,FALSE),0) -> 0 | L7: =IFERROR(VLOOKUP($D$5,'[1]Allocation 2019-20 Preliminary'!$A$7:$M$316,3,FALSE),0) -> 0 | M7: =IFERROR(VLOOKUP($D$5,'[1]Allocation 2018-19 Final'!$A$7:$M$316,3,FALSE),0) -> 0 | N7: =VLOOKUP($D$5,'[1]Allocation 2017-18 2ndRev_Final'!$A$7:$M$315,3,FALSE) -> 0 | O7: =VLOOKUP($D$5,'[1]Allocation 2016-17 rev_Final'!$A$7:$M$314,3,FALSE) -> 24422 | P7: =VLOOKUP($D$5,'[1]Allocation 2015-16 Final'!$A$7:$M$313,3,FALSE) -> 24422 | Q7: =VLOOKUP($D$5,'[1]Allocation 2014-15 Final'!$A$7:$M$304,3,FALSE) -> 24422
C8: Class Size Reduction allocations 2001-02 | D8: =VLOOKUP($D$5,'Allocation 2025-26 Final'!$A$7:$S$322,5,FALSE) -> 0 | E8: =VLOOKUP($D$5,'Allocation 2024-25 Final'!$A$7:$S$322,5,FALSE) -> 0 | F8: =VLOOKUP($D$5,'[1]Allocation 2022-23 P'!$A$7:$M$321,4,FALSE) -> 0 | G8: =VLOOKUP($D$5,'[2]Allocation 2021-22 Final'!$A$7:$U$321,4,FALSE) -> 0 | H8: =VLOOKUP($D$5,'[1]Allocation 2021-22 Preliminary'!$A$7:$M$321,4,FALSE) -> 0 | I8: =IFERROR(VLOOKUP($D$5,'[1]Allocation 2020-21 Final'!$A$7:$M$317,4,FALSE),0) -> 0 | J8: =IFERROR(VLOOKUP($D$5,'[1]Allocation 2020-21 Preliminary'!$A$7:$M$318,4,FALSE),0) -> 0 | K8: =IFERROR(VLOOKUP($D$5,'[1]Allocation 2019-20 Final'!$A$7:$M$314,4,FALSE),0) -> 0 | L8: =IFERROR(VLOOKUP($D$5,'[1]Allocation 2019-20 Preliminary'!$A$7:$M$316,4,FALSE),0) -> 0 | M8: =IFERROR(VLOOKUP($D$5,'[1]Allocation 2018-19 Final'!$A$7:$M$316,4,FALSE),0) -> 0 | N8: =VLOOKUP($D$5,'[1]Allocation 2017-18 2ndRev_Final'!$A$7:$M$315,4,FALSE) -> 0 | O8: =VLOOKUP($D$5,'[1]Allocation 2016-17 rev_Final'!$A$7:$M$314,4,FALSE) -> 128290 | P8: =VLOOKUP($D$5,'[1]Allocation 2015-16 Final'!$A$7:$M$313,4,FALSE) -> 128290 | Q8: =VLOOKUP($D$5,'[1]Allocation 2014-15 Final'!$A$7:$M$304,4,FALSE) -> 128290
C10: Census Population Ages 5-17 | D10: =VLOOKUP($D$5,'Allocation 2025-26 Final'!$A$7:$S$322,6,FALSE) -> 3496 | E10: =VLOOKUP($D$5,'Allocation 2024-25 Final'!$A$7:$S$322,6,FALSE) -> 3502 | F10: =VLOOKUP($D$5,'[1]Allocation 2022-23 P'!$A$7:$M$321,5,FALSE) -> 3433 | G10: =VLOOKUP($D$5,'[2]Allocation 2021-22 Final'!$A$7:$U$321,5,FALSE) -> 3402 | H10: =VLOOKUP($D$5,'[1]Allocation 2021-22 Preliminary'!$A$7:$M$321,5,FALSE) -> 3384 | I10: =IFERROR(VLOOKUP($D$5,'[1]Allocation 2020-21 Final'!$A$7:$M$317,5,FALSE),0) -> 3343 | J10: =IFERROR(VLOOKUP($D$5,'[1]Allocation 2020-21 Preliminary'!$A$7:$M$318,5,FALSE),0) -> 3341 | K10: =IFERROR(VLOOKUP($D$5,'[1]Allocation 2019-20 Final'!$A$7:$M$314,5,FALSE),0) -> 3269 | L10: =IFERROR(VLOOKUP($D$5,'[1]Allocation 2019-20 Preliminary'!$A$7:$M$316,5,FALSE),0) -> 3269 | M10: =IFERROR(VLOOKUP($D$5,'[1]Allocation 2018-19 Final'!$A$7:$M$315,5,FALSE),0) -> 3257 | N10: =VLOOKUP($D$5,'[1]Allocation 2017-18 2ndRev_Final'!$A$7:$M$315,5,FALSE) -> 3229 | O10: =VLOOKUP($D$5,'[1]Allocation 2016-17 rev_Final'!$A$7:$M$314,5,FALSE) -> 3239 | P10: =VLOOKUP($D$5,'[1]Allocation 2015-16 Final'!$A$7:$M$313,5,FALSE) -> 3253 | Q10: =VLOOKUP($D$5,'[1]Allocation 2014-15 Final'!$A$7:$M$304,5,FALSE) -> 3252
C11: 20% based on Total Pop | D11: =VLOOKUP($D$5,'Allocation 2025-26 Final'!$A$7:$S$322,7,FALSE) -> 18979 | E11: =VLOOKUP($D$5,'Allocation 2024-25 Final'!$A$7:$S$322,7,FALSE) -> 18904 | F11: =VLOOKUP($D$5,'[1]Allocation 2022-23 P'!$A$7:$M$321,6,FALSE) -> 18229 | G11: =VLOOKUP($D$5,'[2]Allocation 2021-22 Final'!$A$7:$U$321,6,FALSE) -> 18525 | H11: =VLOOKUP($D$5,'[1]Allocation 2021-22 Preliminary'!$A$7:$M$321,6,FALSE) -> 18415 | I11: =IFERROR(VLOOKUP($D$5,'[1]Allocation 2020-21 Final'!$A$7:$M$317,6,FALSE),0) -> 17964 | J11: =IFERROR(VLOOKUP($D$5,'[1]Allocation 2020-21 Preliminary'!$A$7:$M$318,6,FALSE),0) -> 17933 | K11: =IFERROR(VLOOKUP($D$5,'[1]Allocation 2019-20 Final'!$A$7:$M$314,6,FALSE),0) -> 17854 | L11: =IFERROR(VLOOKUP($D$5,'[1]Allocation 2019-20 Preliminary'!$A$7:$M$316,6,FALSE),0) -> 17810 | M11: =IFERROR(VLOOKUP($D$5,'[1]Allocation 2018-19 Final'!$A$7:$M$315,6,FALSE),0) -> 17567 | N11: =VLOOKUP($D$5,'[1]Allocation 2017-18 Rev_Final'!$A$7:$M$315,6,FALSE) -> 17590 | O11: =VLOOKUP($D$5,'[1]Allocation 2016-17 rev_Final'!$A$7:$M$314,6,FALSE) -> 1386 | P11: =VLOOKUP($D$5,'[1]Allocation 2015-16 Final'!$A$7:$M$313,6,FALSE) -> 1880 | Q11: =VLOOKUP($D$5,'[1]Allocation 2014-15 Final'!$A$7:$M$304,6,FALSE) -> 1883
C12: Census Poverty Ages 5-17 | D12: =VLOOKUP($D$5,'Allocation 2025-26 Final'!$A$7:$S$322,8,FALSE) -> 690 | E12: =VLOOKUP($D$5,'Allocation 2024-25 Final'!$A$7:$S$322,8,FALSE) -> 804 | F12: =VLOOKUP($D$5,'[1]Allocation 2022-23 P'!$A$7:$M$321,7,FALSE) -> 663 | G12: =VLOOKUP($D$5,'[2]Allocation 2021-22 Final'!$A$7:$U$321,7,FALSE) -> 736 | H12: =VLOOKUP($D$5,'[1]Allocation 2021-22 Preliminary'!$A$7:$M$321,7,FALSE) -> 736 | I12: =IFERROR(VLOOKUP($D$5,'[1]Allocation 2020-21 Final'!$A$7:$M$317,7,FALSE),0) -> 871 | J12: =IFERROR(VLOOKUP($D$5,'[1]Allocation 2020-21 Preliminary'!$A$7:$M$318,7,FALSE),0) -> 871 | K12: =IFERROR(VLOOKUP($D$5,'[1]Allocation 2019-20 Final'!$A$7:$M$314,7,FALSE),0) -> 996 | L12: =IFERROR(VLOOKUP($D$5,'[1]Allocation 2019-20 Preliminary'!$A$7:$M$316,7,FALSE),0) -> 996 | M12: =IFERROR(VLOOKUP($D$5,'[1]Allocation 2018-19 Final'!$A$7:$M$316,7,FALSE),0) -> 835 | N12: =VLOOKUP($D$5,'[1]Allocation 2017-18 2ndRev_Final'!$A$7:$M$315,7,FALSE) -> 859 | O12: =VLOOKUP($D$5,'[1]Allocation 2016-17 rev_Final'!$A$7:$M$314,7,FALSE) -> 941 | P12: =VLOOKUP($D$5,'[1]Allocation 2015-16 Final'!$A$7:$M$313,7,FALSE) -> 964 | Q12: =VLOOKUP($D$5,'[1]Allocation 2014-15 Final'!$A$7:$M$304,7,FALSE) -> 1012
C13: 80% based on Low Inc Pop | D13: =VLOOKUP($D$5,'Allocation 2025-26 Final'!$A$7:$S$322,9,FALSE) -> 137585 | E13: =VLOOKUP($D$5,'Allocation 2024-25 Final'!$A$7:$S$322,9,FALSE) -> 159927 | F13: =VLOOKUP($D$5,'[1]Allocation 2022-23 P'!$A$7:$M$321,8,FALSE) -> 148102 | G13: =VLOOKUP($D$5,'[2]Allocation 2021-22 Final'!$A$7:$U$321,8,FALSE) -> 146202 | H13: =VLOOKUP($D$5,'[1]Allocation 2021-22 Preliminary'!$A$7:$M$321,8,FALSE) -> 146008 | I13: =IFERROR(VLOOKUP($D$5,'[1]Allocation 2020-21 Final'!$A$7:$M$317,8,FALSE),0) -> 162759 | J13: =IFERROR(VLOOKUP($D$5,'[1]Allocation 2020-21 Preliminary'!$A$7:$M$318,8,FALSE),0) -> 162570 | K13: =IFERROR(VLOOKUP($D$5,'[1]Allocation 2019-20 Final'!$A$7:$M$314,8,FALSE),0) -> 165895 | L13: =IFERROR(VLOOKUP($D$5,'[1]Allocation 2019-20 Preliminary'!$A$7:$M$316,8,FALSE),0) -> 165487 | M13: =IFERROR(VLOOKUP($D$5,'[1]Allocation 2018-19 Final'!$A$7:$M$316,8,FALSE),0) -> 143714 | N13: =VLOOKUP($D$5,'[1]Allocation 2017-18 2ndRev_Final'!$A$7:$M$315,8,FALSE) -> 132230 | O13: =VLOOKUP($D$5,'[1]Allocation 2016-17 rev_Final'!$A$7:$M$314,8,FALSE) -> 10197 | P13: =VLOOKUP($D$5,'[1]Allocation 2015-16 Final'!$A$7:$M$313,8,FALSE) -> 13166 | Q13: =VLOOKUP($D$5,'[1]Allocation 2014-15 Final'!$A$7:$M$304,8,FALSE) -> 13862
C15: Total Allocation | D15: =VLOOKUP($D$5,'Allocation 2025-26 Final'!$A$7:$S$322,11,FALSE) -> 156564 | E15: =VLOOKUP($D$5,'Allocation 2024-25 Final'!$A$7:$S$322,11,FALSE) -> 178831 | F15: =VLOOKUP($D$5,'[1]Allocation 2022-23 P'!$A$7:$R$321,18,FALSE) -> 166331 | G15: =VLOOKUP($D$5,'[2]Allocation 2021-22 Final'!$A$7:$U$321,10,FALSE) -> 164727 | H15: =VLOOKUP($D$5,'[1]Allocation 2021-22 Preliminary'!$A$7:$R$321,18,FALSE) -> 164423 | I15: =IFERROR(VLOOKUP($D$5,'[1]Allocation 2020-21 Final'!$A$7:$R$317,18,FALSE),0) -> 180723 | J15: =IFERROR(VLOOKUP($D$5,'[1]Allocation 2020-21 Preliminary'!$A$7:$R$318,18,FALSE),0) -> 180503 | K15: =IFERROR(VLOOKUP($D$5,'[1]Allocation 2019-20 Final'!$A$7:$R$314,18,FALSE),0) -> 183749 | L15: =IFERROR(VLOOKUP($D$5,'[1]Allocation 2019-20 Preliminary'!$A$7:$R$316,18,FALSE),0) -> 183297 | M15: =IFERROR(VLOOKUP($D$5,'[1]Allocation 2018-19 Final'!$A$7:$R$316,18,FALSE),0) -> 161281 | N15: =VLOOKUP($D$5,'[1]Allocation 2017-18 2ndRev_Final'!$A$7:$R$315,18,FALSE) -> 149921 | O15: =VLOOKUP($D$5,'[1]Allocation 2016-17 rev_Final'!$A$7:$R$314,18,FALSE)-IF(D4="Seattle",11,0) -> 164277 | P15: =VLOOKUP($D$5,'[1]Allocation 2015-16 Final'!$A$7:$R$313,18,FALSE)-IF(D4="Seattle",6,0) -> 167716 | Q15: =VLOOKUP($D$5,'[1]Allocation 2014-15 Final'!$A$7:$R$304,18,FALSE) -> 168415
C16: Poverty Percentage | D16: =IF(D10=0,0,D12/D10) -> 0.1973684211 | E16: =IF(E10=0,0,E12/E10) -> 0.2295830954 | F16: 0.1931255462 | G16: 0.2163433275 | H16: 0.2174940898 | I16: 0.2605444212 | J16: 0.2607003891 | K16: 0.3046803304 | L16: 0.3046803304 | M16: 0.2563708935 | N16: 0.2660266336 | O16: 0.290521766 | P16: 0.2963418383 | Q16: 0.3111931119
C18: MOE Reduction Percentage | D18: =VLOOKUP($D$5,'Allocation 2025-26 Final'!$A$7:$S$322,17,FALSE) -> 0 | E18: =VLOOKUP($D$5,'Allocation 2024-25 Final'!$A$7:$S$322,17,FALSE) -> 0 | F18: 0 | G18: =VLOOKUP($D$5,'[2]Allocation 2021-22 Final'!$A$7:$U$321,19,FALSE) -> 0 | H18: =IF(VLOOKUP($D$5,'[1]Allocation 2021-22 Preliminary'!$A$7:$T$321,19,FALSE)=0,0,VLOOKUP($D$5,'[1]Allocation 2021-22 Preliminary'!$A$7:$T$321,19,FALSE)-0.9) -> 0 | I18: =IFERROR(IF(VLOOKUP($D$5,'[1]Allocation 2020-21 Final'!$A$7:$T$317,19,FALSE)=0,0,VLOOKUP($D$5,'[1]Allocation 2020-21 Final'!$A$7:$T$317,19,FALSE)-0.9),0) -> 0 | J18: =IFERROR(IF(VLOOKUP($D$5,'[1]Allocation 2020-21 Preliminary'!$A$7:$T$318,19,FALSE)=0,0,VLOOKUP($D$5,'[1]Allocation 2020-21 Preliminary'!$A$7:$T$318,19,FALSE)-0.9),0) -> 0 | K18: =IFERROR(IF(VLOOKUP($D$5,'[1]Allocation 2019-20 Final'!$A$7:$T$314,19,FALSE)=0,0,VLOOKUP($J$5,'[1]Allocation 2019-20 Final'!$A$7:$T$314,19,FALSE)-0.9),0) -> 0 | L18: =IFERROR(IF(VLOOKUP($D$5,'[1]Allocation 2019-20 Preliminary'!$A$7:$T$316,19,FALSE)=0,0,VLOOKUP($D$5,'[1]Allocation 2019-20 Preliminary'!$A$7:$T$316,19,FALSE)-0.9),0) -> 0 | M18: =IFERROR(IF(VLOOKUP($D$5,'[1]Allocation 2018-19 Final'!$A$7:$T$316,19,FALSE)=0,0,VLOOKUP($D$5,'[1]Allocation 2018-19 Final'!$A$7:$T$316,19,FALSE)-0.9),0) -> 0 | N18: =IF(VLOOKUP($D$5,'[1]Allocation 2017-18 2ndRev_Final'!$A$7:$T$315,19,FALSE)=0,0,VLOOKUP($D$5,'[1]Allocation 2017-18 2ndRev_Final'!$A$7:$T$315,19,FALSE)-0.9) -> 0 | O18: =IF(VLOOKUP($D$5,'[1]Allocation 2016-17 rev_Final'!$A$7:$T$314,19,FALSE)=0,0,VLOOKUP($D$5,'[1]Allocation 2016-17 rev_Final'!$A$7:$T$314,19,FALSE)-0.9) -> 0 | P18: =IF(VLOOKUP($D$5,'[1]Allocation 2015-16 Final'!$A$7:$T$313,19,FALSE)=0,0,VLOOKUP($D$5,'[1]Allocation 2015-16 Final'!$A$7:$T$313,19,FALSE)-0.9) -> 0 | Q18: =IF(VLOOKUP($D$5,'[1]Allocation 2014-15 Final'!$A$7:$T$304,19,FALSE)=0,0,VLOOKUP($D$5,'[1]Allocation 2014-15 Final'!$A$7:$T$304,19,FALSE)-0.9) -> 0
C19: MOE Reduction Amount | D19: =VLOOKUP($D$5,'Allocation 2025-26 Final'!$A$7:$S$322,18,FALSE) -> 0 | E19: =VLOOKUP($D$5,'Allocation 2024-25 Final'!$A$7:$S$322,18,FALSE) -> 0 | F19: =VLOOKUP($D$5,'[1]Allocation 2022-23 P'!$A$7:$T$321,20,FALSE) -> 0 | G19: =VLOOKUP($D$5,'[2]Allocation 2021-22 Final'!$A$7:$U$321,20,FALSE) -> 0 | H19: =VLOOKUP($D$5,'[1]Allocation 2021-22 Preliminary'!$A$7:$T$321,20,FALSE) -> 0 | I19: =IFERROR(VLOOKUP($D$5,'[1]Allocation 2020-21 Final'!$A$7:$T$317,20,FALSE),0) -> 0 | J19: =IFERROR(VLOOKUP($D$5,'[1]Allocation 2020-21 Preliminary'!$A$7:$T$318,20,FALSE),0) -> 0 | K19: =IFERROR(VLOOKUP($D$5,'[1]Allocation 2019-20 Final'!$A$7:$T$314,20,FALSE),0) -> 0 | L19: =IFERROR(VLOOKUP($D$5,'[1]Allocation 2019-20 Preliminary'!$A$7:$T$316,20,FALSE),0) -> 0 | M19: =IFERROR(VLOOKUP($D$5,'[1]Allocation 2018-19 Preliminary'!$A$7:$T$316,20,FALSE),0) -> 0 | N19: =VLOOKUP($D$5,'[1]Allocation 2017-18 2ndRev_Final'!$A$7:$T$315,20,FALSE) -> 0 | O19: =VLOOKUP($D$5,'[1]Allocation 2016-17 rev_Final'!$A$7:$T$314,20,FALSE) -> 0 | P19: =VLOOKUP($D$5,'[1]Allocation 2015-16 Final'!$A$7:$T$313,20,FALSE) -> 0 | Q19: =VLOOKUP($D$5,'[1]Allocation 2014-15 Final'!$A$7:$T$304,20,FALSE) -> 0
C20: Prior Year Adjustment (reallocation) | D20: =VLOOKUP($D$5,'Allocation 2025-26 Final'!$A$7:$S$322,15,FALSE) -> 0 | E20: =VLOOKUP($D$5,'Allocation 2024-25 Final'!$A$7:$S$322,15,FALSE) -> 0 | G20: =VLOOKUP($D$5,'[2]Allocation 2021-22 Final'!$A$7:$U$321,17,FALSE) -> 0
C21: Final Allocation | D21: =+D15+D19+D20 -> 156564 | E21: =+E15+E19+E20 -> 178831 | F21: =+F15+F19+F20 -> 166331 | G21: =VLOOKUP($D$5,'[2]Allocation 2021-22 Final'!$A$7:$U$321,21,FALSE) -> 164727 | H21: =+H15+H19+H20 -> 164423 | I21: 180723 | J21: 180503 | K21: 183749 | L21: 183297 | M21: 161281 | N21: 149921 | O21: =+O15+O19 -> 164277 | P21: =+P15+P19 -> 167716 | Q21: =+Q15+Q19 -> 168415
C23: Increase (Decrease) from Prior Year | D23: =D21-E21 -> -22267 | F23: =F21-G15 -> 1604 | G23: =G21-I15 -> -15996 | H23: =H21-I15 -> -16300 | I23: =I21-K15 -> -3026 | J23: =J21-K15 -> -3246 | K23: =K21-L15 -> 452 | L23: =L21-M15 -> 22016 | M23: =IFERROR(M21-N15,0) -> 11360 | N23: =N21-O15 -> -14356 | O23: =O15-P15 -> -3439 | P23: =P15-Q15 -> -699
C24: % Change from Prior Year | D24: =IFERROR(D23/E21,"") -> -0.1245142061 | F24: =IFERROR(F23/G15,"") -> 0.009737322965 | G24: =IFERROR(G23/I15,"") -> -0.08851114689 | H24: =IFERROR(H23/I15,"") -> -0.09019327922 | I24: =IFERROR(I23/K15,"") -> -0.01646811683 | J24: =IFERROR(J23/K15,"") -> -0.01766540226 | K24: =IFERROR(K23/L15,"") -> 0.002465943251 | L24: =IFERROR(L23/M15,"") -> 0.1365070901 | M24: =IFERROR(M23/N15,"") -> 0.07577324057 | N24: =N23/O15 -> -0.08738898324 | O24: =O23/P15 -> -0.02050490114 | P24: =P23/Q15 -> -0.004150461657

Sheet Allocation 2025-26 Final (hidden)
B1: 2024-25 | K1: =IF(K5=Assumptions!$C$22+J5,"Rounding OK","Rounding Error = "&FIXED(K5-Assumptions!$C$22-J5,TRUE)) -> Rounding OK | R1: =R5 -> 0 | S1: =IF(S5=Assumptions!$C22+R5,"Rounding OK","Rounding Error = "&FIXED(S5-(Assumptions!$C22+R5),TRUE)) -> Rounding OK
B2: ESEA -- Title 2 Distributions | K2: Allocation including private participation | S2: \
A3: 1 | B3: 2 | C3: 3 | D3: 4 | E3: 5 | F3: 6 | G3: 7 | H3: 8 | I3: 9 | J3: 10 | L3: 12 | M3: 13 | N3: 14 | O3: 15 | P3: 16 | Q3: 17 | R3: 18 | S3: 19 | U3: 18
A4: CCDDD | B4: LEAID | C4: District Name | D4: Eisenhower 2001-02 Allocations | E4: Class Size Reduction Allocations 2001-02 | F4: Census Population Ages 5-17 | G4: 20% based on Total Pop | H4: Census Poverty Ages 5-17 | I4: 80% based on Low Inc Pop | J4: MOE | K4: Total Final Allocation | M4: Alloc to non-Census LEA | N4: Realloc Pool | O4: Realloc | P4: Final Alloc Before MOE | Q4: MOE | R4: MOE Reduction | S4: Final Alloc | U4: Prior Year Allocation | Y4: Rank Order | AB4: do not delete Y & Z
C5: State Totals | D5: =SUM(D7:D306) -> 0 | E5: =SUM(E7:E306) -> 0 | F5: =SUM(F7:F320) -> 1226172 | G5: =SUM(G7:G320) -> 6656531 | H5: =SUM(H7:H320) -> 133532 | I5: =SUM(I7:I320) -> 26626119 | K5: =SUM(K7:K320) -> 33282640 | M5: =SUM(M7:M320) -> 0 | N5: =SUM(N7:N320) -> 33282640 | O5: =SUM(O7:O320) -> 0 | P5: =SUM(P7:P320) -> 33282640 | R5: =SUM(R7:R320) -> 0 | S5: =SUM(S7:S320) -> 33282640 | U5: =SUM(U7:U320) -> 32921865 | W5: =SUM(W7:W318) -> 355449 | X5: =MIN(X7:X314) -> -0.8414355628 | Y5: ="Lose = "& PROPER(VLOOKUP(X5,$X$7:$AC$314,6,FALSE)) -> Lose = Starbuck | AB5: =+B5 -> 0 | AC5: =+C5 -> State Totals
X6: =MAX(X7:X307) -> 1.883647799 | Y6: ="Win = "&PROPER(VLOOKUP(X6,$X$7:$AC$307,6,FALSE)) -> Win = Shaw Island
A7: =VLOOKUP(B7,CCDDD!$A$3:$B$319,2,FALSE) -> 14005 | B7: 5300030 | C7: ABERDEEN | D7: 0 | E7: 0 | F7: =VLOOKUP(B7,'25-26 Adjusted Formula counts'!$A$3:$L$320,8,FALSE) -> 3496 | G7: =ROUND((F7/$F$5*Assumptions!$C$22*Assumptions!$C$30),0) -> 18979 | H7: =VLOOKUP(B7,'25-26 Adjusted Formula counts'!$A$3:$L$320,9,FALSE) -> 690 | I7: =ROUND((H7/$H$5*Assumptions!$C$22*Assumptions!$C$31),0) -> 137585 | K7: =ROUNDDOWN(+I7+G7+E7+D7+J7,0) -> 156564 | N7: =K7 -> 156564 | O7: =-ROUND(N7/$N$5*$M$5,0) -> 0 | P7: =+K7+O7+M7 -> 156564 | R7: =-1*(P7*Q7) -> 0 | S7: =+P7+R7 -> 156564 | U7: =IFERROR(VLOOKUP($A7, 'Allocation 2024-25 Final'!$A$7:$S$323,19,FALSE),0) -> 178831 | W7: =+S7-U7 -> -22267 | X7: =IF(U7>0,W7/U7,0) -> -0.1245142061 | Y7: =RANK(W7,$W$7:$W$320,0) -> 302 | Z7: =(SUM(D7:E7)/S7) -> 0 | AB7: =+B7 -> 5300030 | AC7: ABERDEEN
A8: =VLOOKUP(B8,CCDDD!$A$3:$B$319,2,FALSE) -> 21226 | B8: 5300060 | C8: ADNA | D8: 0 | E8: 0 | F8: =VLOOKUP(B8,'25-26 Adjusted Formula counts'!$A$3:$L$320,8,FALSE) -> 748 | G8: =ROUND((F8/$F$5*Assumptions!$C$22*Assumptions!$C$30),0) -> 4061 | H8: =VLOOKUP(B8,'25-26 Adjusted Formula counts'!$A$3:$L$320,9,FALSE) -> 66 | I8: =ROUND((H8/$H$5*Assumptions!$C$22*Assumptions!$C$31),0) -> 13160 | K8: 17221 | N8: 17221 | O8: 0 | P8: =+K8+O8+M9 -> 17221 | R8: 0 | S8: 17221 | U8: =IFERROR(VLOOKUP($A8, 'Allocation 2024-25 Final'!$A$7:$S$323,19,FALSE),0) -> 11537 | W8: 5684 | X8: 0.4926757389 | Y8: 57 | Z8: 0 | AB8: 5300060 | AC8: ADNA
A9: =VLOOKUP(B9,CCDDD!$A$3:$B$319,2,FALSE) -> 22017 | B9: 5300090 | C9: ALMIRA | D9: 0 | E9: 0 | F9: =VLOOKUP(B9,'25-26 Adjusted Formula counts'!$A$3:$L$320,8,FALSE) -> 99 | G9: =ROUND((F9/$F$5*Assumptions!$C$22*Assumptions!$C$30),0) -> 537 | H9: =VLOOKUP(B9,'25-26 Adjusted Formula counts'!$A$3:$L$320,9,FALSE) -> 18 | I9: =ROUND((H9/$H$5*Assumptions!$C$22*Assumptions!$C$31),0) -> 3589 | K9: 4126 | N9: 4126 | O9: 0 | P9: =+K9+O9+M10 -> 4126 | R9: 0 | S9: 4126 | U9: =IFERROR(VLOOKUP($A9, 'Allocation 2024-25 Final'!$A$7:$S$323,19,FALSE),0) -> 1722 | W9: 2404 | X9: 1.396051103 | Y9: 90 | Z9: 0 | AB9: 5300090 | AC9: ALMIRA
A10: =VLOOKUP(B10,CCDDD!$A$3:$B$319,2,FALSE) -> 29103 | B10: 5300150 | C10: ANACORTES | D10: 0 | E10: 0 | F10: =VLOOKUP(B10,'25-26 Adjusted Formula counts'!$A$3:$L$320,8,FALSE) -> 2787 | G10: =ROUND((F10/$F$5*Assumptions!$C$22*Assumptions!$C$30),0) -> 15130 | H10: =VLOOKUP(B10,'25-26 Adjusted Formula counts'!$A$3:$L$320,9,FALSE) -> 225 | I10: =ROUND((H10/$H$5*Assumptions!$C$22*Assumptions!$C$31),0) -> 44865 | K10: 59995 | N10: 59995 | O10: 0 | P10: =+K10+O10+M11 -> 59995 | R10: 0 | S10: 59995 | U10: =IFERROR(VLOOKUP($A10, 'Allocation 2024-25 Final'!$A$7:$S$323,19,FALSE),0) -> 65989 | W10: -5994 | X10: -0.0908333207 | Y10: 260 | Z10: 0 | AB10: 5300150 | AC10: ANACORTES
A11: =VLOOKUP(B11,CCDDD!$A$3:$B$319,2,FALSE) -> 31016 | B11: 5300240 | C11: ARLINGTON | D11: 0 | E11: 0 | F11: =VLOOKUP(B11,'25-26 Adjusted Formula counts'!$A$3:$L$320,8,FALSE) -> 5958 | G11: =ROUND((F11/$F$5*Assumptions!$C$22*Assumptions!$C$30),0) -> 32344 | H11: =VLOOKUP(B11,'25-26 Adjusted Formula counts'!$A$3:$L$320,9,FALSE) -> 533 | I11: =ROUND((H11/$H$5*Assumptions!$C$22*Assumptions!$C$31),0) -> 106280 | K11: 138624 | N11: 138624 | O11: 0 | P11: 138624 | R11: 0 | S11: 138624 | U11: =IFERROR(VLOOKUP($A11, 'Allocation 2024-25 Final'!$A$7:$S$323,19,FALSE),0) -> 142128 | W11: -3504 | X11: -0.02465383316 | Y11: 236 | Z11: 0 | AB11: 5300240 | AC11: ARLINGTON
A12: =VLOOKUP(B12,CCDDD!$A$3:$B$319,2,FALSE) -> 02420 | B12: 5300280 | C12: ASOTIN-ANATONE | D12: 0 | E12: 0 | F12: =VLOOKUP(B12,'25-26 Adjusted Formula counts'!$A$3:$L$320,8,FALSE) -> 489 | G12: =ROUND((F12/$F$5*Assumptions!$C$22*Assumptions!$C$30),0) -> 2655 | H12: =VLOOKUP(B12,'25-26 Adjusted Formula counts'!$A$3:$L$320,9,FALSE) -> 28 | I12: =ROUND((H12/$H$5*Assumptions!$C$22*Assumptions!$C$31),0) -> 5583 | K12: 8238 | N12: 8238 | O12: 0 | P12: 8238 | R12: 0 | S12: 8238 | U12: =IFERROR(VLOOKUP($A12, 'Allocation 2024-25 Final'!$A$7:$S$323,19,FALSE),0) -> 12209 | W12: -3971 | X12: -0.3252518634 | Y12: 244 | Z12: 0 | AB12: 5300280 | AC12: ASOTIN-ANATONE
A13: =VLOOKUP(B13,CCDDD!$A$3:$B$319,2,FALSE) -> 17408 | B13: 5300300 | C13: AUBURN | D13: 0 | E13: 0 | F13: =VLOOKUP(B13,'25-26 Adjusted Formula counts'!$A$3:$L$320,8,FALSE) -> 18383 | G13: =ROUND((F13/$F$5*Assumptions!$C$22*Assumptions!$C$30),0) -> 99796 | H13: =VLOOKUP(B13,'25-26 Adjusted Formula counts'!$A$3:$L$320,9,FALSE) -> 2769 | I13: =ROUND((H13/$H$5*Assumptions!$C$22*Assumptions!$C$31),0) -> 552135 | K13: 651931 | N13: 651931 | O13: 0 | P13: 651931 | R13: 0 | S13: 651931 | U13: =IFERROR(VLOOKUP($A13, 'Allocation 2024-25 Final'!$A$7:$S$323,19,FALSE),0) -> 679178 | W13: -27247 | X13: -0.04011761276 | Y13: 306 | Z13: 0 | AB13: 5300300 | AC13: AUBURN
A14: =VLOOKUP(B14,CCDDD!$A$3:$B$319,2,FALSE) -> 18303 | B14: 5300330 | C14: BAINBRIDGE ISLAND | D14: 0 | E14: 0 | F14: =VLOOKUP(B14,'25-26 Adjusted Formula counts'!$A$3:$L$320,8,FALSE) -> 3972 | G14: =ROUND((F14/$F$5*Assumptions!$C$22*Assumptions!$C$30),0) -> 21563 | H14: =VLOOKUP(B14,'25-26 Adjusted Formula counts'!$A$3:$L$320,9,FALSE) -> 150 | I14: =ROUND((H14/$H$5*Assumptions!$C$22*Assumptions!$C$31),0) -> 29910 | K14: 51473 | N14: 51473 | O14: 0 | P14: 51473 | R14: 0 | S14: 51473 | U14: =IFERROR(VLOOKUP($A14, 'Allocation 2024-25 Final'!$A$7:$S$323,19,FALSE),0) -> 49504 | W14: 1969 | X14: 0.03977456367 | Y14: 98 | Z14: 0 | AB14: 5300330 | AC14: BAINBRIDGE ISLAND
A15: =VLOOKUP(B15,CCDDD!$A$3:$B$319,2,FALSE) -> 06119 | B15: 5300380 | C15: BATTLE GROUND | D15: 0 | E15: 0 | F15: =VLOOKUP(B15,'25-26 Adjusted Formula counts'!$A$3:$L$320,8,FALSE) -> 15940 | G15: =ROUND((F15/$F$5*Assumptions!$C$22*Assumptions!$C$30),0) -> 86534 | H15: =VLOOKUP(B15,'25-26 Adjusted Formula counts'!$A$3:$L$320,9,FALSE) -> 860 | I15: =ROUND((H15/$H$5*Assumptions!$C$22*Assumptions!$C$31),0) -> 171483 | K15: 258017 | N15: 258017 | O15: 0 | P15: 258017 | R15: 0 | S15: 258017 | U15: =IFERROR(VLOOKUP($A15, 'Allocation 2024-25 Final'!$A$7:$S$323,19,FALSE),0) -> 242153 | W15: 15864 | X15: 0.06551230007 | Y15: 31 | Z15: 0 | AB15: 5300380 | AC15: BATTLE GROUND
A16: =VLOOKUP(B16,CCDDD!$A$3:$B$319,2,FALSE) -> 17405 | B16: 5300390 | C16: BELLEVUE | D16: 0 | E16: 0 | F16: =VLOOKUP(B16,'25-26 Adjusted Formula counts'!$A$3:$L$320,8,FALSE) -> 22497 | G16: =ROUND((F16/$F$5*Assumptions!$C$22*Assumptions!$C$30),0) -> 122130 | H16: =VLOOKUP(B16,'25-26 Adjusted Formula counts'!$A$3:$L$320,9,FALSE) -> 1453 | I16: =ROUND((H16/$H$5*Assumptions!$C$22*Assumptions!$C$31),0) -> 289726 | K16: 411856 | N16: 411856 | O16: 0 | P16: 411856 | R16: 0 | S16: 411856 | U16: =IFERROR(VLOOKUP($A16, 'Allocation 2024-25 Final'!$A$7:$S$323,19,FALSE),0) -> 387225 | W16: 24631 | X16: 0.06360901285 | Y16: 21 | Z16: 0 | AB16: 5300390 | AC16: BELLEVUE
A17: =VLOOKUP(B17,CCDDD!$A$3:$B$319,2,FALSE) -> 37501 | B17: 5300420 | C17: BELLINGHAM | D17: 0 | E17: 0 | F17: =VLOOKUP(B17,'25-26 Adjusted Formula counts'!$A$3:$L$320,8,FALSE) -> 12453.45242 | G17: =ROUND((F17/$F$5*Assumptions!$C$22*Assumptions!$C$30),0) -> 67606 | H17: =VLOOKUP(B17,'25-26 Adjusted Formula counts'!$A$3:$L$320,9,FALSE) -> 1314.735076 | I17: =ROUND((H17/$H$5*Assumptions!$C$22*Assumptions!$C$31),0) -> 262157 | K17: 329763 | N17: 329763 | O17: 0 | P17: 329763 | R17: 0 | S17: 329763 | U17: =IFERROR(VLOOKUP($A17, 'Allocation 2024-25 Final'!$A$7:$S$323,19,FALSE),0) -> 331668 | W17: -1905 | X17: -0.005743695503 | Y17: 218 | Z17: 0 | AB17: 5300420 | AC17: BELLINGHAM
A18: =VLOOKUP(B18,CCDDD!$A$3:$B$319,2,FALSE) -> 01122 | B18: 5300450 | C18: BENGE | D18: 0 | E18: 0 | F18: =VLOOKUP(B18,'25-26 Adjusted Formula counts'!$A$3:$L$320,8,FALSE) -> 16 | G18: =ROUND((F18/$F$5*Assumptions!$C$22*Assumptions!$C$30),0) -> 87 | H18: =VLOOKUP(B18,'25-26 Adjusted Formula counts'!$A$3:$L$320,9,FALSE) -> 2 | I18: =ROUND((H18/$H$5*Assumptions!$C$22*Assumptions!$C$31),0) -> 399 | K18: 486 | N18: 486 | O18: 0 | P18: 486 | R18: 0 | S18: 486 | U18: =IFERROR(VLOOKUP($A18, 'Allocation 2024-25 Final'!$A$7:$S$323,19,FALSE),0) -> 285 | W18: 201 | X18: 0.7052631579 | Y18: 145 | Z18: 0 | AB18: 5300450 | AC18: BENGE
A19: =VLOOKUP(B19,CCDDD!$A$3:$B$319,2,FALSE) -> 27403 | B19: 5300480 | C19: BETHEL | D19: 0 | E19: 0 | F19: =VLOOKUP(B19,'25-26 Adjusted Formula counts'!$A$3:$L$320,8,FALSE) -> 24321 | G19: =ROUND((F19/$F$5*Assumptions!$C$22*Assumptions!$C$30),0) -> 132032 | H19: =VLOOKUP(B19,'25-26 Adjusted Formula counts'!$A$3:$L$320,9,FALSE) -> 2440 | I19: =ROUND((H19/$H$5*Assumptions!$C$22*Assumptions!$C$31),0) -> 486533 | K19: 618565 | N19: 618565 | O19: 0 | P19: 618565 | R19: 0 | S19: 618565 | U19: =IFERROR(VLOOKUP($A19, 'Allocation 2024-25 Final'!$A$7:$S$323,19,FALSE),0) -> 573457 | W19: 45108 | X19: 0.07865977745 | Y19: 9 | Z19: 0 | AB19: 5300480 | AC19: BETHEL
A20: =VLOOKUP(B20,CCDDD!$A$3:$B$319,2,FALSE) -> 20203 | B20: 5300510 | C20: BICKLETON | D20: 0 | E20: 0 | F20: =VLOOKUP(B20,'25-26 Adjusted Formula counts'!$A$3:$L$320,8,FALSE) -> 79 | G20: =ROUND((F20/$F$5*Assumptions!$C$22*Assumptions!$C$30),0) -> 429 | H20: =VLOOKUP(B20,'25-26 Adjusted Formula counts'!$A$3:$L$320,9,FALSE) -> 9 | I20: =ROUND((H20/$H$5*Assumptions!$C$22*Assumptions!$C$31),0) -> 1795 | K20: 2224 | N20: 2224 | O20: 0 | P20: 2224 | R20: 0 | S20: 2224 | U20: =IFERROR(VLOOKUP($A20, 'Allocation 2024-25 Final'!$A$7:$S$323,19,FALSE),0) -> 2808 | W20: -584 | X20: -0.207977208 | Y20: 178 | Z20: 0 | AB20: 5300510 | AC20: BICKLETON
A21: =VLOOKUP(B21,CCDDD!$A$3:$B$319,2,FALSE) -> 37503 | B21: 5300570 | C21: BLAINE | D21: 0 | E21: 0 | F21: =VLOOKUP(B21,'25-26 Adjusted Formula counts'!$A$3:$L$320,8,FALSE) -> 2479 | G21: =ROUND((F21/$F$5*Assumptions!$C$22*Assumptions!$C$30),0) -> 13458 | H21: =VLOOKUP(B21,'25-26 Adjusted Formula counts'!$A$3:$L$320,9,FALSE) -> 302 | I21: =ROUND((H21/$H$5*Assumptions!$C$22*Assumptions!$C$31),0) -> 60218 | K21: 73676 | N21: 73676 | O21: 0 | P21: 73676 | R21: 0 | S21: 73676 | U21: =IFERROR(VLOOKUP($A21, 'Allocation 2024-25 Final'!$A$7:$S$323,19,FALSE),0) -> 66062 | W21: 7614 | X21: 0.1152553662 | Y21: 50 | Z21: 0 | AB21: 5300570 | AC21: BLAINE
A22: =VLOOKUP(B22,CCDDD!$A$3:$B$319,2,FALSE) -> 21234 | B22: 5300630 | C22: BOISTFORT | D22: 0 | E22: 0 | F22: =VLOOKUP(B22,'25-26 Adjusted Formula counts'!$A$3:$L$320,8,FALSE) -> 218 | G22: =ROUND((F22/$F$5*Assumptions!$C$22*Assumptions!$C$30),0) -> 1183 | H22: =VLOOKUP(B22,'25-26 Adjusted Formula counts'!$A$3:$L$320,9,FALSE) -> 22 | I22: =ROUND((H22/$H$5*Assumptions!$C$22*Assumptions!$C$31),0) -> 4387 | K22: 5570 | N22: 5570 | O22: 0 | P22: 5570 | R22: 0 | S22: 5570 | U22: =IFERROR(VLOOKUP($A22, 'Allocation 2024-25 Final'!$A$7:$S$323,19,FALSE),0) -> 6731 | W22: -1161 | X22: -0.1724855148 | Y22: 197 | Z22: 0 | AB22: 5300630 | AC22: BOISTFORT
A23: =VLOOKUP(B23,CCDDD!$A$3:$B$319,2,FALSE) -> 18100 | B23: 5300660 | C23: BREMERTON | D23: 0 | E23: 0 | F23: =VLOOKUP(B23,'25-26 Adjusted Formula counts'!$A$3:$L$320,8,FALSE) -> 4858.076063 | G23: =ROUND((F23/$F$5*Assumptions!$C$22*Assumptions!$C$30),0) -> 26373 | H23: =VLOOKUP(B23,'25-26 Adjusted Formula counts'!$A$3:$L$320,9,FALSE) -> 772.3934304 | I23: =ROUND((H23/$H$5*Assumptions!$C$22*Assumptions!$C$31),0) -> 154014 | K23: 180387 | N23: 180387 | O23: 0 | P23: 180387 | R23: 0 | S23: 180387 | U23: =IFERROR(VLOOKUP($A23, 'Allocation 2024-25 Final'!$A$7:$S$323,19,FALSE),0) -> 210054 | W23: -29667 | X23: -0.141235111 | Y23: 307 | Z23: 0 | AB23: 5300660 | AC23: BREMERTON
A24: =VLOOKUP(B24,CCDDD!$A$3:$B$319,2,FALSE) -> 24111 | B24: 5300690 | C24: BREWSTER | D24: 0 | E24: 0 | F24: =VLOOKUP(B24,'25-26 Adjusted Formula counts'!$A$3:$L$320,8,FALSE) -> 949 | G24: =ROUND((F24/$F$5*Assumptions!$C$22*Assumptions!$C$30),0) -> 5152 | H24: =VLOOKUP(B24,'25-26 Adjusted Formula counts'!$A$3:$L$320,9,FALSE) -> 242 | I24: =ROUND((H24/$H$5*Assumptions!$C$22*Assumptions!$C$31),0) -> 48254 | K24: 53406 | N24: 53406 | O24: 0 | P24: 53406 | R24: 0 | S24: 53406 | U24: =IFERROR(VLOOKUP($A24, 'Allocation 2024-25 Final'!$A$7:$S$323,19,FALSE),0) -> 40632 | W24: 12774 | X24: 0.3143827525 | Y24: 38 | Z24: 0 | AB24: 5300690 | AC24: BREWSTER
A25: =VLOOKUP(B25,CCDDD!$A$3:$B$319,2,FALSE) -> 09075 | B25: 5300720 | C25: BRIDGEPORT | D25: 0 | E25: 0 | F25: =VLOOKUP(B25,'25-26 Adjusted Formula counts'!$A$3:$L$320,8,FALSE) -> 682 | G25: =ROUND((F25/$F$5*Assumptions!$C$22*Assumptions!$C$30),0) -> 3702 | H25: =VLOOKUP(B25,'25-26 Adjusted Formula counts'!$A$3:$L$320,9,FALSE) -> 155 | I25: =ROUND((H25/$H$5*Assumptions!$C$22*Assumptions!$C$31),0) -> 30907 | K25: 34609 | N25: 34609 | O25: 0 | P25: 34609 | R25: 0 | S25: 34609 | U25: =IFERROR(VLOOKUP($A25, 'Allocation 2024-25 Final'!$A$7:$S$323,19,FALSE),0) -> 36078 | W25: -1469 | X25: -0.04071733466 | Y25: 208 | Z25: 0 | AB25: 5300720 | AC25: BRIDGEPORT
A26: =VLOOKUP(B26,CCDDD!$A$3:$B$319,2,FALSE) -> 16046 | B26: 5300750 | C26: BRINNON | D26: 0 | E26: 0 | F26: =VLOOKUP(B26,'25-26 Adjusted Formula counts'!$A$3:$L$320,8,FALSE) -> 112 | G26: =ROUND((F26/$F$5*Assumptions!$C$22*Assumptions!$C$30),0) -> 608 | H26: =VLOOKUP(B26,'25-26 Adjusted Formula counts'!$A$3:$L$320,9,FALSE) -> 25 | I26: =ROUND((H26/$H$5*Assumptions!$C$22*Assumptions!$C$31),0) -> 4985 | K26: 5593 | N26: 5593 | O26: 0 | P26: 5593 | R26: 0 | S26: 5593 | U26: =IFERROR(VLOOKUP($A26, 'Allocation 2024-25 Final'!$A$7:$S$323,19,FALSE),0) -> 5997 | W26: -404 | X26: -0.06736701684 | Y26: 170 | Z26: 0 | AB26: 5300750 | AC26: BRINNON
A27: =VLOOKUP(B27,CCDDD!$A$3:$B$319,2,FALSE) -> 29100 | B27: 5300780 | C27: BURLINGTON-EDISON | D27: 0 | E27: 0 | F27: =VLOOKUP(B27,'25-26 Adjusted Formula counts'!$A$3:$L$320,8,FALSE) -> 3667 | G27: =ROUND((F27/$F$5*Assumptions!$C$22*Assumptions!$C$30),0) -> 19907 | H27: =VLOOKUP(B27,'25-26 Adjusted Formula counts'!$A$3:$L$320,9,FALSE) -> 390 | I27: =ROUND((H27/$H$5*Assumptions!$C$22*Assumptions!$C$31),0) -> 77766 | K27: 97673 | N27: 97673 | O27: 0 | P27: 97673 | R27: 0 | S27: 97673 | U27: =IFERROR(VLOOKUP($A27, 'Allocation 2024-25 Final'!$A$7:$S$323,19,FALSE),0) -> 97662 | W27: 11 | X27: 0.0001126333681 | Y27: 150 | Z27: 0 | AB27: 5300780 | AC27: BURLINGTON-EDISON
A28: =VLOOKUP(B28,CCDDD!$A$3:$B$319,2,FALSE) -> 06117 | B28: 5300810 | C28: CAMAS | D28: 0 | E28: 0 | F28: =VLOOKUP(B28,'25-26 Adjusted Formula counts'!$A$3:$L$320,8,FALSE) -> 7463 | G28: =ROUND((F28/$F$5*Assumptions!$C$22*Assumptions!$C$30),0) -> 40514 | H28: =VLOOKUP(B28,'25-26 Adjusted Formula counts'!$A$3:$L$320,9,FALSE) -> 263 | I28: =ROUND((H28/$H$5*Assumptions!$C$22*Assumptions!$C$31),0) -> 52442 | K28: 92956 | N28: 92956 | O28: 0 | P28: 92956 | R28: 0 | S28: 92956 | U28: =IFERROR(VLOOKUP($A28, 'Allocation 2024-25 Final'!$A$7:$S$323,19,FALSE),0) -> 88922 | W28: 4034 | X28: 0.04536560131 | Y28: 66 | Z28: 0 | AB28: 5300810 | AC28: CAMAS
A29: =VLOOKUP(B29,CCDDD!$A$3:$B$319,2,FALSE) -> 05401 | B29: 5300840 | C29: CAPE FLATTERY | D29: 0 | E29: 0 | F29: =VLOOKUP(B29,'25-26 Adjusted Formula counts'!$A$3:$L$320,8,FALSE) -> 545 | G29: =ROUND((F29/$F$5*Assumptions!$C$22*Assumptions!$C$30),0) -> 2959 | H29: =VLOOKUP(B29,'25-26 Adjusted Formula counts'!$A$3:$L$320,9,FALSE) -> 81 | I29: =ROUND((H29/$H$5*Assumptions!$C$22*Assumptions!$C$31),0) -> 16151 | K29: 19110 | N29: 19110 | O29: 0 | P29: 19110 | R29: 0 | S29: 19110 | U29: =IFERROR(VLOOKUP($A29, 'Allocation 2024-25 Final'!$A$7:$S$323,19,FALSE),0) -> 25247 | W29: -6137 | X29: -0.2430783856 | Y29: 262 | Z29: 0 | AB29: 5300840 | AC29: CAPE FLATTERY
A30: =VLOOKUP(B30,CCDDD!$A$3:$B$319,2,FALSE) -> 27019 | B30: 5300870 | C30: CARBONADO | D30: 0 | E30: 0 | F30: =VLOOKUP(B30,'25-26 Adjusted Formula counts'!$A$3:$L$320,8,FALSE) -> 209 | G30: =ROUND((F30/$F$5*Assumptions!$C$22*Assumptions!$C$30),0) -> 1135 | H30: =VLOOKUP(B30,'25-26 Adjusted Formula counts'!$A$3:$L$320,9,FALSE) -> 4 | I30: =ROUND((H30/$H$5*Assumptions!$C$22*Assumptions!$C$31),0) -> 798 | K30: 1933 | N30: 1933 | O30: 0 | P30: 1933 | R30: 0 | S30: 1933 | U30: =IFERROR(VLOOKUP($A30, 'Allocation 2024-25 Final'!$A$7:$S$323,19,FALSE),0) -> 2515 | W30: -582 | X30: -0.2314115308 | Y30: 177 | Z30: 0 | AB30: 5300870 | AC30: CARBONADO
A31: =VLOOKUP(B31,CCDDD!$A$3:$B$319,2,FALSE) -> 04228 | B31: 5300950 | C31: CASCADE | D31: 0 | E31: 0 | F31: =VLOOKUP(B31,'25-26 Adjusted Formula counts'!$A$3:$L$320,8,FALSE) -> 1565 | G31: =ROUND((F31/$F$5*Assumptions!$C$22*Assumptions!$C$30),0) -> 8496 | H31: =VLOOKUP(B31,'25-26 Adjusted Formula counts'!$A$3:$L$320,9,FALSE) -> 153 | I31: =ROUND((H31/$H$5*Assumptions!$C$22*Assumptions!$C$31),0) -> 30508 | K31: 39004 | N31: 39004 | O31: 0 | P31: 39004 | R31: 0 | S31: 39004 | U31: =IFERROR(VLOOKUP($A31, 'Allocation 2024-25 Final'!$A$7:$S$323,19,FALSE),0) -> 43398 | W31: -4394 | X31: -0.1012489055 | Y31: 246 | Z31: 0 | AB31: 5300950 | AC31: CASCADE
A32: =VLOOKUP(B32,CCDDD!$A$3:$B$319,2,FALSE) -> 04222 | B32: 5300960 | C32: CASHMERE | D32: 0 | E32: 0 | F32: =VLOOKUP(B32,'25-26 Adjusted Formula counts'!$A$3:$L$320,8,FALSE) -> 1507 | G32: =ROUND((F32/$F$5*Assumptions!$C$22*Assumptions!$C$30),0) -> 8181 | H32: =VLOOKUP(B32,'25-26 Adjusted Formula counts'!$A$3:$L$320,9,FALSE) -> 159 | I32: =ROUND((H32/$H$5*Assumptions!$C$22*Assumptions!$C$31),0) -> 31704 | K32: 39885 | N32: 39885 | O32: 0 | P32: 39885 | R32: 0 | S32: 39885 | U32: =IFERROR(VLOOKUP($A32, 'Allocation 2024-25 Final'!$A$7:$S$323,19,FALSE),0) -> 40101 | W32: -216 | X32: -0.005386399342 | Y32: 161 | Z32: 0 | AB32: 5300960 | AC32: CASHMERE
A33: =VLOOKUP(B33,CCDDD!$A$3:$B$319,2,FALSE) -> 08401 | B33: 5300990 | C33: CASTLE ROCK | D33: 0 | E33: 0 | F33: =VLOOKUP(B33,'25-26 Adjusted Formula counts'!$A$3:$L$320,8,FALSE) -> 1661 | G33: =ROUND((F33/$F$5*Assumptions!$C$22*Assumptions!$C$30),0) -> 9017 | H33: =VLOOKUP(B33,'25-26 Adjusted Formula counts'!$A$3:$L$320,9,FALSE) -> 188 | I33: =ROUND((H33/$H$5*Assumptions!$C$22*Assumptions!$C$31),0) -> 37487 | K33: 46504 | N33: 46504 | O33: 0 | P33: 46504 | R33: 0 | S33: 46504 | U33: =IFERROR(VLOOKUP($A33, 'Allocation 2024-25 Final'!$A$7:$S$323,19,FALSE),0) -> 44834 | W33: 1670 | X33: 0.03724851675 | Y33: 107 | Z33: 0 | AB33: 5300990 | AC33: CASTLE ROCK
A34: =VLOOKUP(B34,CCDDD!$A$3:$B$319,2,FALSE) -> 18901 | B34: 5301000 | C34: CATALYST BREMERTON CHARTER | D34: 0 | E34: 0 | F34: =VLOOKUP(B34,'25-26 Adjusted Formula counts'!$A$3:$L$320,8,FALSE) -> 616.8281094 | G34: =ROUND((F34/$F$5*Assumptions!$C$22*Assumptions!$C$30),0) -> 3349 | H34: =VLOOKUP(B34,'25-26 Adjusted Formula counts'!$A$3:$L$320,9,FALSE) -> 65.66778649 | I34: =ROUND((H34/$H$5*Assumptions!$C$22*Assumptions!$C$31),0) -> 13094 | K34: 16443 | N34: 16443 | O34: 0 | P34: 16443 | R34: 0 | S34: 16443 | U34: =IFERROR(VLOOKUP($A34, 'Allocation 2024-25 Final'!$A$7:$S$323,19,FALSE),0) -> 20219 | W34: -3776 | X34: -0.1867550324 | Y34: 240 | Z34: 0 | AB34: 5301000 | AC34: CATALYST BREMERTON CHARTER
A35: =VLOOKUP(B35,CCDDD!$A$3:$B$319,2,FALSE) -> 20215 | B35: 5301050 | C35: CENTERVILLE | D35: 0 | E35: 0 | F35: =VLOOKUP(B35,'25-26 Adjusted Formula counts'!$A$3:$L$320,8,FALSE) -> 94 | G35: =ROUND((F35/$F$5*Assumptions!$C$22*Assumptions!$C$30),0) -> 510 | H35: =VLOOKUP(B35,'25-26 Adjusted Formula counts'!$A$3:$L$320,9,FALSE) -> 24 | I35: =ROUND((H35/$H$5*Assumptions!$C$22*Assumptions!$C$31),0) -> 4786 | K35: 5296 | N35: 5296 | O35: 0 | P35: 5296 | R35: 0 | S35: 5296 | U35: =IFERROR(VLOOKUP($A35, 'Allocation 2024-25 Final'!$A$7:$S$323,19,FALSE),0) -> 5873 | W35: -577 | X35: -0.09824621148 | Y35: 175 | Z35: 0 | AB35: 5301050 | AC35: CENTERVILLE
A36: =VLOOKUP(B36,CCDDD!$A$3:$B$319,2,FALSE) -> 18401 | B36: 5301080 | C36: CENTRAL KITSAP | D36: 0 | E36: 0 | F36: =VLOOKUP(B36,'25-26 Adjusted Formula counts'!$A$3:$L$320,8,FALSE) -> 11141 | G36: =ROUND((F36/$F$5*Assumptions!$C$22*Assumptions!$C$30),0) -> 60481 | H36: =VLOOKUP(B36,'25-26 Adjusted Formula counts'!$A$3:$L$320,9,FALSE) -> 763 | I36: =ROUND((H36/$H$5*Assumptions!$C$22*Assumptions!$C$31),0) -> 152141 | K36: 212622 | N36: 212622 | O36: 0 | P36: 212622 | R36: 0 | S36: 212622 | U36: =IFERROR(VLOOKUP($A36, 'Allocation 2024-25 Final'!$A$7:$S$323,19,FALSE),0) -> 229851 | W36: -17229 | X36: -0.07495725492 | Y36: 297 | Z36: 0 | AB36: 5301080 | AC36: CENTRAL KITSAP
A37: =VLOOKUP(B37,CCDDD!$A$3:$B$319,2,FALSE) -> 32356 | B37: 5301110 | C37: CENTRAL VALLEY | D37: 0 | E37: 0 | F37: =VLOOKUP(B37,'25-26 Adjusted Formula counts'!$A$3:$L$320,8,FALSE) -> 17143 | G37: =ROUND((F37/$F$5*Assumptions!$C$22*Assumptions!$C$30),0) -> 93064 | H37: =VLOOKUP(B37,'25-26 Adjusted Formula counts'!$A$3:$L$320,9,FALSE) -> 1391 | I37: =ROUND((H37/$H$5*Assumptions!$C$22*Assumptions!$C$31),0) -> 277364 | K37: 370428 | N37: 370428 | O37: 0 | P37: 370428 | R37: 0 | S37: 370428 | U37: =IFERROR(VLOOKUP($A37, 'Allocation 2024-25 Final'!$A$7:$S$323,19,FALSE),0) -> 451108 | W37: -80680 | X37: -0.1788485241 | Y37: 313 | Z37: 0 | AB37: 5301110 | AC37: CENTRAL VALLEY
A38: =VLOOKUP(B38,CCDDD!$A$3:$B$319,2,FALSE) -> 21401 | B38: 5301140 | C38: CENTRALIA | D38: 0 | E38: 0 | F38: =VLOOKUP(B38,'25-26 Adjusted Formula counts'!$A$3:$L$320,8,FALSE) -> 4334 | G38: =ROUND((F38/$F$5*Assumptions!$C$22*Assumptions!$C$30),0) -> 23528 | H38: =VLOOKUP(B38,'25-26 Adjusted Formula counts'!$A$3:$L$320,9,FALSE) -> 840 | I38: =ROUND((H38/$H$5*Assumptions!$C$22*Assumptions!$C$31),0) -> 167495 | K38: 191023 | N38: 191023 | O38: 0 | P38: 191023 | R38: 0 | S38: 191023 | U38: =IFERROR(VLOOKUP($A38, 'Allocation 2024-25 Final'!$A$7:$S$323,19,FALSE),0) -> 171859 | W38: 19164 | X38: 0.1115100169 | Y38: 27 | Z38: 0 | AB38: 5301140 | AC38: CENTRALIA
A39: =VLOOKUP(B39,CCDDD!$A$3:$B$319,2,FALSE) -> 21302 | B39: 5301170 | C39: CHEHALIS | D39: 0 | E39: 0 | F39: =VLOOKUP(B39,'25-26 Adjusted Formula counts'!$A$3:$L$320,8,FALSE) -> 2894 | G39: =ROUND((F39/$F$5*Assumptions!$C$22*Assumptions!$C$30),0) -> 15711 | H39: =VLOOKUP(B39,'25-26 Adjusted Formula counts'!$A$3:$L$320,9,FALSE) -> 394 | I39: =ROUND((H39/$H$5*Assumptions!$C$22*Assumptions!$C$31),0) -> 78563 | K39: 94274 | N39: 94274 | O39: 0 | P39: 94274 | R39: 0 | S39: 94274 | U39: =IFERROR(VLOOKUP($A39, 'Allocation 2024-25 Final'!$A$7:$S$323,19,FALSE),0) -> 64946 | W39: 29328 | X39: 0.4515751547 | Y39: 19 | Z39: 0 | AB39: 5301170 | AC39: CHEHALIS
A40: =VLOOKUP(B40,CCDDD!$A$3:$B$319,2,FALSE) -> 32360 | B40: 5301230 | C40: CHENEY | D40: 0 | E40: 0 | F40: =VLOOKUP(B40,'25-26 Adjusted Formula counts'!$A$3:$L$320,8,FALSE) -> 6286 | G40: =ROUND((F40/$F$5*Assumptions!$C$22*Assumptions!$C$30),0) -> 34125 | H40: =VLOOKUP(B40,'25-26 Adjusted Formula counts'!$A$3:$L$320,9,FALSE) -> 697 | I40: =ROUND((H40/$H$5*Assumptions!$C$22*Assumptions!$C$31),0) -> 138981 | K40: 173106 | N40: 173106 | O40: 0 | P40: 173106 | R40: 0 | S40: 173106 | U40: =IFERROR(VLOOKUP($A40, 'Allocation 2024-25 Final'!$A$7:$S$323,19,FALSE),0) -> 204756 | W40: -31650 | X40: -0.1545742249 | Y40: 309 | Z40: 0 | AB40: 5301230 | AC40: CHENEY
A41: =VLOOKUP(B41,CCDDD!$A$3:$B$319,2,FALSE) -> 33036 | B41: 5301260 | C41: CHEWELAH | D41: 0 | E41: 0 | F41: =VLOOKUP(B41,'25-26 Adjusted Formula counts'!$A$3:$L$320,8,FALSE) -> 945 | G41: =ROUND((F41/$F$5*Assumptions!$C$22*Assumptions!$C$30),0) -> 5130 | H41: =VLOOKUP(B41,'25-26 Adjusted Formula counts'!$A$3:$L$320,9,FALSE) -> 152 | I41: =ROUND((H41/$H$5*Assumptions!$C$22*Assumptions!$C$31),0) -> 30309 | K41: 35439 | N41: 35439 | O41: 0 | P41: 35439 | R41: 0 | S41: 35439 | U41: =IFERROR(VLOOKUP($A41, 'Allocation 2024-25 Final'!$A$7:$S$323,19,FALSE),0) -> 36889 | W41: -1450 | X41: -0.03930711052 | Y41: 206 | Z41: 0 | AB41: 5301260 | AC41: CHEWELAH
A42: =VLOOKUP(B42,CCDDD!$A$3:$B$319,2,FALSE) -> 16049 | B42: 5301290 | C42: CHIMACUM | D42: 0 | E42: 0 | F42: =VLOOKUP(B42,'25-26 Adjusted Formula counts'!$A$3:$L$320,8,FALSE) -> 1118 | G42: =ROUND((F42/$F$5*Assumptions!$C$22*Assumptions!$C$30),0) -> 6069 | H42: =VLOOKUP(B42,'25-26 Adjusted Formula counts'!$A$3:$L$320,9,FALSE) -> 148 | I42: =ROUND((H42/$H$5*Assumptions!$C$22*Assumptions!$C$31),0) -> 29511 | K42: 35580 | N42: 35580 | O42: 0 | P42: 35580 | R42: 0 | S42: 35580 | U42: =IFERROR(VLOOKUP($A42, 'Allocation 2024-25 Final'!$A$7:$S$323,19,FALSE),0) -> 40034 | W42: -4454 | X42: -0.1112554329 | Y42: 249 | Z42: 0 | AB42: 5301290 | AC42: CHIMACUM
A43: =VLOOKUP(B43,CCDDD!$A$3:$B$319,2,FALSE) -> 02250 | B43: 5301320 | C43: CLARKSTON | D43: 0 | E43: 0 | F43: =VLOOKUP(B43,'25-26 Adjusted Formula counts'!$A$3:$L$320,8,FALSE) -> 2773 | G43: =ROUND((F43/$F$5*Assumptions!$C$22*Assumptions!$C$30),0) -> 15054 | H43: =VLOOKUP(B43,'25-26 Adjusted Formula counts'!$A$3:$L$320,9,FALSE) -> 507 | I43: =ROUND((H43/$H$5*Assumptions!$C$22*Assumptions!$C$31),0) -> 101095 | K43: 116149 | N43: 116149 | O43: 0 | P43: 116149 | R43: 0 | S43: 116149 | U43: =IFERROR(VLOOKUP($A43, 'Allocation 2024-25 Final'!$A$7:$S$323,19,FALSE),0) -> 131254 | W43: -15105 | X43: -0.115082207 | Y43: 292 | Z43: 0 | AB43: 5301320 | AC43: CLARKSTON
A44: =VLOOKUP(B44,CCDDD!$A$3:$B$319,2,FALSE) -> 19404 | B44: 5301350 | C44: CLE ELUM-ROSLYN | D44: 0 | E44: 0 | F44: =VLOOKUP(B44,'25-26 Adjusted Formula counts'!$A$3:$L$320,8,FALSE) -> 1078 | G44: =ROUND((F44/$F$5*Assumptions!$C$22*Assumptions!$C$30),0) -> 5852 | H44: =VLOOKUP(B44,'25-26 Adjusted Formula counts'!$A$3:$L$320,9,FALSE) -> 152 | I44: =ROUND((H44/$H$5*Assumptions!$C$22*Assumptions!$C$31),0) -> 30309 | K44: 36161 | N44: 36161 | O44: 0 | P44: 36161 | R44: 0 | S44: 36161 | U44: =IFERROR(VLOOKUP($A44, 'Allocation 2024-25 Final'!$A$7:$S$323,19,FALSE),0) -> 35172 | W44: 989 | X44: 0.02811895826 | Y44: 118 | Z44: 0 | AB44: 5301350 | AC44: CLE ELUM-ROSLYN
A45: =VLOOKUP(B45,CCDDD!$A$3:$B$319,2,FALSE) -> 27400 | B45: 5301410 | C45: CLOVER PARK | D45: 0 | E45: 0 | F45: =VLOOKUP(B45,'25-26 Adjusted Formula counts'!$A$3:$L$320,8,FALSE) -> 13789 | G45: =ROUND((F45/$F$5*Assumptions!$C$22*Assumptions!$C$30),0) -> 74856 | H45: =VLOOKUP(B45,'25-26 Adjusted Formula counts'!$A$3:$L$320,9,FALSE) -> 2049 | I45: =ROUND((H45/$H$5*Assumptions!$C$22*Assumptions!$C$31),0) -> 408568 | K45: 483424 | N45: 483424 | O45: 0 | P45: 483424 | R45: 0 | S45: 483424 | U45: =IFERROR(VLOOKUP($A45, 'Allocation 2024-25 Final'!$A$7:$S$323,19,FALSE),0) -> 463915 | W45: 19509 | X45: 0.04205296229 | Y45: 26 | Z45: 0 | AB45: 5301410 | AC45: CLOVER PARK
A46: =VLOOKUP(B46,CCDDD!$A$3:$B$319,2,FALSE) -> 38300 | B46: 5301440 | C46: COLFAX | D46: 0 | E46: 0 | F46: =VLOOKUP(B46,'25-26 Adjusted Formula counts'!$A$3:$L$320,8,FALSE) -> 622 | G46: =ROUND((F46/$F$5*Assumptions!$C$22*Assumptions!$C$30),0) -> 3377 | H46: =VLOOKUP(B46,'25-26 Adjusted Formula counts'!$A$3:$L$320,9,FALSE) -> 61 | I46: =ROUND((H46/$H$5*Assumptions!$C$22*Assumptions!$C$31),0) -> 12163 | K46: 15540 | N46: 15540 | O46: 0 | P46: 15540 | R46: 0 | S46: 15540 | U46: =IFERROR(VLOOKUP($A46, 'Allocation 2024-25 Final'!$A$7:$S$323,19,FALSE),0) -> 12174 | W46: 3366 | X46: 0.2764908822 | Y46: 74 | Z46: 0 | AB46: 5301440 | AC46: COLFAX
A47: =VLOOKUP(B47,CCDDD!$A$3:$B$319,2,FALSE) -> 36250 | B47: 5301470 | C47: COLLEGE PLACE | D47: 0 | E47: 0 | F47: =VLOOKUP(B47,'25-26 Adjusted Formula counts'!$A$3:$L$320,8,FALSE) -> 2043 | G47: =ROUND((F47/$F$5*Assumptions!$C$22*Assumptions!$C$30),0) -> 11091 | H47: =VLOOKUP(B47,'25-26 Adjusted Formula counts'!$A$3:$L$320,9,FALSE) -> 277 | I47: =ROUND((H47/$H$5*Assumptions!$C$22*Assumptions!$C$31),0) -> 55233 | K47: 66324 | N47: 66324 | O47: 0 | P47: 66324 | R47: 0 | S47: 66324 | U47: =IFERROR(VLOOKUP($A47, 'Allocation 2024-25 Final'!$A$7:$S$323,19,FALSE),0) -> 52359 | W47: 13965 | X47: 0.2667163238 | Y47: 33 | Z47: 0 | AB47: 5301470 | AC47: COLLEGE PLACE
A48: =VLOOKUP(B48,CCDDD!$A$3:$B$319,2,FALSE) -> 38306 | B48: 5301500 | C48: COLTON | D48: 0 | E48: 0 | F48: =VLOOKUP(B48,'25-26 Adjusted Formula counts'!$A$3:$L$320,8,FALSE) -> 250 | G48: =ROUND((F48/$F$5*Assumptions!$C$22*Assumptions!$C$30),0) -> 1357 | H48: =VLOOKUP(B48,'25-26 Adjusted Formula counts'!$A$3:$L$320,9,FALSE) -> 9 | I48: =ROUND((H48/$H$5*Assumptions!$C$22*Assumptions!$C$31),0) -> 1795 | K48: 3152 | N48: 3152 | O48: 0 | P48: 3152 | R48: 0 | S48: 3152 | U48: =IFERROR(VLOOKUP($A48, 'Allocation 2024-25 Final'!$A$7:$S$323,19,FALSE),0) -> 4678 | W48: -1526 | X48: -0.3262077811 | Y48: 211 | Z48: 0 | AB48: 5301500 | AC48: COLTON
A49: =VLOOKUP(B49,CCDDD!$A$3:$B$319,2,FALSE) -> 33206 | B49: 5301560 | C49: COLUMBIA (STEV) | D49: 0 | E49: 0 | F49: =VLOOKUP(B49,'25-26 Adjusted Formula counts'!$A$3:$L$320,8,FALSE) -> 206 | G49: =ROUND((F49/$F$5*Assumptions!$C$22*Assumptions!$C$30),0) -> 1118 | H49: =VLOOKUP(B49,'25-26 Adjusted Formula counts'!$A$3:$L$320,9,FALSE) -> 37 | I49: =ROUND((H49/$H$5*Assumptions!$C$22*Assumptions!$C$31),0) -> 7378 | K49: 8496 | N49: 8496 | O49: 0 | P49: 8496 | R49: 0 | S49: 8496 | U49: =IFERROR(VLOOKUP($A49, 'Allocation 2024-25 Final'!$A$7:$S$323,19,FALSE),0) -> 9461 | W49: -965 | X49: -0.1019976747 | Y49: 189 | Z49: 0 | AB49: 5301560 | AC49: COLUMBIA (STEV)
A50: =VLOOKUP(B50,CCDDD!$A$3:$B$319,2,FALSE) -> 36400 | B50: 5301590 | C50: COLUMBIA (WALLA) | D50: 0 | E50: 0 | F50: =VLOOKUP(B50,'25-26 Adjusted Formula counts'!$A$3:$L$320,8,FALSE) -> 759 | G50: =ROUND((F50/$F$5*Assumptions!$C$22*Assumptions!$C$30),0) -> 4120 | H50: =VLOOKUP(B50,'25-26 Adjusted Formula counts'!$A$3:$L$320,9,FALSE) -> 105 | I50: =ROUND((H50/$H$5*Assumptions!$C$22*Assumptions!$C$31),0) -> 20937 | K50: 25057 | N50: 25057 | O50: 0 | P50: 25057 | R50: 0 | S50: 25057 | U50: =IFERROR(VLOOKUP($A50, 'Allocation 2024-25 Final'!$A$7:$S$323,19,FALSE),0) -> 23575 | W50: 1482 | X50: 0.06286320255 | Y50: 111 | Z50: 0 | AB50: 5301590 | AC50: COLUMBIA (WALLA)
A51: =VLOOKUP(B51,CCDDD!$A$3:$B$319,2,FALSE) -> 33115 | B51: 5301630 | C51: COLVILLE | D51: 0 | E51: 0 | F51: =VLOOKUP(B51,'25-26 Adjusted Formula counts'!$A$3:$L$320,8,FALSE) -> 2012 | G51: =ROUND((F51/$F$5*Assumptions!$C$22*Assumptions!$C$30),0) -> 10923 | H51: =VLOOKUP(B51,'25-26 Adjusted Formula counts'!$A$3:$L$320,9,FALSE) -> 340 | I51: =ROUND((H51/$H$5*Assumptions!$C$22*Assumptions!$C$31),0) -> 67796 | K51: 78719 | N51: 78719 | O51: 0 | P51: 78719 | R51: 0 | S51: 78719 | U51: =IFERROR(VLOOKUP($A51, 'Allocation 2024-25 Final'!$A$7:$S$323,19,FALSE),0) -> 74040 | W51: 4679 | X51: 0.06319556996 | Y51: 62 | Z51: 0 | AB51: 5301630 | AC51: COLVILLE
A52: =VLOOKUP(B52,CCDDD!$A$3:$B$319,2,FALSE) -> 29011 | B52: 5301660 | C52: CONCRETE | D52: 0 | E52: 0 | F52: =VLOOKUP(B52,'25-26 Adjusted Formula counts'!$A$3:$L$320,8,FALSE) -> 706 | G52: =ROUND((F52/$F$5*Assumptions!$C$22*Assumptions!$C$30),0) -> 3833 | H52: =VLOOKUP(B52,'25-26 Adjusted Formula counts'!$A$3:$L$320,9,FALSE) -> 97 | I52: =ROUND((H52/$H$5*Assumptions!$C$22*Assumptions!$C$31),0) -> 19342 | K52: 23175 | N52: 23175 | O52: 0 | P52: 23175 | R52: 0 | S52: 23175 | U52: =IFERROR(VLOOKUP($A52, 'Allocation 2024-25 Final'!$A$7:$S$323,19,FALSE),0) -> 31713 | W52: -8538 | X52: -0.2692271308 | Y52: 273 | Z52: 0 | AB52: 5301660 | AC52: CONCRETE
A53: =VLOOKUP(B53,CCDDD!$A$3:$B$319,2,FALSE) -> 29317 | B53: 5301680 | C53: CONWAY | D53: 0 | E53: 0 | F53: =VLOOKUP(B53,'25-26 Adjusted Formula counts'!$A$3:$L$320,8,FALSE) -> 534 | G53: =ROUND((F53/$F$5*Assumptions!$C$22*Assumptions!$C$30),0) -> 2899 | H53: =VLOOKUP(B53,'25-26 Adjusted Formula counts'!$A$3:$L$320,9,FALSE) -> 45 | I53: =ROUND((H53/$H$5*Assumptions!$C$22*Assumptions!$C$31),0) -> 8973 | K53: 11872 | N53: 11872 | O53: 0 | P53: 11872 | R53: 0 | S53: 11872 | U53: =IFERROR(VLOOKUP($A53, 'Allocation 2024-25 Final'!$A$7:$S$323,19,FALSE),0) -> 14463 | W53: -2591 | X53: -0.1791467884 | Y53: 226 | Z53: 0 | AB53: 5301680 | AC53: CONWAY
A54: =VLOOKUP(B54,CCDDD!$A$3:$B$319,2,FALSE) -> 14099 | B54: 5301710 | C54: COSMOPOLIS | D54: 0 | E54: 0 | F54: =VLOOKUP(B54,'25-26 Adjusted Formula counts'!$A$3:$L$320,8,FALSE) -> 315 | G54: =ROUND((F54/$F$5*Assumptions!$C$22*Assumptions!$C$30),0) -> 1710 | H54: =VLOOKUP(B54,'25-26 Adjusted Formula counts'!$A$3:$L$320,9,FALSE) -> 33 | I54: =ROUND((H54/$H$5*Assumptions!$C$22*Assumptions!$C$31),0) -> 6580 | K54: 8290 | N54: 8290 | O54: 0 | P54: 8290 | R54: 0 | S54: 8290 | U54: =IFERROR(VLOOKUP($A54, 'Allocation 2024-25 Final'!$A$7:$S$323,19,FALSE),0) -> 11248 | W54: -2958 | X54: -0.2629800853 | Y54: 229 | Z54: 0 | AB54: 5301710 | AC54: COSMOPOLIS
A55: =VLOOKUP(B55,CCDDD!$A$3:$B$319,2,FALSE) -> 13151 | B55: 5303440 | C55: COULEE-HARTLINE | D55: 0 | E55: 0 | F55: =VLOOKUP(B55,'25-26 Adjusted Formula counts'!$A$3:$L$320,8,FALSE) -> 248 | G55: =ROUND((F55/$F$5*Assumptions!$C$22*Assumptions!$C$30),0) -> 1346 | H55: =VLOOKUP(B55,'25-26 Adjusted Formula counts'!$A$3:$L$320,9,FALSE) -> 49 | I55: =ROUND((H55/$H$5*Assumptions!$C$22*Assumptions!$C$31),0) -> 9771 | K55: 11117 | N55: 11117 | O55: 0 | P55: 11117 | R55: 0 | S55: 11117 | U55: =IFERROR(VLOOKUP($A55, 'Allocation 2024-25 Final'!$A$7:$S$323,19,FALSE),0) -> 9290 | W55: 1827 | X55: 0.1966630786 | Y55: 103 | Z55: 0 | AB55: 5303440 | AC55: COULEE-HARTLINE
A56: =VLOOKUP(B56,CCDDD!$A$3:$B$319,2,FALSE) -> 15204 | B56: 5301800 | C56: COUPEVILLE | D56: 0 | E56: 0 | F56: =VLOOKUP(B56,'25-26 Adjusted Formula counts'!$A$3:$L$320,8,FALSE) -> 1077 | G56: =ROUND((F56/$F$5*Assumptions!$C$22*Assumptions!$C$30),0) -> 5847 | H56: =VLOOKUP(B56,'25-26 Adjusted Formula counts'!$A$3:$L$320,9,FALSE) -> 110 | I56: =ROUND((H56/$H$5*Assumptions!$C$22*Assumptions!$C$31),0) -> 21934 | K56: 27781 | N56: 27781 | O56: 0 | P56: 27781 | R56: 0 | S56: 27781 | U56: =IFERROR(VLOOKUP($A56, 'Allocation 2024-25 Final'!$A$7:$S$323,19,FALSE),0) -> 24786 | W56: 2995 | X56: 0.120834342 | Y56: 77 | Z56: 0 | AB56: 5301800 | AC56: COUPEVILLE
A57: =VLOOKUP(B57,CCDDD!$A$3:$B$319,2,FALSE) -> 05313 | B57: 5301830 | C57: CRESCENT | D57: 0 | E57: 0 | F57: =VLOOKUP(B57,'25-26 Adjusted Formula counts'!$A$3:$L$320,8,FALSE) -> 342 | G57: =ROUND((F57/$F$5*Assumptions!$C$22*Assumptions!$C$30),0) -> 1857 | H57: =VLOOKUP(B57,'25-26 Adjusted Formula counts'!$A$3:$L$320,9,FALSE) -> 56 | I57: =ROUND((H57/$H$5*Assumptions!$C$22*Assumptions!$C$31),0) -> 11166 | K57: 13023 | N57: 13023 | O57: 0 | P57: 13023 | R57: 0 | S57: 13023 | U57: =IFERROR(VLOOKUP($A57, 'Allocation 2024-25 Final'!$A$7:$S$323,19,FALSE),0) -> 14195 | W57: -1172 | X57: -0.0825642832 | Y57: 199 | Z57: 0 | AB57: 5301830 | AC57: CRESCENT
A58: =VLOOKUP(B58,CCDDD!$A$3:$B$319,2,FALSE) -> 22073 | B58: 5301860 | C58: CRESTON | D58: 0 | E58: 0 | F58: =VLOOKUP(B58,'25-26 Adjusted Formula counts'!$A$3:$L$320,8,FALSE) -> 114 | G58: =ROUND((F58/$F$5*Assumptions!$C$22*Assumptions!$C$30),0) -> 619 | H58: =VLOOKUP(B58,'25-26 Adjusted Formula counts'!$A$3:$L$320,9,FALSE) -> 14 | I58: =ROUND((H58/$H$5*Assumptions!$C$22*Assumptions!$C$31),0) -> 2792 | K58: 3411 | N58: 3411 | O58: 0 | P58: 3411 | R58: 0 | S58: 3411 | U58: =IFERROR(VLOOKUP($A58, 'Allocation 2024-25 Final'!$A$7:$S$323,19,FALSE),0) -> 3201 | W58: 210 | X58: 0.06560449859 | Y58: 142 | Z58: 0 | AB58: 5301860 | AC58: CRESTON
A59: =VLOOKUP(B59,CCDDD!$A$3:$B$319,2,FALSE) -> 10050 | B59: 5301890 | C59: CURLEW | D59: 0 | E59: 0 | F59: =VLOOKUP(B59,'25-26 Adjusted Formula counts'!$A$3:$L$320,8,FALSE) -> 165 | G59: =ROUND((F59/$F$5*Assumptions!$C$22*Assumptions!$C$30),0) -> 896 | H59: =VLOOKUP(B59,'25-26 Adjusted Formula counts'!$A$3:$L$320,9,FALSE) -> 55 | I59: =ROUND((H59/$H$5*Assumptions!$C$22*Assumptions!$C$31),0) -> 10967 | K59: 11863 | N59: 11863 | O59: 0 | P59: 11863 | R59: 0 | S59: 11863 | U59: =IFERROR(VLOOKUP($A59, 'Allocation 2024-25 Final'!$A$7:$S$323,19,FALSE),0) -> 9008 | W59: 2855 | X59: 0.3169404973 | Y59: 80 | Z59: 0 | AB59: 5301890 | AC59: CURLEW
A60: =VLOOKUP(B60,CCDDD!$A$3:$B$319,2,FALSE) -> 26059 | B60: 5301920 | C60: CUSICK | D60: 0 | E60: 0 | F60: =VLOOKUP(B60,'25-26 Adjusted Formula counts'!$A$3:$L$320,8,FALSE) -> 323 | G60: =ROUND((F60/$F$5*Assumptions!$C$22*Assumptions!$C$30),0) -> 1753 | H60: =VLOOKUP(B60,'25-26 Adjusted Formula counts'!$A$3:$L$320,9,FALSE) -> 73 | I60: =ROUND((H60/$H$5*Assumptions!$C$22*Assumptions!$C$31),0) -> 14556 | K60: 16309 | N60: 16309 | O60: 0 | P60: 16309 | R60: 0 | S60: 16309 | U60: =IFERROR(VLOOKUP($A60, 'Allocation 2024-25 Final'!$A$7:$S$323,19,FALSE),0) -> 15630 | W60: 679 | X60: 0.04344209853 | Y60: 125 | Z60: 0 | AB60: 5301920 | AC60: CUSICK
A61: =VLOOKUP(B61,CCDDD!$A$3:$B$319,2,FALSE) -> 19007 | B61: 5301950 | C61: DAMMAN | D61: 0 | E61: 0 | F61: =VLOOKUP(B61,'25-26 Adjusted Formula counts'!$A$3:$L$320,8,FALSE) -> 113 | G61: =ROUND((F61/$F$5*Assumptions!$C$22*Assumptions!$C$30),0) -> 613 | H61: =VLOOKUP(B61,'25-26 Adjusted Formula counts'!$A$3:$L$320,9,FALSE) -> 3 | I61: =ROUND((H61/$H$5*Assumptions!$C$22*Assumptions!$C$31),0) -> 598 | K61: 1211 | N61: 1211 | O61: 0 | P61: 1211 | R61: 0 | S61: 1211 | U61: =IFERROR(VLOOKUP($A61, 'Allocation 2024-25 Final'!$A$7:$S$323,19,FALSE),0) -> 997 | W61: 214 | X61: 0.2146439318 | Y61: 141 | Z61: 0 | AB61: 5301950 | AC61: DAMMAN
A62: =VLOOKUP(B62,CCDDD!$A$3:$B$319,2,FALSE) -> 31330 | B62: 5301980 | C62: DARRINGTON | D62: 0 | E62: 0 | F62: =VLOOKUP(B62,'25-26 Adjusted Formula counts'!$A$3:$L$320,8,FALSE) -> 506 | G62: =ROUND((F62/$F$5*Assumptions!$C$22*Assumptions!$C$30),0) -> 2747 | H62: =VLOOKUP(B62,'25-26 Adjusted Formula counts'!$A$3:$L$320,9,FALSE) -> 44 | I62: =ROUND((H62/$H$5*Assumptions!$C$22*Assumptions!$C$31),0) -> 8774 | K62: 11521 | N62: 11521 | O62: 0 | P62: 11521 | R62: 0 | S62: 11521 | U62: =IFERROR(VLOOKUP($A62, 'Allocation 2024-25 Final'!$A$7:$S$323,19,FALSE),0) -> 14855 | W62: -3334 | X62: -0.2244362168 | Y62: 233 | Z62: 0 | AB62: 5301980 | AC62: DARRINGTON
A63: =VLOOKUP(B63,CCDDD!$A$3:$B$319,2,FALSE) -> 22207 | B63: 5302010 | C63: DAVENPORT | D63: 0 | E63: 0 | F63: =VLOOKUP(B63,'25-26 Adjusted Formula counts'!$A$3:$L$320,8,FALSE) -> 588 | G63: =ROUND((F63/$F$5*Assumptions!$C$22*Assumptions!$C$30),0) -> 3192 | H63: =VLOOKUP(B63,'25-26 Adjusted Formula counts'!$A$3:$L$320,9,FALSE) -> 81 | I63: =ROUND((H63/$H$5*Assumptions!$C$22*Assumptions!$C$31),0) -> 16151 | K63: 19343 | N63: 19343 | O63: 0 | P63: 19343 | R63: 0 | S63: 19343 | U63: =IFERROR(VLOOKUP($A63, 'Allocation 2024-25 Final'!$A$7:$S$323,19,FALSE),0) -> 19087 | W63: 256 | X63: 0.01341227013 | Y63: 140 | Z63: 0 | AB63: 5302010 | AC63: DAVENPORT
A64: =VLOOKUP(B64,CCDDD!$A$3:$B$319,2,FALSE) -> 07002 | B64: 5302040 | C64: DAYTON | D64: 0 | E64: 0 | F64: =VLOOKUP(B64,'25-26 Adjusted Formula counts'!$A$3:$L$320,8,FALSE) -> 517 | G64: =ROUND((F64/$F$5*Assumptions!$C$22*Assumptions!$C$30),0) -> 2807 | H64: =VLOOKUP(B64,'25-26 Adjusted Formula counts'!$A$3:$L$320,9,FALSE) -> 91 | I64: =ROUND((H64/$H$5*Assumptions!$C$22*Assumptions!$C$31),0) -> 18145 | K64: 20952 | N64: 20952 | O64: 0 | P64: 20952 | R64: 0 | S64: 20952 | U64: =IFERROR(VLOOKUP($A64, 'Allocation 2024-25 Final'!$A$7:$S$323,19,FALSE),0) -> 17048 | W64: 3904 | X64: 0.2290004693 | Y64: 68 | Z64: 0 | AB64: 5302040 | AC64: DAYTON
A65: =VLOOKUP(B65,CCDDD!$A$3:$B$319,2,FALSE) -> 32414 | B65: 5302070 | C65: DEER PARK | D65: 0 | E65: 0 | F65: =VLOOKUP(B65,'25-26 Adjusted Formula counts'!$A$3:$L$320,8,FALSE) -> 2387 | G65: =ROUND((F65/$F$5*Assumptions!$C$22*Assumptions!$C$30),0) -> 12958 | H65: =VLOOKUP(B65,'25-26 Adjusted Formula counts'!$A$3:$L$320,9,FALSE) -> 226 | I65: =ROUND((H65/$H$5*Assumptions!$C$22*Assumptions!$C$31),0) -> 45064 | K65: 58022 | N65: 58022 | O65: 0 | P65: 58022 | R65: 0 | S65: 58022 | U65: =IFERROR(VLOOKUP($A65, 'Allocation 2024-25 Final'!$A$7:$S$323,19,FALSE),0) -> 78231 | W65: -20209 | X65: -0.258324705 | Y65: 300 | Z65: 0 | AB65: 5302070 | AC65: DEER PARK
A66: =VLOOKUP(B66,CCDDD!$A$3:$B$319,2,FALSE) -> 27343 | B66: 5302130 | C66: DIERINGER | D66: 0 | E66: 0 | F66: =VLOOKUP(B66,'25-26 Adjusted Formula counts'!$A$3:$L$320,8,FALSE) -> 2293 | G66: =ROUND((F66/$F$5*Assumptions!$C$22*Assumptions!$C$30),0) -> 12448 | H66: =VLOOKUP(B66,'25-26 Adjusted Formula counts'!$A$3:$L$320,9,FALSE) -> 100 | I66: =ROUND((H66/$H$5*Assumptions!$C$22*Assumptions!$C$31),0) -> 19940 | K66: 32388 | N66: 32388 | O66: 0 | P66: 32388 | R66: 0 | S66: 32388 | U66: =IFERROR(VLOOKUP($A66, 'Allocation 2024-25 Final'!$A$7:$S$323,19,FALSE),0) -> 29586 | W66: 2802 | X66: 0.09470695599 | Y66: 82 | Z66: 0 | AB66: 5302130 | AC66: DIERINGER
A67: =VLOOKUP(B67,CCDDD!$A$3:$B$319,2,FALSE) -> 36101 | B67: 5302160 | C67: DIXIE | D67: 0 | E67: 0 | F67: =VLOOKUP(B67,'25-26 Adjusted Formula counts'!$A$3:$L$320,8,FALSE) -> 75 | G67: =ROUND((F67/$F$5*Assumptions!$C$22*Assumptions!$C$30),0) -> 407 | H67: =VLOOKUP(B67,'25-26 Adjusted Formula counts'!$A$3:$L$320,9,FALSE) -> 6 | I67: =ROUND((H67/$H$5*Assumptions!$C$22*Assumptions!$C$31),0) -> 1196 | K67: 1603 | N67: 1603 | O67: 0 | P67: 1603 | R67: 0 | S67: 1603 | U67: =IFERROR(VLOOKUP($A67, 'Allocation 2024-25 Final'!$A$7:$S$323,19,FALSE),0) -> 797 | W67: 806 | X67: 1.011292346 | Y67: 123 | Z67: 0 | AB67: 5302160 | AC67: DIXIE
A68: =VLOOKUP(B68,CCDDD!$A$3:$B$319,2,FALSE) -> 32361 | B68: 5302280 | C68: EAST VALLEY (SPK) | D68: 0 | E68: 0 | F68: =VLOOKUP(B68,'25-26 Adjusted Formula counts'!$A$3:$L$320,8,FALSE) -> 4713 | G68: =ROUND((F68/$F$5*Assumptions!$C$22*Assumptions!$C$30),0) -> 25585 | H68: =VLOOKUP(B68,'25-26 Adjusted Formula counts'!$A$3:$L$320,9,FALSE) -> 574 | I68: =ROUND((H68/$H$5*Assumptions!$C$22*Assumptions!$C$31),0) -> 114455 | K68: 140040 | N68: 140040 | O68: 0 | P68: 140040 | R68: 0 | S68: 140040 | U68: =IFERROR(VLOOKUP($A68, 'Allocation 2024-25 Final'!$A$7:$S$323,19,FALSE),0) -> 178819 | W68: -38779 | X68: -0.2168617429 | Y68: 310 | Z68: 0 | AB68: 5302280 | AC68: EAST VALLEY (SPK)
A69: =VLOOKUP(B69,CCDDD!$A$3:$B$319,2,FALSE) -> 39090 | B69: 5305370 | C69: EAST VALLEY (YAK) | D69: 0 | E69: 0 | F69: =VLOOKUP(B69,'25-26 Adjusted Formula counts'!$A$3:$L$320,8,FALSE) -> 3558 | G69: =ROUND((F69/$F$5*Assumptions!$C$22*Assumptions!$C$30),0) -> 19315 | H69: =VLOOKUP(B69,'25-26 Adjusted Formula counts'!$A$3:$L$320,9,FALSE) -> 481 | I69: =ROUND((H69/$H$5*Assumptions!$C$22*Assumptions!$C$31),0) -> 95911 | K69: 115226 | N69: 115226 | O69: 0 | P69: 115226 | R69: 0 | S69: 115226 | U69: =IFERROR(VLOOKUP($A69, 'Allocation 2024-25 Final'!$A$7:$S$323,19,FALSE),0) -> 100949 | W69: 14277 | X69: 0.1414278497 | Y69: 32 | Z69: 0 | AB69: 5305370 | AC69: EAST VALLEY (YAK)
A70: =VLOOKUP(B70,CCDDD!$A$3:$B$319,2,FALSE) -> 09206 | B70: 5302310 | C70: EASTMONT | D70: 0 | E70: 0 | F70: =VLOOKUP(B70,'25-26 Adjusted Formula counts'!$A$3:$L$320,8,FALSE) -> 6388 | G70: =ROUND((F70/$F$5*Assumptions!$C$22*Assumptions!$C$30),0) -> 34679 | H70: =VLOOKUP(B70,'25-26 Adjusted Formula counts'!$A$3:$L$320,9,FALSE) -> 863 | I70: =ROUND((H70/$H$5*Assumptions!$C$22*Assumptions!$C$31),0) -> 172081 | K70: 206760 | N70: 206760 | O70: 0 | P70: 206760 | R70: 0 | S70: 206760 | U70: =IFERROR(VLOOKUP($A70, 'Allocation 2024-25 Final'!$A$7:$S$323,19,FALSE),0) -> 152894 | W70: 53866 | X70: 0.3523094431 | Y70: 4 | Z70: 0 | AB70: 5302310 | AC70: EASTMONT
A71: =VLOOKUP(B71,CCDDD!$A$3:$B$319,2,FALSE) -> 19028 | B71: 5302340 | C71: EASTON | D71: 0 | E71: 0 | F71: =VLOOKUP(B71,'25-26 Adjusted Formula counts'!$A$3:$L$320,8,FALSE) -> 157 | G71: =ROUND((F71/$F$5*Assumptions!$C$22*Assumptions!$C$30),0) -> 852 | H71: =VLOOKUP(B71,'25-26 Adjusted Formula counts'!$A$3:$L$320,9,FALSE) -> 21 | I71: =ROUND((H71/$H$5*Assumptions!$C$22*Assumptions!$C$31),0) -> 4187 | K71: =ROUNDDOWN(+I71+G71+E71+D71+J71,0) -> 5039 | N71: =K71 -> 5039 | O71: =-ROUND(N71/$N$5*$M$5,0) -> 0 | P71: =+K71+O71+M71 -> 5039 | R71: =-1*(P71*Q71) -> 0 | S71: =+P71+R71 -> 5039 | U71: =IFERROR(VLOOKUP($A71, 'Allocation 2024-25 Final'!$A$7:$S$323,19,FALSE),0) -> 2202 | W71: =+S71-U71 -> 2837 | X71: =IF(U71>0,W71/U71,0) -> 1.288374205 | Y71: =RANK(W71,$W$7:$W$320,0) -> 81 | Z71: =(SUM(D71:E71)/S71) -> 0 | AB71: =+B71 -> 5302340 | AC71: EASTON
A72: =VLOOKUP(B72,CCDDD!$A$3:$B$319,2,FALSE) -> 27404 | B72: 5302370 | C72: EATONVILLE | D72: 0 | E72: 0 | F72: =VLOOKUP(B72,'25-26 Adjusted Formula counts'!$A$3:$L$320,8,FALSE) -> 2222 | G72: =ROUND((F72/$F$5*Assumptions!$C$22*Assumptions!$C$30),0) -> 12063 | H72: =VLOOKUP(B72,'25-26 Adjusted Formula counts'!$A$3:$L$320,9,FALSE) -> 150 | I72: =ROUND((H72/$H$5*Assumptions!$C$22*Assumptions!$C$31),0) -> 29910 | K72: 41973 | N72: 41973 | O72: 0 | P72: 41973 | R72: 0 | S72: 41973 | U72: =IFERROR(VLOOKUP($A72, 'Allocation 2024-25 Final'!$A$7:$S$323,19,FALSE),0) -> 47701 | W72: -5728 | X72: -0.12008134 | Y72: 257 | Z72: 0 | AB72: 5302370 | AC72: EATONVILLE
A73: =VLOOKUP(B73,CCDDD!$A$3:$B$319,2,FALSE) -> 31015 | B73: 5302400 | C73: EDMONDS | D73: 0 | E73: 0 | F73: =VLOOKUP(B73,'25-26 Adjusted Formula counts'!$A$3:$L$320,8,FALSE) -> 24425 | G73: =ROUND((F73/$F$5*Assumptions!$C$22*Assumptions!$C$30),0) -> 132596 | H73: =VLOOKUP(B73,'25-26 Adjusted Formula counts'!$A$3:$L$320,9,FALSE) -> 2342 | I73: =ROUND((H73/$H$5*Assumptions!$C$22*Assumptions!$C$31),0) -> 466992 | K73: 599588 | N73: 599588 | O73: 0 | P73: 599588 | R73: 0 | S73: 599588 | U73: =IFERROR(VLOOKUP($A73, 'Allocation 2024-25 Final'!$A$7:$S$323,19,FALSE),0) -> 546231 | W73: 53357 | X73: 0.09768211617 | Y73: 5 | Z73: 0 | AB73: 5302400 | AC73: EDMONDS
A74: =VLOOKUP(B74,CCDDD!$A$3:$B$319,2,FALSE) -> 19401 | B74: 5302460 | C74: ELLENSBURG | D74: 0 | E74: 0 | F74: =VLOOKUP(B74,'25-26 Adjusted Formula counts'!$A$3:$L$320,8,FALSE) -> 3597 | G74: =ROUND((F74/$F$5*Assumptions!$C$22*Assumptions!$C$30),0) -> 19527 | H74: =VLOOKUP(B74,'25-26 Adjusted Formula counts'!$A$3:$L$320,9,FALSE) -> 433 | I74: =ROUND((H74/$H$5*Assumptions!$C$22*Assumptions!$C$31),0) -> 86340 | K74: 105867 | N74: 105867 | O74: 0 | P74: 105867 | R74: 0 | S74: 105867 | U74: =IFERROR(VLOOKUP($A74, 'Allocation 2024-25 Final'!$A$7:$S$323,19,FALSE),0) -> 94115 | W74: 11752 | X74: 0.1248685119 | Y74: 41 | Z74: 0 | AB74: 5302460 | AC74: ELLENSBURG
A75: =VLOOKUP(B75,CCDDD!$A$3:$B$319,2,FALSE) -> 14068 | B75: 5302490 | C75: ELMA | D75: 0 | E75: 0 | F75: =VLOOKUP(B75,'25-26 Adjusted Formula counts'!$A$3:$L$320,8,FALSE) -> 1593 | G75: =ROUND((F75/$F$5*Assumptions!$C$22*Assumptions!$C$30),0) -> 8648 | H75: =VLOOKUP(B75,'25-26 Adjusted Formula counts'!$A$3:$L$320,9,FALSE) -> 241 | I75: =ROUND((H75/$H$5*Assumptions!$C$22*Assumptions!$C$31),0) -> 48055 | K75: 56703 | N75: 56703 | O75: 0 | P75: 56703 | R75: 0 | S75: 56703 | U75: =IFERROR(VLOOKUP($A75, 'Allocation 2024-25 Final'!$A$7:$S$323,19,FALSE),0) -> 73219 | W75: -16516 | X75: -0.2255698657 | Y75: 295 | Z75: 0 | AB75: 5302490 | AC75: ELMA
A76: =VLOOKUP(B76,CCDDD!$A$3:$B$319,2,FALSE) -> 38308 | B76: 5302520 | C76: ENDICOTT | D76: 0 | E76: 0 | F76: =VLOOKUP(B76,'25-26 Adjusted Formula counts'!$A$3:$L$320,8,FALSE) -> 90 | G76: =ROUND((F76/$F$5*Assumptions!$C$22*Assumptions!$C$30),0) -> 489 | H76: =VLOOKUP(B76,'25-26 Adjusted Formula counts'!$A$3:$L$320,9,FALSE) -> 22 | I76: =ROUND((H76/$H$5*Assumptions!$C$22*Assumptions!$C$31),0) -> 4387 | K76: 4876 | N76: 4876 | O76: 0 | P76: 4876 | R76: 0 | S76: 4876 | U76: =IFERROR(VLOOKUP($A76, 'Allocation 2024-25 Final'!$A$7:$S$323,19,FALSE),0) -> 3852 | W76: 1024 | X76: 0.2658359294 | Y76: 116 | Z76: 0 | AB76: 5302520 | AC76: ENDICOTT
A77: =VLOOKUP(B77,CCDDD!$A$3:$B$319,2,FALSE) -> 04127 | B77: 5302550 | C77: ENTIAT | D77: 0 | E77: 0 | F77: =VLOOKUP(B77,'25-26 Adjusted Formula counts'!$A$3:$L$320,8,FALSE) -> 409 | G77: =ROUND((F77/$F$5*Assumptions!$C$22*Assumptions!$C$30),0) -> 2220 | H77: =VLOOKUP(B77,'25-26 Adjusted Formula counts'!$A$3:$L$320,9,FALSE) -> 65 | I77: =ROUND((H77/$H$5*Assumptions!$C$22*Assumptions!$C$31),0) -> 12961 | K77: 15181 | N77: 15181 | O77: 0 | P77: 15181 | R77: 0 | S77: 15181 | U77: =IFERROR(VLOOKUP($A77, 'Allocation 2024-25 Final'!$A$7:$S$323,19,FALSE),0) -> 15320 | W77: -139 | X77: -0.00907310705 | Y77: 153 | Z77: 0 | AB77: 5302550 | AC77: ENTIAT
A78: =VLOOKUP(B78,CCDDD!$A$3:$B$319,2,FALSE) -> 17216 | B78: 5300001 | C78: ENUMCLAW | D78: 0 | E78: 0 | F78: =VLOOKUP(B78,'25-26 Adjusted Formula counts'!$A$3:$L$320,8,FALSE) -> 4684 | G78: =ROUND((F78/$F$5*Assumptions!$C$22*Assumptions!$C$30),0) -> 25428 | H78: =VLOOKUP(B78,'25-26 Adjusted Formula counts'!$A$3:$L$320,9,FALSE) -> 274 | I78: =ROUND((H78/$H$5*Assumptions!$C$22*Assumptions!$C$31),0) -> 54635 | K78: 80063 | N78: 80063 | O78: 0 | P78: 80063 | R78: 0 | S78: 80063 | U78: =IFERROR(VLOOKUP($A78, 'Allocation 2024-25 Final'!$A$7:$S$323,19,FALSE),0) -> 81260 | W78: -1197 | X78: -0.01473049471 | Y78: 201 | Z78: 0 | AB78: 5300001 | AC78: ENUMCLAW
A79: =VLOOKUP(B79,CCDDD!$A$3:$B$319,2,FALSE) -> 13165 | B79: 5302610 | C79: EPHRATA | D79: 0 | E79: 0 | F79: =VLOOKUP(B79,'25-26 Adjusted Formula counts'!$A$3:$L$320,8,FALSE) -> 2908 | G79: =ROUND((F79/$F$5*Assumptions!$C$22*Assumptions!$C$30),0) -> 15787 | H79: =VLOOKUP(B79,'25-26 Adjusted Formula counts'!$A$3:$L$320,9,FALSE) -> 427 | I79: =ROUND((H79/$H$5*Assumptions!$C$22*Assumptions!$C$31),0) -> 85143 | K79: 100930 | N79: 100930 | O79: 0 | P79: 100930 | R79: 0 | S79: 100930 | U79: =IFERROR(VLOOKUP($A79, 'Allocation 2024-25 Final'!$A$7:$S$323,19,FALSE),0) -> 107381 | W79: -6451 | X79: -0.06007580484 | Y79: 264 | Z79: 0 | AB79: 5302610 | AC79: EPHRATA
A80: =VLOOKUP(B80,CCDDD!$A$3:$B$319,2,FALSE) -> 21036 | B80: 5302640 | C80: EVALINE | D80: 0 | E80: 0 | F80: =VLOOKUP(B80,'25-26 Adjusted Formula counts'!$A$3:$L$320,8,FALSE) -> 130 | G80: =ROUND((F80/$F$5*Assumptions!$C$22*Assumptions!$C$30),0) -> 706 | H80: =VLOOKUP(B80,'25-26 Adjusted Formula counts'!$A$3:$L$320,9,FALSE) -> 16 | I80: =ROUND((H80/$H$5*Assumptions!$C$22*Assumptions!$C$31),0) -> 3190 | K80: 3896 | N80: 3896 | O80: 0 | P80: 3896 | R80: 0 | S80: 3896 | U80: =IFERROR(VLOOKUP($A80, 'Allocation 2024-25 Final'!$A$7:$S$323,19,FALSE),0) -> 5067 | W80: -1171 | X80: -0.2311032169 | Y80: 198 | Z80: 0 | AB80: 5302640 | AC80: EVALINE
A81: =VLOOKUP(B81,CCDDD!$A$3:$B$319,2,FALSE) -> 31002 | B81: 5302670 | C81: EVERETT | D81: 0 | E81: 0 | F81: =VLOOKUP(B81,'25-26 Adjusted Formula counts'!$A$3:$L$320,8,FALSE) -> 22976 | G81: =ROUND((F81/$F$5*Assumptions!$C$22*Assumptions!$C$30),0) -> 124730 | H81: =VLOOKUP(B81,'25-26 Adjusted Formula counts'!$A$3:$L$320,9,FALSE) -> 2424 | I81: =ROUND((H81/$H$5*Assumptions!$C$22*Assumptions!$C$31),0) -> 483343 | K81: 608073 | N81: 608073 | O81: 0 | P81: 608073 | R81: 0 | S81: 608073 | U81: =IFERROR(VLOOKUP($A81, 'Allocation 2024-25 Final'!$A$7:$S$323,19,FALSE),0) -> 583583 | W81: 24490 | X81: 0.04196489617 | Y81: 22 | Z81: 0 | AB81: 5302670 | AC81: EVERETT
A82: =VLOOKUP(B82,CCDDD!$A$3:$B$319,2,FALSE) -> 06114 | B82: 5302700 | C82: EVERGREEN (CLARK) | D82: 0 | E82: 0 | F82: =VLOOKUP(B82,'25-26 Adjusted Formula counts'!$A$3:$L$320,8,FALSE) -> 26847 | G82: =ROUND((F82/$F$5*Assumptions!$C$22*Assumptions!$C$30),0) -> 145744 | H82: =VLOOKUP(B82,'25-26 Adjusted Formula counts'!$A$3:$L$320,9,FALSE) -> 2584 | I82: =ROUND((H82/$H$5*Assumptions!$C$22*Assumptions!$C$31),0) -> 515246 | K82: 660990 | N82: 660990 | O82: 0 | P82: 660990 | R82: 0 | S82: 660990 | U82: =IFERROR(VLOOKUP($A82, 'Allocation 2024-25 Final'!$A$7:$S$323,19,FALSE),0) -> 660809 | W82: 181 | X82: 0.0002739066811 | Y82: 148 | Z82: 0 | AB82: 5302700 | AC82: EVERGREEN (CLARK)
A83: =VLOOKUP(B83,CCDDD!$A$3:$B$319,2,FALSE) -> 33205 | B83: 5302730 | C83: EVERGREEN (STEV) | D83: 0 | E83: 0 | F83: =VLOOKUP(B83,'25-26 Adjusted Formula counts'!$A$3:$L$320,8,FALSE) -> 57 | G83: =ROUND((F83/$F$5*Assumptions!$C$22*Assumptions!$C$30),0) -> 309 | H83: =VLOOKUP(B83,'25-26 Adjusted Formula counts'!$A$3:$L$320,9,FALSE) -> 17 | I83: =ROUND((H83/$H$5*Assumptions!$C$22*Assumptions!$C$31),0) -> 3390 | K83: 3699 | N83: 3699 | O83: 0 | P83: 3699 | R83: 0 | S83: 3699 | U83: =IFERROR(VLOOKUP($A83, 'Allocation 2024-25 Final'!$A$7:$S$323,19,FALSE),0) -> 3087 | W83: 612 | X83: 0.1982507289 | Y83: 127 | Z83: 0 | AB83: 5302730 | AC83: EVERGREEN (STEV)
A84: =VLOOKUP(B84,CCDDD!$A$3:$B$319,2,FALSE) -> 17210 | B84: 5302820 | C84: FEDERAL WAY | D84: 0 | E84: 0 | F84: =VLOOKUP(B84,'25-26 Adjusted Formula counts'!$A$3:$L$320,8,FALSE) -> 24174 | G84: =ROUND((F84/$F$5*Assumptions!$C$22*Assumptions!$C$30),0) -> 131234 | H84: =VLOOKUP(B84,'25-26 Adjusted Formula counts'!$A$3:$L$320,9,FALSE) -> 4191 | I84: =ROUND((H84/$H$5*Assumptions!$C$22*Assumptions!$C$31),0) -> 835680 | K84: 966914 | N84: 966914 | O84: 0 | P84: 966914 | R84: 0 | S84: 966914 | U84: =IFERROR(VLOOKUP($A84, 'Allocation 2024-25 Final'!$A$7:$S$323,19,FALSE),0) -> 966718 | W84: 196 | X84: 0.0002027478541 | Y84: 147 | Z84: 0 | AB84: 5302820 | AC84: FEDERAL WAY
A85: =VLOOKUP(B85,CCDDD!$A$3:$B$319,2,FALSE) -> 37502 | B85: 5302850 | C85: FERNDALE | D85: 0 | E85: 0 | F85: =VLOOKUP(B85,'25-26 Adjusted Formula counts'!$A$3:$L$320,8,FALSE) -> 6187 | G85: =ROUND((F85/$F$5*Assumptions!$C$22*Assumptions!$C$30),0) -> 33587 | H85: =VLOOKUP(B85,'25-26 Adjusted Formula counts'!$A$3:$L$320,9,FALSE) -> 769 | I85: =ROUND((H85/$H$5*Assumptions!$C$22*Assumptions!$C$31),0) -> 153338 | K85: 186925 | N85: 186925 | O85: 0 | P85: 186925 | R85: 0 | S85: 186925 | U85: =IFERROR(VLOOKUP($A85, 'Allocation 2024-25 Final'!$A$7:$S$323,19,FALSE),0) -> 186078 | W85: 847 | X85: 0.004551854599 | Y85: 121 | Z85: 0 | AB85: 5302850 | AC85: FERNDALE
A86: =VLOOKUP(B86,CCDDD!$A$3:$B$319,2,FALSE) -> 27417 | B86: 5302880 | C86: FIFE | D86: 0 | E86: 0 | F86: =VLOOKUP(B86,'25-26 Adjusted Formula counts'!$A$3:$L$320,8,FALSE) -> 4094 | G86: =ROUND((F86/$F$5*Assumptions!$C$22*Assumptions!$C$30),0) -> 22225 | H86: =VLOOKUP(B86,'25-26 Adjusted Formula counts'!$A$3:$L$320,9,FALSE) -> 386 | I86: =ROUND((H86/$H$5*Assumptions!$C$22*Assumptions!$C$31),0) -> 76968 | K86: 99193 | N86: 99193 | O86: 0 | P86: 99193 | R86: 0 | S86: 99193 | U86: =IFERROR(VLOOKUP($A86, 'Allocation 2024-25 Final'!$A$7:$S$323,19,FALSE),0) -> 92950 | W86: 6243 | X86: 0.06716514255 | Y86: 54 | Z86: 0 | AB86: 5302880 | AC86: FIFE
A87: =VLOOKUP(B87,CCDDD!$A$3:$B$319,2,FALSE) -> 03053 | B87: 5302910 | C87: FINLEY | D87: 0 | E87: 0 | F87: =VLOOKUP(B87,'25-26 Adjusted Formula counts'!$A$3:$L$320,8,FALSE) -> 920 | G87: =ROUND((F87/$F$5*Assumptions!$C$22*Assumptions!$C$30),0) -> 4994 | H87: =VLOOKUP(B87,'25-26 Adjusted Formula counts'!$A$3:$L$320,9,FALSE) -> 113 | I87: =ROUND((H87/$H$5*Assumptions!$C$22*Assumptions!$C$31),0) -> 22532 | K87: 27526 | N87: 27526 | O87: 0 | P87: 27526 | R87: 0 | S87: 27526 | U87: =IFERROR(VLOOKUP($A87, 'Allocation 2024-25 Final'!$A$7:$S$323,19,FALSE),0) -> 28357 | W87: -831 | X87: -0.02930493353 | Y87: 187 | Z87: 0 | AB87: 5302910 | AC87: FINLEY
A88: =VLOOKUP(B88,CCDDD!$A$3:$B$319,2,FALSE) -> 27402 | B88: 5302940 | C88: FRANKLIN PIERCE | D88: 0 | E88: 0 | F88: =VLOOKUP(B88,'25-26 Adjusted Formula counts'!$A$3:$L$320,8,FALSE) -> 9340 | G88: =ROUND((F88/$F$5*Assumptions!$C$22*Assumptions!$C$30),0) -> 50704 | H88: =VLOOKUP(B88,'25-26 Adjusted Formula counts'!$A$3:$L$320,9,FALSE) -> 1348 | I88: =ROUND((H88/$H$5*Assumptions!$C$22*Assumptions!$C$31),0) -> 268789 | K88: 319493 | N88: 319493 | O88: 0 | P88: 319493 | R88: 0 | S88: 319493 | U88: =IFERROR(VLOOKUP($A88, 'Allocation 2024-25 Final'!$A$7:$S$323,19,FALSE),0) -> 290307 | W88: 29186 | X88: 0.1005349509 | Y88: 20 | Z88: 0 | AB88: 5302940 | AC88: FRANKLIN PIERCE
A89: =VLOOKUP(B89,CCDDD!$A$3:$B$319,2,FALSE) -> 32358 | B89: 5302970 | C89: FREEMAN | D89: 0 | E89: 0 | F89: =VLOOKUP(B89,'25-26 Adjusted Formula counts'!$A$3:$L$320,8,FALSE) -> 1001 | G89: =ROUND((F89/$F$5*Assumptions!$C$22*Assumptions!$C$30),0) -> 5434 | H89: =VLOOKUP(B89,'25-26 Adjusted Formula counts'!$A$3:$L$320,9,FALSE) -> 36 | I89: =ROUND((H89/$H$5*Assumptions!$C$22*Assumptions!$C$31),0) -> 7178 | K89: 12612 | N89: 12612 | O89: 0 | P89: 12612 | R89: 0 | S89: 12612 | U89: =IFERROR(VLOOKUP($A89, 'Allocation 2024-25 Final'!$A$7:$S$323,19,FALSE),0) -> 15113 | W89: -2501 | X89: -0.1654866671 | Y89: 224 | Z89: 0 | AB89: 5302970 | AC89: FREEMAN
A90: =VLOOKUP(B90,CCDDD!$A$3:$B$319,2,FALSE) -> 38302 | B90: 5303000 | C90: GARFIELD | D90: 0 | E90: 0 | F90: =VLOOKUP(B90,'25-26 Adjusted Formula counts'!$A$3:$L$320,8,FALSE) -> 132 | G90: =ROUND((F90/$F$5*Assumptions!$C$22*Assumptions!$C$30),0) -> 717 | H90: =VLOOKUP(B90,'25-26 Adjusted Formula counts'!$A$3:$L$320,9,FALSE) -> 33 | I90: =ROUND((H90/$H$5*Assumptions!$C$22*Assumptions!$C$31),0) -> 6580 | K90: 7297 | N90: 7297 | O90: 0 | P90: 7297 | R90: 0 | S90: 7297 | U90: =IFERROR(VLOOKUP($A90, 'Allocation 2024-25 Final'!$A$7:$S$323,19,FALSE),0) -> 7648 | W90: -351 | X90: -0.04589435146 | Y90: 166 | Z90: 0 | AB90: 5303000 | AC90: GARFIELD
A91: =VLOOKUP(B91,CCDDD!$A$3:$B$319,2,FALSE) -> 20401 | B91: 5303030 | C91: GLENWOOD | D91: 0 | E91: 0 | F91: =VLOOKUP(B91,'25-26 Adjusted Formula counts'!$A$3:$L$320,8,FALSE) -> 62 | G91: =ROUND((F91/$F$5*Assumptions!$C$22*Assumptions!$C$30),0) -> 337 | H91: =VLOOKUP(B91,'25-26 Adjusted Formula counts'!$A$3:$L$320,9,FALSE) -> 9 | I91: =ROUND((H91/$H$5*Assumptions!$C$22*Assumptions!$C$31),0) -> 1795 | K91: 2132 | N91: 2132 | O91: 0 | P91: 2132 | R91: 0 | S91: 2132 | U91: =IFERROR(VLOOKUP($A91, 'Allocation 2024-25 Final'!$A$7:$S$323,19,FALSE),0) -> 2910 | W91: -778 | X91: -0.2673539519 | Y91: 184 | Z91: 0 | AB91: 5303030 | AC91: GLENWOOD
A92: =VLOOKUP(B92,CCDDD!$A$3:$B$319,2,FALSE) -> 20404 | B92: 5303090 | C92: GOLDENDALE | D92: 0 | E92: 0 | F92: =VLOOKUP(B92,'25-26 Adjusted Formula counts'!$A$3:$L$320,8,FALSE) -> 1075 | G92: =ROUND((F92/$F$5*Assumptions!$C$22*Assumptions!$C$30),0) -> 5836 | H92: =VLOOKUP(B92,'25-26 Adjusted Formula counts'!$A$3:$L$320,9,FALSE) -> 161 | I92: =ROUND((H92/$H$5*Assumptions!$C$22*Assumptions!$C$31),0) -> 32103 | K92: 37939 | N92: 37939 | O92: 0 | P92: 37939 | R92: 0 | S92: 37939 | U92: =IFERROR(VLOOKUP($A92, 'Allocation 2024-25 Final'!$A$7:$S$323,19,FALSE),0) -> 48660 | W92: -10721 | X92: -0.220324702 | Y92: 282 | Z92: 0 | AB92: 5303090 | AC92: GOLDENDALE
A93: =VLOOKUP(B93,CCDDD!$A$3:$B$319,2,FALSE) -> 13301 | B93: 5303130 | C93: GRAND COULEE | D93: 0 | E93: 0 | F93: =VLOOKUP(B93,'25-26 Adjusted Formula counts'!$A$3:$L$320,8,FALSE) -> 672 | G93: =ROUND((F93/$F$5*Assumptions!$C$22*Assumptions!$C$30),0) -> 3648 | H93: =VLOOKUP(B93,'25-26 Adjusted Formula counts'!$A$3:$L$320,9,FALSE) -> 111 | I93: =ROUND((H93/$H$5*Assumptions!$C$22*Assumptions!$C$31),0) -> 22133 | K93: 25781 | N93: 25781 | O93: 0 | P93: 25781 | R93: 0 | S93: 25781 | U93: =IFERROR(VLOOKUP($A93, 'Allocation 2024-25 Final'!$A$7:$S$323,19,FALSE),0) -> 23755 | W93: 2026 | X93: 0.08528730794 | Y93: 95 | Z93: 0 | AB93: 5303130 | AC93: GRAND COULEE
A94: =VLOOKUP(B94,CCDDD!$A$3:$B$319,2,FALSE) -> 39200 | B94: 5303150 | C94: GRANDVIEW | D94: 0 | E94: 0 | F94: =VLOOKUP(B94,'25-26 Adjusted Formula counts'!$A$3:$L$320,8,FALSE) -> 3734 | G94: =ROUND((F94/$F$5*Assumptions!$C$22*Assumptions!$C$30),0) -> 20271 | H94: =VLOOKUP(B94,'25-26 Adjusted Formula counts'!$A$3:$L$320,9,FALSE) -> 806 | I94: =ROUND((H94/$H$5*Assumptions!$C$22*Assumptions!$C$31),0) -> 160715 | K94: 180986 | N94: 180986 | O94: 0 | P94: 180986 | R94: 0 | S94: 180986 | U94: =IFERROR(VLOOKUP($A94, 'Allocation 2024-25 Final'!$A$7:$S$323,19,FALSE),0) -> 149639 | W94: 31347 | X94: 0.2094841585 | Y94: 15 | Z94: 0 | AB94: 5303150 | AC94: GRANDVIEW
A95: =VLOOKUP(B95,CCDDD!$A$3:$B$319,2,FALSE) -> 39204 | B95: 5303180 | C95: GRANGER | D95: 0 | E95: 0 | F95: =VLOOKUP(B95,'25-26 Adjusted Formula counts'!$A$3:$L$320,8,FALSE) -> 1587 | G95: =ROUND((F95/$F$5*Assumptions!$C$22*Assumptions!$C$30),0) -> 8615 | H95: =VLOOKUP(B95,'25-26 Adjusted Formula counts'!$A$3:$L$320,9,FALSE) -> 251 | I95: =ROUND((H95/$H$5*Assumptions!$C$22*Assumptions!$C$31),0) -> 50049 | K95: 58664 | N95: 58664 | O95: 0 | P95: 58664 | R95: 0 | S95: 58664 | U95: =IFERROR(VLOOKUP($A95, 'Allocation 2024-25 Final'!$A$7:$S$323,19,FALSE),0) -> 81767 | W95: -23103 | X95: -0.2825467487 | Y95: 303 | Z95: 0 | AB95: 5303180 | AC95: GRANGER
A96: =VLOOKUP(B96,CCDDD!$A$3:$B$319,2,FALSE) -> 31332 | B96: 5303210 | C96: GRANITE FALLS | D96: 0 | E96: 0 | F96: =VLOOKUP(B96,'25-26 Adjusted Formula counts'!$A$3:$L$320,8,FALSE) -> 2819 | G96: =ROUND((F96/$F$5*Assumptions!$C$22*Assumptions!$C$30),0) -> 15304 | H96: =VLOOKUP(B96,'25-26 Adjusted Formula counts'!$A$3:$L$320,9,FALSE) -> 180 | I96: =ROUND((H96/$H$5*Assumptions!$C$22*Assumptions!$C$31),0) -> 35892 | K96: 51196 | N96: 51196 | O96: 0 | P96: 51196 | R96: 0 | S96: 51196 | U96: =IFERROR(VLOOKUP($A96, 'Allocation 2024-25 Final'!$A$7:$S$323,19,FALSE),0) -> 57672 | W96: -6476 | X96: -0.1122901928 | Y96: 265 | Z96: 0 | AB96: 5303210 | AC96: GRANITE FALLS
A97: =VLOOKUP(B97,CCDDD!$A$3:$B$319,2,FALSE) -> 23054 | B97: 5303240 | C97: GRAPEVIEW | D97: 0 | E97: 0 | F97: =VLOOKUP(B97,'25-26 Adjusted Formula counts'!$A$3:$L$320,8,FALSE) -> 342 | G97: =ROUND((F97/$F$5*Assumptions!$C$22*Assumptions!$C$30),0) -> 1857 | H97: =VLOOKUP(B97,'25-26 Adjusted Formula counts'!$A$3:$L$320,9,FALSE) -> 35 | I97: =ROUND((H97/$H$5*Assumptions!$C$22*Assumptions!$C$31),0) -> 6979 | K97: 8836 | N97: 8836 | O97: 0 | P97: 8836 | R97: 0 | S97: 8836 | U97: =IFERROR(VLOOKUP($A97, 'Allocation 2024-25 Final'!$A$7:$S$323,19,FALSE),0) -> 6997 | W97: 1839 | X97: 0.2628269258 | Y97: 102 | Z97: 0 | AB97: 5303240 | AC97: GRAPEVIEW
A98: =VLOOKUP(B98,CCDDD!$A$3:$B$319,2,FALSE) -> 32312 | B98: 5303270 | C98: GREAT NORTHERN | D98: 0 | E98: 0 | F98: =VLOOKUP(B98,'25-26 Adjusted Formula counts'!$A$3:$L$320,8,FALSE) -> 188 | G98: =ROUND((F98/$F$5*Assumptions!$C$22*Assumptions!$C$30),0) -> 1021 | H98: =VLOOKUP(B98,'25-26 Adjusted Formula counts'!$A$3:$L$320,9,FALSE) -> 36 | I98: =ROUND((H98/$H$5*Assumptions!$C$22*Assumptions!$C$31),0) -> 7178 | K98: 8199 | N98: 8199 | O98: 0 | P98: 8199 | R98: 0 | S98: 8199 | U98: =IFERROR(VLOOKUP($A98, 'Allocation 2024-25 Final'!$A$7:$S$323,19,FALSE),0) -> 9562 | W98: -1363 | X98: -0.142543401 | Y98: 204 | Z98: 0 | AB98: 5303270 | AC98: GREAT NORTHERN
A99: =VLOOKUP(B99,CCDDD!$A$3:$B$319,2,FALSE) -> 17910 | B99: 5303280 | C99: RAINIER VALLEY CHARTER | D99: 0 | E99: 0 | F99: =VLOOKUP(B99,'25-26 Adjusted Formula counts'!$A$3:$L$320,8,FALSE) -> 169.3518591 | G99: =ROUND((F99/$F$5*Assumptions!$C$22*Assumptions!$C$30),0) -> 919 | H99: =VLOOKUP(B99,'25-26 Adjusted Formula counts'!$A$3:$L$320,9,FALSE) -> 24.3397169 | I99: =ROUND((H99/$H$5*Assumptions!$C$22*Assumptions!$C$31),0) -> 4853 | K99: 5772 | N99: 5772 | O99: 0 | P99: 5772 | R99: 0 | S99: 5772 | U99: =IFERROR(VLOOKUP($A99, 'Allocation 2024-25 Final'!$A$7:$S$323,19,FALSE),0) -> 16827 | W99: -11055 | X99: -0.6569798538 | Y99: 285 | Z99: 0 | AB99: 5303280 | AC99: RAINIER VALLEY CHARTER
A100: =VLOOKUP(B100,CCDDD!$A$3:$B$319,2,FALSE) -> 06103 | B100: 5303300 | C100: GREEN MOUNTAIN | D100: 0 | E100: 0 | F100: =VLOOKUP(B100,'25-26 Adjusted Formula counts'!$A$3:$L$320,8,FALSE) -> 206 | G100: =ROUND((F100/$F$5*Assumptions!$C$22*Assumptions!$C$30),0) -> 1118 | H100: =VLOOKUP(B100,'25-26 Adjusted Formula counts'!$A$3:$L$320,9,FALSE) -> 12 | I100: =ROUND((H100/$H$5*Assumptions!$C$22*Assumptions!$C$31),0) -> 2393 | K100: 3511 | N100: 3511 | O100: 0 | P100: 3511 | R100: 0 | S100: 3511 | U100: =IFERROR(VLOOKUP($A100, 'Allocation 2024-25 Final'!$A$7:$S$323,19,FALSE),0) -> 4290 | W100: -779 | X100: -0.1815850816 | Y100: 185 | Z100: 0 | AB100: 5303300 | AC100: GREEN MOUNTAIN
A101: =VLOOKUP(B101,CCDDD!$A$3:$B$319,2,FALSE) -> 34324 | B101: 5303330 | C101: GRIFFIN | D101: 0 | E101: 0 | F101: =VLOOKUP(B101,'25-26 Adjusted Formula counts'!$A$3:$L$320,8,FALSE) -> 898 | G101: =ROUND((F101/$F$5*Assumptions!$C$22*Assumptions!$C$30),0) -> 4875 | H101: =VLOOKUP(B101,'25-26 Adjusted Formula counts'!$A$3:$L$320,9,FALSE) -> 44 | I101: =ROUND((H101/$H$5*Assumptions!$C$22*Assumptions!$C$31),0) -> 8774 | K101: 13649 | N101: 13649 | O101: 0 | P101: 13649 | R101: 0 | S101: 13649 | U101: =IFERROR(VLOOKUP($A101, 'Allocation 2024-25 Final'!$A$7:$S$323,19,FALSE),0) -> 13196 | W101: 453 | X101: 0.03432858442 | Y101: 131 | Z101: 0 | AB101: 5303330 | AC101: GRIFFIN
A102: =VLOOKUP(B102,CCDDD!$A$3:$B$319,2,FALSE) -> 22204 | B102: 5303360 | C102: HARRINGTON | D102: 0 | E102: 0 | F102: =VLOOKUP(B102,'25-26 Adjusted Formula counts'!$A$3:$L$320,8,FALSE) -> 145 | G102: =ROUND((F102/$F$5*Assumptions!$C$22*Assumptions!$C$30),0) -> 787 | H102: =VLOOKUP(B102,'25-26 Adjusted Formula counts'!$A$3:$L$320,9,FALSE) -> 24 | I102: =ROUND((H102/$H$5*Assumptions!$C$22*Assumptions!$C$31),0) -> 4786 | K102: 5573 | N102: 5573 | O102: 0 | P102: 5573 | R102: 0 | S102: 5573 | U102: =IFERROR(VLOOKUP($A102, 'Allocation 2024-25 Final'!$A$7:$S$323,19,FALSE),0) -> 3170 | W102: 2403 | X102: 0.758044164 | Y102: 91 | Z102: 0 | AB102: 5303360 | AC102: HARRINGTON
A103: =VLOOKUP(B103,CCDDD!$A$3:$B$319,2,FALSE) -> 39203 | B103: 5303510 | C103: HIGHLAND | D103: 0 | E103: 0 | F103: =VLOOKUP(B103,'25-26 Adjusted Formula counts'!$A$3:$L$320,8,FALSE) -> 1272 | G103: =ROUND((F103/$F$5*Assumptions!$C$22*Assumptions!$C$30),0) -> 6905 | H103: =VLOOKUP(B103,'25-26 Adjusted Formula counts'!$A$3:$L$320,9,FALSE) -> 142 | I103: =ROUND((H103/$H$5*Assumptions!$C$22*Assumptions!$C$31),0) -> 28315 | K103: 35220 | N103: 35220 | O103: 0 | P103: 35220 | R103: 0 | S103: 35220 | U103: =IFERROR(VLOOKUP($A103, 'Allocation 2024-25 Final'!$A$7:$S$323,19,FALSE),0) -> 53412 | W103: -18192 | X103: -0.3405976185 | Y103: 298 | Z103: 0 | AB103: 5303510 | AC103: HIGHLAND
A104: =VLOOKUP(B104,CCDDD!$A$3:$B$319,2,FALSE) -> 17401 | B104: 5303540 | C104: HIGHLINE | D104: 0 | E104: 0 | F104: =VLOOKUP(B104,'25-26 Adjusted Formula counts'!$A$3:$L$320,8,FALSE) -> 19648.57576 | G104: =ROUND((F104/$F$5*Assumptions!$C$22*Assumptions!$C$30),0) -> 106666 | H104: =VLOOKUP(B104,'25-26 Adjusted Formula counts'!$A$3:$L$320,9,FALSE) -> 3277.206562 | I104: =ROUND((H104/$H$5*Assumptions!$C$22*Assumptions!$C$31),0) -> 653471 | K104: 760137 | N104: 760137 | O104: 0 | P104: 760137 | R104: 0 | S104: 760137 | U104: =IFERROR(VLOOKUP($A104, 'Allocation 2024-25 Final'!$A$7:$S$323,19,FALSE),0) -> 696179 | W104: 63958 | X104: 0.09187005066 | Y104: 3 | Z104: 0 | AB104: 5303540 | AC104: HIGHLINE
A105: =VLOOKUP(B105,CCDDD!$A$3:$B$319,2,FALSE) -> 06098 | B105: 5303570 | C105: HOCKINSON | D105: 0 | E105: 0 | F105: =VLOOKUP(B105,'25-26 Adjusted Formula counts'!$A$3:$L$320,8,FALSE) -> 2186 | G105: =ROUND((F105/$F$5*Assumptions!$C$22*Assumptions!$C$30),0) -> 11867 | H105: =VLOOKUP(B105,'25-26 Adjusted Formula counts'!$A$3:$L$320,9,FALSE) -> 105 | I105: =ROUND((H105/$H$5*Assumptions!$C$22*Assumptions!$C$31),0) -> 20937 | K105: 32804 | N105: 32804 | O105: 0 | P105: 32804 | R105: 0 | S105: 32804 | U105: =IFERROR(VLOOKUP($A105, 'Allocation 2024-25 Final'!$A$7:$S$323,19,FALSE),0) -> 30014 | W105: 2790 | X105: 0.09295662024 | Y105: 83 | Z105: 0 | AB105: 5303570 | AC105: HOCKINSON
A106: =VLOOKUP(B106,CCDDD!$A$3:$B$319,2,FALSE) -> 23404 | B106: 5303600 | C106: HOOD CANAL | D106: 0 | E106: 0 | F106: =VLOOKUP(B106,'25-26 Adjusted Formula counts'!$A$3:$L$320,8,FALSE) -> 704 | G106: =ROUND((F106/$F$5*Assumptions!$C$22*Assumptions!$C$30),0) -> 3822 | H106: =VLOOKUP(B106,'25-26 Adjusted Formula counts'!$A$3:$L$320,9,FALSE) -> 134 | I106: =ROUND((H106/$H$5*Assumptions!$C$22*Assumptions!$C$31),0) -> 26719 | K106: 30541 | N106: 30541 | O106: 0 | P106: 30541 | R106: 0 | S106: 30541 | U106: =IFERROR(VLOOKUP($A106, 'Allocation 2024-25 Final'!$A$7:$S$323,19,FALSE),0) -> 26428 | W106: 4113 | X106: 0.155630392 | Y106: 65 | Z106: 0 | AB106: 5303600 | AC106: HOOD CANAL
A107: =VLOOKUP(B107,CCDDD!$A$3:$B$319,2,FALSE) -> 14028 | B107: 5303660 | C107: HOQUIAM | D107: 0 | E107: 0 | F107: =VLOOKUP(B107,'25-26 Adjusted Formula counts'!$A$3:$L$320,8,FALSE) -> 1821 | G107: =ROUND((F107/$F$5*Assumptions!$C$22*Assumptions!$C$30),0) -> 9886 | H107: =VLOOKUP(B107,'25-26 Adjusted Formula counts'!$A$3:$L$320,9,FALSE) -> 377 | I107: =ROUND((H107/$H$5*Assumptions!$C$22*Assumptions!$C$31),0) -> 75173 | K107: 85059 | N107: 85059 | O107: 0 | P107: 85059 | R107: 0 | S107: 85059 | U107: =IFERROR(VLOOKUP($A107, 'Allocation 2024-25 Final'!$A$7:$S$323,19,FALSE),0) -> 106077 | W107: -21018 | X107: -0.1981390876 | Y107: 301 | Z107: 0 | AB107: 5303660 | AC107: HOQUIAM
A108: =VLOOKUP(B108,CCDDD!$A$3:$B$319,2,FALSE) -> 27902 | B108: 5303705 | C108: IMPACT COMMENCEMENT BAY CHARTER | D108: 0 | E108: 0 | F108: =VLOOKUP(B108,'25-26 Adjusted Formula counts'!$A$3:$L$320,8,FALSE) -> 305.875905 | G108: =ROUND((F108/$F$5*Assumptions!$C$22*Assumptions!$C$30),0) -> 1661 | H108: =VLOOKUP(B108,'25-26 Adjusted Formula counts'!$A$3:$L$320,9,FALSE) -> 44.85824433 | I108: =ROUND((H108/$H$5*Assumptions!$C$22*Assumptions!$C$31),0) -> 8945 | K108: 10606 | N108: 10606 | O108: 0 | P108: 10606 | R108: 0 | S108: 10606 | U108: =IFERROR(VLOOKUP($A108, 'Allocation 2024-25 Final'!$A$7:$S$323,19,FALSE),0) -> 12945 | W108: -2339 | X108: -0.1806875241 | Y108: 223 | Z108: 0 | AB108: 5303705 | AC108: IMPACT COMMENCEMENT BAY CHARTER
A109: =VLOOKUP(B109,CCDDD!$A$3:$B$319,2,FALSE) -> 17911 | B109: 5303700 | C109: IMPACT PUGET SOUND CHARTER | D109: 0 | E109: 0 | F109: =VLOOKUP(B109,'25-26 Adjusted Formula counts'!$A$3:$L$320,8,FALSE) -> 408.1165363 | G109: =ROUND((F109/$F$5*Assumptions!$C$22*Assumptions!$C$30),0) -> 2216 | H109: =VLOOKUP(B109,'25-26 Adjusted Formula counts'!$A$3:$L$320,9,FALSE) -> 81.86646548 | I109: =ROUND((H109/$H$5*Assumptions!$C$22*Assumptions!$C$31),0) -> 16324 | K109: 18540 | N109: 18540 | O109: 0 | P109: 18540 | R109: 0 | S109: 18540 | U109: =IFERROR(VLOOKUP($A109, 'Allocation 2024-25 Final'!$A$7:$S$323,19,FALSE),0) -> 16554 | W109: 1986 | X109: 0.119971004 | Y109: 97 | Z109: 0 | AB109: 5303700 | AC109: IMPACT PUGET SOUND CHARTER
A110: =VLOOKUP(B110,CCDDD!$A$3:$B$319,2,FALSE) -> 17916 | B110: 5303710 | C110: IMPACT SALISH SEA CHARTER | D110: 0 | E110: 0 | F110: =VLOOKUP(B110,'25-26 Adjusted Formula counts'!$A$3:$L$320,8,FALSE) -> 318.7655786 | G110: =ROUND((F110/$F$5*Assumptions!$C$22*Assumptions!$C$30),0) -> 1730 | H110: =VLOOKUP(B110,'25-26 Adjusted Formula counts'!$A$3:$L$320,9,FALSE) -> 60.24594493 | I110: =ROUND((H110/$H$5*Assumptions!$C$22*Assumptions!$C$31),0) -> 12013 | K110: 13743 | N110: 13743 | O110: 0 | P110: 13743 | R110: 0 | S110: 13743 | U110: =IFERROR(VLOOKUP($A110, 'Allocation 2024-25 Final'!$A$7:$S$323,19,FALSE),0) -> 12169 | W110: 1574 | X110: 0.1293450571 | Y110: 110 | Z110: 0 | AB110: 5303710 | AC110: IMPACT SALISH SEA CHARTER
A111: =VLOOKUP(B111,CCDDD!$A$3:$B$319,2,FALSE) -> 10070 | B111: 5300002 | C111: INCHELIUM | D111: 0 | E111: 0 | F111: =VLOOKUP(B111,'25-26 Adjusted Formula counts'!$A$3:$L$320,8,FALSE) -> 198 | G111: =ROUND((F111/$F$5*Assumptions!$C$22*Assumptions!$C$30),0) -> 1075 | H111: =VLOOKUP(B111,'25-26 Adjusted Formula counts'!$A$3:$L$320,9,FALSE) -> 58 | I111: =ROUND((H111/$H$5*Assumptions!$C$22*Assumptions!$C$31),0) -> 11565 | K111: 12640 | N111: 12640 | O111: 0 | P111: 12640 | R111: 0 | S111: 12640 | U111: =IFERROR(VLOOKUP($A111, 'Allocation 2024-25 Final'!$A$7:$S$323,19,FALSE),0) -> 9772 | W111: 2868 | X111: 0.2934916087 | Y111: 79 | Z111: 0 | AB111: 5300002 | AC111: INCHELIUM
A112: =VLOOKUP(B112,CCDDD!$A$3:$B$319,2,FALSE) -> 31063 | B112: 5303720 | C112: INDEX | D112: 0 | E112: 0 | F112: =VLOOKUP(B112,'25-26 Adjusted Formula counts'!$A$3:$L$320,8,FALSE) -> 54 | G112: =ROUND((F112/$F$5*Assumptions!$C$22*Assumptions!$C$30),0) -> 293 | H112: =VLOOKUP(B112,'25-26 Adjusted Formula counts'!$A$3:$L$320,9,FALSE) -> 5 | I112: =ROUND((H112/$H$5*Assumptions!$C$22*Assumptions!$C$31),0) -> 997 | K112: 1290 | N112: 1290 | O112: 0 | P112: 1290 | R112: 0 | S112: 1290 | U112: =IFERROR(VLOOKUP($A112, 'Allocation 2024-25 Final'!$A$7:$S$323,19,FALSE),0) -> 2081 | W112: -791 | X112: -0.3801057184 | Y112: 186 | Z112: 0 | AB112: 5303720 | AC112: INDEX
A113: =VLOOKUP(B113,CCDDD!$A$3:$B$319,2,FALSE) -> 17411 | B113: 5303750 | C113: ISSAQUAH | D113: 0 | E113: 0 | F113: =VLOOKUP(B113,'25-26 Adjusted Formula counts'!$A$3:$L$320,8,FALSE) -> 22819 | G113: =ROUND((F113/$F$5*Assumptions!$C$22*Assumptions!$C$30),0) -> 123878 | H113: =VLOOKUP(B113,'25-26 Adjusted Formula counts'!$A$3:$L$320,9,FALSE) -> 925 | I113: =ROUND((H113/$H$5*Assumptions!$C$22*Assumptions!$C$31),0) -> 184444 | K113: 308322 | N113: 308322 | O113: 0 | P113: 308322 | R113: 0 | S113: 308322 | U113: =IFERROR(VLOOKUP($A113, 'Allocation 2024-25 Final'!$A$7:$S$323,19,FALSE),0) -> 291098 | W113: 17224 | X113: 0.05916907708 | Y113: 30 | Z113: 0 | AB113: 5303750 | AC113: ISSAQUAH
A114: =VLOOKUP(B114,CCDDD!$A$3:$B$319,2,FALSE) -> 11056 | B114: 5303780 | C114: KAHLOTUS | D114: 0 | E114: 0 | F114: =VLOOKUP(B114,'25-26 Adjusted Formula counts'!$A$3:$L$320,8,FALSE) -> 60 | G114: =ROUND((F114/$F$5*Assumptions!$C$22*Assumptions!$C$30),0) -> 326 | H114: =VLOOKUP(B114,'25-26 Adjusted Formula counts'!$A$3:$L$320,9,FALSE) -> 5 | I114: =ROUND((H114/$H$5*Assumptions!$C$22*Assumptions!$C$31),0) -> 997 | K114: 1323 | N114: 1323 | O114: 0 | P114: 1323 | R114: 0 | S114: 1323 | U114: =IFERROR(VLOOKUP($A114, 'Allocation 2024-25 Final'!$A$7:$S$323,19,FALSE),0) -> 4700 | W114: -3377 | X114: -0.7185106383 | Y114: 234 | Z114: 0 | AB114: 5303780 | AC114: KAHLOTUS
A115: =VLOOKUP(B115,CCDDD!$A$3:$B$319,2,FALSE) -> 08402 | B115: 5303810 | C115: KALAMA | D115: 0 | E115: 0 | F115: =VLOOKUP(B115,'25-26 Adjusted Formula counts'!$A$3:$L$320,8,FALSE) -> 1374 | G115: =ROUND((F115/$F$5*Assumptions!$C$22*Assumptions!$C$30),0) -> 7459 | H115: =VLOOKUP(B115,'25-26 Adjusted Formula counts'!$A$3:$L$320,9,FALSE) -> 101 | I115: =ROUND((H115/$H$5*Assumptions!$C$22*Assumptions!$C$31),0) -> 20139 | K115: 27598 | N115: 27598 | O115: 0 | P115: 27598 | R115: 0 | S115: 27598 | U115: =IFERROR(VLOOKUP($A115, 'Allocation 2024-25 Final'!$A$7:$S$323,19,FALSE),0) -> 29388 | W115: -1790 | X115: -0.06090921465 | Y115: 216 | Z115: 0 | AB115: 5303810 | AC115: KALAMA
A116: =VLOOKUP(B116,CCDDD!$A$3:$B$319,2,FALSE) -> 10003 | B116: 5303870 | C116: KELLER | D116: 0 | E116: 0 | F116: =VLOOKUP(B116,'25-26 Adjusted Formula counts'!$A$3:$L$320,8,FALSE) -> 108 | G116: =ROUND((F116/$F$5*Assumptions!$C$22*Assumptions!$C$30),0) -> 586 | H116: =VLOOKUP(B116,'25-26 Adjusted Formula counts'!$A$3:$L$320,9,FALSE) -> 25 | I116: =ROUND((H116/$H$5*Assumptions!$C$22*Assumptions!$C$31),0) -> 4985 | K116: 5571 | N116: 5571 | O116: 0 | P116: 5571 | R116: 0 | S116: 5571 | U116: =IFERROR(VLOOKUP($A116, 'Allocation 2024-25 Final'!$A$7:$S$323,19,FALSE),0) -> 6722 | W116: -1151 | X116: -0.171228801 | Y116: 196 | Z116: 0 | AB116: 5303870 | AC116: KELLER
A117: =VLOOKUP(B117,CCDDD!$A$3:$B$319,2,FALSE) -> 08458 | B117: 5300003 | C117: KELSO | D117: 0 | E117: 0 | F117: =VLOOKUP(B117,'25-26 Adjusted Formula counts'!$A$3:$L$320,8,FALSE) -> 5555 | G117: =ROUND((F117/$F$5*Assumptions!$C$22*Assumptions!$C$30),0) -> 30156 | H117: =VLOOKUP(B117,'25-26 Adjusted Formula counts'!$A$3:$L$320,9,FALSE) -> 883 | I117: =ROUND((H117/$H$5*Assumptions!$C$22*Assumptions!$C$31),0) -> 176069 | K117: 206225 | N117: 206225 | O117: 0 | P117: 206225 | R117: 0 | S117: 206225 | U117: =IFERROR(VLOOKUP($A117, 'Allocation 2024-25 Final'!$A$7:$S$323,19,FALSE),0) -> 208334 | W117: -2109 | X117: -0.01012316761 | Y117: 220 | Z117: 0 | AB117: 5300003 | AC117: KELSO
A118: =VLOOKUP(B118,CCDDD!$A$3:$B$319,2,FALSE) -> 03017 | B118: 5303930 | C118: KENNEWICK | D118: 0 | E118: 0 | F118: =VLOOKUP(B118,'25-26 Adjusted Formula counts'!$A$3:$L$320,8,FALSE) -> 20729 | G118: =ROUND((F118/$F$5*Assumptions!$C$22*Assumptions!$C$30),0) -> 112532 | H118: =VLOOKUP(B118,'25-26 Adjusted Formula counts'!$A$3:$L$320,9,FALSE) -> 2957 | I118: =ROUND((H118/$H$5*Assumptions!$C$22*Assumptions!$C$31),0) -> 589622 | K118: 702154 | N118: 702154 | O118: 0 | P118: 702154 | R118: 0 | S118: 702154 | U118: =IFERROR(VLOOKUP($A118, 'Allocation 2024-25 Final'!$A$7:$S$323,19,FALSE),0) -> 662117 | W118: 40037 | X118: 0.06046816499 | Y118: 10 | Z118: 0 | AB118: 5303930 | AC118: KENNEWICK
A119: =VLOOKUP(B119,CCDDD!$A$3:$B$319,2,FALSE) -> 17415 | B119: 5303960 | C119: KENT | D119: 0 | E119: 0 | F119: =VLOOKUP(B119,'25-26 Adjusted Formula counts'!$A$3:$L$320,8,FALSE) -> 30128 | G119: =ROUND((F119/$F$5*Assumptions!$C$22*Assumptions!$C$30),0) -> 163556 | H119: =VLOOKUP(B119,'25-26 Adjusted Formula counts'!$A$3:$L$320,9,FALSE) -> 4397 | I119: =ROUND((H119/$H$5*Assumptions!$C$22*Assumptions!$C$31),0) -> 876756 | K119: 1040312 | N119: 1040312 | O119: 0 | P119: 1040312 | R119: 0 | S119: 1040312 | U119: =IFERROR(VLOOKUP($A119, 'Allocation 2024-25 Final'!$A$7:$S$323,19,FALSE),0) -> 1009455 | W119: 30857 | X119: 0.03056797975 | Y119: 17 | Z119: 0 | AB119: 5303960 | AC119: KENT
A120: =VLOOKUP(B120,CCDDD!$A$3:$B$319,2,FALSE) -> 33212 | B120: 5303990 | C120: KETTLE FALLS | D120: 0 | E120: 0 | F120: =VLOOKUP(B120,'25-26 Adjusted Formula counts'!$A$3:$L$320,8,FALSE) -> 947 | G120: =ROUND((F120/$F$5*Assumptions!$C$22*Assumptions!$C$30),0) -> 5141 | H120: =VLOOKUP(B120,'25-26 Adjusted Formula counts'!$A$3:$L$320,9,FALSE) -> 144 | I120: =ROUND((H120/$H$5*Assumptions!$C$22*Assumptions!$C$31),0) -> 28713 | K120: 33854 | N120: 33854 | O120: 0 | P120: 33854 | R120: 0 | S120: 33854 | U120: =IFERROR(VLOOKUP($A120, 'Allocation 2024-25 Final'!$A$7:$S$323,19,FALSE),0) -> 33697 | W120: 157 | X120: 0.004659168472 | Y120: 149 | Z120: 0 | AB120: 5303990 | AC120: KETTLE FALLS
A121: =VLOOKUP(B121,CCDDD!$A$3:$B$319,2,FALSE) -> 03052 | B121: 5304020 | C121: KIONA-BENTON | D121: 0 | E121: 0 | F121: =VLOOKUP(B121,'25-26 Adjusted Formula counts'!$A$3:$L$320,8,FALSE) -> 1759 | G121: =ROUND((F121/$F$5*Assumptions!$C$22*Assumptions!$C$30),0) -> 9549 | H121: =VLOOKUP(B121,'25-26 Adjusted Formula counts'!$A$3:$L$320,9,FALSE) -> 186 | I121: =ROUND((H121/$H$5*Assumptions!$C$22*Assumptions!$C$31),0) -> 37088 | K121: 46637 | N121: 46637 | O121: 0 | P121: 46637 | R121: 0 | S121: 46637 | U121: =IFERROR(VLOOKUP($A121, 'Allocation 2024-25 Final'!$A$7:$S$323,19,FALSE),0) -> 57271 | W121: -10634 | X121: -0.1856786157 | Y121: 281 | Z121: 0 | AB121: 5304020 | AC121: KIONA-BENTON
A122: =VLOOKUP(B122,CCDDD!$A$3:$B$319,2,FALSE) -> 19403 | B122: 5304050 | C122: KITTITAS | D122: 0 | E122: 0 | F122: =VLOOKUP(B122,'25-26 Adjusted Formula counts'!$A$3:$L$320,8,FALSE) -> 747 | G122: =ROUND((F122/$F$5*Assumptions!$C$22*Assumptions!$C$30),0) -> 4055 | H122: =VLOOKUP(B122,'25-26 Adjusted Formula counts'!$A$3:$L$320,9,FALSE) -> 69 | I122: =ROUND((H122/$H$5*Assumptions!$C$22*Assumptions!$C$31),0) -> 13759 | K122: 17814 | N122: 17814 | O122: 0 | P122: 17814 | R122: 0 | S122: 17814 | U122: =IFERROR(VLOOKUP($A122, 'Allocation 2024-25 Final'!$A$7:$S$323,19,FALSE),0) -> 15311 | W122: 2503 | X122: 0.1634772386 | Y122: 86 | Z122: 0 | AB122: 5304050 | AC122: KITTITAS
A123: =VLOOKUP(B123,CCDDD!$A$3:$B$319,2,FALSE) -> 20402 | B123: 5304080 | C123: KLICKITAT | D123: 0 | E123: 0 | F123: =VLOOKUP(B123,'25-26 Adjusted Formula counts'!$A$3:$L$320,8,FALSE) -> 82 | G123: =ROUND((F123/$F$5*Assumptions!$C$22*Assumptions!$C$30),0) -> 445 | H123: =VLOOKUP(B123,'25-26 Adjusted Formula counts'!$A$3:$L$320,9,FALSE) -> 4 | I123: =ROUND((H123/$H$5*Assumptions!$C$22*Assumptions!$C$31),0) -> 798 | K123: 1243 | N123: 1243 | O123: 0 | P123: 1243 | R123: 0 | S123: 1243 | U123: =IFERROR(VLOOKUP($A123, 'Allocation 2024-25 Final'!$A$7:$S$323,19,FALSE),0) -> 3018 | W123: -1775 | X123: -0.5881378396 | Y123: 215 | Z123: 0 | AB123: 5304080 | AC123: KLICKITAT
A124: =VLOOKUP(B124,CCDDD!$A$3:$B$319,2,FALSE) -> 06101 | B124: 5304170 | C124: LA CENTER | D124: 0 | E124: 0 | F124: =VLOOKUP(B124,'25-26 Adjusted Formula counts'!$A$3:$L$320,8,FALSE) -> 1941 | G124: =ROUND((F124/$F$5*Assumptions!$C$22*Assumptions!$C$30),0) -> 10537 | H124: =VLOOKUP(B124,'25-26 Adjusted Formula counts'!$A$3:$L$320,9,FALSE) -> 80 | I124: =ROUND((H124/$H$5*Assumptions!$C$22*Assumptions!$C$31),0) -> 15952 | K124: 26489 | N124: 26489 | O124: 0 | P124: 26489 | R124: 0 | S124: 26489 | U124: =IFERROR(VLOOKUP($A124, 'Allocation 2024-25 Final'!$A$7:$S$323,19,FALSE),0) -> 29891 | W124: -3402 | X124: -0.1138135225 | Y124: 235 | Z124: 0 | AB124: 5304170 | AC124: LA CENTER
A125: =VLOOKUP(B125,CCDDD!$A$3:$B$319,2,FALSE) -> 29311 | B125: 5304110 | C125: LA CONNER | D125: 0 | E125: 0 | F125: =VLOOKUP(B125,'25-26 Adjusted Formula counts'!$A$3:$L$320,8,FALSE) -> 586 | G125: =ROUND((F125/$F$5*Assumptions!$C$22*Assumptions!$C$30),0) -> 3181 | H125: =VLOOKUP(B125,'25-26 Adjusted Formula counts'!$A$3:$L$320,9,FALSE) -> 57 | I125: =ROUND((H125/$H$5*Assumptions!$C$22*Assumptions!$C$31),0) -> 11366 | K125: 14547 | N125: 14547 | O125: 0 | P125: 14547 | R125: 0 | S125: 14547 | U125: =IFERROR(VLOOKUP($A125, 'Allocation 2024-25 Final'!$A$7:$S$323,19,FALSE),0) -> 21313 | W125: -6766 | X125: -0.3174588279 | Y125: 269 | Z125: 0 | AB125: 5304110 | AC125: LA CONNER
A126: =VLOOKUP(B126,CCDDD!$A$3:$B$319,2,FALSE) -> 38126 | B126: 5304150 | C126: LACROSSE | D126: 0 | E126: 0 | F126: =VLOOKUP(B126,'25-26 Adjusted Formula counts'!$A$3:$L$320,8,FALSE) -> 90 | G126: =ROUND((F126/$F$5*Assumptions!$C$22*Assumptions!$C$30),0) -> 489 | H126: =VLOOKUP(B126,'25-26 Adjusted Formula counts'!$A$3:$L$320,9,FALSE) -> 17 | I126: =ROUND((H126/$H$5*Assumptions!$C$22*Assumptions!$C$31),0) -> 3390 | K126: 3879 | N126: 3879 | O126: 0 | P126: 3879 | R126: 0 | S126: 3879 | U126: =IFERROR(VLOOKUP($A126, 'Allocation 2024-25 Final'!$A$7:$S$323,19,FALSE),0) -> 4050 | W126: -171 | X126: -0.04222222222 | Y126: 156 | Z126: 0 | AB126: 5304150 | AC126: LACROSSE
A127: =VLOOKUP(B127,CCDDD!$A$3:$B$319,2,FALSE) -> 04129 | B127: 5301200 | C127: LAKE CHELAN | D127: 0 | E127: 0 | F127: =VLOOKUP(B127,'25-26 Adjusted Formula counts'!$A$3:$L$320,8,FALSE) -> 1245 | G127: =ROUND((F127/$F$5*Assumptions!$C$22*Assumptions!$C$30),0) -> 6759 | H127: =VLOOKUP(B127,'25-26 Adjusted Formula counts'!$A$3:$L$320,9,FALSE) -> 167 | I127: =ROUND((H127/$H$5*Assumptions!$C$22*Assumptions!$C$31),0) -> 33300 | K127: 40059 | N127: 40059 | O127: 0 | P127: 40059 | R127: 0 | S127: 40059 | U127: =IFERROR(VLOOKUP($A127, 'Allocation 2024-25 Final'!$A$7:$S$323,19,FALSE),0) -> 39095 | W127: 964 | X127: 0.02465788464 | Y127: 120 | Z127: 0 | AB127: 5301200 | AC127: LAKE CHELAN
A128: =VLOOKUP(B128,CCDDD!$A$3:$B$319,2,FALSE) -> 14097 | B128: 5307050 | C128: QUINAULT | D128: 0 | E128: 0 | F128: =VLOOKUP(B128,'25-26 Adjusted Formula counts'!$A$3:$L$320,8,FALSE) -> 175 | G128: =ROUND((F128/$F$5*Assumptions!$C$22*Assumptions!$C$30),0) -> 950 | H128: =VLOOKUP(B128,'25-26 Adjusted Formula counts'!$A$3:$L$320,9,FALSE) -> 29 | I128: =ROUND((H128/$H$5*Assumptions!$C$22*Assumptions!$C$31),0) -> 5783 | K128: 6733 | N128: 6733 | O128: 0 | P128: 6733 | R128: 0 | S128: 6733 | U128: =IFERROR(VLOOKUP($A128, 'Allocation 2024-25 Final'!$A$7:$S$323,19,FALSE),0) -> 8896 | W128: -2163 | X128: -0.2431429856 | Y128: 221 | Z128: 0 | AB128: 5307050 | AC128: QUINAULT
A129: =VLOOKUP(B129,CCDDD!$A$3:$B$319,2,FALSE) -> 31004 | B129: 5304200 | C129: LAKE STEVENS | D129: 0 | E129: 0 | F129: =VLOOKUP(B129,'25-26 Adjusted Formula counts'!$A$3:$L$320,8,FALSE) -> 10332 | G129: =ROUND((F129/$F$5*Assumptions!$C$22*Assumptions!$C$30),0) -> 56089 | H129: =VLOOKUP(B129,'25-26 Adjusted Formula counts'!$A$3:$L$320,9,FALSE) -> 667 | I129: =ROUND((H129/$H$5*Assumptions!$C$22*Assumptions!$C$31),0) -> 132999 | K129: 189088 | N129: 189088 | O129: 0 | P129: 189088 | R129: 0 | S129: 189088 | U129: =IFERROR(VLOOKUP($A129, 'Allocation 2024-25 Final'!$A$7:$S$323,19,FALSE),0) -> 168163 | W129: 20925 | X129: 0.1244328419 | Y129: 25 | Z129: 0 | AB129: 5304200 | AC129: LAKE STEVENS
A130: =VLOOKUP(B130,CCDDD!$A$3:$B$319,2,FALSE) -> 17414 | B130: 5304230 | C130: LAKE WASHINGTON | D130: 0 | E130: 0 | F130: =VLOOKUP(B130,'25-26 Adjusted Formula counts'!$A$3:$L$320,8,FALSE) -> 35771 | G130: =ROUND((F130/$F$5*Assumptions!$C$22*Assumptions!$C$30),0) -> 194190 | H130: =VLOOKUP(B130,'25-26 Adjusted Formula counts'!$A$3:$L$320,9,FALSE) -> 1440 | I130: =ROUND((H130/$H$5*Assumptions!$C$22*Assumptions!$C$31),0) -> 287134 | K130: 481324 | N130: 481324 | O130: 0 | P130: 481324 | R130: 0 | S130: 481324 | U130: =IFERROR(VLOOKUP($A130, 'Allocation 2024-25 Final'!$A$7:$S$323,19,FALSE),0) -> 468695 | W130: 12629 | X130: 0.02694502822 | Y130: 39 | Z130: 0 | AB130: 5304230 | AC130: LAKE WASHINGTON
A131: =VLOOKUP(B131,CCDDD!$A$3:$B$319,2,FALSE) -> 31306 | B131: 5304260 | C131: LAKEWOOD | D131: 0 | E131: 0 | F131: =VLOOKUP(B131,'25-26 Adjusted Formula counts'!$A$3:$L$320,8,FALSE) -> 2662 | G131: =ROUND((F131/$F$5*Assumptions!$C$22*Assumptions!$C$30),0) -> 14451 | H131: =VLOOKUP(B131,'25-26 Adjusted Formula counts'!$A$3:$L$320,9,FALSE) -> 333 | I131: =ROUND((H131/$H$5*Assumptions!$C$22*Assumptions!$C$31),0) -> 66400 | K131: 80851 | N131: 80851 | O131: 0 | P131: 80851 | R131: 0 | S131: 80851 | U131: =IFERROR(VLOOKUP($A131, 'Allocation 2024-25 Final'!$A$7:$S$323,19,FALSE),0) -> 84086 | W131: -3235 | X131: -0.03847251623 | Y131: 231 | Z131: 0 | AB131: 5304260 | AC131: LAKEWOOD
A132: =VLOOKUP(B132,CCDDD!$A$3:$B$319,2,FALSE) -> 38264 | B132: 5304290 | C132: LAMONT | D132: 0 | E132: 0 | F132: =VLOOKUP(B132,'25-26 Adjusted Formula counts'!$A$3:$L$320,8,FALSE) -> 28 | G132: =ROUND((F132/$F$5*Assumptions!$C$22*Assumptions!$C$30),0) -> 152 | H132: =VLOOKUP(B132,'25-26 Adjusted Formula counts'!$A$3:$L$320,9,FALSE) -> 10 | I132: =ROUND((H132/$H$5*Assumptions!$C$22*Assumptions!$C$31),0) -> 1994 | K132: 2146 | N132: 2146 | O132: 0 | P132: 2146 | R132: 0 | S132: 2146 | U132: =IFERROR(VLOOKUP($A132, 'Allocation 2024-25 Final'!$A$7:$S$323,19,FALSE),0) -> 1936 | W132: 210 | X132: 0.1084710744 | Y132: 142 | Z132: 0 | AB132: 5304290 | AC132: LAMONT
A133: =VLOOKUP(B133,CCDDD!$A$3:$B$319,2,FALSE) -> 32362 | B133: 5304380 | C133: LIBERTY | D133: 0 | E133: 0 | F133: =VLOOKUP(B133,'25-26 Adjusted Formula counts'!$A$3:$L$320,8,FALSE) -> 833 | G133: =ROUND((F133/$F$5*Assumptions!$C$22*Assumptions!$C$30),0) -> 4522 | H133: =VLOOKUP(B133,'25-26 Adjusted Formula counts'!$A$3:$L$320,9,FALSE) -> 35 | I133: =ROUND((H133/$H$5*Assumptions!$C$22*Assumptions!$C$31),0) -> 6979 | K133: 11501 | N133: 11501 | O133: 0 | P133: 11501 | R133: 0 | S133: 11501 | U133: =IFERROR(VLOOKUP($A133, 'Allocation 2024-25 Final'!$A$7:$S$323,19,FALSE),0) -> 19780 | W133: -8279 | X133: -0.418554095 | Y133: 272 | Z133: 0 | AB133: 5304380 | AC133: LIBERTY
A134: =VLOOKUP(B134,CCDDD!$A$3:$B$319,2,FALSE) -> 01158 | B134: 5304410 | C134: LIND | D134: 0 | E134: 0 | F134: =VLOOKUP(B134,'25-26 Adjusted Formula counts'!$A$3:$L$320,8,FALSE) -> 301 | G134: =ROUND((F134/$F$5*Assumptions!$C$22*Assumptions!$C$30),0) -> 1634 | H134: =VLOOKUP(B134,'25-26 Adjusted Formula counts'!$A$3:$L$320,9,FALSE) -> 50 | I134: =ROUND((H134/$H$5*Assumptions!$C$22*Assumptions!$C$31),0) -> 9970 | K134: 11604 | N134: 11604 | O134: 0 | P134: 11604 | R134: 0 | S134: 11604 | U134: =IFERROR(VLOOKUP($A134, 'Allocation 2024-25 Final'!$A$7:$S$323,19,FALSE),0) -> 17769 | W134: -6165 | X134: -0.3469525578 | Y134: 263 | Z134: 0 | AB134: 5304410 | AC134: LIND
A135: =VLOOKUP(B135,CCDDD!$A$3:$B$319,2,FALSE) -> 08122 | B135: 5304470 | C135: LONGVIEW | D135: 0 | E135: 0 | F135: =VLOOKUP(B135,'25-26 Adjusted Formula counts'!$A$3:$L$320,8,FALSE) -> 7321 | G135: =ROUND((F135/$F$5*Assumptions!$C$22*Assumptions!$C$30),0) -> 39744 | H135: =VLOOKUP(B135,'25-26 Adjusted Formula counts'!$A$3:$L$320,9,FALSE) -> 1332 | I135: =ROUND((H135/$H$5*Assumptions!$C$22*Assumptions!$C$31),0) -> 265599 | K135: =ROUNDDOWN(+I135+G135+E135+D135+J135,0) -> 305343 | N135: =K135 -> 305343 | O135: =-ROUND(N135/$N$5*$M$5,0) -> 0 | P135: =+K135+O135+M135 -> 305343 | R135: =-1*(P135*Q135) -> 0 | S135: =+P135+R135 -> 305343 | U135: =IFERROR(VLOOKUP($A135, 'Allocation 2024-25 Final'!$A$7:$S$323,19,FALSE),0) -> 300712 | W135: =+S135-U135 -> 4631 | X135: =IF(U135>0,W135/U135,0) -> 0.01540011706 | Y135: =RANK(W135,$W$7:$W$320,0) -> 63 | Z135: =(SUM(D135:E135)/S135) -> 0 | AB135: =+B135 -> 5304470 | AC135: LONGVIEW
A136: =VLOOKUP(B136,CCDDD!$A$3:$B$319,2,FALSE) -> 33183 | B136: 5304500 | C136: LOON LAKE | D136: 0 | E136: 0 | F136: =VLOOKUP(B136,'25-26 Adjusted Formula counts'!$A$3:$L$320,8,FALSE) -> 257 | G136: =ROUND((F136/$F$5*Assumptions!$C$22*Assumptions!$C$30),0) -> 1395 | H136: =VLOOKUP(B136,'25-26 Adjusted Formula counts'!$A$3:$L$320,9,FALSE) -> 52 | I136: =ROUND((H136/$H$5*Assumptions!$C$22*Assumptions!$C$31),0) -> 10369 | K136: 11764 | N136: 11764 | O136: 0 | P136: 11764 | R136: 0 | S136: 11764 | U136: =IFERROR(VLOOKUP($A136, 'Allocation 2024-25 Final'!$A$7:$S$323,19,FALSE),0) -> 11323 | W136: 441 | X136: 0.03894727546 | Y136: 132 | Z136: 0 | AB136: 5304500 | AC136: LOON LAKE
A137: =VLOOKUP(B137,CCDDD!$A$3:$B$319,2,FALSE) -> 28144 | B137: 5304530 | C137: LOPEZ | D137: 0 | E137: 0 | F137: =VLOOKUP(B137,'25-26 Adjusted Formula counts'!$A$3:$L$320,8,FALSE) -> 280 | G137: =ROUND((F137/$F$5*Assumptions!$C$22*Assumptions!$C$30),0) -> 1520 | H137: =VLOOKUP(B137,'25-26 Adjusted Formula counts'!$A$3:$L$320,9,FALSE) -> 48 | I137: =ROUND((H137/$H$5*Assumptions!$C$22*Assumptions!$C$31),0) -> 9571 | K137: 11091 | N137: 11091 | O137: 0 | P137: 11091 | R137: 0 | S137: 11091 | U137: =IFERROR(VLOOKUP($A137, 'Allocation 2024-25 Final'!$A$7:$S$323,19,FALSE),0) -> 10893 | W137: 198 | X137: 0.0181768108 | Y137: 146 | Z137: 0 | AB137: 5304530 | AC137: LOPEZ
A138: =VLOOKUP(B138,CCDDD!$A$3:$B$319,2,FALSE) -> 32903 | B138: 5304550 | C138: LUMEN CHARTER | D138: 0 | E138: 0 | F138: =VLOOKUP(B138,'25-26 Adjusted Formula counts'!$A$3:$L$320,8,FALSE) -> 38.42805968 | G138: =ROUND((F138/$F$5*Assumptions!$C$22*Assumptions!$C$30),0) -> 209 | H138: =VLOOKUP(B138,'25-26 Adjusted Formula counts'!$A$3:$L$320,9,FALSE) -> 7.805639011 | I138: =ROUND((H138/$H$5*Assumptions!$C$22*Assumptions!$C$31),0) -> 1556 | K138: 1765 | N138: 1765 | O138: 0 | P138: 1765 | R138: 0 | S138: 1765 | U138: =IFERROR(VLOOKUP($A138, 'Allocation 2024-25 Final'!$A$7:$S$323,19,FALSE),0) -> 1931 | W138: -166 | X138: -0.08596582082 | Y138: 155 | Z138: 0 | AB138: 5304550 | AC138: LUMEN CHARTER
A139: =VLOOKUP(B139,CCDDD!$A$3:$B$319,2,FALSE) -> 20406 | B139: 5304590 | C139: LYLE | D139: 0 | E139: 0 | F139: =VLOOKUP(B139,'25-26 Adjusted Formula counts'!$A$3:$L$320,8,FALSE) -> 418 | G139: =ROUND((F139/$F$5*Assumptions!$C$22*Assumptions!$C$30),0) -> 2269 | H139: =VLOOKUP(B139,'25-26 Adjusted Formula counts'!$A$3:$L$320,9,FALSE) -> 90 | I139: =ROUND((H139/$H$5*Assumptions!$C$22*Assumptions!$C$31),0) -> 17946 | K139: 20215 | N139: 20215 | O139: 0 | P139: 20215 | R139: 0 | S139: 20215 | U139: =IFERROR(VLOOKUP($A139, 'Allocation 2024-25 Final'!$A$7:$S$323,19,FALSE),0) -> 16535 | W139: 3680 | X139: 0.2225582099 | Y139: 70 | Z139: 0 | AB139: 5304590 | AC139: LYLE
A140: =VLOOKUP(B140,CCDDD!$A$3:$B$319,2,FALSE) -> 37504 | B140: 5304620 | C140: LYNDEN | D140: 0 | E140: 0 | F140: =VLOOKUP(B140,'25-26 Adjusted Formula counts'!$A$3:$L$320,8,FALSE) -> 4363 | G140: =ROUND((F140/$F$5*Assumptions!$C$22*Assumptions!$C$30),0) -> 23685 | H140: =VLOOKUP(B140,'25-26 Adjusted Formula counts'!$A$3:$L$320,9,FALSE) -> 346 | I140: =ROUND((H140/$H$5*Assumptions!$C$22*Assumptions!$C$31),0) -> 68992 | K140: 92677 | N140: 92677 | O140: 0 | P140: 92677 | R140: 0 | S140: 92677 | U140: =IFERROR(VLOOKUP($A140, 'Allocation 2024-25 Final'!$A$7:$S$323,19,FALSE),0) -> 83764 | W140: 8913 | X140: 0.1064060933 | Y140: 45 | Z140: 0 | AB140: 5304620 | AC140: LYNDEN
A141: =VLOOKUP(B141,CCDDD!$A$3:$B$319,2,FALSE) -> 39120 | B141: 5304650 | C141: MABTON | D141: 0 | E141: 0 | F141: =VLOOKUP(B141,'25-26 Adjusted Formula counts'!$A$3:$L$320,8,FALSE) -> 770 | G141: =ROUND((F141/$F$5*Assumptions!$C$22*Assumptions!$C$30),0) -> 4180 | H141: =VLOOKUP(B141,'25-26 Adjusted Formula counts'!$A$3:$L$320,9,FALSE) -> 120 | I141: =ROUND((H141/$H$5*Assumptions!$C$22*Assumptions!$C$31),0) -> 23928 | K141: 28108 | N141: 28108 | O141: 0 | P141: 28108 | R141: 0 | S141: 28108 | U141: =IFERROR(VLOOKUP($A141, 'Allocation 2024-25 Final'!$A$7:$S$323,19,FALSE),0) -> 42149 | W141: -14041 | X141: -0.3331277136 | Y141: 290 | Z141: 0 | AB141: 5304650 | AC141: MABTON
A142: =VLOOKUP(B142,CCDDD!$A$3:$B$319,2,FALSE) -> 09207 | B142: 5304710 | C142: MANSFIELD | D142: 0 | E142: 0 | F142: =VLOOKUP(B142,'25-26 Adjusted Formula counts'!$A$3:$L$320,8,FALSE) -> 86 | G142: =ROUND((F142/$F$5*Assumptions!$C$22*Assumptions!$C$30),0) -> 467 | H142: =VLOOKUP(B142,'25-26 Adjusted Formula counts'!$A$3:$L$320,9,FALSE) -> 11 | I142: =ROUND((H142/$H$5*Assumptions!$C$22*Assumptions!$C$31),0) -> 2193 | K142: 2660 | N142: 2660 | O142: 0 | P142: 2660 | R142: 0 | S142: 2660 | U142: =IFERROR(VLOOKUP($A142, 'Allocation 2024-25 Final'!$A$7:$S$323,19,FALSE),0) -> 3642 | W142: -982 | X142: -0.2696320703 | Y142: 190 | Z142: 0 | AB142: 5304710 | AC142: MANSFIELD
A143: =VLOOKUP(B143,CCDDD!$A$3:$B$319,2,FALSE) -> 04019 | B143: 5304740 | C143: MANSON | D143: 0 | E143: 0 | F143: =VLOOKUP(B143,'25-26 Adjusted Formula counts'!$A$3:$L$320,8,FALSE) -> 614 | G143: =ROUND((F143/$F$5*Assumptions!$C$22*Assumptions!$C$30),0) -> 3333 | H143: =VLOOKUP(B143,'25-26 Adjusted Formula counts'!$A$3:$L$320,9,FALSE) -> 103 | I143: =ROUND((H143/$H$5*Assumptions!$C$22*Assumptions!$C$31),0) -> 20538 | K143: 23871 | N143: 23871 | O143: 0 | P143: 23871 | R143: 0 | S143: 23871 | U143: =IFERROR(VLOOKUP($A143, 'Allocation 2024-25 Final'!$A$7:$S$323,19,FALSE),0) -> 27157 | W143: -3286 | X143: -0.1210001105 | Y143: 232 | Z143: 0 | AB143: 5304740 | AC143: MANSON
A144: =VLOOKUP(B144,CCDDD!$A$3:$B$319,2,FALSE) -> 23311 | B144: 5304800 | C144: MARY M KNIGHT | D144: 0 | E144: 0 | F144: =VLOOKUP(B144,'25-26 Adjusted Formula counts'!$A$3:$L$320,8,FALSE) -> 208 | G144: =ROUND((F144/$F$5*Assumptions!$C$22*Assumptions!$C$30),0) -> 1129 | H144: =VLOOKUP(B144,'25-26 Adjusted Formula counts'!$A$3:$L$320,9,FALSE) -> 25 | I144: =ROUND((H144/$H$5*Assumptions!$C$22*Assumptions!$C$31),0) -> 4985 | K144: 6114 | N144: 6114 | O144: 0 | P144: 6114 | R144: 0 | S144: 6114 | U144: =IFERROR(VLOOKUP($A144, 'Allocation 2024-25 Final'!$A$7:$S$323,19,FALSE),0) -> 7676 | W144: -1562 | X144: -0.2034914018 | Y144: 213 | Z144: 0 | AB144: 5304800 | AC144: MARY M KNIGHT
A145: =VLOOKUP(B145,CCDDD!$A$3:$B$319,2,FALSE) -> 33207 | B145: 5304830 | C145: MARY WALKER | D145: 0 | E145: 0 | F145: =VLOOKUP(B145,'25-26 Adjusted Formula counts'!$A$3:$L$320,8,FALSE) -> 644 | G145: =ROUND((F145/$F$5*Assumptions!$C$22*Assumptions!$C$30),0) -> 3496 | H145: =VLOOKUP(B145,'25-26 Adjusted Formula counts'!$A$3:$L$320,9,FALSE) -> 116 | I145: =ROUND((H145/$H$5*Assumptions!$C$22*Assumptions!$C$31),0) -> 23130 | K145: 26626 | N145: 26626 | O145: 0 | P145: 26626 | R145: 0 | S145: 26626 | U145: =IFERROR(VLOOKUP($A145, 'Allocation 2024-25 Final'!$A$7:$S$323,19,FALSE),0) -> 32496 | W145: -5870 | X145: -0.1806376169 | Y145: 258 | Z145: 0 | AB145: 5304830 | AC145: MARY WALKER
A146: =VLOOKUP(B146,CCDDD!$A$3:$B$319,2,FALSE) -> 31025 | B146: 5304860 | C146: MARYSVILLE | D146: 0 | E146: 0 | F146: =VLOOKUP(B146,'25-26 Adjusted Formula counts'!$A$3:$L$320,8,FALSE) -> 12636 | G146: =ROUND((F146/$F$5*Assumptions!$C$22*Assumptions!$C$30),0) -> 68597 | H146: =VLOOKUP(B146,'25-26 Adjusted Formula counts'!$A$3:$L$320,9,FALSE) -> 1407 | I146: =ROUND((H146/$H$5*Assumptions!$C$22*Assumptions!$C$31),0) -> 280554 | K146: 349151 | N146: 349151 | O146: 0 | P146: 349151 | R146: 0 | S146: 349151 | U146: =IFERROR(VLOOKUP($A146, 'Allocation 2024-25 Final'!$A$7:$S$323,19,FALSE),0) -> 359918 | W146: -10767 | X146: -0.02991514734 | Y146: 283 | Z146: 0 | AB146: 5304860 | AC146: MARYSVILLE
A147: =VLOOKUP(B147,CCDDD!$A$3:$B$319,2,FALSE) -> 14065 | B147: 5304890 | C147: MCCLEARY | D147: 0 | E147: 0 | F147: =VLOOKUP(B147,'25-26 Adjusted Formula counts'!$A$3:$L$320,8,FALSE) -> 573 | G147: =ROUND((F147/$F$5*Assumptions!$C$22*Assumptions!$C$30),0) -> 3111 | H147: =VLOOKUP(B147,'25-26 Adjusted Formula counts'!$A$3:$L$320,9,FALSE) -> 44 | I147: =ROUND((H147/$H$5*Assumptions!$C$22*Assumptions!$C$31),0) -> 8774 | K147: 11885 | N147: 11885 | O147: 0 | P147: 11885 | R147: 0 | S147: 11885 | U147: =IFERROR(VLOOKUP($A147, 'Allocation 2024-25 Final'!$A$7:$S$323,19,FALSE),0) -> 17410 | W147: -5525 | X147: -0.3173463527 | Y147: 255 | Z147: 0 | AB147: 5304890 | AC147: MCCLEARY
A148: =VLOOKUP(B148,CCDDD!$A$3:$B$319,2,FALSE) -> 32354 | B148: 5304920 | C148: MEAD | D148: 0 | E148: 0 | F148: =VLOOKUP(B148,'25-26 Adjusted Formula counts'!$A$3:$L$320,8,FALSE) -> 12104 | G148: =ROUND((F148/$F$5*Assumptions!$C$22*Assumptions!$C$30),0) -> 65709 | H148: =VLOOKUP(B148,'25-26 Adjusted Formula counts'!$A$3:$L$320,9,FALSE) -> 868 | I148: =ROUND((H148/$H$5*Assumptions!$C$22*Assumptions!$C$31),0) -> 173078 | K148: 238787 | N148: 238787 | O148: 0 | P148: 238787 | R148: 0 | S148: 238787 | U148: =IFERROR(VLOOKUP($A148, 'Allocation 2024-25 Final'!$A$7:$S$323,19,FALSE),0) -> 263778 | W148: -24991 | X148: -0.09474254866 | Y148: 304 | Z148: 0 | AB148: 5304920 | AC148: MEAD
A149: =VLOOKUP(B149,CCDDD!$A$3:$B$319,2,FALSE) -> 32326 | B149: 5304950 | C149: MEDICAL LAKE | D149: 0 | E149: 0 | F149: =VLOOKUP(B149,'25-26 Adjusted Formula counts'!$A$3:$L$320,8,FALSE) -> 1814 | G149: =ROUND((F149/$F$5*Assumptions!$C$22*Assumptions!$C$30),0) -> 9848 | H149: =VLOOKUP(B149,'25-26 Adjusted Formula counts'!$A$3:$L$320,9,FALSE) -> 168 | I149: =ROUND((H149/$H$5*Assumptions!$C$22*Assumptions!$C$31),0) -> 33499 | K149: 43347 | N149: 43347 | O149: 0 | P149: 43347 | R149: 0 | S149: 43347 | U149: =IFERROR(VLOOKUP($A149, 'Allocation 2024-25 Final'!$A$7:$S$323,19,FALSE),0) -> 51096 | W149: -7749 | X149: -0.1516557069 | Y149: 271 | Z149: 0 | AB149: 5304950 | AC149: MEDICAL LAKE
A150: =VLOOKUP(B150,CCDDD!$A$3:$B$319,2,FALSE) -> 17400 | B150: 5304980 | C150: MERCER ISLAND | D150: 0 | E150: 0 | F150: =VLOOKUP(B150,'25-26 Adjusted Formula counts'!$A$3:$L$320,8,FALSE) -> 4900 | G150: =ROUND((F150/$F$5*Assumptions!$C$22*Assumptions!$C$30),0) -> 26601 | H150: =VLOOKUP(B150,'25-26 Adjusted Formula counts'!$A$3:$L$320,9,FALSE) -> 150 | I150: =ROUND((H150/$H$5*Assumptions!$C$22*Assumptions!$C$31),0) -> 29910 | K150: 56511 | N150: 56511 | O150: 0 | P150: 56511 | R150: 0 | S150: 56511 | U150: =IFERROR(VLOOKUP($A150, 'Allocation 2024-25 Final'!$A$7:$S$323,19,FALSE),0) -> 49804 | W150: 6707 | X150: 0.1346678982 | Y150: 51 | Z150: 0 | AB150: 5304980 | AC150: MERCER ISLAND
A151: =VLOOKUP(B151,CCDDD!$A$3:$B$319,2,FALSE) -> 37505 | B151: 5305010 | C151: MERIDIAN | D151: 0 | E151: 0 | F151: =VLOOKUP(B151,'25-26 Adjusted Formula counts'!$A$3:$L$320,8,FALSE) -> 1709 | G151: =ROUND((F151/$F$5*Assumptions!$C$22*Assumptions!$C$30),0) -> 9278 | H151: =VLOOKUP(B151,'25-26 Adjusted Formula counts'!$A$3:$L$320,9,FALSE) -> 213 | I151: =ROUND((H151/$H$5*Assumptions!$C$22*Assumptions!$C$31),0) -> 42472 | K151: 51750 | N151: 51750 | O151: 0 | P151: 51750 | R151: 0 | S151: 51750 | U151: =IFERROR(VLOOKUP($A151, 'Allocation 2024-25 Final'!$A$7:$S$323,19,FALSE),0) -> 49782 | W151: 1968 | X151: 0.03953236109 | Y151: 99 | Z151: 0 | AB151: 5305010 | AC151: MERIDIAN
A152: =VLOOKUP(B152,CCDDD!$A$3:$B$319,2,FALSE) -> 24350 | B152: 5305020 | C152: METHOW VALLEY | D152: 0 | E152: 0 | F152: =VLOOKUP(B152,'25-26 Adjusted Formula counts'!$A$3:$L$320,8,FALSE) -> 837 | G152: =ROUND((F152/$F$5*Assumptions!$C$22*Assumptions!$C$30),0) -> 4544 | H152: =VLOOKUP(B152,'25-26 Adjusted Formula counts'!$A$3:$L$320,9,FALSE) -> 129 | I152: =ROUND((H152/$H$5*Assumptions!$C$22*Assumptions!$C$31),0) -> 25722 | K152: 30266 | N152: 30266 | O152: 0 | P152: 30266 | R152: 0 | S152: 30266 | U152: =IFERROR(VLOOKUP($A152, 'Allocation 2024-25 Final'!$A$7:$S$323,19,FALSE),0) -> 18561 | W152: 11705 | X152: 0.63062335 | Y152: 42 | Z152: 0 | AB152: 5305020 | AC152: METHOW VALLEY
A153: =VLOOKUP(B153,CCDDD!$A$3:$B$319,2,FALSE) -> 30031 | B153: 5305040 | C153: MILL A | D153: 0 | E153: 0 | F153: =VLOOKUP(B153,'25-26 Adjusted Formula counts'!$A$3:$L$320,8,FALSE) -> 73 | G153: =ROUND((F153/$F$5*Assumptions!$C$22*Assumptions!$C$30),0) -> 396 | H153: =VLOOKUP(B153,'25-26 Adjusted Formula counts'!$A$3:$L$320,9,FALSE) -> 13 | I153: =ROUND((H153/$H$5*Assumptions!$C$22*Assumptions!$C$31),0) -> 2592 | K153: 2988 | N153: 2988 | O153: 0 | P153: 2988 | R153: 0 | S153: 2988 | U153: =IFERROR(VLOOKUP($A153, 'Allocation 2024-25 Final'!$A$7:$S$323,19,FALSE),0) -> 3979 | W153: -991 | X153: -0.2490575521 | Y153: 192 | Z153: 0 | AB153: 5305040 | AC153: MILL A
A154: =VLOOKUP(B154,CCDDD!$A$3:$B$319,2,FALSE) -> 31103 | B154: 5305130 | C154: MONROE | D154: 0 | E154: 0 | F154: =VLOOKUP(B154,'25-26 Adjusted Formula counts'!$A$3:$L$320,8,FALSE) -> 6696 | G154: =ROUND((F154/$F$5*Assumptions!$C$22*Assumptions!$C$30),0) -> 36351 | H154: =VLOOKUP(B154,'25-26 Adjusted Formula counts'!$A$3:$L$320,9,FALSE) -> 453 | I154: =ROUND((H154/$H$5*Assumptions!$C$22*Assumptions!$C$31),0) -> 90328 | K154: 126679 | N154: 126679 | O154: 0 | P154: 126679 | R154: 0 | S154: 126679 | U154: =IFERROR(VLOOKUP($A154, 'Allocation 2024-25 Final'!$A$7:$S$323,19,FALSE),0) -> 121420 | W154: 5259 | X154: 0.04331246912 | Y154: 59 | Z154: 0 | AB154: 5305130 | AC154: MONROE
A155: =VLOOKUP(B155,CCDDD!$A$3:$B$319,2,FALSE) -> 14066 | B155: 5305160 | C155: MONTESANO | D155: 0 | E155: 0 | F155: =VLOOKUP(B155,'25-26 Adjusted Formula counts'!$A$3:$L$320,8,FALSE) -> 1337 | G155: =ROUND((F155/$F$5*Assumptions!$C$22*Assumptions!$C$30),0) -> 7258 | H155: =VLOOKUP(B155,'25-26 Adjusted Formula counts'!$A$3:$L$320,9,FALSE) -> 120 | I155: =ROUND((H155/$H$5*Assumptions!$C$22*Assumptions!$C$31),0) -> 23928 | K155: 31186 | N155: 31186 | O155: 0 | P155: 31186 | R155: 0 | S155: 31186 | U155: =IFERROR(VLOOKUP($A155, 'Allocation 2024-25 Final'!$A$7:$S$323,19,FALSE),0) -> 48177 | W155: -16991 | X155: -0.3526786641 | Y155: 296 | Z155: 0 | AB155: 5305160 | AC155: MONTESANO
A156: =VLOOKUP(B156,CCDDD!$A$3:$B$319,2,FALSE) -> 21214 | B156: 5305190 | C156: MORTON | D156: 0 | E156: 0 | F156: =VLOOKUP(B156,'25-26 Adjusted Formula counts'!$A$3:$L$320,8,FALSE) -> 337 | G156: =ROUND((F156/$F$5*Assumptions!$C$22*Assumptions!$C$30),0) -> 1829 | H156: =VLOOKUP(B156,'25-26 Adjusted Formula counts'!$A$3:$L$320,9,FALSE) -> 42 | I156: =ROUND((H156/$H$5*Assumptions!$C$22*Assumptions!$C$31),0) -> 8375 | K156: 10204 | N156: 10204 | O156: 0 | P156: 10204 | R156: 0 | S156: 10204 | U156: =IFERROR(VLOOKUP($A156, 'Allocation 2024-25 Final'!$A$7:$S$323,19,FALSE),0) -> 10550 | W156: -346 | X156: -0.03279620853 | Y156: 165 | Z156: 0 | AB156: 5305190 | AC156: MORTON
A157: =VLOOKUP(B157,CCDDD!$A$3:$B$319,2,FALSE) -> 13161 | B157: 5305220 | C157: MOSES LAKE | D157: 0 | E157: 0 | F157: =VLOOKUP(B157,'25-26 Adjusted Formula counts'!$A$3:$L$320,8,FALSE) -> 9768 | G157: =ROUND((F157/$F$5*Assumptions!$C$22*Assumptions!$C$30),0) -> 53028 | H157: =VLOOKUP(B157,'25-26 Adjusted Formula counts'!$A$3:$L$320,9,FALSE) -> 1580 | I157: =ROUND((H157/$H$5*Assumptions!$C$22*Assumptions!$C$31),0) -> 315050 | K157: 368078 | N157: 368078 | O157: 0 | P157: 368078 | R157: 0 | S157: 368078 | U157: =IFERROR(VLOOKUP($A157, 'Allocation 2024-25 Final'!$A$7:$S$323,19,FALSE),0) -> 319407 | W157: 48671 | X157: 0.1523792528 | Y157: 8 | Z157: 0 | AB157: 5305220 | AC157: MOSES LAKE
A158: =VLOOKUP(B158,CCDDD!$A$3:$B$319,2,FALSE) -> 21206 | B158: 5305250 | C158: MOSSYROCK | D158: 0 | E158: 0 | F158: =VLOOKUP(B158,'25-26 Adjusted Formula counts'!$A$3:$L$320,8,FALSE) -> 708 | G158: =ROUND((F158/$F$5*Assumptions!$C$22*Assumptions!$C$30),0) -> 3844 | H158: =VLOOKUP(B158,'25-26 Adjusted Formula counts'!$A$3:$L$320,9,FALSE) -> 68 | I158: =ROUND((H158/$H$5*Assumptions!$C$22*Assumptions!$C$31),0) -> 13559 | K158: 17403 | N158: 17403 | O158: 0 | P158: 17403 | R158: 0 | S158: 17403 | U158: =IFERROR(VLOOKUP($A158, 'Allocation 2024-25 Final'!$A$7:$S$323,19,FALSE),0) -> 28438 | W158: -11035 | X158: -0.3880371334 | Y158: 284 | Z158: 0 | AB158: 5305250 | AC158: MOSSYROCK
A159: =VLOOKUP(B159,CCDDD!$A$3:$B$319,2,FALSE) -> 39209 | B159: 5305280 | C159: MOUNT ADAMS | D159: 0 | E159: 0 | F159: =VLOOKUP(B159,'25-26 Adjusted Formula counts'!$A$3:$L$320,8,FALSE) -> 998 | G159: =ROUND((F159/$F$5*Assumptions!$C$22*Assumptions!$C$30),0) -> 5418 | H159: =VLOOKUP(B159,'25-26 Adjusted Formula counts'!$A$3:$L$320,9,FALSE) -> 124 | I159: =ROUND((H159/$H$5*Assumptions!$C$22*Assumptions!$C$31),0) -> 24725 | K159: 30143 | N159: 30143 | O159: 0 | P159: 30143 | R159: 0 | S159: 30143 | U159: =IFERROR(VLOOKUP($A159, 'Allocation 2024-25 Final'!$A$7:$S$323,19,FALSE),0) -> 56906 | W159: -26763 | X159: -0.4703019014 | Y159: 305 | Z159: 0 | AB159: 5305280 | AC159: MOUNT ADAMS
A160: =VLOOKUP(B160,CCDDD!$A$3:$B$319,2,FALSE) -> 37507 | B160: 5305310 | C160: MOUNT BAKER | D160: 0 | E160: 0 | F160: =VLOOKUP(B160,'25-26 Adjusted Formula counts'!$A$3:$L$320,8,FALSE) -> 2441 | G160: =ROUND((F160/$F$5*Assumptions!$C$22*Assumptions!$C$30),0) -> 13251 | H160: =VLOOKUP(B160,'25-26 Adjusted Formula counts'!$A$3:$L$320,9,FALSE) -> 267 | I160: =ROUND((H160/$H$5*Assumptions!$C$22*Assumptions!$C$31),0) -> 53239 | K160: 66490 | N160: 66490 | O160: 0 | P160: 66490 | R160: 0 | S160: 66490 | U160: =IFERROR(VLOOKUP($A160, 'Allocation 2024-25 Final'!$A$7:$S$323,19,FALSE),0) -> 68442 | W160: -1952 | X160: -0.02852049911 | Y160: 219 | Z160: 0 | AB160: 5305310 | AC160: MOUNT BAKER
A161: =VLOOKUP(B161,CCDDD!$A$3:$B$319,2,FALSE) -> 30029 | B161: 5305340 | C161: MOUNT PLEASANT | D161: 0 | E161: 0 | F161: =VLOOKUP(B161,'25-26 Adjusted Formula counts'!$A$3:$L$320,8,FALSE) -> 41 | G161: =ROUND((F161/$F$5*Assumptions!$C$22*Assumptions!$C$30),0) -> 223 | H161: =VLOOKUP(B161,'25-26 Adjusted Formula counts'!$A$3:$L$320,9,FALSE) -> 2 | I161: =ROUND((H161/$H$5*Assumptions!$C$22*Assumptions!$C$31),0) -> 399 | K161: 622 | N161: 622 | O161: 0 | P161: 622 | R161: 0 | S161: 622 | U161: =IFERROR(VLOOKUP($A161, 'Allocation 2024-25 Final'!$A$7:$S$323,19,FALSE),0) -> 818 | W161: -196 | X161: -0.239608802 | Y161: 159 | Z161: 0 | AB161: 5305340 | AC161: MOUNT PLEASANT
A162: =VLOOKUP(B162,CCDDD!$A$3:$B$319,2,FALSE) -> 29320 | B162: 5305400 | C162: MOUNT VERNON | D162: 0 | E162: 0 | F162: =VLOOKUP(B162,'25-26 Adjusted Formula counts'!$A$3:$L$320,8,FALSE) -> 6734 | G162: =ROUND((F162/$F$5*Assumptions!$C$22*Assumptions!$C$30),0) -> 36557 | H162: =VLOOKUP(B162,'25-26 Adjusted Formula counts'!$A$3:$L$320,9,FALSE) -> 891 | I162: =ROUND((H162/$H$5*Assumptions!$C$22*Assumptions!$C$31),0) -> 177664 | K162: 214221 | N162: 214221 | O162: 0 | P162: 214221 | R162: 0 | S162: 214221 | U162: =IFERROR(VLOOKUP($A162, 'Allocation 2024-25 Final'!$A$7:$S$323,19,FALSE),0) -> 219322 | W162: -5101 | X162: -0.02325804069 | Y162: 253 | Z162: 0 | AB162: 5305400 | AC162: MOUNT VERNON
A163: =VLOOKUP(B163,CCDDD!$A$3:$B$319,2,FALSE) -> 31006 | B163: 5305430 | C163: MUKILTEO | D163: 0 | E163: 0 | F163: =VLOOKUP(B163,'25-26 Adjusted Formula counts'!$A$3:$L$320,8,FALSE) -> 17058 | G163: =ROUND((F163/$F$5*Assumptions!$C$22*Assumptions!$C$30),0) -> 92603 | H163: =VLOOKUP(B163,'25-26 Adjusted Formula counts'!$A$3:$L$320,9,FALSE) -> 2448 | I163: =ROUND((H163/$H$5*Assumptions!$C$22*Assumptions!$C$31),0) -> 488128 | K163: 580731 | N163: 580731 | O163: 0 | P163: 580731 | R163: 0 | S163: 580731 | U163: =IFERROR(VLOOKUP($A163, 'Allocation 2024-25 Final'!$A$7:$S$323,19,FALSE),0) -> 550912 | W163: 29819 | X163: 0.05412661187 | Y163: 18 | Z163: 0 | AB163: 5305430 | AC163: MUKILTEO
A164: =VLOOKUP(B164,CCDDD!$A$3:$B$319,2,FALSE) -> 39003 | B164: 5305460 | C164: NACHES VALLEY | D164: 0 | E164: 0 | F164: =VLOOKUP(B164,'25-26 Adjusted Formula counts'!$A$3:$L$320,8,FALSE) -> 1614 | G164: =ROUND((F164/$F$5*Assumptions!$C$22*Assumptions!$C$30),0) -> 8762 | H164: =VLOOKUP(B164,'25-26 Adjusted Formula counts'!$A$3:$L$320,9,FALSE) -> 173 | I164: =ROUND((H164/$H$5*Assumptions!$C$22*Assumptions!$C$31),0) -> 34496 | K164: 43258 | N164: 43258 | O164: 0 | P164: 43258 | R164: 0 | S164: 43258 | U164: =IFERROR(VLOOKUP($A164, 'Allocation 2024-25 Final'!$A$7:$S$323,19,FALSE),0) -> 52070 | W164: -8812 | X164: -0.1692337238 | Y164: 274 | Z164: 0 | AB164: 5305460 | AC164: NACHES VALLEY
A165: =VLOOKUP(B165,CCDDD!$A$3:$B$319,2,FALSE) -> 21014 | B165: 5305490 | C165: NAPAVINE | D165: 0 | E165: 0 | F165: =VLOOKUP(B165,'25-26 Adjusted Formula counts'!$A$3:$L$320,8,FALSE) -> 785 | G165: =ROUND((F165/$F$5*Assumptions!$C$22*Assumptions!$C$30),0) -> 4262 | H165: =VLOOKUP(B165,'25-26 Adjusted Formula counts'!$A$3:$L$320,9,FALSE) -> 82 | I165: =ROUND((H165/$H$5*Assumptions!$C$22*Assumptions!$C$31),0) -> 16351 | K165: 20613 | N165: 20613 | O165: 0 | P165: 20613 | R165: 0 | S165: 20613 | U165: =IFERROR(VLOOKUP($A165, 'Allocation 2024-25 Final'!$A$7:$S$323,19,FALSE),0) -> 17107 | W165: 3506 | X165: 0.204945344 | Y165: 73 | Z165: 0 | AB165: 5305490 | AC165: NAPAVINE
A166: =VLOOKUP(B166,CCDDD!$A$3:$B$319,2,FALSE) -> 25155 | B166: 5305520 | C166: NASELLE-GRAYS | D166: 0 | E166: 0 | F166: =VLOOKUP(B166,'25-26 Adjusted Formula counts'!$A$3:$L$320,8,FALSE) -> 335 | G166: =ROUND((F166/$F$5*Assumptions!$C$22*Assumptions!$C$30),0) -> 1819 | H166: =VLOOKUP(B166,'25-26 Adjusted Formula counts'!$A$3:$L$320,9,FALSE) -> 39 | I166: =ROUND((H166/$H$5*Assumptions!$C$22*Assumptions!$C$31),0) -> 7777 | K166: 9596 | N166: 9596 | O166: 0 | P166: 9596 | R166: 0 | S166: 9596 | U166: =IFERROR(VLOOKUP($A166, 'Allocation 2024-25 Final'!$A$7:$S$323,19,FALSE),0) -> 8797 | W166: 799 | X166: 0.0908264181 | Y166: 124 | Z166: 0 | AB166: 5305520 | AC166: NASELLE-GRAYS
A167: =VLOOKUP(B167,CCDDD!$A$3:$B$319,2,FALSE) -> 24014 | B167: 5305550 | C167: NESPELEM | D167: 0 | E167: 0 | F167: =VLOOKUP(B167,'25-26 Adjusted Formula counts'!$A$3:$L$320,8,FALSE) -> 246 | G167: =ROUND((F167/$F$5*Assumptions!$C$22*Assumptions!$C$30),0) -> 1335 | H167: =VLOOKUP(B167,'25-26 Adjusted Formula counts'!$A$3:$L$320,9,FALSE) -> 70 | I167: =ROUND((H167/$H$5*Assumptions!$C$22*Assumptions!$C$31),0) -> 13958 | K167: 15293 | N167: 15293 | O167: 0 | P167: 15293 | R167: 0 | S167: 15293 | U167: =IFERROR(VLOOKUP($A167, 'Allocation 2024-25 Final'!$A$7:$S$323,19,FALSE),0) -> 14892 | W167: 401 | X167: 0.02692720924 | Y167: 133 | Z167: 0 | AB167: 5305550 | AC167: NESPELEM
A168: =VLOOKUP(B168,CCDDD!$A$3:$B$319,2,FALSE) -> 26056 | B168: 5305610 | C168: NEWPORT | D168: 0 | E168: 0 | F168: =VLOOKUP(B168,'25-26 Adjusted Formula counts'!$A$3:$L$320,8,FALSE) -> 1430 | G168: =ROUND((F168/$F$5*Assumptions!$C$22*Assumptions!$C$30),0) -> 7763 | H168: =VLOOKUP(B168,'25-26 Adjusted Formula counts'!$A$3:$L$320,9,FALSE) -> 268 | I168: =ROUND((H168/$H$5*Assumptions!$C$22*Assumptions!$C$31),0) -> 53439 | K168: 61202 | N168: 61202 | O168: 0 | P168: 61202 | R168: 0 | S168: 61202 | U168: =IFERROR(VLOOKUP($A168, 'Allocation 2024-25 Final'!$A$7:$S$323,19,FALSE),0) -> 60861 | W168: 341 | X168: 0.00560293127 | Y168: 136 | Z168: 0 | AB168: 5305610 | AC168: NEWPORT
A169: =VLOOKUP(B169,CCDDD!$A$3:$B$319,2,FALSE) -> 32325 | B169: 5305640 | C169: NINE MILE FALLS | D169: 0 | E169: 0 | F169: =VLOOKUP(B169,'25-26 Adjusted Formula counts'!$A$3:$L$320,8,FALSE) -> 1574 | G169: =ROUND((F169/$F$5*Assumptions!$C$22*Assumptions!$C$30),0) -> 8545 | H169: =VLOOKUP(B169,'25-26 Adjusted Formula counts'!$A$3:$L$320,9,FALSE) -> 115 | I169: =ROUND((H169/$H$5*Assumptions!$C$22*Assumptions!$C$31),0) -> 22931 | K169: 31476 | N169: 31476 | O169: 0 | P169: 31476 | R169: 0 | S169: 31476 | U169: =IFERROR(VLOOKUP($A169, 'Allocation 2024-25 Final'!$A$7:$S$323,19,FALSE),0) -> 29124 | W169: 2352 | X169: 0.08075813762 | Y169: 92 | Z169: 0 | AB169: 5305640 | AC169: NINE MILE FALLS
A170: =VLOOKUP(B170,CCDDD!$A$3:$B$319,2,FALSE) -> 37506 | B170: 5305670 | C170: NOOKSACK VALLEY | D170: 0 | E170: 0 | F170: =VLOOKUP(B170,'25-26 Adjusted Formula counts'!$A$3:$L$320,8,FALSE) -> 2216 | G170: =ROUND((F170/$F$5*Assumptions!$C$22*Assumptions!$C$30),0) -> 12030 | H170: =VLOOKUP(B170,'25-26 Adjusted Formula counts'!$A$3:$L$320,9,FALSE) -> 242 | I170: =ROUND((H170/$H$5*Assumptions!$C$22*Assumptions!$C$31),0) -> 48254 | K170: 60284 | N170: 60284 | O170: 0 | P170: 60284 | R170: 0 | S170: 60284 | U170: =IFERROR(VLOOKUP($A170, 'Allocation 2024-25 Final'!$A$7:$S$323,19,FALSE),0) -> 51713 | W170: 8571 | X170: 0.1657416897 | Y170: 46 | Z170: 0 | AB170: 5305670 | AC170: NOOKSACK VALLEY
A171: =VLOOKUP(B171,CCDDD!$A$3:$B$319,2,FALSE) -> 14064 | B171: 5305700 | C171: NORTH BEACH | D171: 0 | E171: 0 | F171: =VLOOKUP(B171,'25-26 Adjusted Formula counts'!$A$3:$L$320,8,FALSE) -> 705 | G171: =ROUND((F171/$F$5*Assumptions!$C$22*Assumptions!$C$30),0) -> 3827 | H171: =VLOOKUP(B171,'25-26 Adjusted Formula counts'!$A$3:$L$320,9,FALSE) -> 126 | I171: =ROUND((H171/$H$5*Assumptions!$C$22*Assumptions!$C$31),0) -> 25124 | K171: 28951 | N171: 28951 | O171: 0 | P171: 28951 | R171: 0 | S171: 28951 | U171: =IFERROR(VLOOKUP($A171, 'Allocation 2024-25 Final'!$A$7:$S$323,19,FALSE),0) -> 35024 | W171: -6073 | X171: -0.173395386 | Y171: 261 | Z171: 0 | AB171: 5305700 | AC171: NORTH BEACH
A172: =VLOOKUP(B172,CCDDD!$A$3:$B$319,2,FALSE) -> 11051 | B172: 5305730 | C172: NORTH FRANKLIN | D172: 0 | E172: 0 | F172: =VLOOKUP(B172,'25-26 Adjusted Formula counts'!$A$3:$L$320,8,FALSE) -> 2208 | G172: =ROUND((F172/$F$5*Assumptions!$C$22*Assumptions!$C$30),0) -> 11987 | H172: =VLOOKUP(B172,'25-26 Adjusted Formula counts'!$A$3:$L$320,9,FALSE) -> 198 | I172: =ROUND((H172/$H$5*Assumptions!$C$22*Assumptions!$C$31),0) -> 39481 | K172: 51468 | N172: 51468 | O172: 0 | P172: 51468 | R172: 0 | S172: 51468 | U172: =IFERROR(VLOOKUP($A172, 'Allocation 2024-25 Final'!$A$7:$S$323,19,FALSE),0) -> 94285 | W172: -42817 | X172: -0.4541231373 | Y172: 312 | Z172: 0 | AB172: 5305730 | AC172: NORTH FRANKLIN
A173: =VLOOKUP(B173,CCDDD!$A$3:$B$319,2,FALSE) -> 18400 | B173: 5305760 | C173: NORTH KITSAP | D173: 0 | E173: 0 | F173: =VLOOKUP(B173,'25-26 Adjusted Formula counts'!$A$3:$L$320,8,FALSE) -> 7160 | G173: =ROUND((F173/$F$5*Assumptions!$C$22*Assumptions!$C$30),0) -> 38870 | H173: =VLOOKUP(B173,'25-26 Adjusted Formula counts'!$A$3:$L$320,9,FALSE) -> 475 | I173: =ROUND((H173/$H$5*Assumptions!$C$22*Assumptions!$C$31),0) -> 94714 | K173: 133584 | N173: 133584 | O173: 0 | P173: 133584 | R173: 0 | S173: 133584 | U173: =IFERROR(VLOOKUP($A173, 'Allocation 2024-25 Final'!$A$7:$S$323,19,FALSE),0) -> 147688 | W173: -14104 | X173: -0.09549861871 | Y173: 291 | Z173: 0 | AB173: 5305760 | AC173: NORTH KITSAP
A174: =VLOOKUP(B174,CCDDD!$A$3:$B$319,2,FALSE) -> 23403 | B174: 5305790 | C174: NORTH MASON | D174: 0 | E174: 0 | F174: =VLOOKUP(B174,'25-26 Adjusted Formula counts'!$A$3:$L$320,8,FALSE) -> 2476 | G174: =ROUND((F174/$F$5*Assumptions!$C$22*Assumptions!$C$30),0) -> 13441 | H174: =VLOOKUP(B174,'25-26 Adjusted Formula counts'!$A$3:$L$320,9,FALSE) -> 368 | I174: =ROUND((H174/$H$5*Assumptions!$C$22*Assumptions!$C$31),0) -> 73379 | K174: 86820 | N174: 86820 | O174: 0 | P174: 86820 | R174: 0 | S174: 86820 | U174: =IFERROR(VLOOKUP($A174, 'Allocation 2024-25 Final'!$A$7:$S$323,19,FALSE),0) -> 80625 | W174: 6195 | X174: 0.0768372093 | Y174: 55 | Z174: 0 | AB174: 5305790 | AC174: NORTH MASON
A175: =VLOOKUP(B175,CCDDD!$A$3:$B$319,2,FALSE) -> 25200 | B175: 5305820 | C175: NORTH RIVER | D175: 0 | E175: 0 | F175: =VLOOKUP(B175,'25-26 Adjusted Formula counts'!$A$3:$L$320,8,FALSE) -> 51 | G175: =ROUND((F175/$F$5*Assumptions!$C$22*Assumptions!$C$30),0) -> 277 | H175: =VLOOKUP(B175,'25-26 Adjusted Formula counts'!$A$3:$L$320,9,FALSE) -> 10 | I175: =ROUND((H175/$H$5*Assumptions!$C$22*Assumptions!$C$31),0) -> 1994 | K175: 2271 | N175: 2271 | O175: 0 | P175: 2271 | R175: 0 | S175: 2271 | U175: =IFERROR(VLOOKUP($A175, 'Allocation 2024-25 Final'!$A$7:$S$323,19,FALSE),0) -> 1673 | W175: 598 | X175: 0.3574417215 | Y175: 130 | Z175: 0 | AB175: 5305820 | AC175: NORTH RIVER
A176: =VLOOKUP(B176,CCDDD!$A$3:$B$319,2,FALSE) -> 34003 | B176: 5305850 | C176: NORTH THURSTON | D176: 0 | E176: 0 | F176: =VLOOKUP(B176,'25-26 Adjusted Formula counts'!$A$3:$L$320,8,FALSE) -> 17029 | G176: =ROUND((F176/$F$5*Assumptions!$C$22*Assumptions!$C$30),0) -> 92445 | H176: =VLOOKUP(B176,'25-26 Adjusted Formula counts'!$A$3:$L$320,9,FALSE) -> 1575 | I176: =ROUND((H176/$H$5*Assumptions!$C$22*Assumptions!$C$31),0) -> 314053 | K176: 406498 | N176: 406498 | O176: 0 | P176: 406498 | R176: 0 | S176: 406498 | U176: =IFERROR(VLOOKUP($A176, 'Allocation 2024-25 Final'!$A$7:$S$323,19,FALSE),0) -> 382031 | W176: 24467 | X176: 0.06404454089 | Y176: 23 | Z176: 0 | AB176: 5305850 | AC176: NORTH THURSTON
A177: =VLOOKUP(B177,CCDDD!$A$3:$B$319,2,FALSE) -> 33211 | B177: 5305880 | C177: NORTHPORT | D177: 0 | E177: 0 | F177: =VLOOKUP(B177,'25-26 Adjusted Formula counts'!$A$3:$L$320,8,FALSE) -> 227 | G177: =ROUND((F177/$F$5*Assumptions!$C$22*Assumptions!$C$30),0) -> 1232 | H177: =VLOOKUP(B177,'25-26 Adjusted Formula counts'!$A$3:$L$320,9,FALSE) -> 44 | I177: =ROUND((H177/$H$5*Assumptions!$C$22*Assumptions!$C$31),0) -> 8774 | K177: 10006 | N177: 10006 | O177: 0 | P177: 10006 | R177: 0 | S177: 10006 | U177: =IFERROR(VLOOKUP($A177, 'Allocation 2024-25 Final'!$A$7:$S$323,19,FALSE),0) -> 15139 | W177: -5133 | X177: -0.339058062 | Y177: 254 | Z177: 0 | AB177: 5305880 | AC177: NORTHPORT
A178: =VLOOKUP(B178,CCDDD!$A$3:$B$319,2,FALSE) -> 17417 | B178: 5305910 | C178: NORTHSHORE | D178: 0 | E178: 0 | F178: =VLOOKUP(B178,'25-26 Adjusted Formula counts'!$A$3:$L$320,8,FALSE) -> 26389 | G178: =ROUND((F178/$F$5*Assumptions!$C$22*Assumptions!$C$30),0) -> 143258 | H178: =VLOOKUP(B178,'25-26 Adjusted Formula counts'!$A$3:$L$320,9,FALSE) -> 1033 | I178: =ROUND((H178/$H$5*Assumptions!$C$22*Assumptions!$C$31),0) -> 205979 | K178: 349237 | N178: 349237 | O178: 0 | P178: 349237 | R178: 0 | S178: 349237 | U178: =IFERROR(VLOOKUP($A178, 'Allocation 2024-25 Final'!$A$7:$S$323,19,FALSE),0) -> 335367 | W178: 13870 | X178: 0.04135767681 | Y178: 34 | Z178: 0 | AB178: 5305910 | AC178: NORTHSHORE
A179: =VLOOKUP(B179,CCDDD!$A$3:$B$319,2,FALSE) -> 15201 | B179: 5305940 | C179: OAK HARBOR | D179: 0 | E179: 0 | F179: =VLOOKUP(B179,'25-26 Adjusted Formula counts'!$A$3:$L$320,8,FALSE) -> 5955 | G179: =ROUND((F179/$F$5*Assumptions!$C$22*Assumptions!$C$30),0) -> 32328 | H179: =VLOOKUP(B179,'25-26 Adjusted Formula counts'!$A$3:$L$320,9,FALSE) -> 569 | I179: =ROUND((H179/$H$5*Assumptions!$C$22*Assumptions!$C$31),0) -> 113458 | K179: 145786 | N179: 145786 | O179: 0 | P179: 145786 | R179: 0 | S179: 145786 | U179: =IFERROR(VLOOKUP($A179, 'Allocation 2024-25 Final'!$A$7:$S$323,19,FALSE),0) -> 113777 | W179: 32009 | X179: 0.2813310247 | Y179: 13 | Z179: 0 | AB179: 5305940 | AC179: OAK HARBOR
A180: =VLOOKUP(B180,CCDDD!$A$3:$B$319,2,FALSE) -> 38324 | B180: 5305970 | C180: OAKESDALE | D180: 0 | E180: 0 | F180: =VLOOKUP(B180,'25-26 Adjusted Formula counts'!$A$3:$L$320,8,FALSE) -> 131 | G180: =ROUND((F180/$F$5*Assumptions!$C$22*Assumptions!$C$30),0) -> 711 | H180: =VLOOKUP(B180,'25-26 Adjusted Formula counts'!$A$3:$L$320,9,FALSE) -> 9 | I180: =ROUND((H180/$H$5*Assumptions!$C$22*Assumptions!$C$31),0) -> 1795 | K180: 2506 | N180: 2506 | O180: 0 | P180: 2506 | R180: 0 | S180: 2506 | U180: =IFERROR(VLOOKUP($A180, 'Allocation 2024-25 Final'!$A$7:$S$323,19,FALSE),0) -> 4062 | W180: -1556 | X180: -0.3830625308 | Y180: 212 | Z180: 0 | AB180: 5305970 | AC180: OAKESDALE
A181: =VLOOKUP(B181,CCDDD!$A$3:$B$319,2,FALSE) -> 14400 | B181: 5306000 | C181: OAKVILLE | D181: 0 | E181: 0 | F181: =VLOOKUP(B181,'25-26 Adjusted Formula counts'!$A$3:$L$320,8,FALSE) -> 452 | G181: =ROUND((F181/$F$5*Assumptions!$C$22*Assumptions!$C$30),0) -> 2454 | H181: =VLOOKUP(B181,'25-26 Adjusted Formula counts'!$A$3:$L$320,9,FALSE) -> 62 | I181: =ROUND((H181/$H$5*Assumptions!$C$22*Assumptions!$C$31),0) -> 12363 | K181: 14817 | N181: 14817 | O181: 0 | P181: 14817 | R181: 0 | S181: 14817 | U181: =IFERROR(VLOOKUP($A181, 'Allocation 2024-25 Final'!$A$7:$S$323,19,FALSE),0) -> 23912 | W181: -9095 | X181: -0.3803529609 | Y181: 276 | Z181: 0 | AB181: 5306000 | AC181: OAKVILLE
A182: =VLOOKUP(B182,CCDDD!$A$3:$B$319,2,FALSE) -> 25101 | B182: 5306060 | C182: OCEAN BEACH | D182: 0 | E182: 0 | F182: =VLOOKUP(B182,'25-26 Adjusted Formula counts'!$A$3:$L$320,8,FALSE) -> 1023 | G182: =ROUND((F182/$F$5*Assumptions!$C$22*Assumptions!$C$30),0) -> 5554 | H182: =VLOOKUP(B182,'25-26 Adjusted Formula counts'!$A$3:$L$320,9,FALSE) -> 189 | I182: =ROUND((H182/$H$5*Assumptions!$C$22*Assumptions!$C$31),0) -> 37686 | K182: 43240 | N182: 43240 | O182: 0 | P182: 43240 | R182: 0 | S182: 43240 | U182: =IFERROR(VLOOKUP($A182, 'Allocation 2024-25 Final'!$A$7:$S$323,19,FALSE),0) -> 43247 | W182: -7 | X182: -0.0001618609383 | Y182: 152 | Z182: 0 | AB182: 5306060 | AC182: OCEAN BEACH
A183: =VLOOKUP(B183,CCDDD!$A$3:$B$319,2,FALSE) -> 14172 | B183: 5306090 | C183: OCOSTA | D183: 0 | E183: 0 | F183: =VLOOKUP(B183,'25-26 Adjusted Formula counts'!$A$3:$L$320,8,FALSE) -> 660 | G183: =ROUND((F183/$F$5*Assumptions!$C$22*Assumptions!$C$30),0) -> 3583 | H183: =VLOOKUP(B183,'25-26 Adjusted Formula counts'!$A$3:$L$320,9,FALSE) -> 138 | I183: =ROUND((H183/$H$5*Assumptions!$C$22*Assumptions!$C$31),0) -> 27517 | K183: 31100 | N183: 31100 | O183: 0 | P183: 31100 | R183: 0 | S183: 31100 | U183: =IFERROR(VLOOKUP($A183, 'Allocation 2024-25 Final'!$A$7:$S$323,19,FALSE),0) -> 42351 | W183: -11251 | X183: -0.2656607872 | Y183: 286 | Z183: 0 | AB183: 5306090 | AC183: OCOSTA
A184: =VLOOKUP(B184,CCDDD!$A$3:$B$319,2,FALSE) -> 22105 | B184: 5306120 | C184: ODESSA | D184: 0 | E184: 0 | F184: =VLOOKUP(B184,'25-26 Adjusted Formula counts'!$A$3:$L$320,8,FALSE) -> 308 | G184: =ROUND((F184/$F$5*Assumptions!$C$22*Assumptions!$C$30),0) -> 1672 | H184: =VLOOKUP(B184,'25-26 Adjusted Formula counts'!$A$3:$L$320,9,FALSE) -> 45 | I184: =ROUND((H184/$H$5*Assumptions!$C$22*Assumptions!$C$31),0) -> 8973 | K184: 10645 | N184: 10645 | O184: 0 | P184: 10645 | R184: 0 | S184: 10645 | U184: =IFERROR(VLOOKUP($A184, 'Allocation 2024-25 Final'!$A$7:$S$323,19,FALSE),0) -> 8038 | W184: 2607 | X184: 0.3243344115 | Y184: 84 | Z184: 0 | AB184: 5306120 | AC184: ODESSA
A185: =VLOOKUP(B185,CCDDD!$A$3:$B$319,2,FALSE) -> 24105 | B185: 5306150 | C185: OKANOGAN | D185: 0 | E185: 0 | F185: =VLOOKUP(B185,'25-26 Adjusted Formula counts'!$A$3:$L$320,8,FALSE) -> 951 | G185: =ROUND((F185/$F$5*Assumptions!$C$22*Assumptions!$C$30),0) -> 5163 | H185: =VLOOKUP(B185,'25-26 Adjusted Formula counts'!$A$3:$L$320,9,FALSE) -> 151 | I185: =ROUND((H185/$H$5*Assumptions!$C$22*Assumptions!$C$31),0) -> 30109 | K185: 35272 | N185: 35272 | O185: 0 | P185: 35272 | R185: 0 | S185: 35272 | U185: =IFERROR(VLOOKUP($A185, 'Allocation 2024-25 Final'!$A$7:$S$323,19,FALSE),0) -> 39525 | W185: -4253 | X185: -0.107602783 | Y185: 245 | Z185: 0 | AB185: 5306150 | AC185: OKANOGAN
A186: =VLOOKUP(B186,CCDDD!$A$3:$B$319,2,FALSE) -> 34111 | B186: 5306180 | C186: OLYMPIA | D186: 0 | E186: 0 | F186: =VLOOKUP(B186,'25-26 Adjusted Formula counts'!$A$3:$L$320,8,FALSE) -> 10404 | G186: =ROUND((F186/$F$5*Assumptions!$C$22*Assumptions!$C$30),0) -> 56480 | H186: =VLOOKUP(B186,'25-26 Adjusted Formula counts'!$A$3:$L$320,9,FALSE) -> 868 | I186: =ROUND((H186/$H$5*Assumptions!$C$22*Assumptions!$C$31),0) -> 173078 | K186: 229558 | N186: 229558 | O186: 0 | P186: 229558 | R186: 0 | S186: 229558 | U186: =IFERROR(VLOOKUP($A186, 'Allocation 2024-25 Final'!$A$7:$S$323,19,FALSE),0) -> 268946 | W186: -39388 | X186: -0.1464531913 | Y186: 311 | Z186: 0 | AB186: 5306180 | AC186: OLYMPIA
A187: =VLOOKUP(B187,CCDDD!$A$3:$B$319,2,FALSE) -> 24019 | B187: 5306220 | C187: OMAK | D187: 0 | E187: 0 | F187: =VLOOKUP(B187,'25-26 Adjusted Formula counts'!$A$3:$L$320,8,FALSE) -> 1880 | G187: =ROUND((F187/$F$5*Assumptions!$C$22*Assumptions!$C$30),0) -> 10206 | H187: =VLOOKUP(B187,'25-26 Adjusted Formula counts'!$A$3:$L$320,9,FALSE) -> 384 | I187: =ROUND((H187/$H$5*Assumptions!$C$22*Assumptions!$C$31),0) -> 76569 | K187: 86775 | N187: 86775 | O187: 0 | P187: 86775 | R187: 0 | S187: 86775 | U187: =IFERROR(VLOOKUP($A187, 'Allocation 2024-25 Final'!$A$7:$S$323,19,FALSE),0) -> 84215 | W187: 2560 | X187: 0.03039838509 | Y187: 85 | Z187: 0 | AB187: 5306220 | AC187: OMAK
A188: =VLOOKUP(B188,CCDDD!$A$3:$B$319,2,FALSE) -> 21300 | B188: 5306240 | C188: ONALASKA | D188: 0 | E188: 0 | F188: =VLOOKUP(B188,'25-26 Adjusted Formula counts'!$A$3:$L$320,8,FALSE) -> 946 | G188: =ROUND((F188/$F$5*Assumptions!$C$22*Assumptions!$C$30),0) -> 5136 | H188: =VLOOKUP(B188,'25-26 Adjusted Formula counts'!$A$3:$L$320,9,FALSE) -> 102 | I188: =ROUND((H188/$H$5*Assumptions!$C$22*Assumptions!$C$31),0) -> 20339 | K188: 25475 | N188: 25475 | O188: 0 | P188: 25475 | R188: 0 | S188: 25475 | U188: =IFERROR(VLOOKUP($A188, 'Allocation 2024-25 Final'!$A$7:$S$323,19,FALSE),0) -> 30298 | W188: -4823 | X188: -0.1591854248 | Y188: 252 | Z188: 0 | AB188: 5306240 | AC188: ONALASKA
A189: =VLOOKUP(B189,CCDDD!$A$3:$B$319,2,FALSE) -> 33030 | B189: 5306270 | C189: ONION CREEK | D189: 0 | E189: 0 | F189: =VLOOKUP(B189,'25-26 Adjusted Formula counts'!$A$3:$L$320,8,FALSE) -> 63 | G189: =ROUND((F189/$F$5*Assumptions!$C$22*Assumptions!$C$30),0) -> 342 | H189: =VLOOKUP(B189,'25-26 Adjusted Formula counts'!$A$3:$L$320,9,FALSE) -> 24 | I189: =ROUND((H189/$H$5*Assumptions!$C$22*Assumptions!$C$31),0) -> 4786 | K189: 5128 | N189: 5128 | O189: 0 | P189: 5128 | R189: 0 | S189: 5128 | U189: =IFERROR(VLOOKUP($A189, 'Allocation 2024-25 Final'!$A$7:$S$323,19,FALSE),0) -> 4114 | W189: 1014 | X189: 0.2464754497 | Y189: 117 | Z189: 0 | AB189: 5306270 | AC189: ONION CREEK
A190: =VLOOKUP(B190,CCDDD!$A$3:$B$319,2,FALSE) -> 28137 | B190: 5306300 | C190: ORCAS ISLAND | D190: 0 | E190: 0 | F190: =VLOOKUP(B190,'25-26 Adjusted Formula counts'!$A$3:$L$320,8,FALSE) -> 573 | G190: =ROUND((F190/$F$5*Assumptions!$C$22*Assumptions!$C$30),0) -> 3111 | H190: =VLOOKUP(B190,'25-26 Adjusted Formula counts'!$A$3:$L$320,9,FALSE) -> 84 | I190: =ROUND((H190/$H$5*Assumptions!$C$22*Assumptions!$C$31),0) -> 16749 | K190: 19860 | N190: 19860 | O190: 0 | P190: 19860 | R190: 0 | S190: 19860 | U190: =IFERROR(VLOOKUP($A190, 'Allocation 2024-25 Final'!$A$7:$S$323,19,FALSE),0) -> 18883 | W190: 977 | X190: 0.05173966001 | Y190: 119 | Z190: 0 | AB190: 5306300 | AC190: ORCAS ISLAND
A191: =VLOOKUP(B191,CCDDD!$A$3:$B$319,2,FALSE) -> 32123 | B191: 5306330 | C191: ORCHARD PRAIRIE | D191: 0 | E191: 0 | F191: =VLOOKUP(B191,'25-26 Adjusted Formula counts'!$A$3:$L$320,8,FALSE) -> 178 | G191: =ROUND((F191/$F$5*Assumptions!$C$22*Assumptions!$C$30),0) -> 966 | H191: =VLOOKUP(B191,'25-26 Adjusted Formula counts'!$A$3:$L$320,9,FALSE) -> 16 | I191: =ROUND((H191/$H$5*Assumptions!$C$22*Assumptions!$C$31),0) -> 3190 | K191: 4156 | N191: 4156 | O191: 0 | P191: 4156 | R191: 0 | S191: 4156 | U191: =IFERROR(VLOOKUP($A191, 'Allocation 2024-25 Final'!$A$7:$S$323,19,FALSE),0) -> 5331 | W191: -1175 | X191: -0.2204089289 | Y191: 200 | Z191: 0 | AB191: 5306330 | AC191: ORCHARD PRAIRIE
A192: =VLOOKUP(B192,CCDDD!$A$3:$B$319,2,FALSE) -> 10065 | B192: 5306360 | C192: ORIENT | D192: 0 | E192: 0 | F192: =VLOOKUP(B192,'25-26 Adjusted Formula counts'!$A$3:$L$320,8,FALSE) -> 130 | G192: =ROUND((F192/$F$5*Assumptions!$C$22*Assumptions!$C$30),0) -> 706 | H192: =VLOOKUP(B192,'25-26 Adjusted Formula counts'!$A$3:$L$320,9,FALSE) -> 45 | I192: =ROUND((H192/$H$5*Assumptions!$C$22*Assumptions!$C$31),0) -> 8973 | K192: 9679 | N192: 9679 | O192: 0 | P192: 9679 | R192: 0 | S192: 9679 | U192: =IFERROR(VLOOKUP($A192, 'Allocation 2024-25 Final'!$A$7:$S$323,19,FALSE),0) -> 7852 | W192: 1827 | X192: 0.2326795721 | Y192: 103 | Z192: 0 | AB192: 5306360 | AC192: ORIENT
A193: =VLOOKUP(B193,CCDDD!$A$3:$B$319,2,FALSE) -> 09013 | B193: 5306390 | C193: ORONDO | D193: 0 | E193: 0 | F193: =VLOOKUP(B193,'25-26 Adjusted Formula counts'!$A$3:$L$320,8,FALSE) -> 264 | G193: =ROUND((F193/$F$5*Assumptions!$C$22*Assumptions!$C$30),0) -> 1433 | H193: =VLOOKUP(B193,'25-26 Adjusted Formula counts'!$A$3:$L$320,9,FALSE) -> 19 | I193: =ROUND((H193/$H$5*Assumptions!$C$22*Assumptions!$C$31),0) -> 3789 | K193: 5222 | N193: 5222 | O193: 0 | P193: 5222 | R193: 0 | S193: 5222 | U193: =IFERROR(VLOOKUP($A193, 'Allocation 2024-25 Final'!$A$7:$S$323,19,FALSE),0) -> 8172 | W193: -2950 | X193: -0.360988742 | Y193: 228 | Z193: 0 | AB193: 5306390 | AC193: ORONDO
A194: =VLOOKUP(B194,CCDDD!$A$3:$B$319,2,FALSE) -> 24410 | B194: 5306420 | C194: OROVILLE | D194: 0 | E194: 0 | F194: =VLOOKUP(B194,'25-26 Adjusted Formula counts'!$A$3:$L$320,8,FALSE) -> 692 | G194: =ROUND((F194/$F$5*Assumptions!$C$22*Assumptions!$C$30),0) -> 3757 | H194: =VLOOKUP(B194,'25-26 Adjusted Formula counts'!$A$3:$L$320,9,FALSE) -> 145 | I194: =ROUND((H194/$H$5*Assumptions!$C$22*Assumptions!$C$31),0) -> 28913 | K194: 32670 | N194: 32670 | O194: 0 | P194: 32670 | R194: 0 | S194: 32670 | U194: =IFERROR(VLOOKUP($A194, 'Allocation 2024-25 Final'!$A$7:$S$323,19,FALSE),0) -> 39240 | W194: -6570 | X194: -0.1674311927 | Y194: 267 | Z194: 0 | AB194: 5306420 | AC194: OROVILLE
A195: =VLOOKUP(B195,CCDDD!$A$3:$B$319,2,FALSE) -> 27344 | B195: 5306450 | C195: ORTING | D195: 0 | E195: 0 | F195: =VLOOKUP(B195,'25-26 Adjusted Formula counts'!$A$3:$L$320,8,FALSE) -> 3274 | G195: =ROUND((F195/$F$5*Assumptions!$C$22*Assumptions!$C$30),0) -> 17774 | H195: =VLOOKUP(B195,'25-26 Adjusted Formula counts'!$A$3:$L$320,9,FALSE) -> 159 | I195: =ROUND((H195/$H$5*Assumptions!$C$22*Assumptions!$C$31),0) -> 31704 | K195: 49478 | N195: 49478 | O195: 0 | P195: 49478 | R195: 0 | S195: 49478 | U195: =IFERROR(VLOOKUP($A195, 'Allocation 2024-25 Final'!$A$7:$S$323,19,FALSE),0) -> 50955 | W195: -1477 | X195: -0.02898636051 | Y195: 209 | Z195: 0 | AB195: 5306450 | AC195: ORTING
A196: =VLOOKUP(B196,CCDDD!$A$3:$B$319,2,FALSE) -> 01147 | B196: 5306480 | C196: OTHELLO | D196: 0 | E196: 0 | F196: =VLOOKUP(B196,'25-26 Adjusted Formula counts'!$A$3:$L$320,8,FALSE) -> 4536 | G196: =ROUND((F196/$F$5*Assumptions!$C$22*Assumptions!$C$30),0) -> 24625 | H196: =VLOOKUP(B196,'25-26 Adjusted Formula counts'!$A$3:$L$320,9,FALSE) -> 895 | I196: =ROUND((H196/$H$5*Assumptions!$C$22*Assumptions!$C$31),0) -> 178462 | K196: 203087 | N196: 203087 | O196: 0 | P196: 203087 | R196: 0 | S196: 203087 | U196: =IFERROR(VLOOKUP($A196, 'Allocation 2024-25 Final'!$A$7:$S$323,19,FALSE),0) -> 171129 | W196: 31958 | X196: 0.1867480088 | Y196: 14 | Z196: 0 | AB196: 5306480 | AC196: OTHELLO
A197: =VLOOKUP(B197,CCDDD!$A$3:$B$319,2,FALSE) -> 09102 | B197: 5306510 | C197: PALISADES | D197: 0 | E197: 0 | F197: =VLOOKUP(B197,'25-26 Adjusted Formula counts'!$A$3:$L$320,8,FALSE) -> 47 | G197: =ROUND((F197/$F$5*Assumptions!$C$22*Assumptions!$C$30),0) -> 255 | H197: =VLOOKUP(B197,'25-26 Adjusted Formula counts'!$A$3:$L$320,9,FALSE) -> 5 | I197: =ROUND((H197/$H$5*Assumptions!$C$22*Assumptions!$C$31),0) -> 997 | K197: 1252 | N197: 1252 | O197: 0 | P197: 1252 | R197: 0 | S197: 1252 | U197: =IFERROR(VLOOKUP($A197, 'Allocation 2024-25 Final'!$A$7:$S$323,19,FALSE),0) -> 2237 | W197: -985 | X197: -0.4403218596 | Y197: 191 | Z197: 0 | AB197: 5306510 | AC197: PALISADES
A198: =VLOOKUP(B198,CCDDD!$A$3:$B$319,2,FALSE) -> 38301 | B198: 5306540 | C198: PALOUSE | D198: 0 | E198: 0 | F198: =VLOOKUP(B198,'25-26 Adjusted Formula counts'!$A$3:$L$320,8,FALSE) -> 247 | G198: =ROUND((F198/$F$5*Assumptions!$C$22*Assumptions!$C$30),0) -> 1341 | H198: =VLOOKUP(B198,'25-26 Adjusted Formula counts'!$A$3:$L$320,9,FALSE) -> 12 | I198: =ROUND((H198/$H$5*Assumptions!$C$22*Assumptions!$C$31),0) -> 2393 | K198: 3734 | N198: 3734 | O198: 0 | P198: 3734 | R198: 0 | S198: 3734 | U198: =IFERROR(VLOOKUP($A198, 'Allocation 2024-25 Final'!$A$7:$S$323,19,FALSE),0) -> 3467 | W198: 267 | X198: 0.07701182579 | Y198: 139 | Z198: 0 | AB198: 5306540 | AC198: PALOUSE
A199: =VLOOKUP(B199,CCDDD!$A$3:$B$319,2,FALSE) -> 11001 | B199: 5306570 | C199: PASCO | D199: 0 | E199: 0 | F199: =VLOOKUP(B199,'25-26 Adjusted Formula counts'!$A$3:$L$320,8,FALSE) -> 20387 | G199: =ROUND((F199/$F$5*Assumptions!$C$22*Assumptions!$C$30),0) -> 110675 | H199: =VLOOKUP(B199,'25-26 Adjusted Formula counts'!$A$3:$L$320,9,FALSE) -> 3147 | I199: =ROUND((H199/$H$5*Assumptions!$C$22*Assumptions!$C$31),0) -> 627508 | K199: =ROUNDDOWN(+I199+G199+E199+D199+J199,0) -> 738183 | N199: =K199 -> 738183 | O199: =-ROUND(N199/$N$5*$M$5,0) -> 0 | P199: =+K199+O199+M199 -> 738183 | R199: =-1*(P199*Q199) -> 0 | S199: =+P199+R199 -> 738183 | U199: =IFERROR(VLOOKUP($A199, 'Allocation 2024-25 Final'!$A$7:$S$323,19,FALSE),0) -> 583363 | W199: =+S199-U199 -> 154820 | X199: =IF(U199>0,W199/U199,0) -> 0.2653922172 | Y199: =RANK(W199,$W$7:$W$320,0) -> 1 | Z199: =(SUM(D199:E199)/S199) -> 0 | AB199: =+B199 -> 5306570 | AC199: PASCO
A200: =VLOOKUP(B200,CCDDD!$A$3:$B$319,2,FALSE) -> 24122 | B200: 5306600 | C200: PATEROS | D200: 0 | E200: 0 | F200: =VLOOKUP(B200,'25-26 Adjusted Formula counts'!$A$3:$L$320,8,FALSE) -> 287 | G200: =ROUND((F200/$F$5*Assumptions!$C$22*Assumptions!$C$30),0) -> 1558 | H200: =VLOOKUP(B200,'25-26 Adjusted Formula counts'!$A$3:$L$320,9,FALSE) -> 41 | I200: =ROUND((H200/$H$5*Assumptions!$C$22*Assumptions!$C$31),0) -> 8175 | K200: 9733 | N200: 9733 | O200: 0 | P200: 9733 | R200: 0 | S200: 9733 | U200: =IFERROR(VLOOKUP($A200, 'Allocation 2024-25 Final'!$A$7:$S$323,19,FALSE),0) -> 8151 | W200: 1582 | X200: 0.1940866151 | Y200: 109 | Z200: 0 | AB200: 5306600 | AC200: PATEROS
... 120 more rows

Sheet Allocation 2024-25 Final (hidden)
B1: 2024-25 | K1: =IF(K5=Assumptions!$D$22+J5,"Rounding OK","Rounding Error = "&FIXED(K5-Assumptions!$D$22-J5,TRUE)) -> Rounding OK | R1: =R5 -> 0 | S1: =IF(S5=Assumptions!$D22+R5,"Rounding OK","Rounding Error = "&FIXED(S5-(Assumptions!$D22+R5),TRUE)) -> Rounding OK
B2: ESEA -- Title 2 Distributions | K2: Allocation including private participation | S2: \
A3: 1 | B3: 2 | C3: 3 | D3: 4 | E3: 5 | F3: 6 | G3: 7 | H3: 8 | I3: 9 | J3: 10 | L3: 12 | M3: 13 | N3: 14 | O3: 15 | P3: 16 | Q3: 17 | R3: 18 | S3: 19 | U3: 18
A4: CCDDD | B4: LEAID | C4: District Name | D4: Eisenhower 2001-02 Allocations | E4: Class Size Reduction Allocations 2001-02 | F4: Census Population Ages 5-17 | G4: 20% based on Total Pop | H4: Census Poverty Ages 5-17 | I4: 80% based on Low Inc Pop | J4: MOE | K4: Total Final Allocation | M4: Alloc to non-Census LEA | N4: Realloc Pool | O4: Realloc | P4: Final Alloc Before MOE | Q4: MOE | R4: MOE Reduction | S4: Final Alloc | U4: Prior Year Allocation | Y4: Rank Order | AB4: do not delete Y & Z
C5: State Totals | D5: =SUM(D7:D307) -> 0 | E5: =SUM(E7:E307) -> 0 | F5: =SUM(F7:F321) -> 1219961 | G5: =SUM(G7:G321) -> 6585479 | H5: =SUM(H7:H321) -> 132429 | I5: =SUM(I7:I321) -> 26341924 | K5: =SUM(K7:K321) -> 32927405 | M5: =SUM(M7:M321) -> 0 | N5: =SUM(N7:N321) -> 32927405 | O5: =SUM(O7:O321) -> 0 | P5: =SUM(P7:P321) -> 32927405 | R5: =SUM(R7:R321) -> 0 | S5: =SUM(S7:S321) -> 32927405 | U5: =SUM(U7:U321) -> 0 | W5: =SUM(W7:W319) -> 32914512 | X5: =MIN(X7:X315) -> 0 | Y5: ="Lose = "& PROPER(VLOOKUP(X5,$X$7:$AC$315,6,FALSE)) -> Lose = Aberdeen | AB5: =+B5 -> 0 | AC5: =+C5 -> State Totals
X6: =MAX(X7:X308) -> 0 | Y6: ="Win = "&PROPER(VLOOKUP(X6,$X$7:$AC$308,6,FALSE)) -> Win = Aberdeen
A7: =VLOOKUP(B7,CCDDD!$A$3:$B$319,2,FALSE) -> 14005 | B7: 5300030 | C7: ABERDEEN | D7: 0 | E7: 0 | F7: =VLOOKUP(B7,'24-25 Adjusted Formula counts'!$A$3:$L$320,8,FALSE) -> 3502 | G7: =ROUND((F7/$F$5*Assumptions!$D$22*Assumptions!$D$30),0) -> 18904 | H7: =VLOOKUP(B7,'24-25 Adjusted Formula counts'!$A$3:$L$320,9,FALSE) -> 804 | I7: =ROUND((H7/$H$5*Assumptions!$D$22*Assumptions!$D$31),0) -> 159927 | K7: =ROUNDDOWN(+I7+G7+E7+D7+J7,0) -> 178831 | N7: =K7 -> 178831 | O7: =-ROUND(N7/$N$5*$M$5,0) -> 0 | P7: =+K7+O7+M7 -> 178831 | R7: =-1*(P7*Q7) -> 0 | S7: =+P7+R7 -> 178831 | U7: =IFERROR(VLOOKUP($A7,#REF!, 19,FALSE),0) -> 0 | W7: =+S7-U7 -> 178831 | X7: =IF(U7>0,W7/U7,0) -> 0 | Y7: =RANK(W7,$W$7:$W$321,0) -> 46 | Z7: =(SUM(D7:E7)/S7) -> 0 | AB7: =+B7 -> 5300030 | AC7: ABERDEEN
A8: =VLOOKUP(B8,CCDDD!$A$3:$B$319,2,FALSE) -> 21226 | B8: 5300060 | C8: ADNA | D8: 0 | E8: 0 | F8: =VLOOKUP(B8,'24-25 Adjusted Formula counts'!$A$3:$L$320,8,FALSE) -> 737 | G8: =ROUND((F8/$F$5*Assumptions!$D$22*Assumptions!$D$30),0) -> 3978 | H8: =VLOOKUP(B8,'24-25 Adjusted Formula counts'!$A$3:$L$320,9,FALSE) -> 38 | I8: =ROUND((H8/$H$5*Assumptions!$D$22*Assumptions!$D$31),0) -> 7559 | K8: 11537 | N8: 11537 | O8: 0 | P8: =+K8+O8+M9 -> 11537 | R8: 0 | S8: 11537 | U8: =IFERROR(VLOOKUP($A8,#REF!, 19,FALSE),0) -> 0 | W8: 11537 | X8: 0 | Y8: 223 | Z8: 0 | AB8: 5300060 | AC8: ADNA
A9: =VLOOKUP(B9,CCDDD!$A$3:$B$319,2,FALSE) -> 22017 | B9: 5300090 | C9: ALMIRA | D9: 0 | E9: 0 | F9: =VLOOKUP(B9,'24-25 Adjusted Formula counts'!$A$3:$L$320,8,FALSE) -> 98 | G9: =ROUND((F9/$F$5*Assumptions!$D$22*Assumptions!$D$30),0) -> 529 | H9: =VLOOKUP(B9,'24-25 Adjusted Formula counts'!$A$3:$L$320,9,FALSE) -> 6 | I9: =ROUND((H9/$H$5*Assumptions!$D$22*Assumptions!$D$31),0) -> 1193 | K9: 1722 | N9: 1722 | O9: 0 | P9: =+K9+O9+M10 -> 1722 | R9: 0 | S9: 1722 | U9: =IFERROR(VLOOKUP($A9,#REF!, 19,FALSE),0) -> 0 | W9: 1722 | X9: 0 | Y9: 303 | Z9: 0 | AB9: 5300090 | AC9: ALMIRA
A10: =VLOOKUP(B10,CCDDD!$A$3:$B$319,2,FALSE) -> 29103 | B10: 5300150 | C10: ANACORTES | D10: 0 | E10: 0 | F10: =VLOOKUP(B10,'24-25 Adjusted Formula counts'!$A$3:$L$320,8,FALSE) -> 2828 | G10: =ROUND((F10/$F$5*Assumptions!$D$22*Assumptions!$D$30),0) -> 15266 | H10: =VLOOKUP(B10,'24-25 Adjusted Formula counts'!$A$3:$L$320,9,FALSE) -> 255 | I10: =ROUND((H10/$H$5*Assumptions!$D$22*Assumptions!$D$31),0) -> 50723 | K10: 65989 | N10: 65989 | O10: 0 | P10: =+K10+O10+M11 -> 65989 | R10: 0 | S10: 65989 | U10: =IFERROR(VLOOKUP($A10,#REF!, 19,FALSE),0) -> 0 | W10: 65989 | X10: 0 | Y10: 103 | Z10: 0 | AB10: 5300150 | AC10: ANACORTES
A11: =VLOOKUP(B11,CCDDD!$A$3:$B$319,2,FALSE) -> 31016 | B11: 5300240 | C11: ARLINGTON | D11: 0 | E11: 0 | F11: =VLOOKUP(B11,'24-25 Adjusted Formula counts'!$A$3:$L$320,8,FALSE) -> 5915 | G11: =ROUND((F11/$F$5*Assumptions!$D$22*Assumptions!$D$30),0) -> 31930 | H11: =VLOOKUP(B11,'24-25 Adjusted Formula counts'!$A$3:$L$320,9,FALSE) -> 554 | I11: =ROUND((H11/$H$5*Assumptions!$D$22*Assumptions!$D$31),0) -> 110198 | K11: 142128 | N11: 142128 | O11: 0 | P11: 142128 | R11: 0 | S11: 142128 | U11: =IFERROR(VLOOKUP($A11,#REF!, 19,FALSE),0) -> 0 | W11: 142128 | X11: 0 | Y11: 64 | Z11: 0 | AB11: 5300240 | AC11: ARLINGTON
A12: =VLOOKUP(B12,CCDDD!$A$3:$B$319,2,FALSE) -> 02420 | B12: 5300280 | C12: ASOTIN-ANATONE | D12: 0 | E12: 0 | F12: =VLOOKUP(B12,'24-25 Adjusted Formula counts'!$A$3:$L$320,8,FALSE) -> 493 | G12: =ROUND((F12/$F$5*Assumptions!$D$22*Assumptions!$D$30),0) -> 2661 | H12: =VLOOKUP(B12,'24-25 Adjusted Formula counts'!$A$3:$L$320,9,FALSE) -> 48 | I12: =ROUND((H12/$H$5*Assumptions!$D$22*Assumptions!$D$31),0) -> 9548 | K12: 12209 | N12: 12209 | O12: 0 | P12: 12209 | R12: 0 | S12: 12209 | U12: =IFERROR(VLOOKUP($A12,#REF!, 19,FALSE),0) -> 0 | W12: 12209 | X12: 0 | Y12: 220 | Z12: 0 | AB12: 5300280 | AC12: ASOTIN-ANATONE
A13: =VLOOKUP(B13,CCDDD!$A$3:$B$319,2,FALSE) -> 17408 | B13: 5300300 | C13: AUBURN | D13: 0 | E13: 0 | F13: =VLOOKUP(B13,'24-25 Adjusted Formula counts'!$A$3:$L$320,8,FALSE) -> 18293 | G13: =ROUND((F13/$F$5*Assumptions!$D$22*Assumptions!$D$30),0) -> 98748 | H13: =VLOOKUP(B13,'24-25 Adjusted Formula counts'!$A$3:$L$320,9,FALSE) -> 2918 | I13: =ROUND((H13/$H$5*Assumptions!$D$22*Assumptions!$D$31),0) -> 580430 | K13: 679178 | N13: 679178 | O13: 0 | P13: 679178 | R13: 0 | S13: 679178 | U13: =IFERROR(VLOOKUP($A13,#REF!, 19,FALSE),0) -> 0 | W13: 679178 | X13: 0 | Y13: 8 | Z13: 0 | AB13: 5300300 | AC13: AUBURN
A14: =VLOOKUP(B14,CCDDD!$A$3:$B$319,2,FALSE) -> 18303 | B14: 5300330 | C14: BAINBRIDGE ISLAND | D14: 0 | E14: 0 | F14: =VLOOKUP(B14,'24-25 Adjusted Formula counts'!$A$3:$L$320,8,FALSE) -> 3975 | G14: =ROUND((F14/$F$5*Assumptions!$D$22*Assumptions!$D$30),0) -> 21457 | H14: =VLOOKUP(B14,'24-25 Adjusted Formula counts'!$A$3:$L$320,9,FALSE) -> 141 | I14: =ROUND((H14/$H$5*Assumptions!$D$22*Assumptions!$D$31),0) -> 28047 | K14: 49504 | N14: 49504 | O14: 0 | P14: 49504 | R14: 0 | S14: 49504 | U14: =IFERROR(VLOOKUP($A14,#REF!, 19,FALSE),0) -> 0 | W14: 49504 | X14: 0 | Y14: 125 | Z14: 0 | AB14: 5300330 | AC14: BAINBRIDGE ISLAND
A15: =VLOOKUP(B15,CCDDD!$A$3:$B$319,2,FALSE) -> 06119 | B15: 5300380 | C15: BATTLE GROUND | D15: 0 | E15: 0 | F15: =VLOOKUP(B15,'24-25 Adjusted Formula counts'!$A$3:$L$320,8,FALSE) -> 15822 | G15: =ROUND((F15/$F$5*Assumptions!$D$22*Assumptions!$D$30),0) -> 85409 | H15: =VLOOKUP(B15,'24-25 Adjusted Formula counts'!$A$3:$L$320,9,FALSE) -> 788 | I15: =ROUND((H15/$H$5*Assumptions!$D$22*Assumptions!$D$31),0) -> 156744 | K15: 242153 | N15: 242153 | O15: 0 | P15: 242153 | R15: 0 | S15: 242153 | U15: =IFERROR(VLOOKUP($A15,#REF!, 19,FALSE),0) -> 0 | W15: 242153 | X15: 0 | Y15: 36 | Z15: 0 | AB15: 5300380 | AC15: BATTLE GROUND
A16: =VLOOKUP(B16,CCDDD!$A$3:$B$319,2,FALSE) -> 17405 | B16: 5300390 | C16: BELLEVUE | D16: 0 | E16: 0 | F16: =VLOOKUP(B16,'24-25 Adjusted Formula counts'!$A$3:$L$320,8,FALSE) -> 22393 | G16: =ROUND((F16/$F$5*Assumptions!$D$22*Assumptions!$D$30),0) -> 120880 | H16: =VLOOKUP(B16,'24-25 Adjusted Formula counts'!$A$3:$L$320,9,FALSE) -> 1339 | I16: =ROUND((H16/$H$5*Assumptions!$D$22*Assumptions!$D$31),0) -> 266345 | K16: 387225 | N16: 387225 | O16: 0 | P16: 387225 | R16: 0 | S16: 387225 | U16: =IFERROR(VLOOKUP($A16,#REF!, 19,FALSE),0) -> 0 | W16: 387225 | X16: 0 | Y16: 22 | Z16: 0 | AB16: 5300390 | AC16: BELLEVUE
A17: =VLOOKUP(B17,CCDDD!$A$3:$B$319,2,FALSE) -> 37501 | B17: 5300420 | C17: BELLINGHAM | D17: 0 | E17: 0 | F17: =VLOOKUP(B17,'24-25 Adjusted Formula counts'!$A$3:$L$320,8,FALSE) -> 12469.07479 | G17: =ROUND((F17/$F$5*Assumptions!$D$22*Assumptions!$D$30),0) -> 67309 | H17: =VLOOKUP(B17,'24-25 Adjusted Formula counts'!$A$3:$L$320,9,FALSE) -> 1329.014243 | I17: =ROUND((H17/$H$5*Assumptions!$D$22*Assumptions!$D$31),0) -> 264359 | K17: 331668 | N17: 331668 | O17: 0 | P17: 331668 | R17: 0 | S17: 331668 | U17: =IFERROR(VLOOKUP($A17,#REF!, 19,FALSE),0) -> 0 | W17: 331668 | X17: 0 | Y17: 27 | Z17: 0 | AB17: 5300420 | AC17: BELLINGHAM
A18: =VLOOKUP(B18,CCDDD!$A$3:$B$319,2,FALSE) -> 01122 | B18: 5300450 | C18: BENGE | D18: 0 | E18: 0 | F18: =VLOOKUP(B18,'24-25 Adjusted Formula counts'!$A$3:$L$320,8,FALSE) -> 16 | G18: =ROUND((F18/$F$5*Assumptions!$D$22*Assumptions!$D$30),0) -> 86 | H18: =VLOOKUP(B18,'24-25 Adjusted Formula counts'!$A$3:$L$320,9,FALSE) -> 1 | I18: =ROUND((H18/$H$5*Assumptions!$D$22*Assumptions!$D$31),0) -> 199 | K18: 285 | N18: 285 | O18: 0 | P18: 285 | R18: 0 | S18: 285 | U18: =IFERROR(VLOOKUP($A18,#REF!, 19,FALSE),0) -> 0 | W18: 285 | X18: 0 | Y18: 315 | Z18: 0 | AB18: 5300450 | AC18: BENGE
A19: =VLOOKUP(B19,CCDDD!$A$3:$B$319,2,FALSE) -> 27403 | B19: 5300480 | C19: BETHEL | D19: 0 | E19: 0 | F19: =VLOOKUP(B19,'24-25 Adjusted Formula counts'!$A$3:$L$320,8,FALSE) -> 24134 | G19: =ROUND((F19/$F$5*Assumptions!$D$22*Assumptions!$D$30),0) -> 130278 | H19: =VLOOKUP(B19,'24-25 Adjusted Formula counts'!$A$3:$L$320,9,FALSE) -> 2228 | I19: =ROUND((H19/$H$5*Assumptions!$D$22*Assumptions!$D$31),0) -> 443179 | K19: 573457 | N19: 573457 | O19: 0 | P19: 573457 | R19: 0 | S19: 573457 | U19: =IFERROR(VLOOKUP($A19,#REF!, 19,FALSE),0) -> 0 | W19: 573457 | X19: 0 | Y19: 14 | Z19: 0 | AB19: 5300480 | AC19: BETHEL
A20: =VLOOKUP(B20,CCDDD!$A$3:$B$319,2,FALSE) -> 20203 | B20: 5300510 | C20: BICKLETON | D20: 0 | E20: 0 | F20: =VLOOKUP(B20,'24-25 Adjusted Formula counts'!$A$3:$L$320,8,FALSE) -> 78 | G20: =ROUND((F20/$F$5*Assumptions!$D$22*Assumptions!$D$30),0) -> 421 | H20: =VLOOKUP(B20,'24-25 Adjusted Formula counts'!$A$3:$L$320,9,FALSE) -> 12 | I20: =ROUND((H20/$H$5*Assumptions!$D$22*Assumptions!$D$31),0) -> 2387 | K20: 2808 | N20: 2808 | O20: 0 | P20: 2808 | R20: 0 | S20: 2808 | U20: =IFERROR(VLOOKUP($A20,#REF!, 19,FALSE),0) -> 0 | W20: 2808 | X20: 0 | Y20: 291 | Z20: 0 | AB20: 5300510 | AC20: BICKLETON
A21: =VLOOKUP(B21,CCDDD!$A$3:$B$319,2,FALSE) -> 37503 | B21: 5300570 | C21: BLAINE | D21: 0 | E21: 0 | F21: =VLOOKUP(B21,'24-25 Adjusted Formula counts'!$A$3:$L$320,8,FALSE) -> 2473 | G21: =ROUND((F21/$F$5*Assumptions!$D$22*Assumptions!$D$30),0) -> 13350 | H21: =VLOOKUP(B21,'24-25 Adjusted Formula counts'!$A$3:$L$320,9,FALSE) -> 265 | I21: =ROUND((H21/$H$5*Assumptions!$D$22*Assumptions!$D$31),0) -> 52712 | K21: 66062 | N21: 66062 | O21: 0 | P21: 66062 | R21: 0 | S21: 66062 | U21: =IFERROR(VLOOKUP($A21,#REF!, 19,FALSE),0) -> 0 | W21: 66062 | X21: 0 | Y21: 102 | Z21: 0 | AB21: 5300570 | AC21: BLAINE
A22: =VLOOKUP(B22,CCDDD!$A$3:$B$319,2,FALSE) -> 21234 | B22: 5300630 | C22: BOISTFORT | D22: 0 | E22: 0 | F22: =VLOOKUP(B22,'24-25 Adjusted Formula counts'!$A$3:$L$320,8,FALSE) -> 215 | G22: =ROUND((F22/$F$5*Assumptions!$D$22*Assumptions!$D$30),0) -> 1161 | H22: =VLOOKUP(B22,'24-25 Adjusted Formula counts'!$A$3:$L$320,9,FALSE) -> 28 | I22: =ROUND((H22/$H$5*Assumptions!$D$22*Assumptions!$D$31),0) -> 5570 | K22: 6731 | N22: 6731 | O22: 0 | P22: 6731 | R22: 0 | S22: 6731 | U22: =IFERROR(VLOOKUP($A22,#REF!, 19,FALSE),0) -> 0 | W22: 6731 | X22: 0 | Y22: 256 | Z22: 0 | AB22: 5300630 | AC22: BOISTFORT
A23: =VLOOKUP(B23,CCDDD!$A$3:$B$319,2,FALSE) -> 18100 | B23: 5300660 | C23: BREMERTON | D23: 0 | E23: 0 | F23: =VLOOKUP(B23,'24-25 Adjusted Formula counts'!$A$3:$L$320,8,FALSE) -> 4867.243829 | G23: =ROUND((F23/$F$5*Assumptions!$D$22*Assumptions!$D$30),0) -> 26274 | H23: =VLOOKUP(B23,'24-25 Adjusted Formula counts'!$A$3:$L$320,9,FALSE) -> 923.916791 | I23: =ROUND((H23/$H$5*Assumptions!$D$22*Assumptions!$D$31),0) -> 183780 | K23: 210054 | N23: 210054 | O23: 0 | P23: 210054 | R23: 0 | S23: 210054 | U23: =IFERROR(VLOOKUP($A23,#REF!, 19,FALSE),0) -> 0 | W23: 210054 | X23: 0 | Y23: 40 | Z23: 0 | AB23: 5300660 | AC23: BREMERTON
A24: =VLOOKUP(B24,CCDDD!$A$3:$B$319,2,FALSE) -> 24111 | B24: 5300690 | C24: BREWSTER | D24: 0 | E24: 0 | F24: =VLOOKUP(B24,'24-25 Adjusted Formula counts'!$A$3:$L$320,8,FALSE) -> 968 | G24: =ROUND((F24/$F$5*Assumptions!$D$22*Assumptions!$D$30),0) -> 5225 | H24: =VLOOKUP(B24,'24-25 Adjusted Formula counts'!$A$3:$L$320,9,FALSE) -> 178 | I24: =ROUND((H24/$H$5*Assumptions!$D$22*Assumptions!$D$31),0) -> 35407 | K24: 40632 | N24: 40632 | O24: 0 | P24: 40632 | R24: 0 | S24: 40632 | U24: =IFERROR(VLOOKUP($A24,#REF!, 19,FALSE),0) -> 0 | W24: 40632 | X24: 0 | Y24: 139 | Z24: 0 | AB24: 5300690 | AC24: BREWSTER
A25: =VLOOKUP(B25,CCDDD!$A$3:$B$319,2,FALSE) -> 09075 | B25: 5300720 | C25: BRIDGEPORT | D25: 0 | E25: 0 | F25: =VLOOKUP(B25,'24-25 Adjusted Formula counts'!$A$3:$L$320,8,FALSE) -> 677 | G25: =ROUND((F25/$F$5*Assumptions!$D$22*Assumptions!$D$30),0) -> 3655 | H25: =VLOOKUP(B25,'24-25 Adjusted Formula counts'!$A$3:$L$320,9,FALSE) -> 163 | I25: =ROUND((H25/$H$5*Assumptions!$D$22*Assumptions!$D$31),0) -> 32423 | K25: 36078 | N25: 36078 | O25: 0 | P25: 36078 | R25: 0 | S25: 36078 | U25: =IFERROR(VLOOKUP($A25,#REF!, 19,FALSE),0) -> 0 | W25: 36078 | X25: 0 | Y25: 147 | Z25: 0 | AB25: 5300720 | AC25: BRIDGEPORT
A26: =VLOOKUP(B26,CCDDD!$A$3:$B$319,2,FALSE) -> 16046 | B26: 5300750 | C26: BRINNON | D26: 0 | E26: 0 | F26: =VLOOKUP(B26,'24-25 Adjusted Formula counts'!$A$3:$L$320,8,FALSE) -> 116 | G26: =ROUND((F26/$F$5*Assumptions!$D$22*Assumptions!$D$30),0) -> 626 | H26: =VLOOKUP(B26,'24-25 Adjusted Formula counts'!$A$3:$L$320,9,FALSE) -> 27 | I26: =ROUND((H26/$H$5*Assumptions!$D$22*Assumptions!$D$31),0) -> 5371 | K26: 5997 | N26: 5997 | O26: 0 | P26: 5997 | R26: 0 | S26: 5997 | U26: =IFERROR(VLOOKUP($A26,#REF!, 19,FALSE),0) -> 0 | W26: 5997 | X26: 0 | Y26: 259 | Z26: 0 | AB26: 5300750 | AC26: BRINNON
A27: =VLOOKUP(B27,CCDDD!$A$3:$B$319,2,FALSE) -> 29100 | B27: 5300780 | C27: BURLINGTON-EDISON | D27: 0 | E27: 0 | F27: =VLOOKUP(B27,'24-25 Adjusted Formula counts'!$A$3:$L$320,8,FALSE) -> 3721 | G27: =ROUND((F27/$F$5*Assumptions!$D$22*Assumptions!$D$30),0) -> 20086 | H27: =VLOOKUP(B27,'24-25 Adjusted Formula counts'!$A$3:$L$320,9,FALSE) -> 390 | I27: =ROUND((H27/$H$5*Assumptions!$D$22*Assumptions!$D$31),0) -> 77576 | K27: 97662 | N27: 97662 | O27: 0 | P27: 97662 | R27: 0 | S27: 97662 | U27: =IFERROR(VLOOKUP($A27,#REF!, 19,FALSE),0) -> 0 | W27: 97662 | X27: 0 | Y27: 79 | Z27: 0 | AB27: 5300780 | AC27: BURLINGTON-EDISON
A28: =VLOOKUP(B28,CCDDD!$A$3:$B$319,2,FALSE) -> 06117 | B28: 5300810 | C28: CAMAS | D28: 0 | E28: 0 | F28: =VLOOKUP(B28,'24-25 Adjusted Formula counts'!$A$3:$L$320,8,FALSE) -> 7408 | G28: =ROUND((F28/$F$5*Assumptions!$D$22*Assumptions!$D$30),0) -> 39989 | H28: =VLOOKUP(B28,'24-25 Adjusted Formula counts'!$A$3:$L$320,9,FALSE) -> 246 | I28: =ROUND((H28/$H$5*Assumptions!$D$22*Assumptions!$D$31),0) -> 48933 | K28: 88922 | N28: 88922 | O28: 0 | P28: 88922 | R28: 0 | S28: 88922 | U28: =IFERROR(VLOOKUP($A28,#REF!, 19,FALSE),0) -> 0 | W28: 88922 | X28: 0 | Y28: 85 | Z28: 0 | AB28: 5300810 | AC28: CAMAS
A29: =VLOOKUP(B29,CCDDD!$A$3:$B$319,2,FALSE) -> 05401 | B29: 5300840 | C29: CAPE FLATTERY | D29: 0 | E29: 0 | F29: =VLOOKUP(B29,'24-25 Adjusted Formula counts'!$A$3:$L$320,8,FALSE) -> 550 | G29: =ROUND((F29/$F$5*Assumptions!$D$22*Assumptions!$D$30),0) -> 2969 | H29: =VLOOKUP(B29,'24-25 Adjusted Formula counts'!$A$3:$L$320,9,FALSE) -> 112 | I29: =ROUND((H29/$H$5*Assumptions!$D$22*Assumptions!$D$31),0) -> 22278 | K29: 25247 | N29: 25247 | O29: 0 | P29: 25247 | R29: 0 | S29: 25247 | U29: =IFERROR(VLOOKUP($A29,#REF!, 19,FALSE),0) -> 0 | W29: 25247 | X29: 0 | Y29: 173 | Z29: 0 | AB29: 5300840 | AC29: CAPE FLATTERY
A30: =VLOOKUP(B30,CCDDD!$A$3:$B$319,2,FALSE) -> 27019 | B30: 5300870 | C30: CARBONADO | D30: 0 | E30: 0 | F30: =VLOOKUP(B30,'24-25 Adjusted Formula counts'!$A$3:$L$320,8,FALSE) -> 208 | G30: =ROUND((F30/$F$5*Assumptions!$D$22*Assumptions!$D$30),0) -> 1123 | H30: =VLOOKUP(B30,'24-25 Adjusted Formula counts'!$A$3:$L$320,9,FALSE) -> 7 | I30: =ROUND((H30/$H$5*Assumptions!$D$22*Assumptions!$D$31),0) -> 1392 | K30: 2515 | N30: 2515 | O30: 0 | P30: 2515 | R30: 0 | S30: 2515 | U30: =IFERROR(VLOOKUP($A30,#REF!, 19,FALSE),0) -> 0 | W30: 2515 | X30: 0 | Y30: 292 | Z30: 0 | AB30: 5300870 | AC30: CARBONADO
A31: =VLOOKUP(B31,CCDDD!$A$3:$B$319,2,FALSE) -> 04228 | B31: 5300950 | C31: CASCADE | D31: 0 | E31: 0 | F31: =VLOOKUP(B31,'24-25 Adjusted Formula counts'!$A$3:$L$320,8,FALSE) -> 1554 | G31: =ROUND((F31/$F$5*Assumptions!$D$22*Assumptions!$D$30),0) -> 8389 | H31: =VLOOKUP(B31,'24-25 Adjusted Formula counts'!$A$3:$L$320,9,FALSE) -> 176 | I31: =ROUND((H31/$H$5*Assumptions!$D$22*Assumptions!$D$31),0) -> 35009 | K31: 43398 | N31: 43398 | O31: 0 | P31: 43398 | R31: 0 | S31: 43398 | U31: =IFERROR(VLOOKUP($A31,#REF!, 19,FALSE),0) -> 0 | W31: 43398 | X31: 0 | Y31: 134 | Z31: 0 | AB31: 5300950 | AC31: CASCADE
A32: =VLOOKUP(B32,CCDDD!$A$3:$B$319,2,FALSE) -> 04222 | B32: 5300960 | C32: CASHMERE | D32: 0 | E32: 0 | F32: =VLOOKUP(B32,'24-25 Adjusted Formula counts'!$A$3:$L$320,8,FALSE) -> 1496 | G32: =ROUND((F32/$F$5*Assumptions!$D$22*Assumptions!$D$30),0) -> 8076 | H32: =VLOOKUP(B32,'24-25 Adjusted Formula counts'!$A$3:$L$320,9,FALSE) -> 161 | I32: =ROUND((H32/$H$5*Assumptions!$D$22*Assumptions!$D$31),0) -> 32025 | K32: 40101 | N32: 40101 | O32: 0 | P32: 40101 | R32: 0 | S32: 40101 | U32: =IFERROR(VLOOKUP($A32,#REF!, 19,FALSE),0) -> 0 | W32: 40101 | X32: 0 | Y32: 140 | Z32: 0 | AB32: 5300960 | AC32: CASHMERE
A33: =VLOOKUP(B33,CCDDD!$A$3:$B$319,2,FALSE) -> 08401 | B33: 5300990 | C33: CASTLE ROCK | D33: 0 | E33: 0 | F33: =VLOOKUP(B33,'24-25 Adjusted Formula counts'!$A$3:$L$320,8,FALSE) -> 1636 | G33: =ROUND((F33/$F$5*Assumptions!$D$22*Assumptions!$D$30),0) -> 8831 | H33: =VLOOKUP(B33,'24-25 Adjusted Formula counts'!$A$3:$L$320,9,FALSE) -> 181 | I33: =ROUND((H33/$H$5*Assumptions!$D$22*Assumptions!$D$31),0) -> 36003 | K33: 44834 | N33: 44834 | O33: 0 | P33: 44834 | R33: 0 | S33: 44834 | U33: =IFERROR(VLOOKUP($A33,#REF!, 19,FALSE),0) -> 0 | W33: 44834 | X33: 0 | Y33: 131 | Z33: 0 | AB33: 5300990 | AC33: CASTLE ROCK
A34: =VLOOKUP(B34,CCDDD!$A$3:$B$319,2,FALSE) -> 18901 | B34: 5301000 | C34: CATALYST BREMERTON CHARTER | D34: 0 | E34: 0 | F34: =VLOOKUP(B34,'24-25 Adjusted Formula counts'!$A$3:$L$320,8,FALSE) -> 610.778246 | G34: =ROUND((F34/$F$5*Assumptions!$D$22*Assumptions!$D$30),0) -> 3297 | H34: =VLOOKUP(B34,'24-25 Adjusted Formula counts'!$A$3:$L$320,9,FALSE) -> 85.07238806 | I34: =ROUND((H34/$H$5*Assumptions!$D$22*Assumptions!$D$31),0) -> 16922 | K34: 20219 | N34: 20219 | O34: 0 | P34: 20219 | R34: 0 | S34: 20219 | U34: =IFERROR(VLOOKUP($A34,#REF!, 19,FALSE),0) -> 0 | W34: 20219 | X34: 0 | Y34: 185 | Z34: 0 | AB34: 5301000 | AC34: CATALYST BREMERTON CHARTER
A35: =VLOOKUP(B35,CCDDD!$A$3:$B$319,2,FALSE) -> 20215 | B35: 5301050 | C35: CENTERVILLE | D35: 0 | E35: 0 | F35: =VLOOKUP(B35,'24-25 Adjusted Formula counts'!$A$3:$L$320,8,FALSE) -> 93 | G35: =ROUND((F35/$F$5*Assumptions!$D$22*Assumptions!$D$30),0) -> 502 | H35: =VLOOKUP(B35,'24-25 Adjusted Formula counts'!$A$3:$L$320,9,FALSE) -> 27 | I35: =ROUND((H35/$H$5*Assumptions!$D$22*Assumptions!$D$31),0) -> 5371 | K35: 5873 | N35: 5873 | O35: 0 | P35: 5873 | R35: 0 | S35: 5873 | U35: =IFERROR(VLOOKUP($A35,#REF!, 19,FALSE),0) -> 0 | W35: 5873 | X35: 0 | Y35: 261 | Z35: 0 | AB35: 5301050 | AC35: CENTERVILLE
A36: =VLOOKUP(B36,CCDDD!$A$3:$B$319,2,FALSE) -> 18401 | B36: 5301080 | C36: CENTRAL KITSAP | D36: 0 | E36: 0 | F36: =VLOOKUP(B36,'24-25 Adjusted Formula counts'!$A$3:$L$320,8,FALSE) -> 11148 | G36: =ROUND((F36/$F$5*Assumptions!$D$22*Assumptions!$D$30),0) -> 60178 | H36: =VLOOKUP(B36,'24-25 Adjusted Formula counts'!$A$3:$L$320,9,FALSE) -> 853 | I36: =ROUND((H36/$H$5*Assumptions!$D$22*Assumptions!$D$31),0) -> 169673 | K36: 229851 | N36: 229851 | O36: 0 | P36: 229851 | R36: 0 | S36: 229851 | U36: =IFERROR(VLOOKUP($A36,#REF!, 19,FALSE),0) -> 0 | W36: 229851 | X36: 0 | Y36: 37 | Z36: 0 | AB36: 5301080 | AC36: CENTRAL KITSAP
A37: =VLOOKUP(B37,CCDDD!$A$3:$B$319,2,FALSE) -> 32356 | B37: 5301110 | C37: CENTRAL VALLEY | D37: 0 | E37: 0 | F37: =VLOOKUP(B37,'24-25 Adjusted Formula counts'!$A$3:$L$320,8,FALSE) -> 17019 | G37: =ROUND((F37/$F$5*Assumptions!$D$22*Assumptions!$D$30),0) -> 91870 | H37: =VLOOKUP(B37,'24-25 Adjusted Formula counts'!$A$3:$L$320,9,FALSE) -> 1806 | I37: =ROUND((H37/$H$5*Assumptions!$D$22*Assumptions!$D$31),0) -> 359238 | K37: 451108 | N37: 451108 | O37: 0 | P37: 451108 | R37: 0 | S37: 451108 | U37: =IFERROR(VLOOKUP($A37,#REF!, 19,FALSE),0) -> 0 | W37: 451108 | X37: 0 | Y37: 21 | Z37: 0 | AB37: 5301110 | AC37: CENTRAL VALLEY
A38: =VLOOKUP(B38,CCDDD!$A$3:$B$319,2,FALSE) -> 21401 | B38: 5301140 | C38: CENTRALIA | D38: 0 | E38: 0 | F38: =VLOOKUP(B38,'24-25 Adjusted Formula counts'!$A$3:$L$320,8,FALSE) -> 4274 | G38: =ROUND((F38/$F$5*Assumptions!$D$22*Assumptions!$D$30),0) -> 23072 | H38: =VLOOKUP(B38,'24-25 Adjusted Formula counts'!$A$3:$L$320,9,FALSE) -> 748 | I38: =ROUND((H38/$H$5*Assumptions!$D$22*Assumptions!$D$31),0) -> 148787 | K38: 171859 | N38: 171859 | O38: 0 | P38: 171859 | R38: 0 | S38: 171859 | U38: =IFERROR(VLOOKUP($A38,#REF!, 19,FALSE),0) -> 0 | W38: 171859 | X38: 0 | Y38: 50 | Z38: 0 | AB38: 5301140 | AC38: CENTRALIA
A39: =VLOOKUP(B39,CCDDD!$A$3:$B$319,2,FALSE) -> 21302 | B39: 5301170 | C39: CHEHALIS | D39: 0 | E39: 0 | F39: =VLOOKUP(B39,'24-25 Adjusted Formula counts'!$A$3:$L$320,8,FALSE) -> 2856 | G39: =ROUND((F39/$F$5*Assumptions!$D$22*Assumptions!$D$30),0) -> 15417 | H39: =VLOOKUP(B39,'24-25 Adjusted Formula counts'!$A$3:$L$320,9,FALSE) -> 249 | I39: =ROUND((H39/$H$5*Assumptions!$D$22*Assumptions!$D$31),0) -> 49529 | K39: 64946 | N39: 64946 | O39: 0 | P39: 64946 | R39: 0 | S39: 64946 | U39: =IFERROR(VLOOKUP($A39,#REF!, 19,FALSE),0) -> 0 | W39: 64946 | X39: 0 | Y39: 104 | Z39: 0 | AB39: 5301170 | AC39: CHEHALIS
A40: =VLOOKUP(B40,CCDDD!$A$3:$B$319,2,FALSE) -> 32360 | B40: 5301230 | C40: CHENEY | D40: 0 | E40: 0 | F40: =VLOOKUP(B40,'24-25 Adjusted Formula counts'!$A$3:$L$320,8,FALSE) -> 6241 | G40: =ROUND((F40/$F$5*Assumptions!$D$22*Assumptions!$D$30),0) -> 33690 | H40: =VLOOKUP(B40,'24-25 Adjusted Formula counts'!$A$3:$L$320,9,FALSE) -> 860 | I40: =ROUND((H40/$H$5*Assumptions!$D$22*Assumptions!$D$31),0) -> 171066 | K40: 204756 | N40: 204756 | O40: 0 | P40: 204756 | R40: 0 | S40: 204756 | U40: =IFERROR(VLOOKUP($A40,#REF!, 19,FALSE),0) -> 0 | W40: 204756 | X40: 0 | Y40: 42 | Z40: 0 | AB40: 5301230 | AC40: CHENEY
A41: =VLOOKUP(B41,CCDDD!$A$3:$B$319,2,FALSE) -> 33036 | B41: 5301260 | C41: CHEWELAH | D41: 0 | E41: 0 | F41: =VLOOKUP(B41,'24-25 Adjusted Formula counts'!$A$3:$L$320,8,FALSE) -> 938 | G41: =ROUND((F41/$F$5*Assumptions!$D$22*Assumptions!$D$30),0) -> 5063 | H41: =VLOOKUP(B41,'24-25 Adjusted Formula counts'!$A$3:$L$320,9,FALSE) -> 160 | I41: =ROUND((H41/$H$5*Assumptions!$D$22*Assumptions!$D$31),0) -> 31826 | K41: 36889 | N41: 36889 | O41: 0 | P41: 36889 | R41: 0 | S41: 36889 | U41: =IFERROR(VLOOKUP($A41,#REF!, 19,FALSE),0) -> 0 | W41: 36889 | X41: 0 | Y41: 146 | Z41: 0 | AB41: 5301260 | AC41: CHEWELAH
A42: =VLOOKUP(B42,CCDDD!$A$3:$B$319,2,FALSE) -> 16049 | B42: 5301290 | C42: CHIMACUM | D42: 0 | E42: 0 | F42: =VLOOKUP(B42,'24-25 Adjusted Formula counts'!$A$3:$L$320,8,FALSE) -> 1152 | G42: =ROUND((F42/$F$5*Assumptions!$D$22*Assumptions!$D$30),0) -> 6219 | H42: =VLOOKUP(B42,'24-25 Adjusted Formula counts'!$A$3:$L$320,9,FALSE) -> 170 | I42: =ROUND((H42/$H$5*Assumptions!$D$22*Assumptions!$D$31),0) -> 33815 | K42: 40034 | N42: 40034 | O42: 0 | P42: 40034 | R42: 0 | S42: 40034 | U42: =IFERROR(VLOOKUP($A42,#REF!, 19,FALSE),0) -> 0 | W42: 40034 | X42: 0 | Y42: 141 | Z42: 0 | AB42: 5301290 | AC42: CHIMACUM
A43: =VLOOKUP(B43,CCDDD!$A$3:$B$319,2,FALSE) -> 02250 | B43: 5301320 | C43: CLARKSTON | D43: 0 | E43: 0 | F43: =VLOOKUP(B43,'24-25 Adjusted Formula counts'!$A$3:$L$320,8,FALSE) -> 2795 | G43: =ROUND((F43/$F$5*Assumptions!$D$22*Assumptions!$D$30),0) -> 15088 | H43: =VLOOKUP(B43,'24-25 Adjusted Formula counts'!$A$3:$L$320,9,FALSE) -> 584 | I43: =ROUND((H43/$H$5*Assumptions!$D$22*Assumptions!$D$31),0) -> 116166 | K43: 131254 | N43: 131254 | O43: 0 | P43: 131254 | R43: 0 | S43: 131254 | U43: =IFERROR(VLOOKUP($A43,#REF!, 19,FALSE),0) -> 0 | W43: 131254 | X43: 0 | Y43: 66 | Z43: 0 | AB43: 5301320 | AC43: CLARKSTON
A44: =VLOOKUP(B44,CCDDD!$A$3:$B$319,2,FALSE) -> 19404 | B44: 5301350 | C44: CLE ELUM-ROSLYN | D44: 0 | E44: 0 | F44: =VLOOKUP(B44,'24-25 Adjusted Formula counts'!$A$3:$L$320,8,FALSE) -> 1062 | G44: =ROUND((F44/$F$5*Assumptions!$D$22*Assumptions!$D$30),0) -> 5733 | H44: =VLOOKUP(B44,'24-25 Adjusted Formula counts'!$A$3:$L$320,9,FALSE) -> 148 | I44: =ROUND((H44/$H$5*Assumptions!$D$22*Assumptions!$D$31),0) -> 29439 | K44: 35172 | N44: 35172 | O44: 0 | P44: 35172 | R44: 0 | S44: 35172 | U44: =IFERROR(VLOOKUP($A44,#REF!, 19,FALSE),0) -> 0 | W44: 35172 | X44: 0 | Y44: 149 | Z44: 0 | AB44: 5301350 | AC44: CLE ELUM-ROSLYN
A45: =VLOOKUP(B45,CCDDD!$A$3:$B$319,2,FALSE) -> 27400 | B45: 5301410 | C45: CLOVER PARK | D45: 0 | E45: 0 | F45: =VLOOKUP(B45,'24-25 Adjusted Formula counts'!$A$3:$L$320,8,FALSE) -> 13680 | G45: =ROUND((F45/$F$5*Assumptions!$D$22*Assumptions!$D$30),0) -> 73846 | H45: =VLOOKUP(B45,'24-25 Adjusted Formula counts'!$A$3:$L$320,9,FALSE) -> 1961 | I45: =ROUND((H45/$H$5*Assumptions!$D$22*Assumptions!$D$31),0) -> 390069 | K45: 463915 | N45: 463915 | O45: 0 | P45: 463915 | R45: 0 | S45: 463915 | U45: =IFERROR(VLOOKUP($A45,#REF!, 19,FALSE),0) -> 0 | W45: 463915 | X45: 0 | Y45: 20 | Z45: 0 | AB45: 5301410 | AC45: CLOVER PARK
A46: =VLOOKUP(B46,CCDDD!$A$3:$B$319,2,FALSE) -> 38300 | B46: 5301440 | C46: COLFAX | D46: 0 | E46: 0 | F46: =VLOOKUP(B46,'24-25 Adjusted Formula counts'!$A$3:$L$320,8,FALSE) -> 597 | G46: =ROUND((F46/$F$5*Assumptions!$D$22*Assumptions!$D$30),0) -> 3223 | H46: =VLOOKUP(B46,'24-25 Adjusted Formula counts'!$A$3:$L$320,9,FALSE) -> 45 | I46: =ROUND((H46/$H$5*Assumptions!$D$22*Assumptions!$D$31),0) -> 8951 | K46: 12174 | N46: 12174 | O46: 0 | P46: 12174 | R46: 0 | S46: 12174 | U46: =IFERROR(VLOOKUP($A46,#REF!, 19,FALSE),0) -> 0 | W46: 12174 | X46: 0 | Y46: 221 | Z46: 0 | AB46: 5301440 | AC46: COLFAX
A47: =VLOOKUP(B47,CCDDD!$A$3:$B$319,2,FALSE) -> 36250 | B47: 5301470 | C47: COLLEGE PLACE | D47: 0 | E47: 0 | F47: =VLOOKUP(B47,'24-25 Adjusted Formula counts'!$A$3:$L$320,8,FALSE) -> 2035 | G47: =ROUND((F47/$F$5*Assumptions!$D$22*Assumptions!$D$30),0) -> 10985 | H47: =VLOOKUP(B47,'24-25 Adjusted Formula counts'!$A$3:$L$320,9,FALSE) -> 208 | I47: =ROUND((H47/$H$5*Assumptions!$D$22*Assumptions!$D$31),0) -> 41374 | K47: 52359 | N47: 52359 | O47: 0 | P47: 52359 | R47: 0 | S47: 52359 | U47: =IFERROR(VLOOKUP($A47,#REF!, 19,FALSE),0) -> 0 | W47: 52359 | X47: 0 | Y47: 118 | Z47: 0 | AB47: 5301470 | AC47: COLLEGE PLACE
A48: =VLOOKUP(B48,CCDDD!$A$3:$B$319,2,FALSE) -> 38306 | B48: 5301500 | C48: COLTON | D48: 0 | E48: 0 | F48: =VLOOKUP(B48,'24-25 Adjusted Formula counts'!$A$3:$L$320,8,FALSE) -> 240 | G48: =ROUND((F48/$F$5*Assumptions!$D$22*Assumptions!$D$30),0) -> 1296 | H48: =VLOOKUP(B48,'24-25 Adjusted Formula counts'!$A$3:$L$320,9,FALSE) -> 17 | I48: =ROUND((H48/$H$5*Assumptions!$D$22*Assumptions!$D$31),0) -> 3382 | K48: 4678 | N48: 4678 | O48: 0 | P48: 4678 | R48: 0 | S48: 4678 | U48: =IFERROR(VLOOKUP($A48,#REF!, 19,FALSE),0) -> 0 | W48: 4678 | X48: 0 | Y48: 270 | Z48: 0 | AB48: 5301500 | AC48: COLTON
A49: =VLOOKUP(B49,CCDDD!$A$3:$B$319,2,FALSE) -> 33206 | B49: 5301560 | C49: COLUMBIA (STEV) | D49: 0 | E49: 0 | F49: =VLOOKUP(B49,'24-25 Adjusted Formula counts'!$A$3:$L$320,8,FALSE) -> 205 | G49: =ROUND((F49/$F$5*Assumptions!$D$22*Assumptions!$D$30),0) -> 1107 | H49: =VLOOKUP(B49,'24-25 Adjusted Formula counts'!$A$3:$L$320,9,FALSE) -> 42 | I49: =ROUND((H49/$H$5*Assumptions!$D$22*Assumptions!$D$31),0) -> 8354 | K49: 9461 | N49: 9461 | O49: 0 | P49: 9461 | R49: 0 | S49: 9461 | U49: =IFERROR(VLOOKUP($A49,#REF!, 19,FALSE),0) -> 0 | W49: 9461 | X49: 0 | Y49: 235 | Z49: 0 | AB49: 5301560 | AC49: COLUMBIA (STEV)
A50: =VLOOKUP(B50,CCDDD!$A$3:$B$319,2,FALSE) -> 36400 | B50: 5301590 | C50: COLUMBIA (WALLA) | D50: 0 | E50: 0 | F50: =VLOOKUP(B50,'24-25 Adjusted Formula counts'!$A$3:$L$320,8,FALSE) -> 756 | G50: =ROUND((F50/$F$5*Assumptions!$D$22*Assumptions!$D$30),0) -> 4081 | H50: =VLOOKUP(B50,'24-25 Adjusted Formula counts'!$A$3:$L$320,9,FALSE) -> 98 | I50: =ROUND((H50/$H$5*Assumptions!$D$22*Assumptions!$D$31),0) -> 19494 | K50: 23575 | N50: 23575 | O50: 0 | P50: 23575 | R50: 0 | S50: 23575 | U50: =IFERROR(VLOOKUP($A50,#REF!, 19,FALSE),0) -> 0 | W50: 23575 | X50: 0 | Y50: 180 | Z50: 0 | AB50: 5301590 | AC50: COLUMBIA (WALLA)
A51: =VLOOKUP(B51,CCDDD!$A$3:$B$319,2,FALSE) -> 33115 | B51: 5301630 | C51: COLVILLE | D51: 0 | E51: 0 | F51: =VLOOKUP(B51,'24-25 Adjusted Formula counts'!$A$3:$L$320,8,FALSE) -> 1998 | G51: =ROUND((F51/$F$5*Assumptions!$D$22*Assumptions!$D$30),0) -> 10785 | H51: =VLOOKUP(B51,'24-25 Adjusted Formula counts'!$A$3:$L$320,9,FALSE) -> 318 | I51: =ROUND((H51/$H$5*Assumptions!$D$22*Assumptions!$D$31),0) -> 63255 | K51: 74040 | N51: 74040 | O51: 0 | P51: 74040 | R51: 0 | S51: 74040 | U51: =IFERROR(VLOOKUP($A51,#REF!, 19,FALSE),0) -> 0 | W51: 74040 | X51: 0 | Y51: 96 | Z51: 0 | AB51: 5301630 | AC51: COLVILLE
A52: =VLOOKUP(B52,CCDDD!$A$3:$B$319,2,FALSE) -> 29011 | B52: 5301660 | C52: CONCRETE | D52: 0 | E52: 0 | F52: =VLOOKUP(B52,'24-25 Adjusted Formula counts'!$A$3:$L$320,8,FALSE) -> 716 | G52: =ROUND((F52/$F$5*Assumptions!$D$22*Assumptions!$D$30),0) -> 3865 | H52: =VLOOKUP(B52,'24-25 Adjusted Formula counts'!$A$3:$L$320,9,FALSE) -> 140 | I52: =ROUND((H52/$H$5*Assumptions!$D$22*Assumptions!$D$31),0) -> 27848 | K52: 31713 | N52: 31713 | O52: 0 | P52: 31713 | R52: 0 | S52: 31713 | U52: =IFERROR(VLOOKUP($A52,#REF!, 19,FALSE),0) -> 0 | W52: 31713 | X52: 0 | Y52: 156 | Z52: 0 | AB52: 5301660 | AC52: CONCRETE
A53: =VLOOKUP(B53,CCDDD!$A$3:$B$319,2,FALSE) -> 29317 | B53: 5301680 | C53: CONWAY | D53: 0 | E53: 0 | F53: =VLOOKUP(B53,'24-25 Adjusted Formula counts'!$A$3:$L$320,8,FALSE) -> 542 | G53: =ROUND((F53/$F$5*Assumptions!$D$22*Assumptions!$D$30),0) -> 2926 | H53: =VLOOKUP(B53,'24-25 Adjusted Formula counts'!$A$3:$L$320,9,FALSE) -> 58 | I53: =ROUND((H53/$H$5*Assumptions!$D$22*Assumptions!$D$31),0) -> 11537 | K53: 14463 | N53: 14463 | O53: 0 | P53: 14463 | R53: 0 | S53: 14463 | U53: =IFERROR(VLOOKUP($A53,#REF!, 19,FALSE),0) -> 0 | W53: 14463 | X53: 0 | Y53: 211 | Z53: 0 | AB53: 5301680 | AC53: CONWAY
A54: =VLOOKUP(B54,CCDDD!$A$3:$B$319,2,FALSE) -> 14099 | B54: 5301710 | C54: COSMOPOLIS | D54: 0 | E54: 0 | F54: =VLOOKUP(B54,'24-25 Adjusted Formula counts'!$A$3:$L$320,8,FALSE) -> 315 | G54: =ROUND((F54/$F$5*Assumptions!$D$22*Assumptions!$D$30),0) -> 1700 | H54: =VLOOKUP(B54,'24-25 Adjusted Formula counts'!$A$3:$L$320,9,FALSE) -> 48 | I54: =ROUND((H54/$H$5*Assumptions!$D$22*Assumptions!$D$31),0) -> 9548 | K54: 11248 | N54: 11248 | O54: 0 | P54: 11248 | R54: 0 | S54: 11248 | U54: =IFERROR(VLOOKUP($A54,#REF!, 19,FALSE),0) -> 0 | W54: 11248 | X54: 0 | Y54: 225 | Z54: 0 | AB54: 5301710 | AC54: COSMOPOLIS
A55: =VLOOKUP(B55,CCDDD!$A$3:$B$319,2,FALSE) -> 13151 | B55: 5303440 | C55: COULEE-HARTLINE | D55: 0 | E55: 0 | F55: =VLOOKUP(B55,'24-25 Adjusted Formula counts'!$A$3:$L$320,8,FALSE) -> 247 | G55: =ROUND((F55/$F$5*Assumptions!$D$22*Assumptions!$D$30),0) -> 1333 | H55: =VLOOKUP(B55,'24-25 Adjusted Formula counts'!$A$3:$L$320,9,FALSE) -> 40 | I55: =ROUND((H55/$H$5*Assumptions!$D$22*Assumptions!$D$31),0) -> 7957 | K55: 9290 | N55: 9290 | O55: 0 | P55: 9290 | R55: 0 | S55: 9290 | U55: =IFERROR(VLOOKUP($A55,#REF!, 19,FALSE),0) -> 0 | W55: 9290 | X55: 0 | Y55: 236 | Z55: 0 | AB55: 5303440 | AC55: COULEE-HARTLINE
A56: =VLOOKUP(B56,CCDDD!$A$3:$B$319,2,FALSE) -> 15204 | B56: 5301800 | C56: COUPEVILLE | D56: 0 | E56: 0 | F56: =VLOOKUP(B56,'24-25 Adjusted Formula counts'!$A$3:$L$320,8,FALSE) -> 1091 | G56: =ROUND((F56/$F$5*Assumptions!$D$22*Assumptions!$D$30),0) -> 5889 | H56: =VLOOKUP(B56,'24-25 Adjusted Formula counts'!$A$3:$L$320,9,FALSE) -> 95 | I56: =ROUND((H56/$H$5*Assumptions!$D$22*Assumptions!$D$31),0) -> 18897 | K56: 24786 | N56: 24786 | O56: 0 | P56: 24786 | R56: 0 | S56: 24786 | U56: =IFERROR(VLOOKUP($A56,#REF!, 19,FALSE),0) -> 0 | W56: 24786 | X56: 0 | Y56: 174 | Z56: 0 | AB56: 5301800 | AC56: COUPEVILLE
A57: =VLOOKUP(B57,CCDDD!$A$3:$B$319,2,FALSE) -> 05313 | B57: 5301830 | C57: CRESCENT | D57: 0 | E57: 0 | F57: =VLOOKUP(B57,'24-25 Adjusted Formula counts'!$A$3:$L$320,8,FALSE) -> 345 | G57: =ROUND((F57/$F$5*Assumptions!$D$22*Assumptions!$D$30),0) -> 1862 | H57: =VLOOKUP(B57,'24-25 Adjusted Formula counts'!$A$3:$L$320,9,FALSE) -> 62 | I57: =ROUND((H57/$H$5*Assumptions!$D$22*Assumptions!$D$31),0) -> 12333 | K57: 14195 | N57: 14195 | O57: 0 | P57: 14195 | R57: 0 | S57: 14195 | U57: =IFERROR(VLOOKUP($A57,#REF!, 19,FALSE),0) -> 0 | W57: 14195 | X57: 0 | Y57: 214 | Z57: 0 | AB57: 5301830 | AC57: CRESCENT
A58: =VLOOKUP(B58,CCDDD!$A$3:$B$319,2,FALSE) -> 22073 | B58: 5301860 | C58: CRESTON | D58: 0 | E58: 0 | F58: =VLOOKUP(B58,'24-25 Adjusted Formula counts'!$A$3:$L$320,8,FALSE) -> 114 | G58: =ROUND((F58/$F$5*Assumptions!$D$22*Assumptions!$D$30),0) -> 615 | H58: =VLOOKUP(B58,'24-25 Adjusted Formula counts'!$A$3:$L$320,9,FALSE) -> 13 | I58: =ROUND((H58/$H$5*Assumptions!$D$22*Assumptions!$D$31),0) -> 2586 | K58: 3201 | N58: 3201 | O58: 0 | P58: 3201 | R58: 0 | S58: 3201 | U58: =IFERROR(VLOOKUP($A58,#REF!, 19,FALSE),0) -> 0 | W58: 3201 | X58: 0 | Y58: 285 | Z58: 0 | AB58: 5301860 | AC58: CRESTON
A59: =VLOOKUP(B59,CCDDD!$A$3:$B$319,2,FALSE) -> 10050 | B59: 5301890 | C59: CURLEW | D59: 0 | E59: 0 | F59: =VLOOKUP(B59,'24-25 Adjusted Formula counts'!$A$3:$L$320,8,FALSE) -> 158 | G59: =ROUND((F59/$F$5*Assumptions!$D$22*Assumptions!$D$30),0) -> 853 | H59: =VLOOKUP(B59,'24-25 Adjusted Formula counts'!$A$3:$L$320,9,FALSE) -> 41 | I59: =ROUND((H59/$H$5*Assumptions!$D$22*Assumptions!$D$31),0) -> 8155 | K59: 9008 | N59: 9008 | O59: 0 | P59: 9008 | R59: 0 | S59: 9008 | U59: =IFERROR(VLOOKUP($A59,#REF!, 19,FALSE),0) -> 0 | W59: 9008 | X59: 0 | Y59: 237 | Z59: 0 | AB59: 5301890 | AC59: CURLEW
A60: =VLOOKUP(B60,CCDDD!$A$3:$B$319,2,FALSE) -> 26059 | B60: 5301920 | C60: CUSICK | D60: 0 | E60: 0 | F60: =VLOOKUP(B60,'24-25 Adjusted Formula counts'!$A$3:$L$320,8,FALSE) -> 316 | G60: =ROUND((F60/$F$5*Assumptions!$D$22*Assumptions!$D$30),0) -> 1706 | H60: =VLOOKUP(B60,'24-25 Adjusted Formula counts'!$A$3:$L$320,9,FALSE) -> 70 | I60: =ROUND((H60/$H$5*Assumptions!$D$22*Assumptions!$D$31),0) -> 13924 | K60: 15630 | N60: 15630 | O60: 0 | P60: 15630 | R60: 0 | S60: 15630 | U60: =IFERROR(VLOOKUP($A60,#REF!, 19,FALSE),0) -> 0 | W60: 15630 | X60: 0 | Y60: 201 | Z60: 0 | AB60: 5301920 | AC60: CUSICK
A61: =VLOOKUP(B61,CCDDD!$A$3:$B$319,2,FALSE) -> 19007 | B61: 5301950 | C61: DAMMAN | D61: 0 | E61: 0 | F61: =VLOOKUP(B61,'24-25 Adjusted Formula counts'!$A$3:$L$320,8,FALSE) -> 111 | G61: =ROUND((F61/$F$5*Assumptions!$D$22*Assumptions!$D$30),0) -> 599 | H61: =VLOOKUP(B61,'24-25 Adjusted Formula counts'!$A$3:$L$320,9,FALSE) -> 2 | I61: =ROUND((H61/$H$5*Assumptions!$D$22*Assumptions!$D$31),0) -> 398 | K61: 997 | N61: 997 | O61: 0 | P61: 997 | R61: 0 | S61: 997 | U61: =IFERROR(VLOOKUP($A61,#REF!, 19,FALSE),0) -> 0 | W61: 997 | X61: 0 | Y61: 308 | Z61: 0 | AB61: 5301950 | AC61: DAMMAN
A62: =VLOOKUP(B62,CCDDD!$A$3:$B$319,2,FALSE) -> 31330 | B62: 5301980 | C62: DARRINGTON | D62: 0 | E62: 0 | F62: =VLOOKUP(B62,'24-25 Adjusted Formula counts'!$A$3:$L$320,8,FALSE) -> 504 | G62: =ROUND((F62/$F$5*Assumptions!$D$22*Assumptions!$D$30),0) -> 2721 | H62: =VLOOKUP(B62,'24-25 Adjusted Formula counts'!$A$3:$L$320,9,FALSE) -> 61 | I62: =ROUND((H62/$H$5*Assumptions!$D$22*Assumptions!$D$31),0) -> 12134 | K62: 14855 | N62: 14855 | O62: 0 | P62: 14855 | R62: 0 | S62: 14855 | U62: =IFERROR(VLOOKUP($A62,#REF!, 19,FALSE),0) -> 0 | W62: 14855 | X62: 0 | Y62: 209 | Z62: 0 | AB62: 5301980 | AC62: DARRINGTON
A63: =VLOOKUP(B63,CCDDD!$A$3:$B$319,2,FALSE) -> 22207 | B63: 5302010 | C63: DAVENPORT | D63: 0 | E63: 0 | F63: =VLOOKUP(B63,'24-25 Adjusted Formula counts'!$A$3:$L$320,8,FALSE) -> 588 | G63: =ROUND((F63/$F$5*Assumptions!$D$22*Assumptions!$D$30),0) -> 3174 | H63: =VLOOKUP(B63,'24-25 Adjusted Formula counts'!$A$3:$L$320,9,FALSE) -> 80 | I63: =ROUND((H63/$H$5*Assumptions!$D$22*Assumptions!$D$31),0) -> 15913 | K63: 19087 | N63: 19087 | O63: 0 | P63: 19087 | R63: 0 | S63: 19087 | U63: =IFERROR(VLOOKUP($A63,#REF!, 19,FALSE),0) -> 0 | W63: 19087 | X63: 0 | Y63: 189 | Z63: 0 | AB63: 5302010 | AC63: DAVENPORT
A64: =VLOOKUP(B64,CCDDD!$A$3:$B$319,2,FALSE) -> 07002 | B64: 5302040 | C64: DAYTON | D64: 0 | E64: 0 | F64: =VLOOKUP(B64,'24-25 Adjusted Formula counts'!$A$3:$L$320,8,FALSE) -> 505 | G64: =ROUND((F64/$F$5*Assumptions!$D$22*Assumptions!$D$30),0) -> 2726 | H64: =VLOOKUP(B64,'24-25 Adjusted Formula counts'!$A$3:$L$320,9,FALSE) -> 72 | I64: =ROUND((H64/$H$5*Assumptions!$D$22*Assumptions!$D$31),0) -> 14322 | K64: 17048 | N64: 17048 | O64: 0 | P64: 17048 | R64: 0 | S64: 17048 | U64: =IFERROR(VLOOKUP($A64,#REF!, 19,FALSE),0) -> 0 | W64: 17048 | X64: 0 | Y64: 197 | Z64: 0 | AB64: 5302040 | AC64: DAYTON
A65: =VLOOKUP(B65,CCDDD!$A$3:$B$319,2,FALSE) -> 32414 | B65: 5302070 | C65: DEER PARK | D65: 0 | E65: 0 | F65: =VLOOKUP(B65,'24-25 Adjusted Formula counts'!$A$3:$L$320,8,FALSE) -> 2369 | G65: =ROUND((F65/$F$5*Assumptions!$D$22*Assumptions!$D$30),0) -> 12788 | H65: =VLOOKUP(B65,'24-25 Adjusted Formula counts'!$A$3:$L$320,9,FALSE) -> 329 | I65: =ROUND((H65/$H$5*Assumptions!$D$22*Assumptions!$D$31),0) -> 65443 | K65: 78231 | N65: 78231 | O65: 0 | P65: 78231 | R65: 0 | S65: 78231 | U65: =IFERROR(VLOOKUP($A65,#REF!, 19,FALSE),0) -> 0 | W65: 78231 | X65: 0 | Y65: 95 | Z65: 0 | AB65: 5302070 | AC65: DEER PARK
A66: =VLOOKUP(B66,CCDDD!$A$3:$B$319,2,FALSE) -> 27343 | B66: 5302130 | C66: DIERINGER | D66: 0 | E66: 0 | F66: =VLOOKUP(B66,'24-25 Adjusted Formula counts'!$A$3:$L$320,8,FALSE) -> 2275 | G66: =ROUND((F66/$F$5*Assumptions!$D$22*Assumptions!$D$30),0) -> 12281 | H66: =VLOOKUP(B66,'24-25 Adjusted Formula counts'!$A$3:$L$320,9,FALSE) -> 87 | I66: =ROUND((H66/$H$5*Assumptions!$D$22*Assumptions!$D$31),0) -> 17305 | K66: 29586 | N66: 29586 | O66: 0 | P66: 29586 | R66: 0 | S66: 29586 | U66: =IFERROR(VLOOKUP($A66,#REF!, 19,FALSE),0) -> 0 | W66: 29586 | X66: 0 | Y66: 164 | Z66: 0 | AB66: 5302130 | AC66: DIERINGER
A67: =VLOOKUP(B67,CCDDD!$A$3:$B$319,2,FALSE) -> 36101 | B67: 5302160 | C67: DIXIE | D67: 0 | E67: 0 | F67: =VLOOKUP(B67,'24-25 Adjusted Formula counts'!$A$3:$L$320,8,FALSE) -> 74 | G67: =ROUND((F67/$F$5*Assumptions!$D$22*Assumptions!$D$30),0) -> 399 | H67: =VLOOKUP(B67,'24-25 Adjusted Formula counts'!$A$3:$L$320,9,FALSE) -> 2 | I67: =ROUND((H67/$H$5*Assumptions!$D$22*Assumptions!$D$31),0) -> 398 | K67: 797 | N67: 797 | O67: 0 | P67: 797 | R67: 0 | S67: 797 | U67: =IFERROR(VLOOKUP($A67,#REF!, 19,FALSE),0) -> 0 | W67: 797 | X67: 0 | Y67: 311 | Z67: 0 | AB67: 5302160 | AC67: DIXIE
A68: =VLOOKUP(B68,CCDDD!$A$3:$B$319,2,FALSE) -> 32361 | B68: 5302280 | C68: EAST VALLEY (SPK) | D68: 0 | E68: 0 | F68: =VLOOKUP(B68,'24-25 Adjusted Formula counts'!$A$3:$L$320,8,FALSE) -> 4679 | G68: =ROUND((F68/$F$5*Assumptions!$D$22*Assumptions!$D$30),0) -> 25258 | H68: =VLOOKUP(B68,'24-25 Adjusted Formula counts'!$A$3:$L$320,9,FALSE) -> 772 | I68: =ROUND((H68/$H$5*Assumptions!$D$22*Assumptions!$D$31),0) -> 153561 | K68: 178819 | N68: 178819 | O68: 0 | P68: 178819 | R68: 0 | S68: 178819 | U68: =IFERROR(VLOOKUP($A68,#REF!, 19,FALSE),0) -> 0 | W68: 178819 | X68: 0 | Y68: 47 | Z68: 0 | AB68: 5302280 | AC68: EAST VALLEY (SPK)
A69: =VLOOKUP(B69,CCDDD!$A$3:$B$319,2,FALSE) -> 39090 | B69: 5305370 | C69: EAST VALLEY (YAK) | D69: 0 | E69: 0 | F69: =VLOOKUP(B69,'24-25 Adjusted Formula counts'!$A$3:$L$320,8,FALSE) -> 3556 | G69: =ROUND((F69/$F$5*Assumptions!$D$22*Assumptions!$D$30),0) -> 19196 | H69: =VLOOKUP(B69,'24-25 Adjusted Formula counts'!$A$3:$L$320,9,FALSE) -> 411 | I69: =ROUND((H69/$H$5*Assumptions!$D$22*Assumptions!$D$31),0) -> 81753 | K69: 100949 | N69: 100949 | O69: 0 | P69: 100949 | R69: 0 | S69: 100949 | U69: =IFERROR(VLOOKUP($A69,#REF!, 19,FALSE),0) -> 0 | W69: 100949 | X69: 0 | Y69: 76 | Z69: 0 | AB69: 5305370 | AC69: EAST VALLEY (YAK)
A70: =VLOOKUP(B70,CCDDD!$A$3:$B$319,2,FALSE) -> 09206 | B70: 5302310 | C70: EASTMONT | D70: 0 | E70: 0 | F70: =VLOOKUP(B70,'24-25 Adjusted Formula counts'!$A$3:$L$320,8,FALSE) -> 6325 | G70: =ROUND((F70/$F$5*Assumptions!$D$22*Assumptions!$D$30),0) -> 34143 | H70: =VLOOKUP(B70,'24-25 Adjusted Formula counts'!$A$3:$L$320,9,FALSE) -> 597 | I70: =ROUND((H70/$H$5*Assumptions!$D$22*Assumptions!$D$31),0) -> 118751 | K70: 152894 | N70: 152894 | O70: 0 | P70: 152894 | R70: 0 | S70: 152894 | U70: =IFERROR(VLOOKUP($A70,#REF!, 19,FALSE),0) -> 0 | W70: 152894 | X70: 0 | Y70: 59 | Z70: 0 | AB70: 5302310 | AC70: EASTMONT
A71: =VLOOKUP(B71,CCDDD!$A$3:$B$319,2,FALSE) -> 19028 | B71: 5302340 | C71: EASTON | D71: 0 | E71: 0 | F71: =VLOOKUP(B71,'24-25 Adjusted Formula counts'!$A$3:$L$320,8,FALSE) -> 150 | G71: =ROUND((F71/$F$5*Assumptions!$D$22*Assumptions!$D$30),0) -> 810 | H71: =VLOOKUP(B71,'24-25 Adjusted Formula counts'!$A$3:$L$320,9,FALSE) -> 7 | I71: =ROUND((H71/$H$5*Assumptions!$D$22*Assumptions!$D$31),0) -> 1392 | K71: =ROUNDDOWN(+I71+G71+E71+D71+J71,0) -> 2202 | N71: =K71 -> 2202 | O71: =-ROUND(N71/$N$5*$M$5,0) -> 0 | P71: =+K71+O71+M71 -> 2202 | R71: =-1*(P71*Q71) -> 0 | S71: =+P71+R71 -> 2202 | U71: =IFERROR(VLOOKUP($A71,#REF!, 19,FALSE),0) -> 0 | W71: =+S71-U71 -> 2202 | X71: =IF(U71>0,W71/U71,0) -> 0 | Y71: =RANK(W71,$W$7:$W$321,0) -> 296 | Z71: =(SUM(D71:E71)/S71) -> 0 | AB71: =+B71 -> 5302340 | AC71: EASTON
A72: =VLOOKUP(B72,CCDDD!$A$3:$B$319,2,FALSE) -> 27404 | B72: 5302370 | C72: EATONVILLE | D72: 0 | E72: 0 | F72: =VLOOKUP(B72,'24-25 Adjusted Formula counts'!$A$3:$L$320,8,FALSE) -> 2204 | G72: =ROUND((F72/$F$5*Assumptions!$D$22*Assumptions!$D$30),0) -> 11897 | H72: =VLOOKUP(B72,'24-25 Adjusted Formula counts'!$A$3:$L$320,9,FALSE) -> 180 | I72: =ROUND((H72/$H$5*Assumptions!$D$22*Assumptions!$D$31),0) -> 35804 | K72: 47701 | N72: 47701 | O72: 0 | P72: 47701 | R72: 0 | S72: 47701 | U72: =IFERROR(VLOOKUP($A72,#REF!, 19,FALSE),0) -> 0 | W72: 47701 | X72: 0 | Y72: 128 | Z72: 0 | AB72: 5302370 | AC72: EATONVILLE
A73: =VLOOKUP(B73,CCDDD!$A$3:$B$319,2,FALSE) -> 31015 | B73: 5302400 | C73: EDMONDS | D73: 0 | E73: 0 | F73: =VLOOKUP(B73,'24-25 Adjusted Formula counts'!$A$3:$L$320,8,FALSE) -> 24249 | G73: =ROUND((F73/$F$5*Assumptions!$D$22*Assumptions!$D$30),0) -> 130899 | H73: =VLOOKUP(B73,'24-25 Adjusted Formula counts'!$A$3:$L$320,9,FALSE) -> 2088 | I73: =ROUND((H73/$H$5*Assumptions!$D$22*Assumptions!$D$31),0) -> 415332 | K73: 546231 | N73: 546231 | O73: 0 | P73: 546231 | R73: 0 | S73: 546231 | U73: =IFERROR(VLOOKUP($A73,#REF!, 19,FALSE),0) -> 0 | W73: 546231 | X73: 0 | Y73: 16 | Z73: 0 | AB73: 5302400 | AC73: EDMONDS
A74: =VLOOKUP(B74,CCDDD!$A$3:$B$319,2,FALSE) -> 19401 | B74: 5302460 | C74: ELLENSBURG | D74: 0 | E74: 0 | F74: =VLOOKUP(B74,'24-25 Adjusted Formula counts'!$A$3:$L$320,8,FALSE) -> 3543 | G74: =ROUND((F74/$F$5*Assumptions!$D$22*Assumptions!$D$30),0) -> 19125 | H74: =VLOOKUP(B74,'24-25 Adjusted Formula counts'!$A$3:$L$320,9,FALSE) -> 377 | I74: =ROUND((H74/$H$5*Assumptions!$D$22*Assumptions!$D$31),0) -> 74990 | K74: 94115 | N74: 94115 | O74: 0 | P74: 94115 | R74: 0 | S74: 94115 | U74: =IFERROR(VLOOKUP($A74,#REF!, 19,FALSE),0) -> 0 | W74: 94115 | X74: 0 | Y74: 82 | Z74: 0 | AB74: 5302460 | AC74: ELLENSBURG
A75: =VLOOKUP(B75,CCDDD!$A$3:$B$319,2,FALSE) -> 14068 | B75: 5302490 | C75: ELMA | D75: 0 | E75: 0 | F75: =VLOOKUP(B75,'24-25 Adjusted Formula counts'!$A$3:$L$320,8,FALSE) -> 1588 | G75: =ROUND((F75/$F$5*Assumptions!$D$22*Assumptions!$D$30),0) -> 8572 | H75: =VLOOKUP(B75,'24-25 Adjusted Formula counts'!$A$3:$L$320,9,FALSE) -> 325 | I75: =ROUND((H75/$H$5*Assumptions!$D$22*Assumptions!$D$31),0) -> 64647 | K75: 73219 | N75: 73219 | O75: 0 | P75: 73219 | R75: 0 | S75: 73219 | U75: =IFERROR(VLOOKUP($A75,#REF!, 19,FALSE),0) -> 0 | W75: 73219 | X75: 0 | Y75: 97 | Z75: 0 | AB75: 5302490 | AC75: ELMA
A76: =VLOOKUP(B76,CCDDD!$A$3:$B$319,2,FALSE) -> 38308 | B76: 5302520 | C76: ENDICOTT | D76: 0 | E76: 0 | F76: =VLOOKUP(B76,'24-25 Adjusted Formula counts'!$A$3:$L$320,8,FALSE) -> 87 | G76: =ROUND((F76/$F$5*Assumptions!$D$22*Assumptions!$D$30),0) -> 470 | H76: =VLOOKUP(B76,'24-25 Adjusted Formula counts'!$A$3:$L$320,9,FALSE) -> 17 | I76: =ROUND((H76/$H$5*Assumptions!$D$22*Assumptions!$D$31),0) -> 3382 | K76: 3852 | N76: 3852 | O76: 0 | P76: 3852 | R76: 0 | S76: 3852 | U76: =IFERROR(VLOOKUP($A76,#REF!, 19,FALSE),0) -> 0 | W76: 3852 | X76: 0 | Y76: 279 | Z76: 0 | AB76: 5302520 | AC76: ENDICOTT
A77: =VLOOKUP(B77,CCDDD!$A$3:$B$319,2,FALSE) -> 04127 | B77: 5302550 | C77: ENTIAT | D77: 0 | E77: 0 | F77: =VLOOKUP(B77,'24-25 Adjusted Formula counts'!$A$3:$L$320,8,FALSE) -> 406 | G77: =ROUND((F77/$F$5*Assumptions!$D$22*Assumptions!$D$30),0) -> 2192 | H77: =VLOOKUP(B77,'24-25 Adjusted Formula counts'!$A$3:$L$320,9,FALSE) -> 66 | I77: =ROUND((H77/$H$5*Assumptions!$D$22*Assumptions!$D$31),0) -> 13128 | K77: 15320 | N77: 15320 | O77: 0 | P77: 15320 | R77: 0 | S77: 15320 | U77: =IFERROR(VLOOKUP($A77,#REF!, 19,FALSE),0) -> 0 | W77: 15320 | X77: 0 | Y77: 203 | Z77: 0 | AB77: 5302550 | AC77: ENTIAT
A78: =VLOOKUP(B78,CCDDD!$A$3:$B$319,2,FALSE) -> 17216 | B78: 5300001 | C78: ENUMCLAW | D78: 0 | E78: 0 | F78: =VLOOKUP(B78,'24-25 Adjusted Formula counts'!$A$3:$L$320,8,FALSE) -> 4662 | G78: =ROUND((F78/$F$5*Assumptions!$D$22*Assumptions!$D$30),0) -> 25166 | H78: =VLOOKUP(B78,'24-25 Adjusted Formula counts'!$A$3:$L$320,9,FALSE) -> 282 | I78: =ROUND((H78/$H$5*Assumptions!$D$22*Assumptions!$D$31),0) -> 56094 | K78: 81260 | N78: 81260 | O78: 0 | P78: 81260 | R78: 0 | S78: 81260 | U78: =IFERROR(VLOOKUP($A78,#REF!, 19,FALSE),0) -> 0 | W78: 81260 | X78: 0 | Y78: 92 | Z78: 0 | AB78: 5300001 | AC78: ENUMCLAW
A79: =VLOOKUP(B79,CCDDD!$A$3:$B$319,2,FALSE) -> 13165 | B79: 5302610 | C79: EPHRATA | D79: 0 | E79: 0 | F79: =VLOOKUP(B79,'24-25 Adjusted Formula counts'!$A$3:$L$320,8,FALSE) -> 2905 | G79: =ROUND((F79/$F$5*Assumptions!$D$22*Assumptions!$D$30),0) -> 15682 | H79: =VLOOKUP(B79,'24-25 Adjusted Formula counts'!$A$3:$L$320,9,FALSE) -> 461 | I79: =ROUND((H79/$H$5*Assumptions!$D$22*Assumptions!$D$31),0) -> 91699 | K79: 107381 | N79: 107381 | O79: 0 | P79: 107381 | R79: 0 | S79: 107381 | U79: =IFERROR(VLOOKUP($A79,#REF!, 19,FALSE),0) -> 0 | W79: 107381 | X79: 0 | Y79: 74 | Z79: 0 | AB79: 5302610 | AC79: EPHRATA
A80: =VLOOKUP(B80,CCDDD!$A$3:$B$319,2,FALSE) -> 21036 | B80: 5302640 | C80: EVALINE | D80: 0 | E80: 0 | F80: =VLOOKUP(B80,'24-25 Adjusted Formula counts'!$A$3:$L$320,8,FALSE) -> 128 | G80: =ROUND((F80/$F$5*Assumptions!$D$22*Assumptions!$D$30),0) -> 691 | H80: =VLOOKUP(B80,'24-25 Adjusted Formula counts'!$A$3:$L$320,9,FALSE) -> 22 | I80: =ROUND((H80/$H$5*Assumptions!$D$22*Assumptions!$D$31),0) -> 4376 | K80: 5067 | N80: 5067 | O80: 0 | P80: 5067 | R80: 0 | S80: 5067 | U80: =IFERROR(VLOOKUP($A80,#REF!, 19,FALSE),0) -> 0 | W80: 5067 | X80: 0 | Y80: 266 | Z80: 0 | AB80: 5302640 | AC80: EVALINE
A81: =VLOOKUP(B81,CCDDD!$A$3:$B$319,2,FALSE) -> 31002 | B81: 5302670 | C81: EVERETT | D81: 0 | E81: 0 | F81: =VLOOKUP(B81,'24-25 Adjusted Formula counts'!$A$3:$L$320,8,FALSE) -> 22804 | G81: =ROUND((F81/$F$5*Assumptions!$D$22*Assumptions!$D$30),0) -> 123098 | H81: =VLOOKUP(B81,'24-25 Adjusted Formula counts'!$A$3:$L$320,9,FALSE) -> 2315 | I81: =ROUND((H81/$H$5*Assumptions!$D$22*Assumptions!$D$31),0) -> 460485 | K81: 583583 | N81: 583583 | O81: 0 | P81: 583583 | R81: 0 | S81: 583583 | U81: =IFERROR(VLOOKUP($A81,#REF!, 19,FALSE),0) -> 0 | W81: 583583 | X81: 0 | Y81: 12 | Z81: 0 | AB81: 5302670 | AC81: EVERETT
A82: =VLOOKUP(B82,CCDDD!$A$3:$B$319,2,FALSE) -> 06114 | B82: 5302700 | C82: EVERGREEN (CLARK) | D82: 0 | E82: 0 | F82: =VLOOKUP(B82,'24-25 Adjusted Formula counts'!$A$3:$L$320,8,FALSE) -> 26645 | G82: =ROUND((F82/$F$5*Assumptions!$D$22*Assumptions!$D$30),0) -> 143833 | H82: =VLOOKUP(B82,'24-25 Adjusted Formula counts'!$A$3:$L$320,9,FALSE) -> 2599 | I82: =ROUND((H82/$H$5*Assumptions!$D$22*Assumptions!$D$31),0) -> 516976 | K82: 660809 | N82: 660809 | O82: 0 | P82: 660809 | R82: 0 | S82: 660809 | U82: =IFERROR(VLOOKUP($A82,#REF!, 19,FALSE),0) -> 0 | W82: 660809 | X82: 0 | Y82: 11 | Z82: 0 | AB82: 5302700 | AC82: EVERGREEN (CLARK)
A83: =VLOOKUP(B83,CCDDD!$A$3:$B$319,2,FALSE) -> 33205 | B83: 5302730 | C83: EVERGREEN (STEV) | D83: 0 | E83: 0 | F83: =VLOOKUP(B83,'24-25 Adjusted Formula counts'!$A$3:$L$320,8,FALSE) -> 56 | G83: =ROUND((F83/$F$5*Assumptions!$D$22*Assumptions!$D$30),0) -> 302 | H83: =VLOOKUP(B83,'24-25 Adjusted Formula counts'!$A$3:$L$320,9,FALSE) -> 14 | I83: =ROUND((H83/$H$5*Assumptions!$D$22*Assumptions!$D$31),0) -> 2785 | K83: 3087 | N83: 3087 | O83: 0 | P83: 3087 | R83: 0 | S83: 3087 | U83: =IFERROR(VLOOKUP($A83,#REF!, 19,FALSE),0) -> 0 | W83: 3087 | X83: 0 | Y83: 287 | Z83: 0 | AB83: 5302730 | AC83: EVERGREEN (STEV)
A84: =VLOOKUP(B84,CCDDD!$A$3:$B$319,2,FALSE) -> 17210 | B84: 5302820 | C84: FEDERAL WAY | D84: 0 | E84: 0 | F84: =VLOOKUP(B84,'24-25 Adjusted Formula counts'!$A$3:$L$320,8,FALSE) -> 24062 | G84: =ROUND((F84/$F$5*Assumptions!$D$22*Assumptions!$D$30),0) -> 129889 | H84: =VLOOKUP(B84,'24-25 Adjusted Formula counts'!$A$3:$L$320,9,FALSE) -> 4207 | I84: =ROUND((H84/$H$5*Assumptions!$D$22*Assumptions!$D$31),0) -> 836829 | K84: 966718 | N84: 966718 | O84: 0 | P84: 966718 | R84: 0 | S84: 966718 | U84: =IFERROR(VLOOKUP($A84,#REF!, 19,FALSE),0) -> 0 | W84: 966718 | X84: 0 | Y84: 5 | Z84: 0 | AB84: 5302820 | AC84: FEDERAL WAY
A85: =VLOOKUP(B85,CCDDD!$A$3:$B$319,2,FALSE) -> 37502 | B85: 5302850 | C85: FERNDALE | D85: 0 | E85: 0 | F85: =VLOOKUP(B85,'24-25 Adjusted Formula counts'!$A$3:$L$320,8,FALSE) -> 6171 | G85: =ROUND((F85/$F$5*Assumptions!$D$22*Assumptions!$D$30),0) -> 33312 | H85: =VLOOKUP(B85,'24-25 Adjusted Formula counts'!$A$3:$L$320,9,FALSE) -> 768 | I85: =ROUND((H85/$H$5*Assumptions!$D$22*Assumptions!$D$31),0) -> 152766 | K85: 186078 | N85: 186078 | O85: 0 | P85: 186078 | R85: 0 | S85: 186078 | U85: =IFERROR(VLOOKUP($A85,#REF!, 19,FALSE),0) -> 0 | W85: 186078 | X85: 0 | Y85: 44 | Z85: 0 | AB85: 5302850 | AC85: FERNDALE
A86: =VLOOKUP(B86,CCDDD!$A$3:$B$319,2,FALSE) -> 27417 | B86: 5302880 | C86: FIFE | D86: 0 | E86: 0 | F86: =VLOOKUP(B86,'24-25 Adjusted Formula counts'!$A$3:$L$320,8,FALSE) -> 4064 | G86: =ROUND((F86/$F$5*Assumptions!$D$22*Assumptions!$D$30),0) -> 21938 | H86: =VLOOKUP(B86,'24-25 Adjusted Formula counts'!$A$3:$L$320,9,FALSE) -> 357 | I86: =ROUND((H86/$H$5*Assumptions!$D$22*Assumptions!$D$31),0) -> 71012 | K86: 92950 | N86: 92950 | O86: 0 | P86: 92950 | R86: 0 | S86: 92950 | U86: =IFERROR(VLOOKUP($A86,#REF!, 19,FALSE),0) -> 0 | W86: 92950 | X86: 0 | Y86: 84 | Z86: 0 | AB86: 5302880 | AC86: FIFE
A87: =VLOOKUP(B87,CCDDD!$A$3:$B$319,2,FALSE) -> 03053 | B87: 5302910 | C87: FINLEY | D87: 0 | E87: 0 | F87: =VLOOKUP(B87,'24-25 Adjusted Formula counts'!$A$3:$L$320,8,FALSE) -> 905 | G87: =ROUND((F87/$F$5*Assumptions!$D$22*Assumptions!$D$30),0) -> 4885 | H87: =VLOOKUP(B87,'24-25 Adjusted Formula counts'!$A$3:$L$320,9,FALSE) -> 118 | I87: =ROUND((H87/$H$5*Assumptions!$D$22*Assumptions!$D$31),0) -> 23472 | K87: 28357 | N87: 28357 | O87: 0 | P87: 28357 | R87: 0 | S87: 28357 | U87: =IFERROR(VLOOKUP($A87,#REF!, 19,FALSE),0) -> 0 | W87: 28357 | X87: 0 | Y87: 168 | Z87: 0 | AB87: 5302910 | AC87: FINLEY
A88: =VLOOKUP(B88,CCDDD!$A$3:$B$319,2,FALSE) -> 27402 | B88: 5302940 | C88: FRANKLIN PIERCE | D88: 0 | E88: 0 | F88: =VLOOKUP(B88,'24-25 Adjusted Formula counts'!$A$3:$L$320,8,FALSE) -> 9266 | G88: =ROUND((F88/$F$5*Assumptions!$D$22*Assumptions!$D$30),0) -> 50019 | H88: =VLOOKUP(B88,'24-25 Adjusted Formula counts'!$A$3:$L$320,9,FALSE) -> 1208 | I88: =ROUND((H88/$H$5*Assumptions!$D$22*Assumptions!$D$31),0) -> 240288 | K88: 290307 | N88: 290307 | O88: 0 | P88: 290307 | R88: 0 | S88: 290307 | U88: =IFERROR(VLOOKUP($A88,#REF!, 19,FALSE),0) -> 0 | W88: 290307 | X88: 0 | Y88: 31 | Z88: 0 | AB88: 5302940 | AC88: FRANKLIN PIERCE
A89: =VLOOKUP(B89,CCDDD!$A$3:$B$319,2,FALSE) -> 32358 | B89: 5302970 | C89: FREEMAN | D89: 0 | E89: 0 | F89: =VLOOKUP(B89,'24-25 Adjusted Formula counts'!$A$3:$L$320,8,FALSE) -> 994 | G89: =ROUND((F89/$F$5*Assumptions!$D$22*Assumptions!$D$30),0) -> 5366 | H89: =VLOOKUP(B89,'24-25 Adjusted Formula counts'!$A$3:$L$320,9,FALSE) -> 49 | I89: =ROUND((H89/$H$5*Assumptions!$D$22*Assumptions!$D$31),0) -> 9747 | K89: 15113 | N89: 15113 | O89: 0 | P89: 15113 | R89: 0 | S89: 15113 | U89: =IFERROR(VLOOKUP($A89,#REF!, 19,FALSE),0) -> 0 | W89: 15113 | X89: 0 | Y89: 206 | Z89: 0 | AB89: 5302970 | AC89: FREEMAN
A90: =VLOOKUP(B90,CCDDD!$A$3:$B$319,2,FALSE) -> 38302 | B90: 5303000 | C90: GARFIELD | D90: 0 | E90: 0 | F90: =VLOOKUP(B90,'24-25 Adjusted Formula counts'!$A$3:$L$320,8,FALSE) -> 127 | G90: =ROUND((F90/$F$5*Assumptions!$D$22*Assumptions!$D$30),0) -> 686 | H90: =VLOOKUP(B90,'24-25 Adjusted Formula counts'!$A$3:$L$320,9,FALSE) -> 35 | I90: =ROUND((H90/$H$5*Assumptions!$D$22*Assumptions!$D$31),0) -> 6962 | K90: 7648 | N90: 7648 | O90: 0 | P90: 7648 | R90: 0 | S90: 7648 | U90: =IFERROR(VLOOKUP($A90,#REF!, 19,FALSE),0) -> 0 | W90: 7648 | X90: 0 | Y90: 248 | Z90: 0 | AB90: 5303000 | AC90: GARFIELD
A91: =VLOOKUP(B91,CCDDD!$A$3:$B$319,2,FALSE) -> 20401 | B91: 5303030 | C91: GLENWOOD | D91: 0 | E91: 0 | F91: =VLOOKUP(B91,'24-25 Adjusted Formula counts'!$A$3:$L$320,8,FALSE) -> 60 | G91: =ROUND((F91/$F$5*Assumptions!$D$22*Assumptions!$D$30),0) -> 324 | H91: =VLOOKUP(B91,'24-25 Adjusted Formula counts'!$A$3:$L$320,9,FALSE) -> 13 | I91: =ROUND((H91/$H$5*Assumptions!$D$22*Assumptions!$D$31),0) -> 2586 | K91: 2910 | N91: 2910 | O91: 0 | P91: 2910 | R91: 0 | S91: 2910 | U91: =IFERROR(VLOOKUP($A91,#REF!, 19,FALSE),0) -> 0 | W91: 2910 | X91: 0 | Y91: 290 | Z91: 0 | AB91: 5303030 | AC91: GLENWOOD
A92: =VLOOKUP(B92,CCDDD!$A$3:$B$319,2,FALSE) -> 20404 | B92: 5303090 | C92: GOLDENDALE | D92: 0 | E92: 0 | F92: =VLOOKUP(B92,'24-25 Adjusted Formula counts'!$A$3:$L$320,8,FALSE) -> 1055 | G92: =ROUND((F92/$F$5*Assumptions!$D$22*Assumptions!$D$30),0) -> 5695 | H92: =VLOOKUP(B92,'24-25 Adjusted Formula counts'!$A$3:$L$320,9,FALSE) -> 216 | I92: =ROUND((H92/$H$5*Assumptions!$D$22*Assumptions!$D$31),0) -> 42965 | K92: 48660 | N92: 48660 | O92: 0 | P92: 48660 | R92: 0 | S92: 48660 | U92: =IFERROR(VLOOKUP($A92,#REF!, 19,FALSE),0) -> 0 | W92: 48660 | X92: 0 | Y92: 126 | Z92: 0 | AB92: 5303090 | AC92: GOLDENDALE
A93: =VLOOKUP(B93,CCDDD!$A$3:$B$319,2,FALSE) -> 13301 | B93: 5303130 | C93: GRAND COULEE | D93: 0 | E93: 0 | F93: =VLOOKUP(B93,'24-25 Adjusted Formula counts'!$A$3:$L$320,8,FALSE) -> 679 | G93: =ROUND((F93/$F$5*Assumptions!$D$22*Assumptions!$D$30),0) -> 3665 | H93: =VLOOKUP(B93,'24-25 Adjusted Formula counts'!$A$3:$L$320,9,FALSE) -> 101 | I93: =ROUND((H93/$H$5*Assumptions!$D$22*Assumptions!$D$31),0) -> 20090 | K93: 23755 | N93: 23755 | O93: 0 | P93: 23755 | R93: 0 | S93: 23755 | U93: =IFERROR(VLOOKUP($A93,#REF!, 19,FALSE),0) -> 0 | W93: 23755 | X93: 0 | Y93: 179 | Z93: 0 | AB93: 5303130 | AC93: GRAND COULEE
A94: =VLOOKUP(B94,CCDDD!$A$3:$B$319,2,FALSE) -> 39200 | B94: 5303150 | C94: GRANDVIEW | D94: 0 | E94: 0 | F94: =VLOOKUP(B94,'24-25 Adjusted Formula counts'!$A$3:$L$320,8,FALSE) -> 3732 | G94: =ROUND((F94/$F$5*Assumptions!$D$22*Assumptions!$D$30),0) -> 20146 | H94: =VLOOKUP(B94,'24-25 Adjusted Formula counts'!$A$3:$L$320,9,FALSE) -> 651 | I94: =ROUND((H94/$H$5*Assumptions!$D$22*Assumptions!$D$31),0) -> 129493 | K94: 149639 | N94: 149639 | O94: 0 | P94: 149639 | R94: 0 | S94: 149639 | U94: =IFERROR(VLOOKUP($A94,#REF!, 19,FALSE),0) -> 0 | W94: 149639 | X94: 0 | Y94: 60 | Z94: 0 | AB94: 5303150 | AC94: GRANDVIEW
A95: =VLOOKUP(B95,CCDDD!$A$3:$B$319,2,FALSE) -> 39204 | B95: 5303180 | C95: GRANGER | D95: 0 | E95: 0 | F95: =VLOOKUP(B95,'24-25 Adjusted Formula counts'!$A$3:$L$320,8,FALSE) -> 1587 | G95: =ROUND((F95/$F$5*Assumptions!$D$22*Assumptions!$D$30),0) -> 8567 | H95: =VLOOKUP(B95,'24-25 Adjusted Formula counts'!$A$3:$L$320,9,FALSE) -> 368 | I95: =ROUND((H95/$H$5*Assumptions!$D$22*Assumptions!$D$31),0) -> 73200 | K95: 81767 | N95: 81767 | O95: 0 | P95: 81767 | R95: 0 | S95: 81767 | U95: =IFERROR(VLOOKUP($A95,#REF!, 19,FALSE),0) -> 0 | W95: 81767 | X95: 0 | Y95: 90 | Z95: 0 | AB95: 5303180 | AC95: GRANGER
A96: =VLOOKUP(B96,CCDDD!$A$3:$B$319,2,FALSE) -> 31332 | B96: 5303210 | C96: GRANITE FALLS | D96: 0 | E96: 0 | F96: =VLOOKUP(B96,'24-25 Adjusted Formula counts'!$A$3:$L$320,8,FALSE) -> 2798 | G96: =ROUND((F96/$F$5*Assumptions!$D$22*Assumptions!$D$30),0) -> 15104 | H96: =VLOOKUP(B96,'24-25 Adjusted Formula counts'!$A$3:$L$320,9,FALSE) -> 214 | I96: =ROUND((H96/$H$5*Assumptions!$D$22*Assumptions!$D$31),0) -> 42568 | K96: 57672 | N96: 57672 | O96: 0 | P96: 57672 | R96: 0 | S96: 57672 | U96: =IFERROR(VLOOKUP($A96,#REF!, 19,FALSE),0) -> 0 | W96: 57672 | X96: 0 | Y96: 112 | Z96: 0 | AB96: 5303210 | AC96: GRANITE FALLS
A97: =VLOOKUP(B97,CCDDD!$A$3:$B$319,2,FALSE) -> 23054 | B97: 5303240 | C97: GRAPEVIEW | D97: 0 | E97: 0 | F97: =VLOOKUP(B97,'24-25 Adjusted Formula counts'!$A$3:$L$320,8,FALSE) -> 338 | G97: =ROUND((F97/$F$5*Assumptions!$D$22*Assumptions!$D$30),0) -> 1825 | H97: =VLOOKUP(B97,'24-25 Adjusted Formula counts'!$A$3:$L$320,9,FALSE) -> 26 | I97: =ROUND((H97/$H$5*Assumptions!$D$22*Assumptions!$D$31),0) -> 5172 | K97: 6997 | N97: 6997 | O97: 0 | P97: 6997 | R97: 0 | S97: 6997 | U97: =IFERROR(VLOOKUP($A97,#REF!, 19,FALSE),0) -> 0 | W97: 6997 | X97: 0 | Y97: 253 | Z97: 0 | AB97: 5303240 | AC97: GRAPEVIEW
A98: =VLOOKUP(B98,CCDDD!$A$3:$B$319,2,FALSE) -> 32312 | B98: 5303270 | C98: GREAT NORTHERN | D98: 0 | E98: 0 | F98: =VLOOKUP(B98,'24-25 Adjusted Formula counts'!$A$3:$L$320,8,FALSE) -> 187 | G98: =ROUND((F98/$F$5*Assumptions!$D$22*Assumptions!$D$30),0) -> 1009 | H98: =VLOOKUP(B98,'24-25 Adjusted Formula counts'!$A$3:$L$320,9,FALSE) -> 43 | I98: =ROUND((H98/$H$5*Assumptions!$D$22*Assumptions!$D$31),0) -> 8553 | K98: 9562 | N98: 9562 | O98: 0 | P98: 9562 | R98: 0 | S98: 9562 | U98: =IFERROR(VLOOKUP($A98,#REF!, 19,FALSE),0) -> 0 | W98: 9562 | X98: 0 | Y98: 234 | Z98: 0 | AB98: 5303270 | AC98: GREAT NORTHERN
A99: =VLOOKUP(B99,CCDDD!$A$3:$B$319,2,FALSE) -> 17910 | B99: 5303280 | C99: RAINIER VALLEY CHARTER | D99: 0 | E99: 0 | F99: =VLOOKUP(B99,'24-25 Adjusted Formula counts'!$A$3:$L$320,8,FALSE) -> 307.9095107 | G99: =ROUND((F99/$F$5*Assumptions!$D$22*Assumptions!$D$30),0) -> 1662 | H99: =VLOOKUP(B99,'24-25 Adjusted Formula counts'!$A$3:$L$320,9,FALSE) -> 76.24089086 | I99: =ROUND((H99/$H$5*Assumptions!$D$22*Assumptions!$D$31),0) -> 15165 | K99: 16827 | N99: 16827 | O99: 0 | P99: 16827 | R99: 0 | S99: 16827 | U99: =IFERROR(VLOOKUP($A99,#REF!, 19,FALSE),0) -> 0 | W99: 16827 | X99: 0 | Y99: 198 | Z99: 0 | AB99: 5303280 | AC99: RAINIER VALLEY CHARTER
A100: =VLOOKUP(B100,CCDDD!$A$3:$B$319,2,FALSE) -> 06103 | B100: 5303300 | C100: GREEN MOUNTAIN | D100: 0 | E100: 0 | F100: =VLOOKUP(B100,'24-25 Adjusted Formula counts'!$A$3:$L$320,8,FALSE) -> 205 | G100: =ROUND((F100/$F$5*Assumptions!$D$22*Assumptions!$D$30),0) -> 1107 | H100: =VLOOKUP(B100,'24-25 Adjusted Formula counts'!$A$3:$L$320,9,FALSE) -> 16 | I100: =ROUND((H100/$H$5*Assumptions!$D$22*Assumptions!$D$31),0) -> 3183 | K100: 4290 | N100: 4290 | O100: 0 | P100: 4290 | R100: 0 | S100: 4290 | U100: =IFERROR(VLOOKUP($A100,#REF!, 19,FALSE),0) -> 0 | W100: 4290 | X100: 0 | Y100: 272 | Z100: 0 | AB100: 5303300 | AC100: GREEN MOUNTAIN
A101: =VLOOKUP(B101,CCDDD!$A$3:$B$319,2,FALSE) -> 34324 | B101: 5303330 | C101: GRIFFIN | D101: 0 | E101: 0 | F101: =VLOOKUP(B101,'24-25 Adjusted Formula counts'!$A$3:$L$320,8,FALSE) -> 897 | G101: =ROUND((F101/$F$5*Assumptions!$D$22*Assumptions!$D$30),0) -> 4842 | H101: =VLOOKUP(B101,'24-25 Adjusted Formula counts'!$A$3:$L$320,9,FALSE) -> 42 | I101: =ROUND((H101/$H$5*Assumptions!$D$22*Assumptions!$D$31),0) -> 8354 | K101: 13196 | N101: 13196 | O101: 0 | P101: 13196 | R101: 0 | S101: 13196 | U101: =IFERROR(VLOOKUP($A101,#REF!, 19,FALSE),0) -> 0 | W101: 13196 | X101: 0 | Y101: 217 | Z101: 0 | AB101: 5303330 | AC101: GRIFFIN
A102: =VLOOKUP(B102,CCDDD!$A$3:$B$319,2,FALSE) -> 22204 | B102: 5303360 | C102: HARRINGTON | D102: 0 | E102: 0 | F102: =VLOOKUP(B102,'24-25 Adjusted Formula counts'!$A$3:$L$320,8,FALSE) -> 145 | G102: =ROUND((F102/$F$5*Assumptions!$D$22*Assumptions!$D$30),0) -> 783 | H102: =VLOOKUP(B102,'24-25 Adjusted Formula counts'!$A$3:$L$320,9,FALSE) -> 12 | I102: =ROUND((H102/$H$5*Assumptions!$D$22*Assumptions!$D$31),0) -> 2387 | K102: 3170 | N102: 3170 | O102: 0 | P102: 3170 | R102: 0 | S102: 3170 | U102: =IFERROR(VLOOKUP($A102,#REF!, 19,FALSE),0) -> 0 | W102: 3170 | X102: 0 | Y102: 286 | Z102: 0 | AB102: 5303360 | AC102: HARRINGTON
A103: =VLOOKUP(B103,CCDDD!$A$3:$B$319,2,FALSE) -> 39203 | B103: 5303510 | C103: HIGHLAND | D103: 0 | E103: 0 | F103: =VLOOKUP(B103,'24-25 Adjusted Formula counts'!$A$3:$L$320,8,FALSE) -> 1272 | G103: =ROUND((F103/$F$5*Assumptions!$D$22*Assumptions!$D$30),0) -> 6866 | H103: =VLOOKUP(B103,'24-25 Adjusted Formula counts'!$A$3:$L$320,9,FALSE) -> 234 | I103: =ROUND((H103/$H$5*Assumptions!$D$22*Assumptions!$D$31),0) -> 46546 | K103: 53412 | N103: 53412 | O103: 0 | P103: 53412 | R103: 0 | S103: 53412 | U103: =IFERROR(VLOOKUP($A103,#REF!, 19,FALSE),0) -> 0 | W103: 53412 | X103: 0 | Y103: 117 | Z103: 0 | AB103: 5303510 | AC103: HIGHLAND
A104: =VLOOKUP(B104,CCDDD!$A$3:$B$319,2,FALSE) -> 17401 | B104: 5303540 | C104: HIGHLINE | D104: 0 | E104: 0 | F104: =VLOOKUP(B104,'24-25 Adjusted Formula counts'!$A$3:$L$320,8,FALSE) -> 19449.95997 | G104: =ROUND((F104/$F$5*Assumptions!$D$22*Assumptions!$D$30),0) -> 104993 | H104: =VLOOKUP(B104,'24-25 Adjusted Formula counts'!$A$3:$L$320,9,FALSE) -> 2972.07576 | I104: =ROUND((H104/$H$5*Assumptions!$D$22*Assumptions!$D$31),0) -> 591186 | K104: 696179 | N104: 696179 | O104: 0 | P104: 696179 | R104: 0 | S104: 696179 | U104: =IFERROR(VLOOKUP($A104,#REF!, 19,FALSE),0) -> 0 | W104: 696179 | X104: 0 | Y104: 7 | Z104: 0 | AB104: 5303540 | AC104: HIGHLINE
A105: =VLOOKUP(B105,CCDDD!$A$3:$B$319,2,FALSE) -> 06098 | B105: 5303570 | C105: HOCKINSON | D105: 0 | E105: 0 | F105: =VLOOKUP(B105,'24-25 Adjusted Formula counts'!$A$3:$L$320,8,FALSE) -> 2170 | G105: =ROUND((F105/$F$5*Assumptions!$D$22*Assumptions!$D$30),0) -> 11714 | H105: =VLOOKUP(B105,'24-25 Adjusted Formula counts'!$A$3:$L$320,9,FALSE) -> 92 | I105: =ROUND((H105/$H$5*Assumptions!$D$22*Assumptions!$D$31),0) -> 18300 | K105: 30014 | N105: 30014 | O105: 0 | P105: 30014 | R105: 0 | S105: 30014 | U105: =IFERROR(VLOOKUP($A105,#REF!, 19,FALSE),0) -> 0 | W105: 30014 | X105: 0 | Y105: 161 | Z105: 0 | AB105: 5303570 | AC105: HOCKINSON
A106: =VLOOKUP(B106,CCDDD!$A$3:$B$319,2,FALSE) -> 23404 | B106: 5303600 | C106: HOOD CANAL | D106: 0 | E106: 0 | F106: =VLOOKUP(B106,'24-25 Adjusted Formula counts'!$A$3:$L$320,8,FALSE) -> 695 | G106: =ROUND((F106/$F$5*Assumptions!$D$22*Assumptions!$D$30),0) -> 3752 | H106: =VLOOKUP(B106,'24-25 Adjusted Formula counts'!$A$3:$L$320,9,FALSE) -> 114 | I106: =ROUND((H106/$H$5*Assumptions!$D$22*Assumptions!$D$31),0) -> 22676 | K106: 26428 | N106: 26428 | O106: 0 | P106: 26428 | R106: 0 | S106: 26428 | U106: =IFERROR(VLOOKUP($A106,#REF!, 19,FALSE),0) -> 0 | W106: 26428 | X106: 0 | Y106: 170 | Z106: 0 | AB106: 5303600 | AC106: HOOD CANAL
A107: =VLOOKUP(B107,CCDDD!$A$3:$B$319,2,FALSE) -> 14028 | B107: 5303660 | C107: HOQUIAM | D107: 0 | E107: 0 | F107: =VLOOKUP(B107,'24-25 Adjusted Formula counts'!$A$3:$L$320,8,FALSE) -> 1816 | G107: =ROUND((F107/$F$5*Assumptions!$D$22*Assumptions!$D$30),0) -> 9803 | H107: =VLOOKUP(B107,'24-25 Adjusted Formula counts'!$A$3:$L$320,9,FALSE) -> 484 | I107: =ROUND((H107/$H$5*Assumptions!$D$22*Assumptions!$D$31),0) -> 96274 | K107: 106077 | N107: 106077 | O107: 0 | P107: 106077 | R107: 0 | S107: 106077 | U107: =IFERROR(VLOOKUP($A107,#REF!, 19,FALSE),0) -> 0 | W107: 106077 | X107: 0 | Y107: 75 | Z107: 0 | AB107: 5303660 | AC107: HOQUIAM
A108: =VLOOKUP(B108,CCDDD!$A$3:$B$319,2,FALSE) -> 27902 | B108: 5303705 | C108: IMPACT COMMENCEMENT BAY CHARTER | D108: 0 | E108: 0 | F108: =VLOOKUP(B108,'24-25 Adjusted Formula counts'!$A$3:$L$320,8,FALSE) -> 366.1856279 | G108: =ROUND((F108/$F$5*Assumptions!$D$22*Assumptions!$D$30),0) -> 1977 | H108: =VLOOKUP(B108,'24-25 Adjusted Formula counts'!$A$3:$L$320,9,FALSE) -> 55.13991666 | I108: =ROUND((H108/$H$5*Assumptions!$D$22*Assumptions!$D$31),0) -> 10968 | K108: 12945 | N108: 12945 | O108: 0 | P108: 12945 | R108: 0 | S108: 12945 | U108: =IFERROR(VLOOKUP($A108,#REF!, 19,FALSE),0) -> 0 | W108: 12945 | X108: 0 | Y108: 219 | Z108: 0 | AB108: 5303705 | AC108: IMPACT COMMENCEMENT BAY CHARTER
A109: =VLOOKUP(B109,CCDDD!$A$3:$B$319,2,FALSE) -> 17911 | B109: 5303700 | C109: IMPACT PUGET SOUND CHARTER | D109: 0 | E109: 0 | F109: =VLOOKUP(B109,'24-25 Adjusted Formula counts'!$A$3:$L$320,8,FALSE) -> 398.5749862 | G109: =ROUND((F109/$F$5*Assumptions!$D$22*Assumptions!$D$30),0) -> 2152 | H109: =VLOOKUP(B109,'24-25 Adjusted Formula counts'!$A$3:$L$320,9,FALSE) -> 72.40561622 | I109: =ROUND((H109/$H$5*Assumptions!$D$22*Assumptions!$D$31),0) -> 14402 | K109: 16554 | N109: 16554 | O109: 0 | P109: 16554 | R109: 0 | S109: 16554 | U109: =IFERROR(VLOOKUP($A109,#REF!, 19,FALSE),0) -> 0 | W109: 16554 | X109: 0 | Y109: 199 | Z109: 0 | AB109: 5303700 | AC109: IMPACT PUGET SOUND CHARTER
A110: =VLOOKUP(B110,CCDDD!$A$3:$B$319,2,FALSE) -> 17916 | B110: 5303710 | C110: IMPACT SALISH SEA CHARTER | D110: 0 | E110: 0 | F110: =VLOOKUP(B110,'24-25 Adjusted Formula counts'!$A$3:$L$320,8,FALSE) -> 342.6923077 | G110: =ROUND((F110/$F$5*Assumptions!$D$22*Assumptions!$D$30),0) -> 1850 | H110: =VLOOKUP(B110,'24-25 Adjusted Formula counts'!$A$3:$L$320,9,FALSE) -> 51.87597504 | I110: =ROUND((H110/$H$5*Assumptions!$D$22*Assumptions!$D$31),0) -> 10319 | K110: 12169 | N110: 12169 | O110: 0 | P110: 12169 | R110: 0 | S110: 12169 | U110: =IFERROR(VLOOKUP($A110,#REF!, 19,FALSE),0) -> 0 | W110: 12169 | X110: 0 | Y110: 222 | Z110: 0 | AB110: 5303710 | AC110: IMPACT SALISH SEA CHARTER
A111: =VLOOKUP(B111,CCDDD!$A$3:$B$319,2,FALSE) -> 10070 | B111: 5300002 | C111: INCHELIUM | D111: 0 | E111: 0 | F111: =VLOOKUP(B111,'24-25 Adjusted Formula counts'!$A$3:$L$320,8,FALSE) -> 189 | G111: =ROUND((F111/$F$5*Assumptions!$D$22*Assumptions!$D$30),0) -> 1020 | H111: =VLOOKUP(B111,'24-25 Adjusted Formula counts'!$A$3:$L$320,9,FALSE) -> 44 | I111: =ROUND((H111/$H$5*Assumptions!$D$22*Assumptions!$D$31),0) -> 8752 | K111: 9772 | N111: 9772 | O111: 0 | P111: 9772 | R111: 0 | S111: 9772 | U111: =IFERROR(VLOOKUP($A111,#REF!, 19,FALSE),0) -> 0 | W111: 9772 | X111: 0 | Y111: 233 | Z111: 0 | AB111: 5300002 | AC111: INCHELIUM
A112: =VLOOKUP(B112,CCDDD!$A$3:$B$319,2,FALSE) -> 31063 | B112: 5303720 | C112: INDEX | D112: 0 | E112: 0 | F112: =VLOOKUP(B112,'24-25 Adjusted Formula counts'!$A$3:$L$320,8,FALSE) -> 54 | G112: =ROUND((F112/$F$5*Assumptions!$D$22*Assumptions!$D$30),0) -> 291 | H112: =VLOOKUP(B112,'24-25 Adjusted Formula counts'!$A$3:$L$320,9,FALSE) -> 9 | I112: =ROUND((H112/$H$5*Assumptions!$D$22*Assumptions!$D$31),0) -> 1790 | K112: 2081 | N112: 2081 | O112: 0 | P112: 2081 | R112: 0 | S112: 2081 | U112: =IFERROR(VLOOKUP($A112,#REF!, 19,FALSE),0) -> 0 | W112: 2081 | X112: 0 | Y112: 297 | Z112: 0 | AB112: 5303720 | AC112: INDEX
A113: =VLOOKUP(B113,CCDDD!$A$3:$B$319,2,FALSE) -> 17411 | B113: 5303750 | C113: ISSAQUAH | D113: 0 | E113: 0 | F113: =VLOOKUP(B113,'24-25 Adjusted Formula counts'!$A$3:$L$320,8,FALSE) -> 22715 | G113: =ROUND((F113/$F$5*Assumptions!$D$22*Assumptions!$D$30),0) -> 122618 | H113: =VLOOKUP(B113,'24-25 Adjusted Formula counts'!$A$3:$L$320,9,FALSE) -> 847 | I113: =ROUND((H113/$H$5*Assumptions!$D$22*Assumptions!$D$31),0) -> 168480 | K113: 291098 | N113: 291098 | O113: 0 | P113: 291098 | R113: 0 | S113: 291098 | U113: =IFERROR(VLOOKUP($A113,#REF!, 19,FALSE),0) -> 0 | W113: 291098 | X113: 0 | Y113: 30 | Z113: 0 | AB113: 5303750 | AC113: ISSAQUAH
A114: =VLOOKUP(B114,CCDDD!$A$3:$B$319,2,FALSE) -> 11056 | B114: 5303780 | C114: KAHLOTUS | D114: 0 | E114: 0 | F114: =VLOOKUP(B114,'24-25 Adjusted Formula counts'!$A$3:$L$320,8,FALSE) -> 60 | G114: =ROUND((F114/$F$5*Assumptions!$D$22*Assumptions!$D$30),0) -> 324 | H114: =VLOOKUP(B114,'24-25 Adjusted Formula counts'!$A$3:$L$320,9,FALSE) -> 22 | I114: =ROUND((H114/$H$5*Assumptions!$D$22*Assumptions!$D$31),0) -> 4376 | K114: 4700 | N114: 4700 | O114: 0 | P114: 4700 | R114: 0 | S114: 4700 | U114: =IFERROR(VLOOKUP($A114,#REF!, 19,FALSE),0) -> 0 | W114: 4700 | X114: 0 | Y114: 269 | Z114: 0 | AB114: 5303780 | AC114: KAHLOTUS
A115: =VLOOKUP(B115,CCDDD!$A$3:$B$319,2,FALSE) -> 08402 | B115: 5303810 | C115: KALAMA | D115: 0 | E115: 0 | F115: =VLOOKUP(B115,'24-25 Adjusted Formula counts'!$A$3:$L$320,8,FALSE) -> 1354 | G115: =ROUND((F115/$F$5*Assumptions!$D$22*Assumptions!$D$30),0) -> 7309 | H115: =VLOOKUP(B115,'24-25 Adjusted Formula counts'!$A$3:$L$320,9,FALSE) -> 111 | I115: =ROUND((H115/$H$5*Assumptions!$D$22*Assumptions!$D$31),0) -> 22079 | K115: 29388 | N115: 29388 | O115: 0 | P115: 29388 | R115: 0 | S115: 29388 | U115: =IFERROR(VLOOKUP($A115,#REF!, 19,FALSE),0) -> 0 | W115: 29388 | X115: 0 | Y115: 165 | Z115: 0 | AB115: 5303810 | AC115: KALAMA
A116: =VLOOKUP(B116,CCDDD!$A$3:$B$319,2,FALSE) -> 10003 | B116: 5303870 | C116: KELLER | D116: 0 | E116: 0 | F116: =VLOOKUP(B116,'24-25 Adjusted Formula counts'!$A$3:$L$320,8,FALSE) -> 103 | G116: =ROUND((F116/$F$5*Assumptions!$D$22*Assumptions!$D$30),0) -> 556 | H116: =VLOOKUP(B116,'24-25 Adjusted Formula counts'!$A$3:$L$320,9,FALSE) -> 31 | I116: =ROUND((H116/$H$5*Assumptions!$D$22*Assumptions!$D$31),0) -> 6166 | K116: 6722 | N116: 6722 | O116: 0 | P116: 6722 | R116: 0 | S116: 6722 | U116: =IFERROR(VLOOKUP($A116,#REF!, 19,FALSE),0) -> 0 | W116: 6722 | X116: 0 | Y116: 257 | Z116: 0 | AB116: 5303870 | AC116: KELLER
A117: =VLOOKUP(B117,CCDDD!$A$3:$B$319,2,FALSE) -> 08458 | B117: 5300003 | C117: KELSO | D117: 0 | E117: 0 | F117: =VLOOKUP(B117,'24-25 Adjusted Formula counts'!$A$3:$L$320,8,FALSE) -> 5467 | G117: =ROUND((F117/$F$5*Assumptions!$D$22*Assumptions!$D$30),0) -> 29511 | H117: =VLOOKUP(B117,'24-25 Adjusted Formula counts'!$A$3:$L$320,9,FALSE) -> 899 | I117: =ROUND((H117/$H$5*Assumptions!$D$22*Assumptions!$D$31),0) -> 178823 | K117: 208334 | N117: 208334 | O117: 0 | P117: 208334 | R117: 0 | S117: 208334 | U117: =IFERROR(VLOOKUP($A117,#REF!, 19,FALSE),0) -> 0 | W117: 208334 | X117: 0 | Y117: 41 | Z117: 0 | AB117: 5300003 | AC117: KELSO
A118: =VLOOKUP(B118,CCDDD!$A$3:$B$319,2,FALSE) -> 03017 | B118: 5303930 | C118: KENNEWICK | D118: 0 | E118: 0 | F118: =VLOOKUP(B118,'24-25 Adjusted Formula counts'!$A$3:$L$320,8,FALSE) -> 20402 | G118: =ROUND((F118/$F$5*Assumptions!$D$22*Assumptions!$D$30),0) -> 110132 | H118: =VLOOKUP(B118,'24-25 Adjusted Formula counts'!$A$3:$L$320,9,FALSE) -> 2775 | I118: =ROUND((H118/$H$5*Assumptions!$D$22*Assumptions!$D$31),0) -> 551985 | K118: 662117 | N118: 662117 | O118: 0 | P118: 662117 | R118: 0 | S118: 662117 | U118: =IFERROR(VLOOKUP($A118,#REF!, 19,FALSE),0) -> 0 | W118: 662117 | X118: 0 | Y118: 10 | Z118: 0 | AB118: 5303930 | AC118: KENNEWICK
A119: =VLOOKUP(B119,CCDDD!$A$3:$B$319,2,FALSE) -> 17415 | B119: 5303960 | C119: KENT | D119: 0 | E119: 0 | F119: =VLOOKUP(B119,'24-25 Adjusted Formula counts'!$A$3:$L$320,8,FALSE) -> 29989 | G119: =ROUND((F119/$F$5*Assumptions!$D$22*Assumptions!$D$30),0) -> 161884 | H119: =VLOOKUP(B119,'24-25 Adjusted Formula counts'!$A$3:$L$320,9,FALSE) -> 4261 | I119: =ROUND((H119/$H$5*Assumptions!$D$22*Assumptions!$D$31),0) -> 847571 | K119: 1009455 | N119: 1009455 | O119: 0 | P119: 1009455 | R119: 0 | S119: 1009455 | U119: =IFERROR(VLOOKUP($A119,#REF!, 19,FALSE),0) -> 0 | W119: 1009455 | X119: 0 | Y119: 4 | Z119: 0 | AB119: 5303960 | AC119: KENT
A120: =VLOOKUP(B120,CCDDD!$A$3:$B$319,2,FALSE) -> 33212 | B120: 5303990 | C120: KETTLE FALLS | D120: 0 | E120: 0 | F120: =VLOOKUP(B120,'24-25 Adjusted Formula counts'!$A$3:$L$320,8,FALSE) -> 936 | G120: =ROUND((F120/$F$5*Assumptions!$D$22*Assumptions!$D$30),0) -> 5053 | H120: =VLOOKUP(B120,'24-25 Adjusted Formula counts'!$A$3:$L$320,9,FALSE) -> 144 | I120: =ROUND((H120/$H$5*Assumptions!$D$22*Assumptions!$D$31),0) -> 28644 | K120: 33697 | N120: 33697 | O120: 0 | P120: 33697 | R120: 0 | S120: 33697 | U120: =IFERROR(VLOOKUP($A120,#REF!, 19,FALSE),0) -> 0 | W120: 33697 | X120: 0 | Y120: 152 | Z120: 0 | AB120: 5303990 | AC120: KETTLE FALLS
A121: =VLOOKUP(B121,CCDDD!$A$3:$B$319,2,FALSE) -> 03052 | B121: 5304020 | C121: KIONA-BENTON | D121: 0 | E121: 0 | F121: =VLOOKUP(B121,'24-25 Adjusted Formula counts'!$A$3:$L$320,8,FALSE) -> 1729 | G121: =ROUND((F121/$F$5*Assumptions!$D$22*Assumptions!$D$30),0) -> 9333 | H121: =VLOOKUP(B121,'24-25 Adjusted Formula counts'!$A$3:$L$320,9,FALSE) -> 241 | I121: =ROUND((H121/$H$5*Assumptions!$D$22*Assumptions!$D$31),0) -> 47938 | K121: 57271 | N121: 57271 | O121: 0 | P121: 57271 | R121: 0 | S121: 57271 | U121: =IFERROR(VLOOKUP($A121,#REF!, 19,FALSE),0) -> 0 | W121: 57271 | X121: 0 | Y121: 113 | Z121: 0 | AB121: 5304020 | AC121: KIONA-BENTON
A122: =VLOOKUP(B122,CCDDD!$A$3:$B$319,2,FALSE) -> 19403 | B122: 5304050 | C122: KITTITAS | D122: 0 | E122: 0 | F122: =VLOOKUP(B122,'24-25 Adjusted Formula counts'!$A$3:$L$320,8,FALSE) -> 736 | G122: =ROUND((F122/$F$5*Assumptions!$D$22*Assumptions!$D$30),0) -> 3973 | H122: =VLOOKUP(B122,'24-25 Adjusted Formula counts'!$A$3:$L$320,9,FALSE) -> 57 | I122: =ROUND((H122/$H$5*Assumptions!$D$22*Assumptions!$D$31),0) -> 11338 | K122: 15311 | N122: 15311 | O122: 0 | P122: 15311 | R122: 0 | S122: 15311 | U122: =IFERROR(VLOOKUP($A122,#REF!, 19,FALSE),0) -> 0 | W122: 15311 | X122: 0 | Y122: 204 | Z122: 0 | AB122: 5304050 | AC122: KITTITAS
A123: =VLOOKUP(B123,CCDDD!$A$3:$B$319,2,FALSE) -> 20402 | B123: 5304080 | C123: KLICKITAT | D123: 0 | E123: 0 | F123: =VLOOKUP(B123,'24-25 Adjusted Formula counts'!$A$3:$L$320,8,FALSE) -> 80 | G123: =ROUND((F123/$F$5*Assumptions!$D$22*Assumptions!$D$30),0) -> 432 | H123: =VLOOKUP(B123,'24-25 Adjusted Formula counts'!$A$3:$L$320,9,FALSE) -> 13 | I123: =ROUND((H123/$H$5*Assumptions!$D$22*Assumptions!$D$31),0) -> 2586 | K123: 3018 | N123: 3018 | O123: 0 | P123: 3018 | R123: 0 | S123: 3018 | U123: =IFERROR(VLOOKUP($A123,#REF!, 19,FALSE),0) -> 0 | W123: 3018 | X123: 0 | Y123: 289 | Z123: 0 | AB123: 5304080 | AC123: KLICKITAT
A124: =VLOOKUP(B124,CCDDD!$A$3:$B$319,2,FALSE) -> 06101 | B124: 5304170 | C124: LA CENTER | D124: 0 | E124: 0 | F124: =VLOOKUP(B124,'24-25 Adjusted Formula counts'!$A$3:$L$320,8,FALSE) -> 1926 | G124: =ROUND((F124/$F$5*Assumptions!$D$22*Assumptions!$D$30),0) -> 10397 | H124: =VLOOKUP(B124,'24-25 Adjusted Formula counts'!$A$3:$L$320,9,FALSE) -> 98 | I124: =ROUND((H124/$H$5*Assumptions!$D$22*Assumptions!$D$31),0) -> 19494 | K124: 29891 | N124: 29891 | O124: 0 | P124: 29891 | R124: 0 | S124: 29891 | U124: =IFERROR(VLOOKUP($A124,#REF!, 19,FALSE),0) -> 0 | W124: 29891 | X124: 0 | Y124: 162 | Z124: 0 | AB124: 5304170 | AC124: LA CENTER
A125: =VLOOKUP(B125,CCDDD!$A$3:$B$319,2,FALSE) -> 29311 | B125: 5304110 | C125: LA CONNER | D125: 0 | E125: 0 | F125: =VLOOKUP(B125,'24-25 Adjusted Formula counts'!$A$3:$L$320,8,FALSE) -> 595 | G125: =ROUND((F125/$F$5*Assumptions!$D$22*Assumptions!$D$30),0) -> 3212 | H125: =VLOOKUP(B125,'24-25 Adjusted Formula counts'!$A$3:$L$320,9,FALSE) -> 91 | I125: =ROUND((H125/$H$5*Assumptions!$D$22*Assumptions!$D$31),0) -> 18101 | K125: 21313 | N125: 21313 | O125: 0 | P125: 21313 | R125: 0 | S125: 21313 | U125: =IFERROR(VLOOKUP($A125,#REF!, 19,FALSE),0) -> 0 | W125: 21313 | X125: 0 | Y125: 182 | Z125: 0 | AB125: 5304110 | AC125: LA CONNER
A126: =VLOOKUP(B126,CCDDD!$A$3:$B$319,2,FALSE) -> 38126 | B126: 5304150 | C126: LACROSSE | D126: 0 | E126: 0 | F126: =VLOOKUP(B126,'24-25 Adjusted Formula counts'!$A$3:$L$320,8,FALSE) -> 87 | G126: =ROUND((F126/$F$5*Assumptions!$D$22*Assumptions!$D$30),0) -> 470 | H126: =VLOOKUP(B126,'24-25 Adjusted Formula counts'!$A$3:$L$320,9,FALSE) -> 18 | I126: =ROUND((H126/$H$5*Assumptions!$D$22*Assumptions!$D$31),0) -> 3580 | K126: 4050 | N126: 4050 | O126: 0 | P126: 4050 | R126: 0 | S126: 4050 | U126: =IFERROR(VLOOKUP($A126,#REF!, 19,FALSE),0) -> 0 | W126: 4050 | X126: 0 | Y126: 276 | Z126: 0 | AB126: 5304150 | AC126: LACROSSE
A127: =VLOOKUP(B127,CCDDD!$A$3:$B$319,2,FALSE) -> 04129 | B127: 5301200 | C127: LAKE CHELAN | D127: 0 | E127: 0 | F127: =VLOOKUP(B127,'24-25 Adjusted Formula counts'!$A$3:$L$320,8,FALSE) -> 1236 | G127: =ROUND((F127/$F$5*Assumptions!$D$22*Assumptions!$D$30),0) -> 6672 | H127: =VLOOKUP(B127,'24-25 Adjusted Formula counts'!$A$3:$L$320,9,FALSE) -> 163 | I127: =ROUND((H127/$H$5*Assumptions!$D$22*Assumptions!$D$31),0) -> 32423 | K127: 39095 | N127: 39095 | O127: 0 | P127: 39095 | R127: 0 | S127: 39095 | U127: =IFERROR(VLOOKUP($A127,#REF!, 19,FALSE),0) -> 0 | W127: 39095 | X127: 0 | Y127: 145 | Z127: 0 | AB127: 5301200 | AC127: LAKE CHELAN
A128: =VLOOKUP(B128,CCDDD!$A$3:$B$319,2,FALSE) -> 14097 | B128: 5307050 | C128: QUINAULT | D128: 0 | E128: 0 | F128: =VLOOKUP(B128,'24-25 Adjusted Formula counts'!$A$3:$L$320,8,FALSE) -> 174 | G128: =ROUND((F128/$F$5*Assumptions!$D$22*Assumptions!$D$30),0) -> 939 | H128: =VLOOKUP(B128,'24-25 Adjusted Formula counts'!$A$3:$L$320,9,FALSE) -> 40 | I128: =ROUND((H128/$H$5*Assumptions!$D$22*Assumptions!$D$31),0) -> 7957 | K128: 8896 | N128: 8896 | O128: 0 | P128: 8896 | R128: 0 | S128: 8896 | U128: =IFERROR(VLOOKUP($A128,#REF!, 19,FALSE),0) -> 0 | W128: 8896 | X128: 0 | Y128: 238 | Z128: 0 | AB128: 5307050 | AC128: QUINAULT
A129: =VLOOKUP(B129,CCDDD!$A$3:$B$319,2,FALSE) -> 31004 | B129: 5304200 | C129: LAKE STEVENS | D129: 0 | E129: 0 | F129: =VLOOKUP(B129,'24-25 Adjusted Formula counts'!$A$3:$L$320,8,FALSE) -> 10259 | G129: =ROUND((F129/$F$5*Assumptions!$D$22*Assumptions!$D$30),0) -> 55379 | H129: =VLOOKUP(B129,'24-25 Adjusted Formula counts'!$A$3:$L$320,9,FALSE) -> 567 | I129: =ROUND((H129/$H$5*Assumptions!$D$22*Assumptions!$D$31),0) -> 112784 | K129: 168163 | N129: 168163 | O129: 0 | P129: 168163 | R129: 0 | S129: 168163 | U129: =IFERROR(VLOOKUP($A129,#REF!, 19,FALSE),0) -> 0 | W129: 168163 | X129: 0 | Y129: 52 | Z129: 0 | AB129: 5304200 | AC129: LAKE STEVENS
A130: =VLOOKUP(B130,CCDDD!$A$3:$B$319,2,FALSE) -> 17414 | B130: 5304230 | C130: LAKE WASHINGTON | D130: 0 | E130: 0 | F130: =VLOOKUP(B130,'24-25 Adjusted Formula counts'!$A$3:$L$320,8,FALSE) -> 35606 | G130: =ROUND((F130/$F$5*Assumptions!$D$22*Assumptions!$D$30),0) -> 192205 | H130: =VLOOKUP(B130,'24-25 Adjusted Formula counts'!$A$3:$L$320,9,FALSE) -> 1390 | I130: =ROUND((H130/$H$5*Assumptions!$D$22*Assumptions!$D$31),0) -> 276490 | K130: 468695 | N130: 468695 | O130: 0 | P130: 468695 | R130: 0 | S130: 468695 | U130: =IFERROR(VLOOKUP($A130,#REF!, 19,FALSE),0) -> 0 | W130: 468695 | X130: 0 | Y130: 19 | Z130: 0 | AB130: 5304230 | AC130: LAKE WASHINGTON
A131: =VLOOKUP(B131,CCDDD!$A$3:$B$319,2,FALSE) -> 31306 | B131: 5304260 | C131: LAKEWOOD | D131: 0 | E131: 0 | F131: =VLOOKUP(B131,'24-25 Adjusted Formula counts'!$A$3:$L$320,8,FALSE) -> 2643 | G131: =ROUND((F131/$F$5*Assumptions!$D$22*Assumptions!$D$30),0) -> 14267 | H131: =VLOOKUP(B131,'24-25 Adjusted Formula counts'!$A$3:$L$320,9,FALSE) -> 351 | I131: =ROUND((H131/$H$5*Assumptions!$D$22*Assumptions!$D$31),0) -> 69819 | K131: 84086 | N131: 84086 | O131: 0 | P131: 84086 | R131: 0 | S131: 84086 | U131: =IFERROR(VLOOKUP($A131,#REF!, 19,FALSE),0) -> 0 | W131: 84086 | X131: 0 | Y131: 87 | Z131: 0 | AB131: 5304260 | AC131: LAKEWOOD
A132: =VLOOKUP(B132,CCDDD!$A$3:$B$319,2,FALSE) -> 38264 | B132: 5304290 | C132: LAMONT | D132: 0 | E132: 0 | F132: =VLOOKUP(B132,'24-25 Adjusted Formula counts'!$A$3:$L$320,8,FALSE) -> 27 | G132: =ROUND((F132/$F$5*Assumptions!$D$22*Assumptions!$D$30),0) -> 146 | H132: =VLOOKUP(B132,'24-25 Adjusted Formula counts'!$A$3:$L$320,9,FALSE) -> 9 | I132: =ROUND((H132/$H$5*Assumptions!$D$22*Assumptions!$D$31),0) -> 1790 | K132: 1936 | N132: 1936 | O132: 0 | P132: 1936 | R132: 0 | S132: 1936 | U132: =IFERROR(VLOOKUP($A132,#REF!, 19,FALSE),0) -> 0 | W132: 1936 | X132: 0 | Y132: 299 | Z132: 0 | AB132: 5304290 | AC132: LAMONT
A133: =VLOOKUP(B133,CCDDD!$A$3:$B$319,2,FALSE) -> 32362 | B133: 5304380 | C133: LIBERTY | D133: 0 | E133: 0 | F133: =VLOOKUP(B133,'24-25 Adjusted Formula counts'!$A$3:$L$320,8,FALSE) -> 827 | G133: =ROUND((F133/$F$5*Assumptions!$D$22*Assumptions!$D$30),0) -> 4464 | H133: =VLOOKUP(B133,'24-25 Adjusted Formula counts'!$A$3:$L$320,9,FALSE) -> 77 | I133: =ROUND((H133/$H$5*Assumptions!$D$22*Assumptions!$D$31),0) -> 15316 | K133: 19780 | N133: 19780 | O133: 0 | P133: 19780 | R133: 0 | S133: 19780 | U133: =IFERROR(VLOOKUP($A133,#REF!, 19,FALSE),0) -> 0 | W133: 19780 | X133: 0 | Y133: 186 | Z133: 0 | AB133: 5304380 | AC133: LIBERTY
A134: =VLOOKUP(B134,CCDDD!$A$3:$B$319,2,FALSE) -> 01158 | B134: 5304410 | C134: LIND | D134: 0 | E134: 0 | F134: =VLOOKUP(B134,'24-25 Adjusted Formula counts'!$A$3:$L$320,8,FALSE) -> 307 | G134: =ROUND((F134/$F$5*Assumptions!$D$22*Assumptions!$D$30),0) -> 1657 | H134: =VLOOKUP(B134,'24-25 Adjusted Formula counts'!$A$3:$L$320,9,FALSE) -> 81 | I134: =ROUND((H134/$H$5*Assumptions!$D$22*Assumptions!$D$31),0) -> 16112 | K134: 17769 | N134: 17769 | O134: 0 | P134: 17769 | R134: 0 | S134: 17769 | U134: =IFERROR(VLOOKUP($A134,#REF!, 19,FALSE),0) -> 0 | W134: 17769 | X134: 0 | Y134: 194 | Z134: 0 | AB134: 5304410 | AC134: LIND
A135: =VLOOKUP(B135,CCDDD!$A$3:$B$319,2,FALSE) -> 08122 | B135: 5304470 | C135: LONGVIEW | D135: 0 | E135: 0 | F135: =VLOOKUP(B135,'24-25 Adjusted Formula counts'!$A$3:$L$320,8,FALSE) -> 7214 | G135: =ROUND((F135/$F$5*Assumptions!$D$22*Assumptions!$D$30),0) -> 38942 | H135: =VLOOKUP(B135,'24-25 Adjusted Formula counts'!$A$3:$L$320,9,FALSE) -> 1316 | I135: =ROUND((H135/$H$5*Assumptions!$D$22*Assumptions!$D$31),0) -> 261770 | K135: =ROUNDDOWN(+I135+G135+E135+D135+J135,0) -> 300712 | N135: =K135 -> 300712 | O135: =-ROUND(N135/$N$5*$M$5,0) -> 0 | P135: =+K135+O135+M135 -> 300712 | R135: =-1*(P135*Q135) -> 0 | S135: =+P135+R135 -> 300712 | U135: =IFERROR(VLOOKUP($A135,#REF!, 19,FALSE),0) -> 0 | W135: =+S135-U135 -> 300712 | X135: =IF(U135>0,W135/U135,0) -> 0 | Y135: =RANK(W135,$W$7:$W$321,0) -> 29 | Z135: =(SUM(D135:E135)/S135) -> 0 | AB135: =+B135 -> 5304470 | AC135: LONGVIEW
A136: =VLOOKUP(B136,CCDDD!$A$3:$B$319,2,FALSE) -> 33183 | B136: 5304500 | C136: LOON LAKE | D136: 0 | E136: 0 | F136: =VLOOKUP(B136,'24-25 Adjusted Formula counts'!$A$3:$L$320,8,FALSE) -> 255 | G136: =ROUND((F136/$F$5*Assumptions!$D$22*Assumptions!$D$30),0) -> 1377 | H136: =VLOOKUP(B136,'24-25 Adjusted Formula counts'!$A$3:$L$320,9,FALSE) -> 50 | I136: =ROUND((H136/$H$5*Assumptions!$D$22*Assumptions!$D$31),0) -> 9946 | K136: 11323 | N136: 11323 | O136: 0 | P136: 11323 | R136: 0 | S136: 11323 | U136: =IFERROR(VLOOKUP($A136,#REF!, 19,FALSE),0) -> 0 | W136: 11323 | X136: 0 | Y136: 224 | Z136: 0 | AB136: 5304500 | AC136: LOON LAKE
A137: =VLOOKUP(B137,CCDDD!$A$3:$B$319,2,FALSE) -> 28144 | B137: 5304530 | C137: LOPEZ | D137: 0 | E137: 0 | F137: =VLOOKUP(B137,'24-25 Adjusted Formula counts'!$A$3:$L$320,8,FALSE) -> 286 | G137: =ROUND((F137/$F$5*Assumptions!$D$22*Assumptions!$D$30),0) -> 1544 | H137: =VLOOKUP(B137,'24-25 Adjusted Formula counts'!$A$3:$L$320,9,FALSE) -> 47 | I137: =ROUND((H137/$H$5*Assumptions!$D$22*Assumptions!$D$31),0) -> 9349 | K137: 10893 | N137: 10893 | O137: 0 | P137: 10893 | R137: 0 | S137: 10893 | U137: =IFERROR(VLOOKUP($A137,#REF!, 19,FALSE),0) -> 0 | W137: 10893 | X137: 0 | Y137: 227 | Z137: 0 | AB137: 5304530 | AC137: LOPEZ
A138: =VLOOKUP(B138,CCDDD!$A$3:$B$319,2,FALSE) -> 32903 | B138: 5304550 | C138: LUMEN CHARTER | D138: 0 | E138: 0 | F138: =VLOOKUP(B138,'24-25 Adjusted Formula counts'!$A$3:$L$320,8,FALSE) -> 35.85582711 | G138: =ROUND((F138/$F$5*Assumptions!$D$22*Assumptions!$D$30),0) -> 194 | H138: =VLOOKUP(B138,'24-25 Adjusted Formula counts'!$A$3:$L$320,9,FALSE) -> 8.733484941 | I138: =ROUND((H138/$H$5*Assumptions!$D$22*Assumptions!$D$31),0) -> 1737 | K138: 1931 | N138: 1931 | O138: 0 | P138: 1931 | R138: 0 | S138: 1931 | U138: =IFERROR(VLOOKUP($A138,#REF!, 19,FALSE),0) -> 0 | W138: 1931 | X138: 0 | Y138: 300 | Z138: 0 | AB138: 5304550 | AC138: LUMEN CHARTER
A139: =VLOOKUP(B139,CCDDD!$A$3:$B$319,2,FALSE) -> 20406 | B139: 5304590 | C139: LYLE | D139: 0 | E139: 0 | F139: =VLOOKUP(B139,'24-25 Adjusted Formula counts'!$A$3:$L$320,8,FALSE) -> 410 | G139: =ROUND((F139/$F$5*Assumptions!$D$22*Assumptions!$D$30),0) -> 2213 | H139: =VLOOKUP(B139,'24-25 Adjusted Formula counts'!$A$3:$L$320,9,FALSE) -> 72 | I139: =ROUND((H139/$H$5*Assumptions!$D$22*Assumptions!$D$31),0) -> 14322 | K139: 16535 | N139: 16535 | O139: 0 | P139: 16535 | R139: 0 | S139: 16535 | U139: =IFERROR(VLOOKUP($A139,#REF!, 19,FALSE),0) -> 0 | W139: 16535 | X139: 0 | Y139: 200 | Z139: 0 | AB139: 5304590 | AC139: LYLE
A140: =VLOOKUP(B140,CCDDD!$A$3:$B$319,2,FALSE) -> 37504 | B140: 5304620 | C140: LYNDEN | D140: 0 | E140: 0 | F140: =VLOOKUP(B140,'24-25 Adjusted Formula counts'!$A$3:$L$320,8,FALSE) -> 4352 | G140: =ROUND((F140/$F$5*Assumptions!$D$22*Assumptions!$D$30),0) -> 23493 | H140: =VLOOKUP(B140,'24-25 Adjusted Formula counts'!$A$3:$L$320,9,FALSE) -> 303 | I140: =ROUND((H140/$H$5*Assumptions!$D$22*Assumptions!$D$31),0) -> 60271 | K140: 83764 | N140: 83764 | O140: 0 | P140: 83764 | R140: 0 | S140: 83764 | U140: =IFERROR(VLOOKUP($A140,#REF!, 19,FALSE),0) -> 0 | W140: 83764 | X140: 0 | Y140: 88 | Z140: 0 | AB140: 5304620 | AC140: LYNDEN
A141: =VLOOKUP(B141,CCDDD!$A$3:$B$319,2,FALSE) -> 39120 | B141: 5304650 | C141: MABTON | D141: 0 | E141: 0 | F141: =VLOOKUP(B141,'24-25 Adjusted Formula counts'!$A$3:$L$320,8,FALSE) -> 770 | G141: =ROUND((F141/$F$5*Assumptions!$D$22*Assumptions!$D$30),0) -> 4157 | H141: =VLOOKUP(B141,'24-25 Adjusted Formula counts'!$A$3:$L$320,9,FALSE) -> 191 | I141: =ROUND((H141/$H$5*Assumptions!$D$22*Assumptions!$D$31),0) -> 37992 | K141: 42149 | N141: 42149 | O141: 0 | P141: 42149 | R141: 0 | S141: 42149 | U141: =IFERROR(VLOOKUP($A141,#REF!, 19,FALSE),0) -> 0 | W141: 42149 | X141: 0 | Y141: 138 | Z141: 0 | AB141: 5304650 | AC141: MABTON
A142: =VLOOKUP(B142,CCDDD!$A$3:$B$319,2,FALSE) -> 09207 | B142: 5304710 | C142: MANSFIELD | D142: 0 | E142: 0 | F142: =VLOOKUP(B142,'24-25 Adjusted Formula counts'!$A$3:$L$320,8,FALSE) -> 85 | G142: =ROUND((F142/$F$5*Assumptions!$D$22*Assumptions!$D$30),0) -> 459 | H142: =VLOOKUP(B142,'24-25 Adjusted Formula counts'!$A$3:$L$320,9,FALSE) -> 16 | I142: =ROUND((H142/$H$5*Assumptions!$D$22*Assumptions!$D$31),0) -> 3183 | K142: 3642 | N142: 3642 | O142: 0 | P142: 3642 | R142: 0 | S142: 3642 | U142: =IFERROR(VLOOKUP($A142,#REF!, 19,FALSE),0) -> 0 | W142: 3642 | X142: 0 | Y142: 280 | Z142: 0 | AB142: 5304710 | AC142: MANSFIELD
A143: =VLOOKUP(B143,CCDDD!$A$3:$B$319,2,FALSE) -> 04019 | B143: 5304740 | C143: MANSON | D143: 0 | E143: 0 | F143: =VLOOKUP(B143,'24-25 Adjusted Formula counts'!$A$3:$L$320,8,FALSE) -> 609 | G143: =ROUND((F143/$F$5*Assumptions!$D$22*Assumptions!$D$30),0) -> 3287 | H143: =VLOOKUP(B143,'24-25 Adjusted Formula counts'!$A$3:$L$320,9,FALSE) -> 120 | I143: =ROUND((H143/$H$5*Assumptions!$D$22*Assumptions!$D$31),0) -> 23870 | K143: 27157 | N143: 27157 | O143: 0 | P143: 27157 | R143: 0 | S143: 27157 | U143: =IFERROR(VLOOKUP($A143,#REF!, 19,FALSE),0) -> 0 | W143: 27157 | X143: 0 | Y143: 169 | Z143: 0 | AB143: 5304740 | AC143: MANSON
A144: =VLOOKUP(B144,CCDDD!$A$3:$B$319,2,FALSE) -> 23311 | B144: 5304800 | C144: MARY M KNIGHT | D144: 0 | E144: 0 | F144: =VLOOKUP(B144,'24-25 Adjusted Formula counts'!$A$3:$L$320,8,FALSE) -> 206 | G144: =ROUND((F144/$F$5*Assumptions!$D$22*Assumptions!$D$30),0) -> 1112 | H144: =VLOOKUP(B144,'24-25 Adjusted Formula counts'!$A$3:$L$320,9,FALSE) -> 33 | I144: =ROUND((H144/$H$5*Assumptions!$D$22*Assumptions!$D$31),0) -> 6564 | K144: 7676 | N144: 7676 | O144: 0 | P144: 7676 | R144: 0 | S144: 7676 | U144: =IFERROR(VLOOKUP($A144,#REF!, 19,FALSE),0) -> 0 | W144: 7676 | X144: 0 | Y144: 247 | Z144: 0 | AB144: 5304800 | AC144: MARY M KNIGHT
A145: =VLOOKUP(B145,CCDDD!$A$3:$B$319,2,FALSE) -> 33207 | B145: 5304830 | C145: MARY WALKER | D145: 0 | E145: 0 | F145: =VLOOKUP(B145,'24-25 Adjusted Formula counts'!$A$3:$L$320,8,FALSE) -> 640 | G145: =ROUND((F145/$F$5*Assumptions!$D$22*Assumptions!$D$30),0) -> 3455 | H145: =VLOOKUP(B145,'24-25 Adjusted Formula counts'!$A$3:$L$320,9,FALSE) -> 146 | I145: =ROUND((H145/$H$5*Assumptions!$D$22*Assumptions!$D$31),0) -> 29041 | K145: 32496 | N145: 32496 | O145: 0 | P145: 32496 | R145: 0 | S145: 32496 | U145: =IFERROR(VLOOKUP($A145,#REF!, 19,FALSE),0) -> 0 | W145: 32496 | X145: 0 | Y145: 155 | Z145: 0 | AB145: 5304830 | AC145: MARY WALKER
A146: =VLOOKUP(B146,CCDDD!$A$3:$B$319,2,FALSE) -> 31025 | B146: 5304860 | C146: MARYSVILLE | D146: 0 | E146: 0 | F146: =VLOOKUP(B146,'24-25 Adjusted Formula counts'!$A$3:$L$320,8,FALSE) -> 12544 | G146: =ROUND((F146/$F$5*Assumptions!$D$22*Assumptions!$D$30),0) -> 67714 | H146: =VLOOKUP(B146,'24-25 Adjusted Formula counts'!$A$3:$L$320,9,FALSE) -> 1469 | I146: =ROUND((H146/$H$5*Assumptions!$D$22*Assumptions!$D$31),0) -> 292204 | K146: 359918 | N146: 359918 | O146: 0 | P146: 359918 | R146: 0 | S146: 359918 | U146: =IFERROR(VLOOKUP($A146,#REF!, 19,FALSE),0) -> 0 | W146: 359918 | X146: 0 | Y146: 24 | Z146: 0 | AB146: 5304860 | AC146: MARYSVILLE
A147: =VLOOKUP(B147,CCDDD!$A$3:$B$319,2,FALSE) -> 14065 | B147: 5304890 | C147: MCCLEARY | D147: 0 | E147: 0 | F147: =VLOOKUP(B147,'24-25 Adjusted Formula counts'!$A$3:$L$320,8,FALSE) -> 572 | G147: =ROUND((F147/$F$5*Assumptions!$D$22*Assumptions!$D$30),0) -> 3088 | H147: =VLOOKUP(B147,'24-25 Adjusted Formula counts'!$A$3:$L$320,9,FALSE) -> 72 | I147: =ROUND((H147/$H$5*Assumptions!$D$22*Assumptions!$D$31),0) -> 14322 | K147: 17410 | N147: 17410 | O147: 0 | P147: 17410 | R147: 0 | S147: 17410 | U147: =IFERROR(VLOOKUP($A147,#REF!, 19,FALSE),0) -> 0 | W147: 17410 | X147: 0 | Y147: 195 | Z147: 0 | AB147: 5304890 | AC147: MCCLEARY
A148: =VLOOKUP(B148,CCDDD!$A$3:$B$319,2,FALSE) -> 32354 | B148: 5304920 | C148: MEAD | D148: 0 | E148: 0 | F148: =VLOOKUP(B148,'24-25 Adjusted Formula counts'!$A$3:$L$320,8,FALSE) -> 12016 | G148: =ROUND((F148/$F$5*Assumptions!$D$22*Assumptions!$D$30),0) -> 64864 | H148: =VLOOKUP(B148,'24-25 Adjusted Formula counts'!$A$3:$L$320,9,FALSE) -> 1000 | I148: =ROUND((H148/$H$5*Assumptions!$D$22*Assumptions!$D$31),0) -> 198914 | K148: 263778 | N148: 263778 | O148: 0 | P148: 263778 | R148: 0 | S148: 263778 | U148: =IFERROR(VLOOKUP($A148,#REF!, 19,FALSE),0) -> 0 | W148: 263778 | X148: 0 | Y148: 35 | Z148: 0 | AB148: 5304920 | AC148: MEAD
A149: =VLOOKUP(B149,CCDDD!$A$3:$B$319,2,FALSE) -> 32326 | B149: 5304950 | C149: MEDICAL LAKE | D149: 0 | E149: 0 | F149: =VLOOKUP(B149,'24-25 Adjusted Formula counts'!$A$3:$L$320,8,FALSE) -> 1801 | G149: =ROUND((F149/$F$5*Assumptions!$D$22*Assumptions!$D$30),0) -> 9722 | H149: =VLOOKUP(B149,'24-25 Adjusted Formula counts'!$A$3:$L$320,9,FALSE) -> 208 | I149: =ROUND((H149/$H$5*Assumptions!$D$22*Assumptions!$D$31),0) -> 41374 | K149: 51096 | N149: 51096 | O149: 0 | P149: 51096 | R149: 0 | S149: 51096 | U149: =IFERROR(VLOOKUP($A149,#REF!, 19,FALSE),0) -> 0 | W149: 51096 | X149: 0 | Y149: 121 | Z149: 0 | AB149: 5304950 | AC149: MEDICAL LAKE
A150: =VLOOKUP(B150,CCDDD!$A$3:$B$319,2,FALSE) -> 17400 | B150: 5304980 | C150: MERCER ISLAND | D150: 0 | E150: 0 | F150: =VLOOKUP(B150,'24-25 Adjusted Formula counts'!$A$3:$L$320,8,FALSE) -> 4878 | G150: =ROUND((F150/$F$5*Assumptions!$D$22*Assumptions!$D$30),0) -> 26332 | H150: =VLOOKUP(B150,'24-25 Adjusted Formula counts'!$A$3:$L$320,9,FALSE) -> 118 | I150: =ROUND((H150/$H$5*Assumptions!$D$22*Assumptions!$D$31),0) -> 23472 | K150: 49804 | N150: 49804 | O150: 0 | P150: 49804 | R150: 0 | S150: 49804 | U150: =IFERROR(VLOOKUP($A150,#REF!, 19,FALSE),0) -> 0 | W150: 49804 | X150: 0 | Y150: 123 | Z150: 0 | AB150: 5304980 | AC150: MERCER ISLAND
A151: =VLOOKUP(B151,CCDDD!$A$3:$B$319,2,FALSE) -> 37505 | B151: 5305010 | C151: MERIDIAN | D151: 0 | E151: 0 | F151: =VLOOKUP(B151,'24-25 Adjusted Formula counts'!$A$3:$L$320,8,FALSE) -> 1705 | G151: =ROUND((F151/$F$5*Assumptions!$D$22*Assumptions!$D$30),0) -> 9204 | H151: =VLOOKUP(B151,'24-25 Adjusted Formula counts'!$A$3:$L$320,9,FALSE) -> 204 | I151: =ROUND((H151/$H$5*Assumptions!$D$22*Assumptions!$D$31),0) -> 40578 | K151: 49782 | N151: 49782 | O151: 0 | P151: 49782 | R151: 0 | S151: 49782 | U151: =IFERROR(VLOOKUP($A151,#REF!, 19,FALSE),0) -> 0 | W151: 49782 | X151: 0 | Y151: 124 | Z151: 0 | AB151: 5305010 | AC151: MERIDIAN
A152: =VLOOKUP(B152,CCDDD!$A$3:$B$319,2,FALSE) -> 24350 | B152: 5305020 | C152: METHOW VALLEY | D152: 0 | E152: 0 | F152: =VLOOKUP(B152,'24-25 Adjusted Formula counts'!$A$3:$L$320,8,FALSE) -> 859 | G152: =ROUND((F152/$F$5*Assumptions!$D$22*Assumptions!$D$30),0) -> 4637 | H152: =VLOOKUP(B152,'24-25 Adjusted Formula counts'!$A$3:$L$320,9,FALSE) -> 70 | I152: =ROUND((H152/$H$5*Assumptions!$D$22*Assumptions!$D$31),0) -> 13924 | K152: 18561 | N152: 18561 | O152: 0 | P152: 18561 | R152: 0 | S152: 18561 | U152: =IFERROR(VLOOKUP($A152,#REF!, 19,FALSE),0) -> 0 | W152: 18561 | X152: 0 | Y152: 193 | Z152: 0 | AB152: 5305020 | AC152: METHOW VALLEY
A153: =VLOOKUP(B153,CCDDD!$A$3:$B$319,2,FALSE) -> 30031 | B153: 5305040 | C153: MILL A | D153: 0 | E153: 0 | F153: =VLOOKUP(B153,'24-25 Adjusted Formula counts'!$A$3:$L$320,8,FALSE) -> 74 | G153: =ROUND((F153/$F$5*Assumptions!$D$22*Assumptions!$D$30),0) -> 399 | H153: =VLOOKUP(B153,'24-25 Adjusted Formula counts'!$A$3:$L$320,9,FALSE) -> 18 | I153: =ROUND((H153/$H$5*Assumptions!$D$22*Assumptions!$D$31),0) -> 3580 | K153: 3979 | N153: 3979 | O153: 0 | P153: 3979 | R153: 0 | S153: 3979 | U153: =IFERROR(VLOOKUP($A153,#REF!, 19,FALSE),0) -> 0 | W153: 3979 | X153: 0 | Y153: 278 | Z153: 0 | AB153: 5305040 | AC153: MILL A
A154: =VLOOKUP(B154,CCDDD!$A$3:$B$319,2,FALSE) -> 31103 | B154: 5305130 | C154: MONROE | D154: 0 | E154: 0 | F154: =VLOOKUP(B154,'24-25 Adjusted Formula counts'!$A$3:$L$320,8,FALSE) -> 6648 | G154: =ROUND((F154/$F$5*Assumptions!$D$22*Assumptions!$D$30),0) -> 35887 | H154: =VLOOKUP(B154,'24-25 Adjusted Formula counts'!$A$3:$L$320,9,FALSE) -> 430 | I154: =ROUND((H154/$H$5*Assumptions!$D$22*Assumptions!$D$31),0) -> 85533 | K154: 121420 | N154: 121420 | O154: 0 | P154: 121420 | R154: 0 | S154: 121420 | U154: =IFERROR(VLOOKUP($A154,#REF!, 19,FALSE),0) -> 0 | W154: 121420 | X154: 0 | Y154: 69 | Z154: 0 | AB154: 5305130 | AC154: MONROE
A155: =VLOOKUP(B155,CCDDD!$A$3:$B$319,2,FALSE) -> 14066 | B155: 5305160 | C155: MONTESANO | D155: 0 | E155: 0 | F155: =VLOOKUP(B155,'24-25 Adjusted Formula counts'!$A$3:$L$320,8,FALSE) -> 1334 | G155: =ROUND((F155/$F$5*Assumptions!$D$22*Assumptions!$D$30),0) -> 7201 | H155: =VLOOKUP(B155,'24-25 Adjusted Formula counts'!$A$3:$L$320,9,FALSE) -> 206 | I155: =ROUND((H155/$H$5*Assumptions!$D$22*Assumptions!$D$31),0) -> 40976 | K155: 48177 | N155: 48177 | O155: 0 | P155: 48177 | R155: 0 | S155: 48177 | U155: =IFERROR(VLOOKUP($A155,#REF!, 19,FALSE),0) -> 0 | W155: 48177 | X155: 0 | Y155: 127 | Z155: 0 | AB155: 5305160 | AC155: MONTESANO
A156: =VLOOKUP(B156,CCDDD!$A$3:$B$319,2,FALSE) -> 21214 | B156: 5305190 | C156: MORTON | D156: 0 | E156: 0 | F156: =VLOOKUP(B156,'24-25 Adjusted Formula counts'!$A$3:$L$320,8,FALSE) -> 333 | G156: =ROUND((F156/$F$5*Assumptions!$D$22*Assumptions!$D$30),0) -> 1798 | H156: =VLOOKUP(B156,'24-25 Adjusted Formula counts'!$A$3:$L$320,9,FALSE) -> 44 | I156: =ROUND((H156/$H$5*Assumptions!$D$22*Assumptions!$D$31),0) -> 8752 | K156: 10550 | N156: 10550 | O156: 0 | P156: 10550 | R156: 0 | S156: 10550 | U156: =IFERROR(VLOOKUP($A156,#REF!, 19,FALSE),0) -> 0 | W156: 10550 | X156: 0 | Y156: 230 | Z156: 0 | AB156: 5305190 | AC156: MORTON
A157: =VLOOKUP(B157,CCDDD!$A$3:$B$319,2,FALSE) -> 13161 | B157: 5305220 | C157: MOSES LAKE | D157: 0 | E157: 0 | F157: =VLOOKUP(B157,'24-25 Adjusted Formula counts'!$A$3:$L$320,8,FALSE) -> 9756 | G157: =ROUND((F157/$F$5*Assumptions!$D$22*Assumptions!$D$30),0) -> 52664 | H157: =VLOOKUP(B157,'24-25 Adjusted Formula counts'!$A$3:$L$320,9,FALSE) -> 1341 | I157: =ROUND((H157/$H$5*Assumptions!$D$22*Assumptions!$D$31),0) -> 266743 | K157: 319407 | N157: 319407 | O157: 0 | P157: 319407 | R157: 0 | S157: 319407 | U157: =IFERROR(VLOOKUP($A157,#REF!, 19,FALSE),0) -> 0 | W157: 319407 | X157: 0 | Y157: 28 | Z157: 0 | AB157: 5305220 | AC157: MOSES LAKE
A158: =VLOOKUP(B158,CCDDD!$A$3:$B$319,2,FALSE) -> 21206 | B158: 5305250 | C158: MOSSYROCK | D158: 0 | E158: 0 | F158: =VLOOKUP(B158,'24-25 Adjusted Formula counts'!$A$3:$L$320,8,FALSE) -> 699 | G158: =ROUND((F158/$F$5*Assumptions!$D$22*Assumptions!$D$30),0) -> 3773 | H158: =VLOOKUP(B158,'24-25 Adjusted Formula counts'!$A$3:$L$320,9,FALSE) -> 124 | I158: =ROUND((H158/$H$5*Assumptions!$D$22*Assumptions!$D$31),0) -> 24665 | K158: 28438 | N158: 28438 | O158: 0 | P158: 28438 | R158: 0 | S158: 28438 | U158: =IFERROR(VLOOKUP($A158,#REF!, 19,FALSE),0) -> 0 | W158: 28438 | X158: 0 | Y158: 167 | Z158: 0 | AB158: 5305250 | AC158: MOSSYROCK
A159: =VLOOKUP(B159,CCDDD!$A$3:$B$319,2,FALSE) -> 39209 | B159: 5305280 | C159: MOUNT ADAMS | D159: 0 | E159: 0 | F159: =VLOOKUP(B159,'24-25 Adjusted Formula counts'!$A$3:$L$320,8,FALSE) -> 998 | G159: =ROUND((F159/$F$5*Assumptions!$D$22*Assumptions!$D$30),0) -> 5387 | H159: =VLOOKUP(B159,'24-25 Adjusted Formula counts'!$A$3:$L$320,9,FALSE) -> 259 | I159: =ROUND((H159/$H$5*Assumptions!$D$22*Assumptions!$D$31),0) -> 51519 | K159: 56906 | N159: 56906 | O159: 0 | P159: 56906 | R159: 0 | S159: 56906 | U159: =IFERROR(VLOOKUP($A159,#REF!, 19,FALSE),0) -> 0 | W159: 56906 | X159: 0 | Y159: 114 | Z159: 0 | AB159: 5305280 | AC159: MOUNT ADAMS
A160: =VLOOKUP(B160,CCDDD!$A$3:$B$319,2,FALSE) -> 37507 | B160: 5305310 | C160: MOUNT BAKER | D160: 0 | E160: 0 | F160: =VLOOKUP(B160,'24-25 Adjusted Formula counts'!$A$3:$L$320,8,FALSE) -> 2435 | G160: =ROUND((F160/$F$5*Assumptions!$D$22*Assumptions!$D$30),0) -> 13144 | H160: =VLOOKUP(B160,'24-25 Adjusted Formula counts'!$A$3:$L$320,9,FALSE) -> 278 | I160: =ROUND((H160/$H$5*Assumptions!$D$22*Assumptions!$D$31),0) -> 55298 | K160: 68442 | N160: 68442 | O160: 0 | P160: 68442 | R160: 0 | S160: 68442 | U160: =IFERROR(VLOOKUP($A160,#REF!, 19,FALSE),0) -> 0 | W160: 68442 | X160: 0 | Y160: 101 | Z160: 0 | AB160: 5305310 | AC160: MOUNT BAKER
A161: =VLOOKUP(B161,CCDDD!$A$3:$B$319,2,FALSE) -> 30029 | B161: 5305340 | C161: MOUNT PLEASANT | D161: 0 | E161: 0 | F161: =VLOOKUP(B161,'24-25 Adjusted Formula counts'!$A$3:$L$320,8,FALSE) -> 41 | G161: =ROUND((F161/$F$5*Assumptions!$D$22*Assumptions!$D$30),0) -> 221 | H161: =VLOOKUP(B161,'24-25 Adjusted Formula counts'!$A$3:$L$320,9,FALSE) -> 3 | I161: =ROUND((H161/$H$5*Assumptions!$D$22*Assumptions!$D$31),0) -> 597 | K161: 818 | N161: 818 | O161: 0 | P161: 818 | R161: 0 | S161: 818 | U161: =IFERROR(VLOOKUP($A161,#REF!, 19,FALSE),0) -> 0 | W161: 818 | X161: 0 | Y161: 310 | Z161: 0 | AB161: 5305340 | AC161: MOUNT PLEASANT
A162: =VLOOKUP(B162,CCDDD!$A$3:$B$319,2,FALSE) -> 29320 | B162: 5305400 | C162: MOUNT VERNON | D162: 0 | E162: 0 | F162: =VLOOKUP(B162,'24-25 Adjusted Formula counts'!$A$3:$L$320,8,FALSE) -> 6839 | G162: =ROUND((F162/$F$5*Assumptions!$D$22*Assumptions!$D$30),0) -> 36918 | H162: =VLOOKUP(B162,'24-25 Adjusted Formula counts'!$A$3:$L$320,9,FALSE) -> 917 | I162: =ROUND((H162/$H$5*Assumptions!$D$22*Assumptions!$D$31),0) -> 182404 | K162: 219322 | N162: 219322 | O162: 0 | P162: 219322 | R162: 0 | S162: 219322 | U162: =IFERROR(VLOOKUP($A162,#REF!, 19,FALSE),0) -> 0 | W162: 219322 | X162: 0 | Y162: 38 | Z162: 0 | AB162: 5305400 | AC162: MOUNT VERNON
A163: =VLOOKUP(B163,CCDDD!$A$3:$B$319,2,FALSE) -> 31006 | B163: 5305430 | C163: MUKILTEO | D163: 0 | E163: 0 | F163: =VLOOKUP(B163,'24-25 Adjusted Formula counts'!$A$3:$L$320,8,FALSE) -> 16936 | G163: =ROUND((F163/$F$5*Assumptions!$D$22*Assumptions!$D$30),0) -> 91422 | H163: =VLOOKUP(B163,'24-25 Adjusted Formula counts'!$A$3:$L$320,9,FALSE) -> 2310 | I163: =ROUND((H163/$H$5*Assumptions!$D$22*Assumptions!$D$31),0) -> 459490 | K163: 550912 | N163: 550912 | O163: 0 | P163: 550912 | R163: 0 | S163: 550912 | U163: =IFERROR(VLOOKUP($A163,#REF!, 19,FALSE),0) -> 0 | W163: 550912 | X163: 0 | Y163: 15 | Z163: 0 | AB163: 5305430 | AC163: MUKILTEO
A164: =VLOOKUP(B164,CCDDD!$A$3:$B$319,2,FALSE) -> 39003 | B164: 5305460 | C164: NACHES VALLEY | D164: 0 | E164: 0 | F164: =VLOOKUP(B164,'24-25 Adjusted Formula counts'!$A$3:$L$320,8,FALSE) -> 1613 | G164: =ROUND((F164/$F$5*Assumptions!$D$22*Assumptions!$D$30),0) -> 8707 | H164: =VLOOKUP(B164,'24-25 Adjusted Formula counts'!$A$3:$L$320,9,FALSE) -> 218 | I164: =ROUND((H164/$H$5*Assumptions!$D$22*Assumptions!$D$31),0) -> 43363 | K164: 52070 | N164: 52070 | O164: 0 | P164: 52070 | R164: 0 | S164: 52070 | U164: =IFERROR(VLOOKUP($A164,#REF!, 19,FALSE),0) -> 0 | W164: 52070 | X164: 0 | Y164: 119 | Z164: 0 | AB164: 5305460 | AC164: NACHES VALLEY
A165: =VLOOKUP(B165,CCDDD!$A$3:$B$319,2,FALSE) -> 21014 | B165: 5305490 | C165: NAPAVINE | D165: 0 | E165: 0 | F165: =VLOOKUP(B165,'24-25 Adjusted Formula counts'!$A$3:$L$320,8,FALSE) -> 774 | G165: =ROUND((F165/$F$5*Assumptions!$D$22*Assumptions!$D$30),0) -> 4178 | H165: =VLOOKUP(B165,'24-25 Adjusted Formula counts'!$A$3:$L$320,9,FALSE) -> 65 | I165: =ROUND((H165/$H$5*Assumptions!$D$22*Assumptions!$D$31),0) -> 12929 | K165: 17107 | N165: 17107 | O165: 0 | P165: 17107 | R165: 0 | S165: 17107 | U165: =IFERROR(VLOOKUP($A165,#REF!, 19,FALSE),0) -> 0 | W165: 17107 | X165: 0 | Y165: 196 | Z165: 0 | AB165: 5305490 | AC165: NAPAVINE
A166: =VLOOKUP(B166,CCDDD!$A$3:$B$319,2,FALSE) -> 25155 | B166: 5305520 | C166: NASELLE-GRAYS | D166: 0 | E166: 0 | F166: =VLOOKUP(B166,'24-25 Adjusted Formula counts'!$A$3:$L$320,8,FALSE) -> 340 | G166: =ROUND((F166/$F$5*Assumptions!$D$22*Assumptions!$D$30),0) -> 1835 | H166: =VLOOKUP(B166,'24-25 Adjusted Formula counts'!$A$3:$L$320,9,FALSE) -> 35 | I166: =ROUND((H166/$H$5*Assumptions!$D$22*Assumptions!$D$31),0) -> 6962 | K166: 8797 | N166: 8797 | O166: 0 | P166: 8797 | R166: 0 | S166: 8797 | U166: =IFERROR(VLOOKUP($A166,#REF!, 19,FALSE),0) -> 0 | W166: 8797 | X166: 0 | Y166: 239 | Z166: 0 | AB166: 5305520 | AC166: NASELLE-GRAYS
A167: =VLOOKUP(B167,CCDDD!$A$3:$B$319,2,FALSE) -> 24014 | B167: 5305550 | C167: NESPELEM | D167: 0 | E167: 0 | F167: =VLOOKUP(B167,'24-25 Adjusted Formula counts'!$A$3:$L$320,8,FALSE) -> 253 | G167: =ROUND((F167/$F$5*Assumptions!$D$22*Assumptions!$D$30),0) -> 1366 | H167: =VLOOKUP(B167,'24-25 Adjusted Formula counts'!$A$3:$L$320,9,FALSE) -> 68 | I167: =ROUND((H167/$H$5*Assumptions!$D$22*Assumptions!$D$31),0) -> 13526 | K167: 14892 | N167: 14892 | O167: 0 | P167: 14892 | R167: 0 | S167: 14892 | U167: =IFERROR(VLOOKUP($A167,#REF!, 19,FALSE),0) -> 0 | W167: 14892 | X167: 0 | Y167: 208 | Z167: 0 | AB167: 5305550 | AC167: NESPELEM
A168: =VLOOKUP(B168,CCDDD!$A$3:$B$319,2,FALSE) -> 26056 | B168: 5305610 | C168: NEWPORT | D168: 0 | E168: 0 | F168: =VLOOKUP(B168,'24-25 Adjusted Formula counts'!$A$3:$L$320,8,FALSE) -> 1399 | G168: =ROUND((F168/$F$5*Assumptions!$D$22*Assumptions!$D$30),0) -> 7552 | H168: =VLOOKUP(B168,'24-25 Adjusted Formula counts'!$A$3:$L$320,9,FALSE) -> 268 | I168: =ROUND((H168/$H$5*Assumptions!$D$22*Assumptions!$D$31),0) -> 53309 | K168: 60861 | N168: 60861 | O168: 0 | P168: 60861 | R168: 0 | S168: 60861 | U168: =IFERROR(VLOOKUP($A168,#REF!, 19,FALSE),0) -> 0 | W168: 60861 | X168: 0 | Y168: 108 | Z168: 0 | AB168: 5305610 | AC168: NEWPORT
A169: =VLOOKUP(B169,CCDDD!$A$3:$B$319,2,FALSE) -> 32325 | B169: 5305640 | C169: NINE MILE FALLS | D169: 0 | E169: 0 | F169: =VLOOKUP(B169,'24-25 Adjusted Formula counts'!$A$3:$L$320,8,FALSE) -> 1563 | G169: =ROUND((F169/$F$5*Assumptions!$D$22*Assumptions!$D$30),0) -> 8437 | H169: =VLOOKUP(B169,'24-25 Adjusted Formula counts'!$A$3:$L$320,9,FALSE) -> 104 | I169: =ROUND((H169/$H$5*Assumptions!$D$22*Assumptions!$D$31),0) -> 20687 | K169: 29124 | N169: 29124 | O169: 0 | P169: 29124 | R169: 0 | S169: 29124 | U169: =IFERROR(VLOOKUP($A169,#REF!, 19,FALSE),0) -> 0 | W169: 29124 | X169: 0 | Y169: 166 | Z169: 0 | AB169: 5305640 | AC169: NINE MILE FALLS
A170: =VLOOKUP(B170,CCDDD!$A$3:$B$319,2,FALSE) -> 37506 | B170: 5305670 | C170: NOOKSACK VALLEY | D170: 0 | E170: 0 | F170: =VLOOKUP(B170,'24-25 Adjusted Formula counts'!$A$3:$L$320,8,FALSE) -> 2210 | G170: =ROUND((F170/$F$5*Assumptions!$D$22*Assumptions!$D$30),0) -> 11930 | H170: =VLOOKUP(B170,'24-25 Adjusted Formula counts'!$A$3:$L$320,9,FALSE) -> 200 | I170: =ROUND((H170/$H$5*Assumptions!$D$22*Assumptions!$D$31),0) -> 39783 | K170: 51713 | N170: 51713 | O170: 0 | P170: 51713 | R170: 0 | S170: 51713 | U170: =IFERROR(VLOOKUP($A170,#REF!, 19,FALSE),0) -> 0 | W170: 51713 | X170: 0 | Y170: 120 | Z170: 0 | AB170: 5305670 | AC170: NOOKSACK VALLEY
A171: =VLOOKUP(B171,CCDDD!$A$3:$B$319,2,FALSE) -> 14064 | B171: 5305700 | C171: NORTH BEACH | D171: 0 | E171: 0 | F171: =VLOOKUP(B171,'24-25 Adjusted Formula counts'!$A$3:$L$320,8,FALSE) -> 703 | G171: =ROUND((F171/$F$5*Assumptions!$D$22*Assumptions!$D$30),0) -> 3795 | H171: =VLOOKUP(B171,'24-25 Adjusted Formula counts'!$A$3:$L$320,9,FALSE) -> 157 | I171: =ROUND((H171/$H$5*Assumptions!$D$22*Assumptions!$D$31),0) -> 31229 | K171: 35024 | N171: 35024 | O171: 0 | P171: 35024 | R171: 0 | S171: 35024 | U171: =IFERROR(VLOOKUP($A171,#REF!, 19,FALSE),0) -> 0 | W171: 35024 | X171: 0 | Y171: 150 | Z171: 0 | AB171: 5305700 | AC171: NORTH BEACH
A172: =VLOOKUP(B172,CCDDD!$A$3:$B$319,2,FALSE) -> 11051 | B172: 5305730 | C172: NORTH FRANKLIN | D172: 0 | E172: 0 | F172: =VLOOKUP(B172,'24-25 Adjusted Formula counts'!$A$3:$L$320,8,FALSE) -> 2211 | G172: =ROUND((F172/$F$5*Assumptions!$D$22*Assumptions!$D$30),0) -> 11935 | H172: =VLOOKUP(B172,'24-25 Adjusted Formula counts'!$A$3:$L$320,9,FALSE) -> 414 | I172: =ROUND((H172/$H$5*Assumptions!$D$22*Assumptions!$D$31),0) -> 82350 | K172: 94285 | N172: 94285 | O172: 0 | P172: 94285 | R172: 0 | S172: 94285 | U172: =IFERROR(VLOOKUP($A172,#REF!, 19,FALSE),0) -> 0 | W172: 94285 | X172: 0 | Y172: 81 | Z172: 0 | AB172: 5305730 | AC172: NORTH FRANKLIN
A173: =VLOOKUP(B173,CCDDD!$A$3:$B$319,2,FALSE) -> 18400 | B173: 5305760 | C173: NORTH KITSAP | D173: 0 | E173: 0 | F173: =VLOOKUP(B173,'24-25 Adjusted Formula counts'!$A$3:$L$320,8,FALSE) -> 7166 | G173: =ROUND((F173/$F$5*Assumptions!$D$22*Assumptions!$D$30),0) -> 38683 | H173: =VLOOKUP(B173,'24-25 Adjusted Formula counts'!$A$3:$L$320,9,FALSE) -> 548 | I173: =ROUND((H173/$H$5*Assumptions!$D$22*Assumptions!$D$31),0) -> 109005 | K173: 147688 | N173: 147688 | O173: 0 | P173: 147688 | R173: 0 | S173: 147688 | U173: =IFERROR(VLOOKUP($A173,#REF!, 19,FALSE),0) -> 0 | W173: 147688 | X173: 0 | Y173: 63 | Z173: 0 | AB173: 5305760 | AC173: NORTH KITSAP
A174: =VLOOKUP(B174,CCDDD!$A$3:$B$319,2,FALSE) -> 23403 | B174: 5305790 | C174: NORTH MASON | D174: 0 | E174: 0 | F174: =VLOOKUP(B174,'24-25 Adjusted Formula counts'!$A$3:$L$320,8,FALSE) -> 2444 | G174: =ROUND((F174/$F$5*Assumptions!$D$22*Assumptions!$D$30),0) -> 13193 | H174: =VLOOKUP(B174,'24-25 Adjusted Formula counts'!$A$3:$L$320,9,FALSE) -> 339 | I174: =ROUND((H174/$H$5*Assumptions!$D$22*Assumptions!$D$31),0) -> 67432 | K174: 80625 | N174: 80625 | O174: 0 | P174: 80625 | R174: 0 | S174: 80625 | U174: =IFERROR(VLOOKUP($A174,#REF!, 19,FALSE),0) -> 0 | W174: 80625 | X174: 0 | Y174: 94 | Z174: 0 | AB174: 5305790 | AC174: NORTH MASON
A175: =VLOOKUP(B175,CCDDD!$A$3:$B$319,2,FALSE) -> 25200 | B175: 5305820 | C175: NORTH RIVER | D175: 0 | E175: 0 | F175: =VLOOKUP(B175,'24-25 Adjusted Formula counts'!$A$3:$L$320,8,FALSE) -> 52 | G175: =ROUND((F175/$F$5*Assumptions!$D$22*Assumptions!$D$30),0) -> 281 | H175: =VLOOKUP(B175,'24-25 Adjusted Formula counts'!$A$3:$L$320,9,FALSE) -> 7 | I175: =ROUND((H175/$H$5*Assumptions!$D$22*Assumptions!$D$31),0) -> 1392 | K175: 1673 | N175: 1673 | O175: 0 | P175: 1673 | R175: 0 | S175: 1673 | U175: =IFERROR(VLOOKUP($A175,#REF!, 19,FALSE),0) -> 0 | W175: 1673 | X175: 0 | Y175: 304 | Z175: 0 | AB175: 5305820 | AC175: NORTH RIVER
A176: =VLOOKUP(B176,CCDDD!$A$3:$B$319,2,FALSE) -> 34003 | B176: 5305850 | C176: NORTH THURSTON | D176: 0 | E176: 0 | F176: =VLOOKUP(B176,'24-25 Adjusted Formula counts'!$A$3:$L$320,8,FALSE) -> 17009 | G176: =ROUND((F176/$F$5*Assumptions!$D$22*Assumptions!$D$30),0) -> 91816 | H176: =VLOOKUP(B176,'24-25 Adjusted Formula counts'!$A$3:$L$320,9,FALSE) -> 1459 | I176: =ROUND((H176/$H$5*Assumptions!$D$22*Assumptions!$D$31),0) -> 290215 | K176: 382031 | N176: 382031 | O176: 0 | P176: 382031 | R176: 0 | S176: 382031 | U176: =IFERROR(VLOOKUP($A176,#REF!, 19,FALSE),0) -> 0 | W176: 382031 | X176: 0 | Y176: 23 | Z176: 0 | AB176: 5305850 | AC176: NORTH THURSTON
A177: =VLOOKUP(B177,CCDDD!$A$3:$B$319,2,FALSE) -> 33211 | B177: 5305880 | C177: NORTHPORT | D177: 0 | E177: 0 | F177: =VLOOKUP(B177,'24-25 Adjusted Formula counts'!$A$3:$L$320,8,FALSE) -> 225 | G177: =ROUND((F177/$F$5*Assumptions!$D$22*Assumptions!$D$30),0) -> 1215 | H177: =VLOOKUP(B177,'24-25 Adjusted Formula counts'!$A$3:$L$320,9,FALSE) -> 70 | I177: =ROUND((H177/$H$5*Assumptions!$D$22*Assumptions!$D$31),0) -> 13924 | K177: 15139 | N177: 15139 | O177: 0 | P177: 15139 | R177: 0 | S177: 15139 | U177: =IFERROR(VLOOKUP($A177,#REF!, 19,FALSE),0) -> 0 | W177: 15139 | X177: 0 | Y177: 205 | Z177: 0 | AB177: 5305880 | AC177: NORTHPORT
A178: =VLOOKUP(B178,CCDDD!$A$3:$B$319,2,FALSE) -> 17417 | B178: 5305910 | C178: NORTHSHORE | D178: 0 | E178: 0 | F178: =VLOOKUP(B178,'24-25 Adjusted Formula counts'!$A$3:$L$320,8,FALSE) -> 26236 | G178: =ROUND((F178/$F$5*Assumptions!$D$22*Assumptions!$D$30),0) -> 141625 | H178: =VLOOKUP(B178,'24-25 Adjusted Formula counts'!$A$3:$L$320,9,FALSE) -> 974 | I178: =ROUND((H178/$H$5*Assumptions!$D$22*Assumptions!$D$31),0) -> 193742 | K178: 335367 | N178: 335367 | O178: 0 | P178: 335367 | R178: 0 | S178: 335367 | U178: =IFERROR(VLOOKUP($A178,#REF!, 19,FALSE),0) -> 0 | W178: 335367 | X178: 0 | Y178: 26 | Z178: 0 | AB178: 5305910 | AC178: NORTHSHORE
A179: =VLOOKUP(B179,CCDDD!$A$3:$B$319,2,FALSE) -> 15201 | B179: 5305940 | C179: OAK HARBOR | D179: 0 | E179: 0 | F179: =VLOOKUP(B179,'24-25 Adjusted Formula counts'!$A$3:$L$320,8,FALSE) -> 6006 | G179: =ROUND((F179/$F$5*Assumptions!$D$22*Assumptions!$D$30),0) -> 32421 | H179: =VLOOKUP(B179,'24-25 Adjusted Formula counts'!$A$3:$L$320,9,FALSE) -> 409 | I179: =ROUND((H179/$H$5*Assumptions!$D$22*Assumptions!$D$31),0) -> 81356 | K179: 113777 | N179: 113777 | O179: 0 | P179: 113777 | R179: 0 | S179: 113777 | U179: =IFERROR(VLOOKUP($A179,#REF!, 19,FALSE),0) -> 0 | W179: 113777 | X179: 0 | Y179: 71 | Z179: 0 | AB179: 5305940 | AC179: OAK HARBOR
A180: =VLOOKUP(B180,CCDDD!$A$3:$B$319,2,FALSE) -> 38324 | B180: 5305970 | C180: OAKESDALE | D180: 0 | E180: 0 | F180: =VLOOKUP(B180,'24-25 Adjusted Formula counts'!$A$3:$L$320,8,FALSE) -> 126 | G180: =ROUND((F180/$F$5*Assumptions!$D$22*Assumptions!$D$30),0) -> 680 | H180: =VLOOKUP(B180,'24-25 Adjusted Formula counts'!$A$3:$L$320,9,FALSE) -> 17 | I180: =ROUND((H180/$H$5*Assumptions!$D$22*Assumptions!$D$31),0) -> 3382 | K180: 4062 | N180: 4062 | O180: 0 | P180: 4062 | R180: 0 | S180: 4062 | U180: =IFERROR(VLOOKUP($A180,#REF!, 19,FALSE),0) -> 0 | W180: 4062 | X180: 0 | Y180: 275 | Z180: 0 | AB180: 5305970 | AC180: OAKESDALE
A181: =VLOOKUP(B181,CCDDD!$A$3:$B$319,2,FALSE) -> 14400 | B181: 5306000 | C181: OAKVILLE | D181: 0 | E181: 0 | F181: =VLOOKUP(B181,'24-25 Adjusted Formula counts'!$A$3:$L$320,8,FALSE) -> 450 | G181: =ROUND((F181/$F$5*Assumptions!$D$22*Assumptions!$D$30),0) -> 2429 | H181: =VLOOKUP(B181,'24-25 Adjusted Formula counts'!$A$3:$L$320,9,FALSE) -> 108 | I181: =ROUND((H181/$H$5*Assumptions!$D$22*Assumptions!$D$31),0) -> 21483 | K181: 23912 | N181: 23912 | O181: 0 | P181: 23912 | R181: 0 | S181: 23912 | U181: =IFERROR(VLOOKUP($A181,#REF!, 19,FALSE),0) -> 0 | W181: 23912 | X181: 0 | Y181: 178 | Z181: 0 | AB181: 5306000 | AC181: OAKVILLE
A182: =VLOOKUP(B182,CCDDD!$A$3:$B$319,2,FALSE) -> 25101 | B182: 5306060 | C182: OCEAN BEACH | D182: 0 | E182: 0 | F182: =VLOOKUP(B182,'24-25 Adjusted Formula counts'!$A$3:$L$320,8,FALSE) -> 1047 | G182: =ROUND((F182/$F$5*Assumptions!$D$22*Assumptions!$D$30),0) -> 5652 | H182: =VLOOKUP(B182,'24-25 Adjusted Formula counts'!$A$3:$L$320,9,FALSE) -> 189 | I182: =ROUND((H182/$H$5*Assumptions!$D$22*Assumptions!$D$31),0) -> 37595 | K182: 43247 | N182: 43247 | O182: 0 | P182: 43247 | R182: 0 | S182: 43247 | U182: =IFERROR(VLOOKUP($A182,#REF!, 19,FALSE),0) -> 0 | W182: 43247 | X182: 0 | Y182: 135 | Z182: 0 | AB182: 5306060 | AC182: OCEAN BEACH
A183: =VLOOKUP(B183,CCDDD!$A$3:$B$319,2,FALSE) -> 14172 | B183: 5306090 | C183: OCOSTA | D183: 0 | E183: 0 | F183: =VLOOKUP(B183,'24-25 Adjusted Formula counts'!$A$3:$L$320,8,FALSE) -> 660 | G183: =ROUND((F183/$F$5*Assumptions!$D$22*Assumptions!$D$30),0) -> 3563 | H183: =VLOOKUP(B183,'24-25 Adjusted Formula counts'!$A$3:$L$320,9,FALSE) -> 195 | I183: =ROUND((H183/$H$5*Assumptions!$D$22*Assumptions!$D$31),0) -> 38788 | K183: 42351 | N183: 42351 | O183: 0 | P183: 42351 | R183: 0 | S183: 42351 | U183: =IFERROR(VLOOKUP($A183,#REF!, 19,FALSE),0) -> 0 | W183: 42351 | X183: 0 | Y183: 137 | Z183: 0 | AB183: 5306090 | AC183: OCOSTA
A184: =VLOOKUP(B184,CCDDD!$A$3:$B$319,2,FALSE) -> 22105 | B184: 5306120 | C184: ODESSA | D184: 0 | E184: 0 | F184: =VLOOKUP(B184,'24-25 Adjusted Formula counts'!$A$3:$L$320,8,FALSE) -> 310 | G184: =ROUND((F184/$F$5*Assumptions!$D$22*Assumptions!$D$30),0) -> 1673 | H184: =VLOOKUP(B184,'24-25 Adjusted Formula counts'!$A$3:$L$320,9,FALSE) -> 32 | I184: =ROUND((H184/$H$5*Assumptions!$D$22*Assumptions!$D$31),0) -> 6365 | K184: 8038 | N184: 8038 | O184: 0 | P184: 8038 | R184: 0 | S184: 8038 | U184: =IFERROR(VLOOKUP($A184,#REF!, 19,FALSE),0) -> 0 | W184: 8038 | X184: 0 | Y184: 243 | Z184: 0 | AB184: 5306120 | AC184: ODESSA
A185: =VLOOKUP(B185,CCDDD!$A$3:$B$319,2,FALSE) -> 24105 | B185: 5306150 | C185: OKANOGAN | D185: 0 | E185: 0 | F185: =VLOOKUP(B185,'24-25 Adjusted Formula counts'!$A$3:$L$320,8,FALSE) -> 984 | G185: =ROUND((F185/$F$5*Assumptions!$D$22*Assumptions!$D$30),0) -> 5312 | H185: =VLOOKUP(B185,'24-25 Adjusted Formula counts'!$A$3:$L$320,9,FALSE) -> 172 | I185: =ROUND((H185/$H$5*Assumptions!$D$22*Assumptions!$D$31),0) -> 34213 | K185: 39525 | N185: 39525 | O185: 0 | P185: 39525 | R185: 0 | S185: 39525 | U185: =IFERROR(VLOOKUP($A185,#REF!, 19,FALSE),0) -> 0 | W185: 39525 | X185: 0 | Y185: 142 | Z185: 0 | AB185: 5306150 | AC185: OKANOGAN
A186: =VLOOKUP(B186,CCDDD!$A$3:$B$319,2,FALSE) -> 34111 | B186: 5306180 | C186: OLYMPIA | D186: 0 | E186: 0 | F186: =VLOOKUP(B186,'24-25 Adjusted Formula counts'!$A$3:$L$320,8,FALSE) -> 10394 | G186: =ROUND((F186/$F$5*Assumptions!$D$22*Assumptions!$D$30),0) -> 56108 | H186: =VLOOKUP(B186,'24-25 Adjusted Formula counts'!$A$3:$L$320,9,FALSE) -> 1070 | I186: =ROUND((H186/$H$5*Assumptions!$D$22*Assumptions!$D$31),0) -> 212838 | K186: 268946 | N186: 268946 | O186: 0 | P186: 268946 | R186: 0 | S186: 268946 | U186: =IFERROR(VLOOKUP($A186,#REF!, 19,FALSE),0) -> 0 | W186: 268946 | X186: 0 | Y186: 33 | Z186: 0 | AB186: 5306180 | AC186: OLYMPIA
A187: =VLOOKUP(B187,CCDDD!$A$3:$B$319,2,FALSE) -> 24019 | B187: 5306220 | C187: OMAK | D187: 0 | E187: 0 | F187: =VLOOKUP(B187,'24-25 Adjusted Formula counts'!$A$3:$L$320,8,FALSE) -> 1930 | G187: =ROUND((F187/$F$5*Assumptions!$D$22*Assumptions!$D$30),0) -> 10418 | H187: =VLOOKUP(B187,'24-25 Adjusted Formula counts'!$A$3:$L$320,9,FALSE) -> 371 | I187: =ROUND((H187/$H$5*Assumptions!$D$22*Assumptions!$D$31),0) -> 73797 | K187: 84215 | N187: 84215 | O187: 0 | P187: 84215 | R187: 0 | S187: 84215 | U187: =IFERROR(VLOOKUP($A187,#REF!, 19,FALSE),0) -> 0 | W187: 84215 | X187: 0 | Y187: 86 | Z187: 0 | AB187: 5306220 | AC187: OMAK
A188: =VLOOKUP(B188,CCDDD!$A$3:$B$319,2,FALSE) -> 21300 | B188: 5306240 | C188: ONALASKA | D188: 0 | E188: 0 | F188: =VLOOKUP(B188,'24-25 Adjusted Formula counts'!$A$3:$L$320,8,FALSE) -> 933 | G188: =ROUND((F188/$F$5*Assumptions!$D$22*Assumptions!$D$30),0) -> 5036 | H188: =VLOOKUP(B188,'24-25 Adjusted Formula counts'!$A$3:$L$320,9,FALSE) -> 127 | I188: =ROUND((H188/$H$5*Assumptions!$D$22*Assumptions!$D$31),0) -> 25262 | K188: 30298 | N188: 30298 | O188: 0 | P188: 30298 | R188: 0 | S188: 30298 | U188: =IFERROR(VLOOKUP($A188,#REF!, 19,FALSE),0) -> 0 | W188: 30298 | X188: 0 | Y188: 159 | Z188: 0 | AB188: 5306240 | AC188: ONALASKA
A189: =VLOOKUP(B189,CCDDD!$A$3:$B$319,2,FALSE) -> 33030 | B189: 5306270 | C189: ONION CREEK | D189: 0 | E189: 0 | F189: =VLOOKUP(B189,'24-25 Adjusted Formula counts'!$A$3:$L$320,8,FALSE) -> 62 | G189: =ROUND((F189/$F$5*Assumptions!$D$22*Assumptions!$D$30),0) -> 335 | H189: =VLOOKUP(B189,'24-25 Adjusted Formula counts'!$A$3:$L$320,9,FALSE) -> 19 | I189: =ROUND((H189/$H$5*Assumptions!$D$22*Assumptions!$D$31),0) -> 3779 | K189: 4114 | N189: 4114 | O189: 0 | P189: 4114 | R189: 0 | S189: 4114 | U189: =IFERROR(VLOOKUP($A189,#REF!, 19,FALSE),0) -> 0 | W189: 4114 | X189: 0 | Y189: 274 | Z189: 0 | AB189: 5306270 | AC189: ONION CREEK
A190: =VLOOKUP(B190,CCDDD!$A$3:$B$319,2,FALSE) -> 28137 | B190: 5306300 | C190: ORCAS ISLAND | D190: 0 | E190: 0 | F190: =VLOOKUP(B190,'24-25 Adjusted Formula counts'!$A$3:$L$320,8,FALSE) -> 587 | G190: =ROUND((F190/$F$5*Assumptions!$D$22*Assumptions!$D$30),0) -> 3169 | H190: =VLOOKUP(B190,'24-25 Adjusted Formula counts'!$A$3:$L$320,9,FALSE) -> 79 | I190: =ROUND((H190/$H$5*Assumptions!$D$22*Assumptions!$D$31),0) -> 15714 | K190: 18883 | N190: 18883 | O190: 0 | P190: 18883 | R190: 0 | S190: 18883 | U190: =IFERROR(VLOOKUP($A190,#REF!, 19,FALSE),0) -> 0 | W190: 18883 | X190: 0 | Y190: 191 | Z190: 0 | AB190: 5306300 | AC190: ORCAS ISLAND
A191: =VLOOKUP(B191,CCDDD!$A$3:$B$319,2,FALSE) -> 32123 | B191: 5306330 | C191: ORCHARD PRAIRIE | D191: 0 | E191: 0 | F191: =VLOOKUP(B191,'24-25 Adjusted Formula counts'!$A$3:$L$320,8,FALSE) -> 177 | G191: =ROUND((F191/$F$5*Assumptions!$D$22*Assumptions!$D$30),0) -> 955 | H191: =VLOOKUP(B191,'24-25 Adjusted Formula counts'!$A$3:$L$320,9,FALSE) -> 22 | I191: =ROUND((H191/$H$5*Assumptions!$D$22*Assumptions!$D$31),0) -> 4376 | K191: 5331 | N191: 5331 | O191: 0 | P191: 5331 | R191: 0 | S191: 5331 | U191: =IFERROR(VLOOKUP($A191,#REF!, 19,FALSE),0) -> 0 | W191: 5331 | X191: 0 | Y191: 263 | Z191: 0 | AB191: 5306330 | AC191: ORCHARD PRAIRIE
A192: =VLOOKUP(B192,CCDDD!$A$3:$B$319,2,FALSE) -> 10065 | B192: 5306360 | C192: ORIENT | D192: 0 | E192: 0 | F192: =VLOOKUP(B192,'24-25 Adjusted Formula counts'!$A$3:$L$320,8,FALSE) -> 128 | G192: =ROUND((F192/$F$5*Assumptions!$D$22*Assumptions!$D$30),0) -> 691 | H192: =VLOOKUP(B192,'24-25 Adjusted Formula counts'!$A$3:$L$320,9,FALSE) -> 36 | I192: =ROUND((H192/$H$5*Assumptions!$D$22*Assumptions!$D$31),0) -> 7161 | K192: 7852 | N192: 7852 | O192: 0 | P192: 7852 | R192: 0 | S192: 7852 | U192: =IFERROR(VLOOKUP($A192,#REF!, 19,FALSE),0) -> 0 | W192: 7852 | X192: 0 | Y192: 244 | Z192: 0 | AB192: 5306360 | AC192: ORIENT
A193: =VLOOKUP(B193,CCDDD!$A$3:$B$319,2,FALSE) -> 09013 | B193: 5306390 | C193: ORONDO | D193: 0 | E193: 0 | F193: =VLOOKUP(B193,'24-25 Adjusted Formula counts'!$A$3:$L$320,8,FALSE) -> 261 | G193: =ROUND((F193/$F$5*Assumptions!$D$22*Assumptions!$D$30),0) -> 1409 | H193: =VLOOKUP(B193,'24-25 Adjusted Formula counts'!$A$3:$L$320,9,FALSE) -> 34 | I193: =ROUND((H193/$H$5*Assumptions!$D$22*Assumptions!$D$31),0) -> 6763 | K193: 8172 | N193: 8172 | O193: 0 | P193: 8172 | R193: 0 | S193: 8172 | U193: =IFERROR(VLOOKUP($A193,#REF!, 19,FALSE),0) -> 0 | W193: 8172 | X193: 0 | Y193: 241 | Z193: 0 | AB193: 5306390 | AC193: ORONDO
A194: =VLOOKUP(B194,CCDDD!$A$3:$B$319,2,FALSE) -> 24410 | B194: 5306420 | C194: OROVILLE | D194: 0 | E194: 0 | F194: =VLOOKUP(B194,'24-25 Adjusted Formula counts'!$A$3:$L$320,8,FALSE) -> 710 | G194: =ROUND((F194/$F$5*Assumptions!$D$22*Assumptions!$D$30),0) -> 3833 | H194: =VLOOKUP(B194,'24-25 Adjusted Formula counts'!$A$3:$L$320,9,FALSE) -> 178 | I194: =ROUND((H194/$H$5*Assumptions!$D$22*Assumptions!$D$31),0) -> 35407 | K194: 39240 | N194: 39240 | O194: 0 | P194: 39240 | R194: 0 | S194: 39240 | U194: =IFERROR(VLOOKUP($A194,#REF!, 19,FALSE),0) -> 0 | W194: 39240 | X194: 0 | Y194: 144 | Z194: 0 | AB194: 5306420 | AC194: OROVILLE
A195: =VLOOKUP(B195,CCDDD!$A$3:$B$319,2,FALSE) -> 27344 | B195: 5306450 | C195: ORTING | D195: 0 | E195: 0 | F195: =VLOOKUP(B195,'24-25 Adjusted Formula counts'!$A$3:$L$320,8,FALSE) -> 3249 | G195: =ROUND((F195/$F$5*Assumptions!$D$22*Assumptions!$D$30),0) -> 17538 | H195: =VLOOKUP(B195,'24-25 Adjusted Formula counts'!$A$3:$L$320,9,FALSE) -> 168 | I195: =ROUND((H195/$H$5*Assumptions!$D$22*Assumptions!$D$31),0) -> 33417 | K195: 50955 | N195: 50955 | O195: 0 | P195: 50955 | R195: 0 | S195: 50955 | U195: =IFERROR(VLOOKUP($A195,#REF!, 19,FALSE),0) -> 0 | W195: 50955 | X195: 0 | Y195: 122 | Z195: 0 | AB195: 5306450 | AC195: ORTING
A196: =VLOOKUP(B196,CCDDD!$A$3:$B$319,2,FALSE) -> 01147 | B196: 5306480 | C196: OTHELLO | D196: 0 | E196: 0 | F196: =VLOOKUP(B196,'24-25 Adjusted Formula counts'!$A$3:$L$320,8,FALSE) -> 4618 | G196: =ROUND((F196/$F$5*Assumptions!$D$22*Assumptions!$D$30),0) -> 24928 | H196: =VLOOKUP(B196,'24-25 Adjusted Formula counts'!$A$3:$L$320,9,FALSE) -> 735 | I196: =ROUND((H196/$H$5*Assumptions!$D$22*Assumptions!$D$31),0) -> 146201 | K196: 171129 | N196: 171129 | O196: 0 | P196: 171129 | R196: 0 | S196: 171129 | U196: =IFERROR(VLOOKUP($A196,#REF!, 19,FALSE),0) -> 0 | W196: 171129 | X196: 0 | Y196: 51 | Z196: 0 | AB196: 5306480 | AC196: OTHELLO
A197: =VLOOKUP(B197,CCDDD!$A$3:$B$319,2,FALSE) -> 09102 | B197: 5306510 | C197: PALISADES | D197: 0 | E197: 0 | F197: =VLOOKUP(B197,'24-25 Adjusted Formula counts'!$A$3:$L$320,8,FALSE) -> 46 | G197: =ROUND((F197/$F$5*Assumptions!$D$22*Assumptions!$D$30),0) -> 248 | H197: =VLOOKUP(B197,'24-25 Adjusted Formula counts'!$A$3:$L$320,9,FALSE) -> 10 | I197: =ROUND((H197/$H$5*Assumptions!$D$22*Assumptions!$D$31),0) -> 1989 | K197: 2237 | N197: 2237 | O197: 0 | P197: 2237 | R197: 0 | S197: 2237 | U197: =IFERROR(VLOOKUP($A197,#REF!, 19,FALSE),0) -> 0 | W197: 2237 | X197: 0 | Y197: 295 | Z197: 0 | AB197: 5306510 | AC197: PALISADES
A198: =VLOOKUP(B198,CCDDD!$A$3:$B$319,2,FALSE) -> 38301 | B198: 5306540 | C198: PALOUSE | D198: 0 | E198: 0 | F198: =VLOOKUP(B198,'24-25 Adjusted Formula counts'!$A$3:$L$320,8,FALSE) -> 237 | G198: =ROUND((F198/$F$5*Assumptions!$D$22*Assumptions!$D$30),0) -> 1279 | H198: =VLOOKUP(B198,'24-25 Adjusted Formula counts'!$A$3:$L$320,9,FALSE) -> 11 | I198: =ROUND((H198/$H$5*Assumptions!$D$22*Assumptions!$D$31),0) -> 2188 | K198: 3467 | N198: 3467 | O198: 0 | P198: 3467 | R198: 0 | S198: 3467 | U198: =IFERROR(VLOOKUP($A198,#REF!, 19,FALSE),0) -> 0 | W198: 3467 | X198: 0 | Y198: 282 | Z198: 0 | AB198: 5306540 | AC198: PALOUSE
A199: =VLOOKUP(B199,CCDDD!$A$3:$B$319,2,FALSE) -> 11001 | B199: 5306570 | C199: PASCO | D199: 0 | E199: 0 | F199: =VLOOKUP(B199,'24-25 Adjusted Formula counts'!$A$3:$L$320,8,FALSE) -> 20405 | G199: =ROUND((F199/$F$5*Assumptions!$D$22*Assumptions!$D$30),0) -> 110148 | H199: =VLOOKUP(B199,'24-25 Adjusted Formula counts'!$A$3:$L$320,9,FALSE) -> 2379 | I199: =ROUND((H199/$H$5*Assumptions!$D$22*Assumptions!$D$31),0) -> 473215 | K199: =ROUNDDOWN(+I199+G199+E199+D199+J199,0) -> 583363 | N199: =K199 -> 583363 | O199: =-ROUND(N199/$N$5*$M$5,0) -> 0 | P199: =+K199+O199+M199 -> 583363 | R199: =-1*(P199*Q199) -> 0 | S199: =+P199+R199 -> 583363 | U199: =IFERROR(VLOOKUP($A199,#REF!, 19,FALSE),0) -> 0 | W199: =+S199-U199 -> 583363 | X199: =IF(U199>0,W199/U199,0) -> 0 | Y199: =RANK(W199,$W$7:$W$321,0) -> 13 | Z199: =(SUM(D199:E199)/S199) -> 0 | AB199: =+B199 -> 5306570 | AC199: PASCO
A200: =VLOOKUP(B200,CCDDD!$A$3:$B$319,2,FALSE) -> 24122 | B200: 5306600 | C200: PATEROS | D200: 0 | E200: 0 | F200: =VLOOKUP(B200,'24-25 Adjusted Formula counts'!$A$3:$L$320,8,FALSE) -> 294 | G200: =ROUND((F200/$F$5*Assumptions!$D$22*Assumptions!$D$30),0) -> 1587 | H200: =VLOOKUP(B200,'24-25 Adjusted Formula counts'!$A$3:$L$320,9,FALSE) -> 33 | I200: =ROUND((H200/$H$5*Assumptions!$D$22*Assumptions!$D$31),0) -> 6564 | K200: 8151 | N200: 8151 | O200: 0 | P200: 8151 | R200: 0 | S200: 8151 | U200: =IFERROR(VLOOKUP($A200,#REF!, 19,FALSE),0) -> 0 | W200: 8151 | X200: 0 | Y200: 242 | Z200: 0 | AB200: 5306600 | AC200: PATEROS
... 121 more rows

Sheet 25-26 Adjusted Formula counts (hidden)
A1: Source: S:\Apportionment_NEW\Federal Funding & Allocations\Federal progran allocation\25-26\final\Title I-A 25-26 final.xlsx, initial adjusted formula counts
A2: LEAID | B2: LEANAME | C2: SendingLEAid | D2: NEG. adj | E2: Adj DEL. | F2: Adj Foster | G2: Adj TANF | H2: Adj - 5-17 pop | I2: Adj poverty | J2: Adj Total formula count | K2: Total Formula Count DOE | L2: Adj poverty percentage
A3: 5300030 | B3: Aberdeen School District | D3: 0 | F3: 14 | G3: 0 | H3: 3496 | I3: 690 | J3: 704 | K3: 704 | L3: 0.2013729977 | N3: =VLOOKUP(A3, 'Allocation 2024-25 Final'!$B$7:$C$321,2,FALSE) -> ABERDEEN
A4: 5300060 | B4: Adna School District | D4: 0 | F4: 3 | G4: 0 | H4: 748 | I4: 66 | J4: 69 | K4: 69 | L4: 0.0922459893 | N4: =VLOOKUP(A4, 'Allocation 2024-25 Final'!$B$7:$C$321,2,FALSE) -> ADNA
A5: 5300090 | B5: Almira School District | D5: 0 | F5: 0 | G5: 0 | H5: 99 | I5: 18 | J5: 18 | K5: 18 | L5: 0.1818181818 | N5: =VLOOKUP(A5, 'Allocation 2024-25 Final'!$B$7:$C$321,2,FALSE) -> ALMIRA
A6: 5300150 | B6: Anacortes School District | D6: 0 | F6: 8 | G6: 0 | H6: 2787 | I6: 225 | J6: 233 | K6: 233 | L6: 0.0836024399 | N6: =VLOOKUP(A6, 'Allocation 2024-25 Final'!$B$7:$C$321,2,FALSE) -> ANACORTES
A7: 5300240 | B7: Arlington School District | D7: 0 | F7: 10 | G7: 0 | H7: 5958 | I7: 533 | J7: 543 | K7: 543 | L7: 0.09113796576 | N7: =VLOOKUP(A7, 'Allocation 2024-25 Final'!$B$7:$C$321,2,FALSE) -> ARLINGTON
A8: 5300280 | B8: Asotin-Anatone School District | D8: 0 | F8: 0 | G8: 0 | H8: 489 | I8: 28 | J8: 28 | K8: 28 | L8: 0.0572597137 | N8: =VLOOKUP(A8, 'Allocation 2024-25 Final'!$B$7:$C$321,2,FALSE) -> ASOTIN-ANATONE
A9: 5300300 | B9: Auburn School District | D9: 0 | F9: 41 | G9: 0 | H9: 18383 | I9: 2769 | J9: 2810 | K9: 2810 | L9: 0.1528586194 | N9: =VLOOKUP(A9, 'Allocation 2024-25 Final'!$B$7:$C$321,2,FALSE) -> AUBURN
A10: 5300330 | B10: Bainbridge Island School District | D10: 0 | F10: 0 | G10: 0 | H10: 3972 | I10: 150 | J10: 150 | K10: 150 | L10: 0.03776435045 | N10: =VLOOKUP(A10, 'Allocation 2024-25 Final'!$B$7:$C$321,2,FALSE) -> BAINBRIDGE ISLAND
A11: 5300380 | B11: Battle Ground School District | D11: 0 | F11: 40 | G11: 0 | H11: 15940 | I11: 860 | J11: 900 | K11: 900 | L11: 0.05646173149 | N11: =VLOOKUP(A11, 'Allocation 2024-25 Final'!$B$7:$C$321,2,FALSE) -> BATTLE GROUND
A12: 5300390 | B12: Bellevue School District | D12: 0 | F12: 11 | G12: 0 | H12: 22497 | I12: 1453 | J12: 1464 | K12: 1464 | L12: 0.06507534338 | N12: =VLOOKUP(A12, 'Allocation 2024-25 Final'!$B$7:$C$321,2,FALSE) -> BELLEVUE
A13: 5300420 | B13: Bellingham | C13: 5300420 | D13: 0 | F13: 24 | G13: 0 | H13: 12453.45242 | I13: 1314.735076 | J13: 1338.735076 | K13: 1347 | L13: 0.107499112 | N13: =VLOOKUP(A13, 'Allocation 2024-25 Final'!$B$7:$C$321,2,FALSE) -> BELLINGHAM
A14: 5300450 | B14: Benge School District | D14: 0 | F14: 0 | G14: 0 | H14: 16 | I14: 2 | J14: 2 | K14: 2 | L14: 0.125 | N14: =VLOOKUP(A14, 'Allocation 2024-25 Final'!$B$7:$C$321,2,FALSE) -> BENGE
A15: 5300480 | B15: Bethel School District | D15: 0 | F15: 69 | G15: 0 | H15: 24321 | I15: 2440 | J15: 2509 | K15: 2509 | L15: 0.1031618766 | N15: =VLOOKUP(A15, 'Allocation 2024-25 Final'!$B$7:$C$321,2,FALSE) -> BETHEL
A16: 5300510 | B16: Bickleton School District | D16: 0 | F16: 0 | G16: 0 | H16: 79 | I16: 9 | J16: 9 | K16: 9 | L16: 0.1139240506 | N16: =VLOOKUP(A16, 'Allocation 2024-25 Final'!$B$7:$C$321,2,FALSE) -> BICKLETON
A17: 5300570 | B17: Blaine School District | D17: 0 | F17: 5 | G17: 0 | H17: 2479 | I17: 302 | J17: 307 | K17: 307 | L17: 0.1238402582 | N17: =VLOOKUP(A17, 'Allocation 2024-25 Final'!$B$7:$C$321,2,FALSE) -> BLAINE
A18: 5300630 | B18: Boistfort School District | D18: 0 | F18: 2 | G18: 0 | H18: 218 | I18: 22 | J18: 24 | K18: 24 | L18: 0.1100917431 | N18: =VLOOKUP(A18, 'Allocation 2024-25 Final'!$B$7:$C$321,2,FALSE) -> BOISTFORT
A19: 5300660 | B19: Bremerton | C19: 5300660 | D19: 0 | F19: 15 | G19: 0 | H19: 4858.076063 | I19: 772.3934304 | J19: 787.3934304 | K19: 869 | L19: 0.1620792717 | N19: =VLOOKUP(A19, 'Allocation 2024-25 Final'!$B$7:$C$321,2,FALSE) -> BREMERTON
A20: 5300690 | B20: Brewster School District | D20: 0 | F20: 0 | G20: 0 | H20: 949 | I20: 242 | J20: 242 | K20: 242 | L20: 0.2550052687 | N20: =VLOOKUP(A20, 'Allocation 2024-25 Final'!$B$7:$C$321,2,FALSE) -> BREWSTER
A21: 5300720 | B21: Bridgeport School District | D21: 0 | F21: 0 | G21: 0 | H21: 682 | I21: 155 | J21: 155 | K21: 155 | L21: 0.2272727273 | N21: =VLOOKUP(A21, 'Allocation 2024-25 Final'!$B$7:$C$321,2,FALSE) -> BRIDGEPORT
A22: 5300750 | B22: Brinnon School District | D22: 0 | F22: 1 | G22: 0 | H22: 112 | I22: 25 | J22: 26 | K22: 26 | L22: 0.2321428571 | N22: =VLOOKUP(A22, 'Allocation 2024-25 Final'!$B$7:$C$321,2,FALSE) -> BRINNON
A23: 5300780 | B23: Burlington-Edison School District | D23: 0 | F23: 11 | G23: 0 | H23: 3667 | I23: 390 | J23: 401 | K23: 401 | L23: 0.1093536951 | N23: =VLOOKUP(A23, 'Allocation 2024-25 Final'!$B$7:$C$321,2,FALSE) -> BURLINGTON-EDISON
A24: 5300810 | B24: Camas School District | D24: 0 | F24: 8 | G24: 0 | H24: 7463 | I24: 263 | J24: 271 | K24: 271 | L24: 0.03631247488 | N24: =VLOOKUP(A24, 'Allocation 2024-25 Final'!$B$7:$C$321,2,FALSE) -> CAMAS
A25: 5300840 | B25: Cape Flattery School District | D25: 0 | F25: 14 | G25: 0 | H25: 545 | I25: 81 | J25: 95 | K25: 95 | L25: 0.1743119266 | N25: =VLOOKUP(A25, 'Allocation 2024-25 Final'!$B$7:$C$321,2,FALSE) -> CAPE FLATTERY
A26: 5300870 | B26: Carbonado School District | D26: 0 | F26: 0 | G26: 0 | H26: 209 | I26: 4 | J26: 4 | K26: 4 | L26: 0.01913875598 | N26: =VLOOKUP(A26, 'Allocation 2024-25 Final'!$B$7:$C$321,2,FALSE) -> CARBONADO
A27: 5300950 | B27: Cascade School District | D27: 0 | F27: 1 | G27: 0 | H27: 1565 | I27: 153 | J27: 154 | K27: 154 | L27: 0.09840255591 | N27: =VLOOKUP(A27, 'Allocation 2024-25 Final'!$B$7:$C$321,2,FALSE) -> CASCADE
A28: 5300960 | B28: Cashmere School District | D28: 0 | F28: 7 | G28: 0 | H28: 1507 | I28: 159 | J28: 166 | K28: 166 | L28: 0.1101526211 | N28: =VLOOKUP(A28, 'Allocation 2024-25 Final'!$B$7:$C$321,2,FALSE) -> CASHMERE
A29: 5300990 | B29: Castle Rock School District | D29: 0 | F29: 6 | G29: 0 | H29: 1661 | I29: 188 | J29: 194 | K29: 194 | L29: 0.1167971102 | N29: =VLOOKUP(A29, 'Allocation 2024-25 Final'!$B$7:$C$321,2,FALSE) -> CASTLE ROCK
A30: 5301000 | B30: Catalyst Public Schools | C30: 5300660 | D30: 0 | E30: 0 | F30: 0 | G30: 0 | H30: 616.8281094 | I30: 65.66778649 | J30: 65.66778649 | K30: 0 | L30: 0.1064604312 | N30: =VLOOKUP(A30, 'Allocation 2024-25 Final'!$B$7:$C$321,2,FALSE) -> CATALYST BREMERTON CHARTER
A31: 5301050 | B31: Centerville School District | D31: 0 | F31: 0 | G31: 0 | H31: 94 | I31: 24 | J31: 24 | K31: 24 | L31: 0.2553191489 | N31: =VLOOKUP(A31, 'Allocation 2024-25 Final'!$B$7:$C$321,2,FALSE) -> CENTERVILLE
A32: 5301080 | B32: Central Kitsap School District | D32: 0 | F32: 24 | G32: 0 | H32: 11141 | I32: 763 | J32: 787 | K32: 787 | L32: 0.07063997846 | N32: =VLOOKUP(A32, 'Allocation 2024-25 Final'!$B$7:$C$321,2,FALSE) -> CENTRAL KITSAP
A33: 5301110 | B33: Central Valley School District | D33: 0 | F33: 74 | G33: 0 | H33: 17143 | I33: 1391 | J33: 1465 | K33: 1465 | L33: 0.08545762119 | N33: =VLOOKUP(A33, 'Allocation 2024-25 Final'!$B$7:$C$321,2,FALSE) -> CENTRAL VALLEY
A34: 5301140 | B34: Centralia School District | D34: 0 | F34: 19 | G34: 0 | H34: 4334 | I34: 840 | J34: 859 | K34: 859 | L34: 0.1982002769 | N34: =VLOOKUP(A34, 'Allocation 2024-25 Final'!$B$7:$C$321,2,FALSE) -> CENTRALIA
A35: 5301170 | B35: Chehalis School District | D35: 0 | F35: 7 | G35: 0 | H35: 2894 | I35: 394 | J35: 401 | K35: 401 | L35: 0.1385625432 | N35: =VLOOKUP(A35, 'Allocation 2024-25 Final'!$B$7:$C$321,2,FALSE) -> CHEHALIS
A36: 5301230 | B36: Cheney School District | D36: 0 | F36: 22 | G36: 0 | H36: 6286 | I36: 697 | J36: 719 | K36: 719 | L36: 0.1143811645 | N36: =VLOOKUP(A36, 'Allocation 2024-25 Final'!$B$7:$C$321,2,FALSE) -> CHENEY
A37: 5301260 | B37: Chewelah School District | D37: 0 | F37: 1 | G37: 0 | H37: 945 | I37: 152 | J37: 153 | K37: 153 | L37: 0.1619047619 | N37: =VLOOKUP(A37, 'Allocation 2024-25 Final'!$B$7:$C$321,2,FALSE) -> CHEWELAH
A38: 5301290 | B38: Chimacum School District | D38: 0 | F38: 4 | G38: 0 | H38: 1118 | I38: 148 | J38: 152 | K38: 152 | L38: 0.1359570662 | N38: =VLOOKUP(A38, 'Allocation 2024-25 Final'!$B$7:$C$321,2,FALSE) -> CHIMACUM
A39: 5301320 | B39: Clarkston School District | D39: 0 | F39: 17 | G39: 0 | H39: 2773 | I39: 507 | J39: 524 | K39: 524 | L39: 0.1889650198 | N39: =VLOOKUP(A39, 'Allocation 2024-25 Final'!$B$7:$C$321,2,FALSE) -> CLARKSTON
A40: 5301350 | B40: Cle Elum-Roslyn School District | D40: 0 | F40: 6 | G40: 0 | H40: 1078 | I40: 152 | J40: 158 | K40: 158 | L40: 0.146567718 | N40: =VLOOKUP(A40, 'Allocation 2024-25 Final'!$B$7:$C$321,2,FALSE) -> CLE ELUM-ROSLYN
A41: 5301410 | B41: Clover Park School District | D41: 0 | F41: 45 | G41: 0 | H41: 13789 | I41: 2049 | J41: 2094 | K41: 2094 | L41: 0.1518601784 | N41: =VLOOKUP(A41, 'Allocation 2024-25 Final'!$B$7:$C$321,2,FALSE) -> CLOVER PARK
A42: 5301440 | B42: Colfax School District | D42: 0 | F42: 0 | G42: 0 | H42: 622 | I42: 61 | J42: 61 | K42: 61 | L42: 0.09807073955 | N42: =VLOOKUP(A42, 'Allocation 2024-25 Final'!$B$7:$C$321,2,FALSE) -> COLFAX
A43: 5301470 | B43: College Place School District | D43: 0 | F43: 15 | G43: 0 | H43: 2043 | I43: 277 | J43: 292 | K43: 292 | L43: 0.142927068 | N43: =VLOOKUP(A43, 'Allocation 2024-25 Final'!$B$7:$C$321,2,FALSE) -> COLLEGE PLACE
A44: 5301500 | B44: Colton School District | D44: 0 | F44: 0 | G44: 0 | H44: 250 | I44: 9 | J44: 9 | K44: 9 | L44: 0.036 | N44: =VLOOKUP(A44, 'Allocation 2024-25 Final'!$B$7:$C$321,2,FALSE) -> COLTON
A45: 5301560 | B45: Columbia (Stevens) School District | D45: 0 | F45: 1 | G45: 0 | H45: 206 | I45: 37 | J45: 38 | K45: 38 | L45: 0.1844660194 | N45: =VLOOKUP(A45, 'Allocation 2024-25 Final'!$B$7:$C$321,2,FALSE) -> COLUMBIA (STEV)
A46: 5301590 | B46: Columbia (Walla Walla) School District | D46: 0 | F46: 0 | G46: 0 | H46: 759 | I46: 105 | J46: 105 | K46: 105 | L46: 0.1383399209 | N46: =VLOOKUP(A46, 'Allocation 2024-25 Final'!$B$7:$C$321,2,FALSE) -> COLUMBIA (WALLA)
A47: 5301630 | B47: Colville School District | D47: 0 | F47: 11 | G47: 0 | H47: 2012 | I47: 340 | J47: 351 | K47: 351 | L47: 0.1744532803 | N47: =VLOOKUP(A47, 'Allocation 2024-25 Final'!$B$7:$C$321,2,FALSE) -> COLVILLE
A48: 5301660 | B48: Concrete School District | D48: 0 | F48: 2 | G48: 0 | H48: 706 | I48: 97 | J48: 99 | K48: 99 | L48: 0.1402266289 | N48: =VLOOKUP(A48, 'Allocation 2024-25 Final'!$B$7:$C$321,2,FALSE) -> CONCRETE
A49: 5301680 | B49: Conway School District | D49: 0 | F49: 1 | G49: 0 | H49: 534 | I49: 45 | J49: 46 | K49: 46 | L49: 0.0861423221 | N49: =VLOOKUP(A49, 'Allocation 2024-25 Final'!$B$7:$C$321,2,FALSE) -> CONWAY
A50: 5301710 | B50: Cosmopolis School District | D50: 0 | F50: 4 | G50: 0 | H50: 315 | I50: 33 | J50: 37 | K50: 37 | L50: 0.1174603175 | N50: =VLOOKUP(A50, 'Allocation 2024-25 Final'!$B$7:$C$321,2,FALSE) -> COSMOPOLIS
A51: 5303440 | B51: Coulee-Hartline School District | D51: 0 | F51: 0 | G51: 0 | H51: 248 | I51: 49 | J51: 49 | K51: 49 | L51: 0.1975806452 | N51: =VLOOKUP(A51, 'Allocation 2024-25 Final'!$B$7:$C$321,2,FALSE) -> COULEE-HARTLINE
A52: 5301800 | B52: Coupeville School District | D52: 0 | F52: 0 | G52: 0 | H52: 1077 | I52: 110 | J52: 110 | K52: 110 | L52: 0.1021355617 | N52: =VLOOKUP(A52, 'Allocation 2024-25 Final'!$B$7:$C$321,2,FALSE) -> COUPEVILLE
A53: 5301830 | B53: Crescent School District | D53: 0 | F53: 6 | G53: 0 | H53: 342 | I53: 56 | J53: 62 | K53: 62 | L53: 0.1812865497 | N53: =VLOOKUP(A53, 'Allocation 2024-25 Final'!$B$7:$C$321,2,FALSE) -> CRESCENT
A54: 5301860 | B54: Creston School District | D54: 0 | F54: 3 | G54: 0 | H54: 114 | I54: 14 | J54: 17 | K54: 17 | L54: 0.149122807 | N54: =VLOOKUP(A54, 'Allocation 2024-25 Final'!$B$7:$C$321,2,FALSE) -> CRESTON
A55: 5301890 | B55: Curlew School District | D55: 0 | F55: 0 | G55: 0 | H55: 165 | I55: 55 | J55: 55 | K55: 55 | L55: 0.3333333333 | N55: =VLOOKUP(A55, 'Allocation 2024-25 Final'!$B$7:$C$321,2,FALSE) -> CURLEW
A56: 5301920 | B56: Cusick School District | D56: 0 | F56: 2 | G56: 0 | H56: 323 | I56: 73 | J56: 75 | K56: 75 | L56: 0.2321981424 | N56: =VLOOKUP(A56, 'Allocation 2024-25 Final'!$B$7:$C$321,2,FALSE) -> CUSICK
A57: 5301950 | B57: Damman School District | D57: 0 | F57: 0 | G57: 0 | H57: 113 | I57: 3 | J57: 3 | K57: 3 | L57: 0.02654867257 | N57: =VLOOKUP(A57, 'Allocation 2024-25 Final'!$B$7:$C$321,2,FALSE) -> DAMMAN
A58: 5301980 | B58: Darrington School District | D58: 0 | F58: 1 | G58: 0 | H58: 506 | I58: 44 | J58: 45 | K58: 45 | L58: 0.08893280632 | N58: =VLOOKUP(A58, 'Allocation 2024-25 Final'!$B$7:$C$321,2,FALSE) -> DARRINGTON
A59: 5302010 | B59: Davenport School District | D59: 0 | F59: 1 | G59: 0 | H59: 588 | I59: 81 | J59: 82 | K59: 82 | L59: 0.1394557823 | N59: =VLOOKUP(A59, 'Allocation 2024-25 Final'!$B$7:$C$321,2,FALSE) -> DAVENPORT
A60: 5302040 | B60: Dayton School District | D60: 0 | F60: 2 | G60: 0 | H60: 517 | I60: 91 | J60: 93 | K60: 93 | L60: 0.1798839458 | N60: =VLOOKUP(A60, 'Allocation 2024-25 Final'!$B$7:$C$321,2,FALSE) -> DAYTON
A61: 5302070 | B61: Deer Park School District | D61: 0 | F61: 11 | G61: 0 | H61: 2387 | I61: 226 | J61: 237 | K61: 237 | L61: 0.09928780897 | N61: =VLOOKUP(A61, 'Allocation 2024-25 Final'!$B$7:$C$321,2,FALSE) -> DEER PARK
A62: 5302130 | B62: Dieringer School District | D62: 0 | F62: 2 | G62: 0 | H62: 2293 | I62: 100 | J62: 102 | K62: 102 | L62: 0.04448320977 | N62: =VLOOKUP(A62, 'Allocation 2024-25 Final'!$B$7:$C$321,2,FALSE) -> DIERINGER
A63: 5302160 | B63: Dixie School District | D63: 0 | F63: 0 | G63: 0 | H63: 75 | I63: 6 | J63: 6 | K63: 6 | L63: 0.08 | N63: =VLOOKUP(A63, 'Allocation 2024-25 Final'!$B$7:$C$321,2,FALSE) -> DIXIE
A64: 5302280 | B64: East Valley School District (Spokane) | D64: 0 | F64: 22 | G64: 0 | H64: 4713 | I64: 574 | J64: 596 | K64: 596 | L64: 0.1264587312 | N64: =VLOOKUP(A64, 'Allocation 2024-25 Final'!$B$7:$C$321,2,FALSE) -> EAST VALLEY (SPK)
A65: 5305370 | B65: East Valley School District (Yakima) | D65: 0 | F65: 9 | G65: 0 | H65: 3558 | I65: 481 | J65: 490 | K65: 490 | L65: 0.137717819 | N65: =VLOOKUP(A65, 'Allocation 2024-25 Final'!$B$7:$C$321,2,FALSE) -> EAST VALLEY (YAK)
A66: 5302310 | B66: Eastmont School District | D66: 0 | F66: 23 | G66: 0 | H66: 6388 | I66: 863 | J66: 886 | K66: 886 | L66: 0.1386975579 | N66: =VLOOKUP(A66, 'Allocation 2024-25 Final'!$B$7:$C$321,2,FALSE) -> EASTMONT
A67: 5302340 | B67: Easton School District | D67: 0 | F67: 0 | G67: 0 | H67: 157 | I67: 21 | J67: 21 | K67: 21 | L67: 0.1337579618 | N67: =VLOOKUP(A67, 'Allocation 2024-25 Final'!$B$7:$C$321,2,FALSE) -> EASTON
A68: 5302370 | B68: Eatonville School District | D68: 0 | F68: 7 | G68: 0 | H68: 2222 | I68: 150 | J68: 157 | K68: 157 | L68: 0.07065706571 | N68: =VLOOKUP(A68, 'Allocation 2024-25 Final'!$B$7:$C$321,2,FALSE) -> EATONVILLE
A69: 5302400 | B69: Edmonds School District | D69: 0 | F69: 15 | G69: 0 | H69: 24425 | I69: 2342 | J69: 2357 | K69: 2357 | L69: 0.09649948823 | N69: =VLOOKUP(A69, 'Allocation 2024-25 Final'!$B$7:$C$321,2,FALSE) -> EDMONDS
A70: 5302460 | B70: Ellensburg School District | D70: 0 | F70: 12 | G70: 0 | H70: 3597 | I70: 433 | J70: 445 | K70: 445 | L70: 0.1237142063 | N70: =VLOOKUP(A70, 'Allocation 2024-25 Final'!$B$7:$C$321,2,FALSE) -> ELLENSBURG
A71: 5302490 | B71: Elma School District | D71: 0 | F71: 4 | G71: 0 | H71: 1593 | I71: 241 | J71: 245 | K71: 245 | L71: 0.1537978657 | N71: =VLOOKUP(A71, 'Allocation 2024-25 Final'!$B$7:$C$321,2,FALSE) -> ELMA
A72: 5302520 | B72: Endicott School District | D72: 0 | F72: 0 | G72: 0 | H72: 90 | I72: 22 | J72: 22 | K72: 22 | L72: 0.2444444444 | N72: =VLOOKUP(A72, 'Allocation 2024-25 Final'!$B$7:$C$321,2,FALSE) -> ENDICOTT
A73: 5302550 | B73: Entiat School District | D73: 0 | F73: 5 | G73: 0 | H73: 409 | I73: 65 | J73: 70 | K73: 70 | L73: 0.1711491443 | N73: =VLOOKUP(A73, 'Allocation 2024-25 Final'!$B$7:$C$321,2,FALSE) -> ENTIAT
A74: 5300001 | B74: Enumclaw School District | D74: 0 | F74: 17 | G74: 0 | H74: 4684 | I74: 274 | J74: 291 | K74: 291 | L74: 0.0621263877 | N74: =VLOOKUP(A74, 'Allocation 2024-25 Final'!$B$7:$C$321,2,FALSE) -> ENUMCLAW
A75: 5302610 | B75: Ephrata School District | D75: 0 | F75: 3 | G75: 0 | H75: 2908 | I75: 427 | J75: 430 | K75: 430 | L75: 0.1478679505 | N75: =VLOOKUP(A75, 'Allocation 2024-25 Final'!$B$7:$C$321,2,FALSE) -> EPHRATA
A76: 5302640 | B76: Evaline School District | D76: 0 | F76: 1 | G76: 0 | H76: 130 | I76: 16 | J76: 17 | K76: 17 | L76: 0.1307692308 | N76: =VLOOKUP(A76, 'Allocation 2024-25 Final'!$B$7:$C$321,2,FALSE) -> EVALINE
A77: 5302670 | B77: Everett School District | D77: 0 | F77: 21 | G77: 0 | H77: 22976 | I77: 2424 | J77: 2445 | K77: 2445 | L77: 0.10641539 | N77: =VLOOKUP(A77, 'Allocation 2024-25 Final'!$B$7:$C$321,2,FALSE) -> EVERETT
A78: 5302700 | B78: Evergreen School District (Clark) | D78: 0 | F78: 61 | G78: 0 | H78: 26847 | I78: 2584 | J78: 2645 | K78: 2645 | L78: 0.09852125005 | N78: =VLOOKUP(A78, 'Allocation 2024-25 Final'!$B$7:$C$321,2,FALSE) -> EVERGREEN (CLARK)
A79: 5302730 | B79: Evergreen School District (Stevens) | D79: 0 | F79: 1 | G79: 0 | H79: 57 | I79: 17 | J79: 18 | K79: 18 | L79: 0.3157894737 | N79: =VLOOKUP(A79, 'Allocation 2024-25 Final'!$B$7:$C$321,2,FALSE) -> EVERGREEN (STEV)
A80: 5302820 | B80: Federal Way School District | D80: 0 | F80: 51 | G80: 0 | H80: 24174 | I80: 4191 | J80: 4242 | K80: 4242 | L80: 0.1754777861 | N80: =VLOOKUP(A80, 'Allocation 2024-25 Final'!$B$7:$C$321,2,FALSE) -> FEDERAL WAY
A81: 5302850 | B81: Ferndale School District | D81: 0 | F81: 16 | G81: 0 | H81: 6187 | I81: 769 | J81: 785 | K81: 785 | L81: 0.1268789397 | N81: =VLOOKUP(A81, 'Allocation 2024-25 Final'!$B$7:$C$321,2,FALSE) -> FERNDALE
A82: 5302880 | B82: Fife Public Schools | D82: 0 | F82: 12 | G82: 0 | H82: 4094 | I82: 386 | J82: 398 | K82: 398 | L82: 0.09721543723 | N82: =VLOOKUP(A82, 'Allocation 2024-25 Final'!$B$7:$C$321,2,FALSE) -> FIFE
A83: 5302910 | B83: Finley School District | D83: 0 | F83: 10 | G83: 0 | H83: 920 | I83: 113 | J83: 123 | K83: 123 | L83: 0.1336956522 | N83: =VLOOKUP(A83, 'Allocation 2024-25 Final'!$B$7:$C$321,2,FALSE) -> FINLEY
A84: 5302940 | B84: Franklin Pierce School District | D84: 0 | F84: 64 | G84: 0 | H84: 9340 | I84: 1348 | J84: 1412 | K84: 1412 | L84: 0.1511777302 | N84: =VLOOKUP(A84, 'Allocation 2024-25 Final'!$B$7:$C$321,2,FALSE) -> FRANKLIN PIERCE
A85: 5302970 | B85: Freeman School District | D85: 0 | F85: 0 | G85: 0 | H85: 1001 | I85: 36 | J85: 36 | K85: 36 | L85: 0.03596403596 | N85: =VLOOKUP(A85, 'Allocation 2024-25 Final'!$B$7:$C$321,2,FALSE) -> FREEMAN
A86: 5303000 | B86: Garfield School District | D86: 0 | F86: 0 | G86: 0 | H86: 132 | I86: 33 | J86: 33 | K86: 33 | L86: 0.25 | N86: =VLOOKUP(A86, 'Allocation 2024-25 Final'!$B$7:$C$321,2,FALSE) -> GARFIELD
A87: 5303030 | B87: Glenwood School District | D87: 0 | F87: 1 | G87: 0 | H87: 62 | I87: 9 | J87: 10 | K87: 10 | L87: 0.1612903226 | N87: =VLOOKUP(A87, 'Allocation 2024-25 Final'!$B$7:$C$321,2,FALSE) -> GLENWOOD
A88: 5303090 | B88: Goldendale School District | D88: 0 | F88: 2 | G88: 0 | H88: 1075 | I88: 161 | J88: 163 | K88: 163 | L88: 0.151627907 | N88: =VLOOKUP(A88, 'Allocation 2024-25 Final'!$B$7:$C$321,2,FALSE) -> GOLDENDALE
A89: 5303130 | B89: Grand Coulee Dam School District | D89: 0 | F89: 3 | G89: 0 | H89: 672 | I89: 111 | J89: 114 | K89: 114 | L89: 0.1696428571 | N89: =VLOOKUP(A89, 'Allocation 2024-25 Final'!$B$7:$C$321,2,FALSE) -> GRAND COULEE
A90: 5303150 | B90: Grandview School District | D90: 0 | F90: 15 | G90: 0 | H90: 3734 | I90: 806 | J90: 821 | K90: 821 | L90: 0.2198714515 | N90: =VLOOKUP(A90, 'Allocation 2024-25 Final'!$B$7:$C$321,2,FALSE) -> GRANDVIEW
A91: 5303180 | B91: Granger School District | D91: 0 | F91: 2 | G91: 0 | H91: 1587 | I91: 251 | J91: 253 | K91: 253 | L91: 0.1594202899 | N91: =VLOOKUP(A91, 'Allocation 2024-25 Final'!$B$7:$C$321,2,FALSE) -> GRANGER
A92: 5303210 | B92: Granite Falls School District | D92: 0 | F92: 2 | G92: 0 | H92: 2819 | I92: 180 | J92: 182 | K92: 182 | L92: 0.06456190138 | N92: =VLOOKUP(A92, 'Allocation 2024-25 Final'!$B$7:$C$321,2,FALSE) -> GRANITE FALLS
A93: 5303240 | B93: Grapeview School District | D93: 0 | F93: 0 | G93: 0 | H93: 342 | I93: 35 | J93: 35 | K93: 35 | L93: 0.1023391813 | N93: =VLOOKUP(A93, 'Allocation 2024-25 Final'!$B$7:$C$321,2,FALSE) -> GRAPEVIEW
A94: 5303270 | B94: Great Northern School District | D94: 0 | F94: 0 | G94: 0 | H94: 188 | I94: 36 | J94: 36 | K94: 36 | L94: 0.1914893617 | N94: =VLOOKUP(A94, 'Allocation 2024-25 Final'!$B$7:$C$321,2,FALSE) -> GREAT NORTHERN
A95: 5303300 | B95: Green Mountain School District | D95: 0 | F95: 0 | G95: 0 | H95: 206 | I95: 12 | J95: 12 | K95: 12 | L95: 0.05825242718 | N95: =VLOOKUP(A95, 'Allocation 2024-25 Final'!$B$7:$C$321,2,FALSE) -> GREEN MOUNTAIN
A96: 5303330 | B96: Griffin School District | D96: 0 | F96: 3 | G96: 0 | H96: 898 | I96: 44 | J96: 47 | K96: 47 | L96: 0.05233853007 | N96: =VLOOKUP(A96, 'Allocation 2024-25 Final'!$B$7:$C$321,2,FALSE) -> GRIFFIN
A97: 5303360 | B97: Harrington School District | D97: 0 | F97: 1 | G97: 0 | H97: 145 | I97: 24 | J97: 25 | K97: 25 | L97: 0.1724137931 | N97: =VLOOKUP(A97, 'Allocation 2024-25 Final'!$B$7:$C$321,2,FALSE) -> HARRINGTON
A98: 5303510 | B98: Highland School District | D98: 0 | F98: 1 | G98: 0 | H98: 1272 | I98: 142 | J98: 143 | K98: 143 | L98: 0.1124213836 | N98: =VLOOKUP(A98, 'Allocation 2024-25 Final'!$B$7:$C$321,2,FALSE) -> HIGHLAND
A99: 5303540 | B99: Highline | C99: 5303540 | D99: 0 | F99: 37 | G99: 0 | H99: 19648.57576 | I99: 3277.206562 | J99: 3314.206562 | K99: 3410 | L99: 0.1686741371 | N99: =VLOOKUP(A99, 'Allocation 2024-25 Final'!$B$7:$C$321,2,FALSE) -> HIGHLINE
A100: 5303570 | B100: Hockinson School District | D100: 0 | F100: 1 | G100: 0 | H100: 2186 | I100: 105 | J100: 106 | K100: 106 | L100: 0.04849039341 | N100: =VLOOKUP(A100, 'Allocation 2024-25 Final'!$B$7:$C$321,2,FALSE) -> HOCKINSON
A101: 5303600 | B101: Hood Canal School District | D101: 0 | F101: 7 | G101: 0 | H101: 704 | I101: 134 | J101: 141 | K101: 141 | L101: 0.2002840909 | N101: =VLOOKUP(A101, 'Allocation 2024-25 Final'!$B$7:$C$321,2,FALSE) -> HOOD CANAL
A102: 5303660 | B102: Hoquiam School District | D102: 0 | F102: 21 | G102: 0 | H102: 1821 | I102: 377 | J102: 398 | K102: 398 | L102: 0.2185612301 | N102: =VLOOKUP(A102, 'Allocation 2024-25 Final'!$B$7:$C$321,2,FALSE) -> HOQUIAM
A103: 5303700 | B103: Impact Puget Sound (Public Schools) | C103: 5308130 | D103: 0 | E103: 0 | F103: 0 | G103: 0 | H103: 408.1165363 | I103: 81.86646548 | J103: 81.86646548 | K103: 0 | L103: 0.2005958059 | N103: =VLOOKUP(A103, 'Allocation 2024-25 Final'!$B$7:$C$321,2,FALSE) -> IMPACT PUGET SOUND CHARTER
A104: 5307790 | B104: Impact Renton | C104: 5307230 | D104: 0 | E104: 0 | F104: 0 | G104: 0 | H104: 351.3196375 | I104: 61.9508126 | J104: 61.9508126 | K104: 0 | L104: 0.1763374602 | N104: =VLOOKUP(A104, 'Allocation 2024-25 Final'!$B$7:$C$321,2,FALSE) -> IMPACRT RENTON CHARTER
A105: 5303710 | B105: Impact Salish Sea | C105: 5308130 | D105: 0 | E105: 0 | F105: 0 | G105: 0 | H105: 318.7655786 | I105: 60.24594493 | J105: 60.24594493 | K105: 0 | L105: 0.1889976489 | N105: =VLOOKUP(A105, 'Allocation 2024-25 Final'!$B$7:$C$321,2,FALSE) -> IMPACT SALISH SEA CHARTER
A106: 5303705 | B106: Impact Tacoma (Commencement Bay) | C106: 5308700 | D106: 0 | E106: 0 | F106: 0 | G106: 0 | H106: 305.875905 | I106: 44.85824433 | J106: 44.85824433 | K106: 0 | L106: 0.1466550441 | N106: =VLOOKUP(A106, 'Allocation 2024-25 Final'!$B$7:$C$321,2,FALSE) -> IMPACT COMMENCEMENT BAY CHARTER
A107: 5300002 | B107: Inchelium School District | D107: 0 | F107: 1 | G107: 0 | H107: 198 | I107: 58 | J107: 59 | K107: 59 | L107: 0.297979798 | N107: =VLOOKUP(A107, 'Allocation 2024-25 Final'!$B$7:$C$321,2,FALSE) -> INCHELIUM
A108: 5303720 | B108: Index School District | D108: 0 | F108: 0 | G108: 0 | H108: 54 | I108: 5 | J108: 5 | K108: 5 | L108: 0.09259259259 | N108: =VLOOKUP(A108, 'Allocation 2024-25 Final'!$B$7:$C$321,2,FALSE) -> INDEX
A109: 5303750 | B109: Issaquah School District | D109: 0 | F109: 6 | G109: 0 | H109: 22819 | I109: 925 | J109: 931 | K109: 931 | L109: 0.04079933389 | N109: =VLOOKUP(A109, 'Allocation 2024-25 Final'!$B$7:$C$321,2,FALSE) -> ISSAQUAH
A110: 5303780 | B110: Kahlotus School District | D110: 0 | F110: 2 | G110: 0 | H110: 60 | I110: 5 | J110: 7 | K110: 7 | L110: 0.1166666667 | N110: =VLOOKUP(A110, 'Allocation 2024-25 Final'!$B$7:$C$321,2,FALSE) -> KAHLOTUS
A111: 5303810 | B111: Kalama School District | D111: 0 | F111: 5 | G111: 0 | H111: 1374 | I111: 101 | J111: 106 | K111: 106 | L111: 0.07714701601 | N111: =VLOOKUP(A111, 'Allocation 2024-25 Final'!$B$7:$C$321,2,FALSE) -> KALAMA
A112: 5303870 | B112: Keller School District | D112: 0 | F112: 0 | G112: 0 | H112: 108 | I112: 25 | J112: 25 | K112: 25 | L112: 0.2314814815 | N112: =VLOOKUP(A112, 'Allocation 2024-25 Final'!$B$7:$C$321,2,FALSE) -> KELLER
A113: 5300003 | B113: Kelso School District | D113: 0 | F113: 26 | G113: 0 | H113: 5555 | I113: 883 | J113: 909 | K113: 909 | L113: 0.1636363636 | N113: =VLOOKUP(A113, 'Allocation 2024-25 Final'!$B$7:$C$321,2,FALSE) -> KELSO
A114: 5303930 | B114: Kennewick School District | D114: 0 | F114: 64 | G114: 0 | H114: 20729 | I114: 2957 | J114: 3021 | K114: 3021 | L114: 0.1457378552 | N114: =VLOOKUP(A114, 'Allocation 2024-25 Final'!$B$7:$C$321,2,FALSE) -> KENNEWICK
A115: 5303960 | B115: Kent School District | D115: 0 | F115: 55 | G115: 0 | H115: 30128 | I115: 4397 | J115: 4452 | K115: 4452 | L115: 0.1477695167 | N115: =VLOOKUP(A115, 'Allocation 2024-25 Final'!$B$7:$C$321,2,FALSE) -> KENT
A116: 5303990 | B116: Kettle Falls School District | D116: 0 | F116: 4 | G116: 0 | H116: 947 | I116: 144 | J116: 148 | K116: 148 | L116: 0.1562829989 | N116: =VLOOKUP(A116, 'Allocation 2024-25 Final'!$B$7:$C$321,2,FALSE) -> KETTLE FALLS
A117: 5304020 | B117: Kiona-Benton City School District | D117: 0 | F117: 6 | G117: 0 | H117: 1759 | I117: 186 | J117: 192 | K117: 192 | L117: 0.1091529278 | N117: =VLOOKUP(A117, 'Allocation 2024-25 Final'!$B$7:$C$321,2,FALSE) -> KIONA-BENTON
A118: 5304050 | B118: Kittitas School District | D118: 0 | F118: 2 | G118: 0 | H118: 747 | I118: 69 | J118: 71 | K118: 71 | L118: 0.09504685408 | N118: =VLOOKUP(A118, 'Allocation 2024-25 Final'!$B$7:$C$321,2,FALSE) -> KITTITAS
A119: 5304080 | B119: Klickitat School District | D119: 0 | F119: 1 | G119: 0 | H119: 82 | I119: 4 | J119: 5 | K119: 5 | L119: 0.06097560976 | N119: =VLOOKUP(A119, 'Allocation 2024-25 Final'!$B$7:$C$321,2,FALSE) -> KLICKITAT
A120: 5304170 | B120: La Center School District | D120: 0 | F120: 5 | G120: 0 | H120: 1941 | I120: 80 | J120: 85 | K120: 85 | L120: 0.04379185987 | N120: =VLOOKUP(A120, 'Allocation 2024-25 Final'!$B$7:$C$321,2,FALSE) -> LA CENTER
A121: 5304110 | B121: La Conner School District | D121: 0 | F121: 6 | G121: 0 | H121: 586 | I121: 57 | J121: 63 | K121: 63 | L121: 0.1075085324 | N121: =VLOOKUP(A121, 'Allocation 2024-25 Final'!$B$7:$C$321,2,FALSE) -> LA CONNER
A122: 5304150 | B122: LaCrosse School District | D122: 0 | F122: 0 | G122: 0 | H122: 90 | I122: 17 | J122: 17 | K122: 17 | L122: 0.1888888889 | N122: =VLOOKUP(A122, 'Allocation 2024-25 Final'!$B$7:$C$321,2,FALSE) -> LACROSSE
A123: 5301200 | B123: Lake Chelan School District | D123: 0 | F123: 0 | G123: 0 | H123: 1245 | I123: 167 | J123: 167 | K123: 167 | L123: 0.1341365462 | N123: =VLOOKUP(A123, 'Allocation 2024-25 Final'!$B$7:$C$321,2,FALSE) -> LAKE CHELAN
A124: 5307050 | B124: Lake Quinault School District | D124: 0 | F124: 2 | G124: 0 | H124: 175 | I124: 29 | J124: 31 | K124: 31 | L124: 0.1771428571 | N124: =VLOOKUP(A124, 'Allocation 2024-25 Final'!$B$7:$C$321,2,FALSE) -> QUINAULT
A125: 5304200 | B125: Lake Stevens School District | D125: 0 | F125: 12 | G125: 0 | H125: 10332 | I125: 667 | J125: 679 | K125: 679 | L125: 0.06571815718 | N125: =VLOOKUP(A125, 'Allocation 2024-25 Final'!$B$7:$C$321,2,FALSE) -> LAKE STEVENS
A126: 5304230 | B126: Lake Washington School District | D126: 0 | F126: 15 | G126: 0 | H126: 35771 | I126: 1440 | J126: 1455 | K126: 1455 | L126: 0.04067540745 | N126: =VLOOKUP(A126, 'Allocation 2024-25 Final'!$B$7:$C$321,2,FALSE) -> LAKE WASHINGTON
A127: 5304260 | B127: Lakewood School District | D127: 0 | F127: 4 | G127: 0 | H127: 2662 | I127: 333 | J127: 337 | K127: 337 | L127: 0.126596544 | N127: =VLOOKUP(A127, 'Allocation 2024-25 Final'!$B$7:$C$321,2,FALSE) -> LAKEWOOD
